Workbook

Sheet Introduction

Sheet Assumptions
A1: Assumptions
B3: Assumptions | E3: Expense Name | F3: Annual $/SF | H3: Uses and Sources | I3: $ | J3: $/SF
B4: Acquisition Date | C4: 2020-06-01 | E4: Insurance | F4: 0.5 | H4: Sources:
B5: Expense Growth | C5: 0.02 | E5: Snow Removal | F5: 1.5 | H5: Loan | I5: =+I10*0.75 -> 1875000 | J5: =I5/'Rent Roll'!$D$9 -> 1.223491028
B6: General Vacancy | C6: 0.05 | E6: Summer Maintenance | F6: 0.25 | H6: Equity | I6: =I7-I5 -> 645000 | J6: =I6/'Rent Roll'!$D$9 -> 0.4208809135
B7: Expense Growth | C7: 0.03 | E7: Property Taxes | F7: 3 | H7: Total Sources | I7: =I16 -> 2520000 | J7: =I7/'Rent Roll'!$D$9 -> 1.644371941
B8: Going-in Cap Rate | C8: ='Annual Cash Flow'!D55/I10 -> 0.03994111105 | E8: Hydro | F8: 1
B9: Exit Cap Rate | C9: 0.06 | E9: Operating Expense (Ground) | F9: 4.05645491 | H9: Uses:
B10: Disposition Costs | C10: 0.02 | H10: Purchase Price | I10: 2500000 | J10: =I10/'Rent Roll'!$D$9 -> 1.63132137
B11: Holding Period (Yr) | C11: 5 | H11: Closing Cost | I11: 10000 | J11: =I11/'Rent Roll'!$D$9 -> 0.006525285481
H12: Legal | I12: 10000 | J12: =I12/'Rent Roll'!$D$9 -> 0.006525285481
B13: Debt Assumptions | H13: Working Capital | I13: 0 | J13: =I13/'Rent Roll'!$D$9 -> 0
B14: LTV | C14: =I5/I7 -> 0.744047619 | H14: Mortgage Brokerage Fee | I14: 0 | J14: =I14/'Rent Roll'!$D$9 -> 0
B15: Interest-Only (Month) | C15: 0 | H15: DD Fees | I15: 0 | J15: =I15/'Rent Roll'!$D$9 -> 0
B16: Amortization (Month) | C16: 300 | H16: Total Uses | I16: =SUM(I10:I15) -> 2520000 | J16: =I16/'Rent Roll'!$D$9 -> 1.644371941
B17: Interest Rate | C17: 0.0275
H18: Return Metrics
H19: =+'Monthly Cash Flow'!B96 -> Deal Level IRR | J19: =+'Monthly Cash Flow'!D96 -> 0.1228547394
H20: =+'Monthly Cash Flow'!B97 -> Multiple | J20: =+'Monthly Cash Flow'!D97 -> 1.792196936
H21: =+'Monthly Cash Flow'!B98 -> Net Profit | J21: =+'Monthly Cash Flow'!D98 -> 510967.0237
H22: =+'Monthly Cash Flow'!B99 -> Capital | J22: =+'Monthly Cash Flow'!D99 -> 645000

Sheet Rent Roll
A1: Rent Roll
B3: # | C3: Suite | D3: Leased / Spec | E3: Tenant | F3: SF | G3: % of Total | H3: Annual $/SF | I3: Annual Increase % | J3: Lease Start Date | K3: Lease End Date | L3: Remaining Term | M3: Reimbursement Annual $/SF | O3: Rollover Annual $/SF | P3: Annual Rent Increase % | Q3: Downtime | R3: Renewal Probability | S3: Lease Length (Mo.) | T3: Reimbursement Annual $/SF | U3: New TI | V3: Renew TI | W3: New LC | X3: Renew LC | Y3: Free Rent New (Mo.) | Z3: Free Rent Renew (Mo.) | AC3: Underewritten Downtime | AD3: Downtime Start Date | AE3: Downtime End Date | AF3: Underewritten Free Time | AG3: Free Rent Start Date | AH3: Free Rent End Date | AI3: Underwritten TI | AJ3: Underwritten Leasing Commissions
B4: 1 | C4: 100 | D4: 500 | E4: ABC | F4: 6554 | G4: =+F4/$F$9 -> 0.3527069207 | H4: 12.5 | I4: 0.02 | J4: 2019-06-01 | K4: 2024-08-01 | L4: =ROUND((K4-J4)/365.25,1) -> 5.2 | M4: 8.454 | O4: 13.5 | P4: 0.02 | Q4: 12 | R4: 0.5 | S4: =5*12 -> 60 | T4: 9 | U4: 25 | V4: 10 | W4: 0.03 | X4: 0.015 | Y4: 1 | Z4: 1 | AC4: =ROUND((1-R4)*Q4,0) -> 6 | AD4: =MAX(K4,Assumptions!$C$4) -> 2024-08-01 | AE4: =IF(AD4=Assumptions!$C$4,EOMONTH(AD4,AC4-1),EOMONTH(AD4,AC4)) -> 2025-02-28 | AF4: =ROUND(R4*Z4+(1-R4)*Y4,0) -> 1 | AG4: =+AE4 -> 2025-02-28 | AH4: =EOMONTH(AG4,AF4) -> 2025-03-31 | AI4: =(R4*V4+(1-R4)*U4)*F4 -> 114695 | AJ4: =(R4*X4+(1-R4)*W4)*(O4*F4*S4/12) -> 9953.8875
B5: =+B4+1 -> 2 | C5: 200 | D5: 750 | E5: EFG | F5: 4337 | G5: =+F5/$F$9 -> 0.233397912 | H5: 10.2 | I5: 0.02 | J5: 2017-07-01 | K5: 2024-08-01 | L5: =ROUND((K5-J5)/365.25,1) -> 7.1 | M5: 8.454 | O5: 11.12 | P5: 0.02 | Q5: 12 | R5: 0.5 | S5: =5*12 -> 60 | T5: 9 | U5: 25 | V5: 10 | W5: 0.03 | X5: 0.015 | Y5: 1 | Z5: 1 | AC5: =ROUND((1-R5)*Q5,0) -> 6 | AD5: =MAX(K5,Assumptions!$C$4) -> 2024-08-01 | AE5: =IF(AD5=Assumptions!$C$4,EOMONTH(AD5,AC5-1),EOMONTH(AD5,AC5)) -> 2025-02-28 | AF5: =ROUND(R5*Z5+(1-R5)*Y5,0) -> 1 | AG5: =+AE5 -> 2025-02-28 | AH5: =EOMONTH(AG5,AF5) -> 2025-03-31 | AI5: =(R5*V5+(1-R5)*U5)*F5 -> 75897.5 | AJ5: =(R5*X5+(1-R5)*W5)*(O5*F5*S5/12) -> 5425.587
B6: =+B5+1 -> 3 | C6: 300 | D6: 875 | E6: ASD | F6: 4626 | G6: 0.2489505974 | H6: 6.12 | I6: 0.02 | J6: 2020-03-01 | K6: 2024-08-01 | L6: 4.4 | M6: 8.454 | O6: 6.63 | P6: 0.02 | Q6: 12 | R6: 0.5 | S6: 60 | T6: 9 | U6: 25 | V6: 10 | W6: 0.03 | X6: 0.015 | Y6: 1 | Z6: 1 | AC6: 6 | AD6: =MAX(K6,Assumptions!$C$4) -> 2024-08-01 | AE6: =IF(AD6=Assumptions!$C$4,EOMONTH(AD6,AC6-1),EOMONTH(AD6,AC6)) -> 2025-02-28 | AF6: 1 | AG6: 2025-02-28 | AH6: 2025-03-31 | AI6: 80955 | AJ6: 3450.41775
B7: 4 | C7: 400 | D7: 1050 | E7: Vacant | F7: 2465 | G7: 0.1326552578 | H7: 12.75 | I7: 0.02 | L7: 0 | O7: 13.75 | P7: 0.02 | Q7: 12 | R7: 0 | S7: 60 | T7: 9 | U7: 20 | V7: 10 | W7: 0.03 | X7: 0.015 | Y7: 1 | Z7: 1 | AC7: 12 | AD7: =MAX(K7,Assumptions!$C$4) -> 2020-06-01 | AE7: =IF(AD7=Assumptions!$C$4,EOMONTH(AD7,AC7-1),EOMONTH(AD7,AC7)) -> 2021-05-31 | AF7: 1 | AG7: 2021-05-31 | AH7: 2021-06-30 | AI7: =(R7*V7+(1-R7)*U7)*F7 -> 49300 | AJ7: 5084.0625
B8: 5 | C8: 500 | D8: 1300 | E8: Vacant | F8: 600 | G8: 0.03228931224 | H8: 12.75 | I8: 0.02 | L8: 0 | O8: 13.75 | P8: 0.02 | Q8: 12 | R8: 0 | S8: 60 | T8: 9 | U8: 20 | V8: 10 | W8: 0.03 | X8: 0.015 | Y8: 1 | Z8: 1 | AC8: =ROUND((1-R8)*Q8,0) -> 12 | AD8: =MAX(K8,Assumptions!$C$4) -> 2020-06-01 | AE8: =IF(AD8=Assumptions!$C$4,EOMONTH(AD8,AC8-1),EOMONTH(AD8,AC8)) -> 2021-05-31 | AF8: 1 | AG8: 2021-05-31 | AH8: 2021-06-30 | AI8: 12000 | AJ8: 1237.5
B9: Total | D9: =SUMPRODUCT(C4:C8,D4:D8) -> 1532500 | E9: =SUMPRODUCT(E4:E8,C4:C8) -> 0 | F9: =SUM(F4:F8) -> 18582 | G9: =SUM(G4:G8) -> 1

Sheet Monthly Cash Flow
A1: Monthly Cash Flow | BM1: STOP
BM2: STOP
B3: Year | C3: 0 | D3: =ROUNDUP(D4/12,0) -> 1 | E3: =ROUNDUP(E4/12,0) -> 1 | F3: 1 | G3: 1 | H3: 1 | I3: 1 | J3: 1 | K3: 1 | L3: 1 | M3: 1 | N3: 1 | O3: 1 | P3: 2 | Q3: 2 | R3: 2 | S3: 2 | T3: 2 | U3: 2 | V3: 2 | W3: 2 | X3: 2 | Y3: 2 | Z3: 2 | AA3: 2 | AB3: 3 | AC3: 3 | AD3: 3 | AE3: 3 | AF3: 3 | AG3: 3 | AH3: 3 | AI3: 3 | AJ3: 3 | AK3: 3 | AL3: 3 | AM3: 3 | AN3: 4 | AO3: 4 | AP3: 4 | AQ3: 4 | AR3: 4 | AS3: 4 | AT3: 4 | AU3: 4 | AV3: 4 | AW3: 4 | AX3: 4 | AY3: 4 | AZ3: 5 | BA3: 5 | BB3: 5 | BC3: 5 | BD3: 5 | BE3: 5 | BF3: 5 | BG3: 5 | BH3: 5 | BI3: 5 | BJ3: 5 | BK3: 5 | BM3: STOP
B4: Month | C4: 0 | D4: =+C4+1 -> 1 | E4: =+D4+1 -> 2 | F4: 3 | G4: 4 | H4: 5 | I4: 6 | J4: 7 | K4: 8 | L4: 9 | M4: 10 | N4: 11 | O4: 12 | P4: 13 | Q4: 14 | R4: 15 | S4: 16 | T4: 17 | U4: 18 | V4: 19 | W4: 20 | X4: 21 | Y4: 22 | Z4: 23 | AA4: 24 | AB4: 25 | AC4: 26 | AD4: 27 | AE4: 28 | AF4: 29 | AG4: 30 | AH4: 31 | AI4: 32 | AJ4: 33 | AK4: 34 | AL4: 35 | AM4: 36 | AN4: 37 | AO4: 38 | AP4: 39 | AQ4: 40 | AR4: 41 | AS4: 42 | AT4: 43 | AU4: 44 | AV4: 45 | AW4: 46 | AX4: 47 | AY4: 48 | AZ4: 49 | BA4: 50 | BB4: 51 | BC4: 52 | BD4: 53 | BE4: 54 | BF4: 55 | BG4: 56 | BH4: 57 | BI4: 58 | BJ4: 59 | BK4: 60 | BM4: STOP
B5: Date | C5: =+Assumptions!C4 -> 2020-06-01 | D5: =EOMONTH(C5,0) -> 2020-06-30 | E5: =EOMONTH(D5,1) -> 2020-07-31 | F5: =EOMONTH(E5,1) -> 2020-08-31 | G5: 2020-09-30 | H5: 2020-10-31 | I5: 2020-11-30 | J5: 2020-12-31 | K5: 2021-01-31 | L5: 2021-02-28 | M5: 2021-03-31 | N5: 2021-04-30 | O5: 2021-05-31 | P5: 2021-06-30 | Q5: 2021-07-31 | R5: 2021-08-31 | S5: 2021-09-30 | T5: 2021-10-31 | U5: 2021-11-30 | V5: 2021-12-31 | W5: 2022-01-31 | X5: 2022-02-28 | Y5: 2022-03-31 | Z5: 2022-04-30 | AA5: 2022-05-31 | AB5: 2022-06-30 | AC5: 2022-07-31 | AD5: 2022-08-31 | AE5: 2022-09-30 | AF5: 2022-10-31 | AG5: 2022-11-30 | AH5: 2022-12-31 | AI5: 2023-01-31 | AJ5: 2023-02-28 | AK5: 2023-03-31 | AL5: 2023-04-30 | AM5: 2023-05-31 | AN5: 2023-06-30 | AO5: 2023-07-31 | AP5: 2023-08-31 | AQ5: 2023-09-30 | AR5: 2023-10-31 | AS5: 2023-11-30 | AT5: 2023-12-31 | AU5: 2024-01-31 | AV5: 2024-02-29 | AW5: 2024-03-31 | AX5: 2024-04-30 | AY5: 2024-05-31 | AZ5: 2024-06-30 | BA5: 2024-07-31 | BB5: 2024-08-31 | BC5: 2024-09-30 | BD5: 2024-10-31 | BE5: 2024-11-30 | BF5: 2024-12-31 | BG5: 2025-01-31 | BH5: 2025-02-28 | BI5: 2025-03-31 | BJ5: 2025-04-30 | BK5: 2025-05-31 | BM5: STOP
B6: GROSS POTENTIAL REVENUE: | BM6: STOP
B7: =+'Rent Roll'!E4 -> ABC | D7: =(D5>='Rent Roll'!$J$4)*(D5<='Rent Roll'!$K$4)*'Rent Roll'!$H$4*'Rent Roll'!$F$4*(1+'Rent Roll'!$I$4)^(ROUNDDOWN((D4-$C$4-1)/12,0)+1)/12+(D5>'Rent Roll'!$AD$4)*(D5<=EOMONTH('Rent Roll'!$AD$4,'Rent Roll'!$S$4))*'Rent Roll'!$O$4*'Rent Roll'!$F$4*(1+'Rent Roll'!$P$4)^(ROUNDDOWN((D4-$C$4-1)/12,0)+1)/12 -> 6963.625 | E7: =(E5>='Rent Roll'!$J$4)*(E5<='Rent Roll'!$K$4)*'Rent Roll'!$H$4*'Rent Roll'!$F$4*(1+'Rent Roll'!$I$4)^(ROUNDDOWN((E4-$C$4-1)/12,0)+1)/12+(E5>'Rent Roll'!$AD$4)*(E5<=EOMONTH('Rent Roll'!$AD$4,'Rent Roll'!$S$4))*'Rent Roll'!$O$4*'Rent Roll'!$F$4*(1+'Rent Roll'!$P$4)^(ROUNDDOWN((E4-$C$4-1)/12,0)+1)/12 -> 6963.625 | F7: =(F5>='Rent Roll'!$J$4)*(F5<='Rent Roll'!$K$4)*'Rent Roll'!$H$4*'Rent Roll'!$F$4*(1+'Rent Roll'!$I$4)^(ROUNDDOWN((F4-$C$4-1)/12,0)+1)/12+(F5>'Rent Roll'!$AD$4)*(F5<=EOMONTH('Rent Roll'!$AD$4,'Rent Roll'!$S$4))*'Rent Roll'!$O$4*'Rent Roll'!$F$4*(1+'Rent Roll'!$P$4)^(ROUNDDOWN((F4-$C$4-1)/12,0)+1)/12 -> 6963.625 | G7: =(G5>='Rent Roll'!$J$4)*(G5<='Rent Roll'!$K$4)*'Rent Roll'!$H$4*'Rent Roll'!$F$4*(1+'Rent Roll'!$I$4)^(ROUNDDOWN((G4-$C$4-1)/12,0)+1)/12+(G5>'Rent Roll'!$AD$4)*(G5<=EOMONTH('Rent Roll'!$AD$4,'Rent Roll'!$S$4))*'Rent Roll'!$O$4*'Rent Roll'!$F$4*(1+'Rent Roll'!$P$4)^(ROUNDDOWN((G4-$C$4-1)/12,0)+1)/12 -> 6963.625 | H7: =(H5>='Rent Roll'!$J$4)*(H5<='Rent Roll'!$K$4)*'Rent Roll'!$H$4*'Rent Roll'!$F$4*(1+'Rent Roll'!$I$4)^(ROUNDDOWN((H4-$C$4-1)/12,0)+1)/12+(H5>'Rent Roll'!$AD$4)*(H5<=EOMONTH('Rent Roll'!$AD$4,'Rent Roll'!$S$4))*'Rent Roll'!$O$4*'Rent Roll'!$F$4*(1+'Rent Roll'!$P$4)^(ROUNDDOWN((H4-$C$4-1)/12,0)+1)/12 -> 6963.625 | I7: =(I5>='Rent Roll'!$J$4)*(I5<='Rent Roll'!$K$4)*'Rent Roll'!$H$4*'Rent Roll'!$F$4*(1+'Rent Roll'!$I$4)^(ROUNDDOWN((I4-$C$4-1)/12,0)+1)/12+(I5>'Rent Roll'!$AD$4)*(I5<=EOMONTH('Rent Roll'!$AD$4,'Rent Roll'!$S$4))*'Rent Roll'!$O$4*'Rent Roll'!$F$4*(1+'Rent Roll'!$P$4)^(ROUNDDOWN((I4-$C$4-1)/12,0)+1)/12 -> 6963.625 | J7: =(J5>='Rent Roll'!$J$4)*(J5<='Rent Roll'!$K$4)*'Rent Roll'!$H$4*'Rent Roll'!$F$4*(1+'Rent Roll'!$I$4)^(ROUNDDOWN((J4-$C$4-1)/12,0)+1)/12+(J5>'Rent Roll'!$AD$4)*(J5<=EOMONTH('Rent Roll'!$AD$4,'Rent Roll'!$S$4))*'Rent Roll'!$O$4*'Rent Roll'!$F$4*(1+'Rent Roll'!$P$4)^(ROUNDDOWN((J4-$C$4-1)/12,0)+1)/12 -> 6963.625 | K7: =(K5>='Rent Roll'!$J$4)*(K5<='Rent Roll'!$K$4)*'Rent Roll'!$H$4*'Rent Roll'!$F$4*(1+'Rent Roll'!$I$4)^(ROUNDDOWN((K4-$C$4-1)/12,0)+1)/12+(K5>'Rent Roll'!$AD$4)*(K5<=EOMONTH('Rent Roll'!$AD$4,'Rent Roll'!$S$4))*'Rent Roll'!$O$4*'Rent Roll'!$F$4*(1+'Rent Roll'!$P$4)^(ROUNDDOWN((K4-$C$4-1)/12,0)+1)/12 -> 6963.625 | L7: =(L5>='Rent Roll'!$J$4)*(L5<='Rent Roll'!$K$4)*'Rent Roll'!$H$4*'Rent Roll'!$F$4*(1+'Rent Roll'!$I$4)^(ROUNDDOWN((L4-$C$4-1)/12,0)+1)/12+(L5>'Rent Roll'!$AD$4)*(L5<=EOMONTH('Rent Roll'!$AD$4,'Rent Roll'!$S$4))*'Rent Roll'!$O$4*'Rent Roll'!$F$4*(1+'Rent Roll'!$P$4)^(ROUNDDOWN((L4-$C$4-1)/12,0)+1)/12 -> 6963.625 | M7: =(M5>='Rent Roll'!$J$4)*(M5<='Rent Roll'!$K$4)*'Rent Roll'!$H$4*'Rent Roll'!$F$4*(1+'Rent Roll'!$I$4)^(ROUNDDOWN((M4-$C$4-1)/12,0)+1)/12+(M5>'Rent Roll'!$AD$4)*(M5<=EOMONTH('Rent Roll'!$AD$4,'Rent Roll'!$S$4))*'Rent Roll'!$O$4*'Rent Roll'!$F$4*(1+'Rent Roll'!$P$4)^(ROUNDDOWN((M4-$C$4-1)/12,0)+1)/12 -> 6963.625 | N7: =(N5>='Rent Roll'!$J$4)*(N5<='Rent Roll'!$K$4)*'Rent Roll'!$H$4*'Rent Roll'!$F$4*(1+'Rent Roll'!$I$4)^(ROUNDDOWN((N4-$C$4-1)/12,0)+1)/12+(N5>'Rent Roll'!$AD$4)*(N5<=EOMONTH('Rent Roll'!$AD$4,'Rent Roll'!$S$4))*'Rent Roll'!$O$4*'Rent Roll'!$F$4*(1+'Rent Roll'!$P$4)^(ROUNDDOWN((N4-$C$4-1)/12,0)+1)/12 -> 6963.625 | O7: =(O5>='Rent Roll'!$J$4)*(O5<='Rent Roll'!$K$4)*'Rent Roll'!$H$4*'Rent Roll'!$F$4*(1+'Rent Roll'!$I$4)^(ROUNDDOWN((O4-$C$4-1)/12,0)+1)/12+(O5>'Rent Roll'!$AD$4)*(O5<=EOMONTH('Rent Roll'!$AD$4,'Rent Roll'!$S$4))*'Rent Roll'!$O$4*'Rent Roll'!$F$4*(1+'Rent Roll'!$P$4)^(ROUNDDOWN((O4-$C$4-1)/12,0)+1)/12 -> 6963.625 | P7: =(P5>='Rent Roll'!$J$4)*(P5<='Rent Roll'!$K$4)*'Rent Roll'!$H$4*'Rent Roll'!$F$4*(1+'Rent Roll'!$I$4)^(ROUNDDOWN((P4-$C$4-1)/12,0)+1)/12+(P5>'Rent Roll'!$AD$4)*(P5<=EOMONTH('Rent Roll'!$AD$4,'Rent Roll'!$S$4))*'Rent Roll'!$O$4*'Rent Roll'!$F$4*(1+'Rent Roll'!$P$4)^(ROUNDDOWN((P4-$C$4-1)/12,0)+1)/12 -> 7102.8975 | Q7: =(Q5>='Rent Roll'!$J$4)*(Q5<='Rent Roll'!$K$4)*'Rent Roll'!$H$4*'Rent Roll'!$F$4*(1+'Rent Roll'!$I$4)^(ROUNDDOWN((Q4-$C$4-1)/12,0)+1)/12+(Q5>'Rent Roll'!$AD$4)*(Q5<=EOMONTH('Rent Roll'!$AD$4,'Rent Roll'!$S$4))*'Rent Roll'!$O$4*'Rent Roll'!$F$4*(1+'Rent Roll'!$P$4)^(ROUNDDOWN((Q4-$C$4-1)/12,0)+1)/12 -> 7102.8975 | R7: =(R5>='Rent Roll'!$J$4)*(R5<='Rent Roll'!$K$4)*'Rent Roll'!$H$4*'Rent Roll'!$F$4*(1+'Rent Roll'!$I$4)^(ROUNDDOWN((R4-$C$4-1)/12,0)+1)/12+(R5>'Rent Roll'!$AD$4)*(R5<=EOMONTH('Rent Roll'!$AD$4,'Rent Roll'!$S$4))*'Rent Roll'!$O$4*'Rent Roll'!$F$4*(1+'Rent Roll'!$P$4)^(ROUNDDOWN((R4-$C$4-1)/12,0)+1)/12 -> 7102.8975 | S7: =(S5>='Rent Roll'!$J$4)*(S5<='Rent Roll'!$K$4)*'Rent Roll'!$H$4*'Rent Roll'!$F$4*(1+'Rent Roll'!$I$4)^(ROUNDDOWN((S4-$C$4-1)/12,0)+1)/12+(S5>'Rent Roll'!$AD$4)*(S5<=EOMONTH('Rent Roll'!$AD$4,'Rent Roll'!$S$4))*'Rent Roll'!$O$4*'Rent Roll'!$F$4*(1+'Rent Roll'!$P$4)^(ROUNDDOWN((S4-$C$4-1)/12,0)+1)/12 -> 7102.8975 | T7: =(T5>='Rent Roll'!$J$4)*(T5<='Rent Roll'!$K$4)*'Rent Roll'!$H$4*'Rent Roll'!$F$4*(1+'Rent Roll'!$I$4)^(ROUNDDOWN((T4-$C$4-1)/12,0)+1)/12+(T5>'Rent Roll'!$AD$4)*(T5<=EOMONTH('Rent Roll'!$AD$4,'Rent Roll'!$S$4))*'Rent Roll'!$O$4*'Rent Roll'!$F$4*(1+'Rent Roll'!$P$4)^(ROUNDDOWN((T4-$C$4-1)/12,0)+1)/12 -> 7102.8975 | U7: =(U5>='Rent Roll'!$J$4)*(U5<='Rent Roll'!$K$4)*'Rent Roll'!$H$4*'Rent Roll'!$F$4*(1+'Rent Roll'!$I$4)^(ROUNDDOWN((U4-$C$4-1)/12,0)+1)/12+(U5>'Rent Roll'!$AD$4)*(U5<=EOMONTH('Rent Roll'!$AD$4,'Rent Roll'!$S$4))*'Rent Roll'!$O$4*'Rent Roll'!$F$4*(1+'Rent Roll'!$P$4)^(ROUNDDOWN((U4-$C$4-1)/12,0)+1)/12 -> 7102.8975 | V7: =(V5>='Rent Roll'!$J$4)*(V5<='Rent Roll'!$K$4)*'Rent Roll'!$H$4*'Rent Roll'!$F$4*(1+'Rent Roll'!$I$4)^(ROUNDDOWN((V4-$C$4-1)/12,0)+1)/12+(V5>'Rent Roll'!$AD$4)*(V5<=EOMONTH('Rent Roll'!$AD$4,'Rent Roll'!$S$4))*'Rent Roll'!$O$4*'Rent Roll'!$F$4*(1+'Rent Roll'!$P$4)^(ROUNDDOWN((V4-$C$4-1)/12,0)+1)/12 -> 7102.8975 | W7: =(W5>='Rent Roll'!$J$4)*(W5<='Rent Roll'!$K$4)*'Rent Roll'!$H$4*'Rent Roll'!$F$4*(1+'Rent Roll'!$I$4)^(ROUNDDOWN((W4-$C$4-1)/12,0)+1)/12+(W5>'Rent Roll'!$AD$4)*(W5<=EOMONTH('Rent Roll'!$AD$4,'Rent Roll'!$S$4))*'Rent Roll'!$O$4*'Rent Roll'!$F$4*(1+'Rent Roll'!$P$4)^(ROUNDDOWN((W4-$C$4-1)/12,0)+1)/12 -> 7102.8975 | X7: =(X5>='Rent Roll'!$J$4)*(X5<='Rent Roll'!$K$4)*'Rent Roll'!$H$4*'Rent Roll'!$F$4*(1+'Rent Roll'!$I$4)^(ROUNDDOWN((X4-$C$4-1)/12,0)+1)/12+(X5>'Rent Roll'!$AD$4)*(X5<=EOMONTH('Rent Roll'!$AD$4,'Rent Roll'!$S$4))*'Rent Roll'!$O$4*'Rent Roll'!$F$4*(1+'Rent Roll'!$P$4)^(ROUNDDOWN((X4-$C$4-1)/12,0)+1)/12 -> 7102.8975 | Y7: =(Y5>='Rent Roll'!$J$4)*(Y5<='Rent Roll'!$K$4)*'Rent Roll'!$H$4*'Rent Roll'!$F$4*(1+'Rent Roll'!$I$4)^(ROUNDDOWN((Y4-$C$4-1)/12,0)+1)/12+(Y5>'Rent Roll'!$AD$4)*(Y5<=EOMONTH('Rent Roll'!$AD$4,'Rent Roll'!$S$4))*'Rent Roll'!$O$4*'Rent Roll'!$F$4*(1+'Rent Roll'!$P$4)^(ROUNDDOWN((Y4-$C$4-1)/12,0)+1)/12 -> 7102.8975 | Z7: =(Z5>='Rent Roll'!$J$4)*(Z5<='Rent Roll'!$K$4)*'Rent Roll'!$H$4*'Rent Roll'!$F$4*(1+'Rent Roll'!$I$4)^(ROUNDDOWN((Z4-$C$4-1)/12,0)+1)/12+(Z5>'Rent Roll'!$AD$4)*(Z5<=EOMONTH('Rent Roll'!$AD$4,'Rent Roll'!$S$4))*'Rent Roll'!$O$4*'Rent Roll'!$F$4*(1+'Rent Roll'!$P$4)^(ROUNDDOWN((Z4-$C$4-1)/12,0)+1)/12 -> 7102.8975 | AA7: =(AA5>='Rent Roll'!$J$4)*(AA5<='Rent Roll'!$K$4)*'Rent Roll'!$H$4*'Rent Roll'!$F$4*(1+'Rent Roll'!$I$4)^(ROUNDDOWN((AA4-$C$4-1)/12,0)+1)/12+(AA5>'Rent Roll'!$AD$4)*(AA5<=EOMONTH('Rent Roll'!$AD$4,'Rent Roll'!$S$4))*'Rent Roll'!$O$4*'Rent Roll'!$F$4*(1+'Rent Roll'!$P$4)^(ROUNDDOWN((AA4-$C$4-1)/12,0)+1)/12 -> 7102.8975 | AB7: =(AB5>='Rent Roll'!$J$4)*(AB5<='Rent Roll'!$K$4)*'Rent Roll'!$H$4*'Rent Roll'!$F$4*(1+'Rent Roll'!$I$4)^(ROUNDDOWN((AB4-$C$4-1)/12,0)+1)/12+(AB5>'Rent Roll'!$AD$4)*(AB5<=EOMONTH('Rent Roll'!$AD$4,'Rent Roll'!$S$4))*'Rent Roll'!$O$4*'Rent Roll'!$F$4*(1+'Rent Roll'!$P$4)^(ROUNDDOWN((AB4-$C$4-1)/12,0)+1)/12 -> 7244.95545 | AC7: =(AC5>='Rent Roll'!$J$4)*(AC5<='Rent Roll'!$K$4)*'Rent Roll'!$H$4*'Rent Roll'!$F$4*(1+'Rent Roll'!$I$4)^(ROUNDDOWN((AC4-$C$4-1)/12,0)+1)/12+(AC5>'Rent Roll'!$AD$4)*(AC5<=EOMONTH('Rent Roll'!$AD$4,'Rent Roll'!$S$4))*'Rent Roll'!$O$4*'Rent Roll'!$F$4*(1+'Rent Roll'!$P$4)^(ROUNDDOWN((AC4-$C$4-1)/12,0)+1)/12 -> 7244.95545 | AD7: =(AD5>='Rent Roll'!$J$4)*(AD5<='Rent Roll'!$K$4)*'Rent Roll'!$H$4*'Rent Roll'!$F$4*(1+'Rent Roll'!$I$4)^(ROUNDDOWN((AD4-$C$4-1)/12,0)+1)/12+(AD5>'Rent Roll'!$AD$4)*(AD5<=EOMONTH('Rent Roll'!$AD$4,'Rent Roll'!$S$4))*'Rent Roll'!$O$4*'Rent Roll'!$F$4*(1+'Rent Roll'!$P$4)^(ROUNDDOWN((AD4-$C$4-1)/12,0)+1)/12 -> 7244.95545 | AE7: =(AE5>='Rent Roll'!$J$4)*(AE5<='Rent Roll'!$K$4)*'Rent Roll'!$H$4*'Rent Roll'!$F$4*(1+'Rent Roll'!$I$4)^(ROUNDDOWN((AE4-$C$4-1)/12,0)+1)/12+(AE5>'Rent Roll'!$AD$4)*(AE5<=EOMONTH('Rent Roll'!$AD$4,'Rent Roll'!$S$4))*'Rent Roll'!$O$4*'Rent Roll'!$F$4*(1+'Rent Roll'!$P$4)^(ROUNDDOWN((AE4-$C$4-1)/12,0)+1)/12 -> 7244.95545 | AF7: =(AF5>='Rent Roll'!$J$4)*(AF5<='Rent Roll'!$K$4)*'Rent Roll'!$H$4*'Rent Roll'!$F$4*(1+'Rent Roll'!$I$4)^(ROUNDDOWN((AF4-$C$4-1)/12,0)+1)/12+(AF5>'Rent Roll'!$AD$4)*(AF5<=EOMONTH('Rent Roll'!$AD$4,'Rent Roll'!$S$4))*'Rent Roll'!$O$4*'Rent Roll'!$F$4*(1+'Rent Roll'!$P$4)^(ROUNDDOWN((AF4-$C$4-1)/12,0)+1)/12 -> 7244.95545 | AG7: =(AG5>='Rent Roll'!$J$4)*(AG5<='Rent Roll'!$K$4)*'Rent Roll'!$H$4*'Rent Roll'!$F$4*(1+'Rent Roll'!$I$4)^(ROUNDDOWN((AG4-$C$4-1)/12,0)+1)/12+(AG5>'Rent Roll'!$AD$4)*(AG5<=EOMONTH('Rent Roll'!$AD$4,'Rent Roll'!$S$4))*'Rent Roll'!$O$4*'Rent Roll'!$F$4*(1+'Rent Roll'!$P$4)^(ROUNDDOWN((AG4-$C$4-1)/12,0)+1)/12 -> 7244.95545 | AH7: =(AH5>='Rent Roll'!$J$4)*(AH5<='Rent Roll'!$K$4)*'Rent Roll'!$H$4*'Rent Roll'!$F$4*(1+'Rent Roll'!$I$4)^(ROUNDDOWN((AH4-$C$4-1)/12,0)+1)/12+(AH5>'Rent Roll'!$AD$4)*(AH5<=EOMONTH('Rent Roll'!$AD$4,'Rent Roll'!$S$4))*'Rent Roll'!$O$4*'Rent Roll'!$F$4*(1+'Rent Roll'!$P$4)^(ROUNDDOWN((AH4-$C$4-1)/12,0)+1)/12 -> 7244.95545 | AI7: =(AI5>='Rent Roll'!$J$4)*(AI5<='Rent Roll'!$K$4)*'Rent Roll'!$H$4*'Rent Roll'!$F$4*(1+'Rent Roll'!$I$4)^(ROUNDDOWN((AI4-$C$4-1)/12,0)+1)/12+(AI5>'Rent Roll'!$AD$4)*(AI5<=EOMONTH('Rent Roll'!$AD$4,'Rent Roll'!$S$4))*'Rent Roll'!$O$4*'Rent Roll'!$F$4*(1+'Rent Roll'!$P$4)^(ROUNDDOWN((AI4-$C$4-1)/12,0)+1)/12 -> 7244.95545 | AJ7: =(AJ5>='Rent Roll'!$J$4)*(AJ5<='Rent Roll'!$K$4)*'Rent Roll'!$H$4*'Rent Roll'!$F$4*(1+'Rent Roll'!$I$4)^(ROUNDDOWN((AJ4-$C$4-1)/12,0)+1)/12+(AJ5>'Rent Roll'!$AD$4)*(AJ5<=EOMONTH('Rent Roll'!$AD$4,'Rent Roll'!$S$4))*'Rent Roll'!$O$4*'Rent Roll'!$F$4*(1+'Rent Roll'!$P$4)^(ROUNDDOWN((AJ4-$C$4-1)/12,0)+1)/12 -> 7244.95545 | AK7: =(AK5>='Rent Roll'!$J$4)*(AK5<='Rent Roll'!$K$4)*'Rent Roll'!$H$4*'Rent Roll'!$F$4*(1+'Rent Roll'!$I$4)^(ROUNDDOWN((AK4-$C$4-1)/12,0)+1)/12+(AK5>'Rent Roll'!$AD$4)*(AK5<=EOMONTH('Rent Roll'!$AD$4,'Rent Roll'!$S$4))*'Rent Roll'!$O$4*'Rent Roll'!$F$4*(1+'Rent Roll'!$P$4)^(ROUNDDOWN((AK4-$C$4-1)/12,0)+1)/12 -> 7244.95545 | AL7: =(AL5>='Rent Roll'!$J$4)*(AL5<='Rent Roll'!$K$4)*'Rent Roll'!$H$4*'Rent Roll'!$F$4*(1+'Rent Roll'!$I$4)^(ROUNDDOWN((AL4-$C$4-1)/12,0)+1)/12+(AL5>'Rent Roll'!$AD$4)*(AL5<=EOMONTH('Rent Roll'!$AD$4,'Rent Roll'!$S$4))*'Rent Roll'!$O$4*'Rent Roll'!$F$4*(1+'Rent Roll'!$P$4)^(ROUNDDOWN((AL4-$C$4-1)/12,0)+1)/12 -> 7244.95545 | AM7: =(AM5>='Rent Roll'!$J$4)*(AM5<='Rent Roll'!$K$4)*'Rent Roll'!$H$4*'Rent Roll'!$F$4*(1+'Rent Roll'!$I$4)^(ROUNDDOWN((AM4-$C$4-1)/12,0)+1)/12+(AM5>'Rent Roll'!$AD$4)*(AM5<=EOMONTH('Rent Roll'!$AD$4,'Rent Roll'!$S$4))*'Rent Roll'!$O$4*'Rent Roll'!$F$4*(1+'Rent Roll'!$P$4)^(ROUNDDOWN((AM4-$C$4-1)/12,0)+1)/12 -> 7244.95545 | AN7: =(AN5>='Rent Roll'!$J$4)*(AN5<='Rent Roll'!$K$4)*'Rent Roll'!$H$4*'Rent Roll'!$F$4*(1+'Rent Roll'!$I$4)^(ROUNDDOWN((AN4-$C$4-1)/12,0)+1)/12+(AN5>'Rent Roll'!$AD$4)*(AN5<=EOMONTH('Rent Roll'!$AD$4,'Rent Roll'!$S$4))*'Rent Roll'!$O$4*'Rent Roll'!$F$4*(1+'Rent Roll'!$P$4)^(ROUNDDOWN((AN4-$C$4-1)/12,0)+1)/12 -> 7389.854559 | AO7: =(AO5>='Rent Roll'!$J$4)*(AO5<='Rent Roll'!$K$4)*'Rent Roll'!$H$4*'Rent Roll'!$F$4*(1+'Rent Roll'!$I$4)^(ROUNDDOWN((AO4-$C$4-1)/12,0)+1)/12+(AO5>'Rent Roll'!$AD$4)*(AO5<=EOMONTH('Rent Roll'!$AD$4,'Rent Roll'!$S$4))*'Rent Roll'!$O$4*'Rent Roll'!$F$4*(1+'Rent Roll'!$P$4)^(ROUNDDOWN((AO4-$C$4-1)/12,0)+1)/12 -> 7389.854559 | AP7: =(AP5>='Rent Roll'!$J$4)*(AP5<='Rent Roll'!$K$4)*'Rent Roll'!$H$4*'Rent Roll'!$F$4*(1+'Rent Roll'!$I$4)^(ROUNDDOWN((AP4-$C$4-1)/12,0)+1)/12+(AP5>'Rent Roll'!$AD$4)*(AP5<=EOMONTH('Rent Roll'!$AD$4,'Rent Roll'!$S$4))*'Rent Roll'!$O$4*'Rent Roll'!$F$4*(1+'Rent Roll'!$P$4)^(ROUNDDOWN((AP4-$C$4-1)/12,0)+1)/12 -> 7389.854559 | AQ7: =(AQ5>='Rent Roll'!$J$4)*(AQ5<='Rent Roll'!$K$4)*'Rent Roll'!$H$4*'Rent Roll'!$F$4*(1+'Rent Roll'!$I$4)^(ROUNDDOWN((AQ4-$C$4-1)/12,0)+1)/12+(AQ5>'Rent Roll'!$AD$4)*(AQ5<=EOMONTH('Rent Roll'!$AD$4,'Rent Roll'!$S$4))*'Rent Roll'!$O$4*'Rent Roll'!$F$4*(1+'Rent Roll'!$P$4)^(ROUNDDOWN((AQ4-$C$4-1)/12,0)+1)/12 -> 7389.854559 | AR7: =(AR5>='Rent Roll'!$J$4)*(AR5<='Rent Roll'!$K$4)*'Rent Roll'!$H$4*'Rent Roll'!$F$4*(1+'Rent Roll'!$I$4)^(ROUNDDOWN((AR4-$C$4-1)/12,0)+1)/12+(AR5>'Rent Roll'!$AD$4)*(AR5<=EOMONTH('Rent Roll'!$AD$4,'Rent Roll'!$S$4))*'Rent Roll'!$O$4*'Rent Roll'!$F$4*(1+'Rent Roll'!$P$4)^(ROUNDDOWN((AR4-$C$4-1)/12,0)+1)/12 -> 7389.854559 | AS7: =(AS5>='Rent Roll'!$J$4)*(AS5<='Rent Roll'!$K$4)*'Rent Roll'!$H$4*'Rent Roll'!$F$4*(1+'Rent Roll'!$I$4)^(ROUNDDOWN((AS4-$C$4-1)/12,0)+1)/12+(AS5>'Rent Roll'!$AD$4)*(AS5<=EOMONTH('Rent Roll'!$AD$4,'Rent Roll'!$S$4))*'Rent Roll'!$O$4*'Rent Roll'!$F$4*(1+'Rent Roll'!$P$4)^(ROUNDDOWN((AS4-$C$4-1)/12,0)+1)/12 -> 7389.854559 | AT7: =(AT5>='Rent Roll'!$J$4)*(AT5<='Rent Roll'!$K$4)*'Rent Roll'!$H$4*'Rent Roll'!$F$4*(1+'Rent Roll'!$I$4)^(ROUNDDOWN((AT4-$C$4-1)/12,0)+1)/12+(AT5>'Rent Roll'!$AD$4)*(AT5<=EOMONTH('Rent Roll'!$AD$4,'Rent Roll'!$S$4))*'Rent Roll'!$O$4*'Rent Roll'!$F$4*(1+'Rent Roll'!$P$4)^(ROUNDDOWN((AT4-$C$4-1)/12,0)+1)/12 -> 7389.854559 | AU7: =(AU5>='Rent Roll'!$J$4)*(AU5<='Rent Roll'!$K$4)*'Rent Roll'!$H$4*'Rent Roll'!$F$4*(1+'Rent Roll'!$I$4)^(ROUNDDOWN((AU4-$C$4-1)/12,0)+1)/12+(AU5>'Rent Roll'!$AD$4)*(AU5<=EOMONTH('Rent Roll'!$AD$4,'Rent Roll'!$S$4))*'Rent Roll'!$O$4*'Rent Roll'!$F$4*(1+'Rent Roll'!$P$4)^(ROUNDDOWN((AU4-$C$4-1)/12,0)+1)/12 -> 7389.854559 | AV7: =(AV5>='Rent Roll'!$J$4)*(AV5<='Rent Roll'!$K$4)*'Rent Roll'!$H$4*'Rent Roll'!$F$4*(1+'Rent Roll'!$I$4)^(ROUNDDOWN((AV4-$C$4-1)/12,0)+1)/12+(AV5>'Rent Roll'!$AD$4)*(AV5<=EOMONTH('Rent Roll'!$AD$4,'Rent Roll'!$S$4))*'Rent Roll'!$O$4*'Rent Roll'!$F$4*(1+'Rent Roll'!$P$4)^(ROUNDDOWN((AV4-$C$4-1)/12,0)+1)/12 -> 7389.854559 | AW7: =(AW5>='Rent Roll'!$J$4)*(AW5<='Rent Roll'!$K$4)*'Rent Roll'!$H$4*'Rent Roll'!$F$4*(1+'Rent Roll'!$I$4)^(ROUNDDOWN((AW4-$C$4-1)/12,0)+1)/12+(AW5>'Rent Roll'!$AD$4)*(AW5<=EOMONTH('Rent Roll'!$AD$4,'Rent Roll'!$S$4))*'Rent Roll'!$O$4*'Rent Roll'!$F$4*(1+'Rent Roll'!$P$4)^(ROUNDDOWN((AW4-$C$4-1)/12,0)+1)/12 -> 7389.854559 | AX7: =(AX5>='Rent Roll'!$J$4)*(AX5<='Rent Roll'!$K$4)*'Rent Roll'!$H$4*'Rent Roll'!$F$4*(1+'Rent Roll'!$I$4)^(ROUNDDOWN((AX4-$C$4-1)/12,0)+1)/12+(AX5>'Rent Roll'!$AD$4)*(AX5<=EOMONTH('Rent Roll'!$AD$4,'Rent Roll'!$S$4))*'Rent Roll'!$O$4*'Rent Roll'!$F$4*(1+'Rent Roll'!$P$4)^(ROUNDDOWN((AX4-$C$4-1)/12,0)+1)/12 -> 7389.854559 | AY7: =(AY5>='Rent Roll'!$J$4)*(AY5<='Rent Roll'!$K$4)*'Rent Roll'!$H$4*'Rent Roll'!$F$4*(1+'Rent Roll'!$I$4)^(ROUNDDOWN((AY4-$C$4-1)/12,0)+1)/12+(AY5>'Rent Roll'!$AD$4)*(AY5<=EOMONTH('Rent Roll'!$AD$4,'Rent Roll'!$S$4))*'Rent Roll'!$O$4*'Rent Roll'!$F$4*(1+'Rent Roll'!$P$4)^(ROUNDDOWN((AY4-$C$4-1)/12,0)+1)/12 -> 7389.854559 | AZ7: =(AZ5>='Rent Roll'!$J$4)*(AZ5<='Rent Roll'!$K$4)*'Rent Roll'!$H$4*'Rent Roll'!$F$4*(1+'Rent Roll'!$I$4)^(ROUNDDOWN((AZ4-$C$4-1)/12,0)+1)/12+(AZ5>'Rent Roll'!$AD$4)*(AZ5<=EOMONTH('Rent Roll'!$AD$4,'Rent Roll'!$S$4))*'Rent Roll'!$O$4*'Rent Roll'!$F$4*(1+'Rent Roll'!$P$4)^(ROUNDDOWN((AZ4-$C$4-1)/12,0)+1)/12 -> 7537.65165 | BA7: =(BA5>='Rent Roll'!$J$4)*(BA5<='Rent Roll'!$K$4)*'Rent Roll'!$H$4*'Rent Roll'!$F$4*(1+'Rent Roll'!$I$4)^(ROUNDDOWN((BA4-$C$4-1)/12,0)+1)/12+(BA5>'Rent Roll'!$AD$4)*(BA5<=EOMONTH('Rent Roll'!$AD$4,'Rent Roll'!$S$4))*'Rent Roll'!$O$4*'Rent Roll'!$F$4*(1+'Rent Roll'!$P$4)^(ROUNDDOWN((BA4-$C$4-1)/12,0)+1)/12 -> 7537.65165 | BB7: =(BB5>='Rent Roll'!$J$4)*(BB5<='Rent Roll'!$K$4)*'Rent Roll'!$H$4*'Rent Roll'!$F$4*(1+'Rent Roll'!$I$4)^(ROUNDDOWN((BB4-$C$4-1)/12,0)+1)/12+(BB5>'Rent Roll'!$AD$4)*(BB5<=EOMONTH('Rent Roll'!$AD$4,'Rent Roll'!$S$4))*'Rent Roll'!$O$4*'Rent Roll'!$F$4*(1+'Rent Roll'!$P$4)^(ROUNDDOWN((BB4-$C$4-1)/12,0)+1)/12 -> 8140.663782 | BC7: =(BC5>='Rent Roll'!$J$4)*(BC5<='Rent Roll'!$K$4)*'Rent Roll'!$H$4*'Rent Roll'!$F$4*(1+'Rent Roll'!$I$4)^(ROUNDDOWN((BC4-$C$4-1)/12,0)+1)/12+(BC5>'Rent Roll'!$AD$4)*(BC5<=EOMONTH('Rent Roll'!$AD$4,'Rent Roll'!$S$4))*'Rent Roll'!$O$4*'Rent Roll'!$F$4*(1+'Rent Roll'!$P$4)^(ROUNDDOWN((BC4-$C$4-1)/12,0)+1)/12 -> 8140.663782 | BD7: =(BD5>='Rent Roll'!$J$4)*(BD5<='Rent Roll'!$K$4)*'Rent Roll'!$H$4*'Rent Roll'!$F$4*(1+'Rent Roll'!$I$4)^(ROUNDDOWN((BD4-$C$4-1)/12,0)+1)/12+(BD5>'Rent Roll'!$AD$4)*(BD5<=EOMONTH('Rent Roll'!$AD$4,'Rent Roll'!$S$4))*'Rent Roll'!$O$4*'Rent Roll'!$F$4*(1+'Rent Roll'!$P$4)^(ROUNDDOWN((BD4-$C$4-1)/12,0)+1)/12 -> 8140.663782 | BE7: =(BE5>='Rent Roll'!$J$4)*(BE5<='Rent Roll'!$K$4)*'Rent Roll'!$H$4*'Rent Roll'!$F$4*(1+'Rent Roll'!$I$4)^(ROUNDDOWN((BE4-$C$4-1)/12,0)+1)/12+(BE5>'Rent Roll'!$AD$4)*(BE5<=EOMONTH('Rent Roll'!$AD$4,'Rent Roll'!$S$4))*'Rent Roll'!$O$4*'Rent Roll'!$F$4*(1+'Rent Roll'!$P$4)^(ROUNDDOWN((BE4-$C$4-1)/12,0)+1)/12 -> 8140.663782 | BF7: =(BF5>='Rent Roll'!$J$4)*(BF5<='Rent Roll'!$K$4)*'Rent Roll'!$H$4*'Rent Roll'!$F$4*(1+'Rent Roll'!$I$4)^(ROUNDDOWN((BF4-$C$4-1)/12,0)+1)/12+(BF5>'Rent Roll'!$AD$4)*(BF5<=EOMONTH('Rent Roll'!$AD$4,'Rent Roll'!$S$4))*'Rent Roll'!$O$4*'Rent Roll'!$F$4*(1+'Rent Roll'!$P$4)^(ROUNDDOWN((BF4-$C$4-1)/12,0)+1)/12 -> 8140.663782 | BG7: =(BG5>='Rent Roll'!$J$4)*(BG5<='Rent Roll'!$K$4)*'Rent Roll'!$H$4*'Rent Roll'!$F$4*(1+'Rent Roll'!$I$4)^(ROUNDDOWN((BG4-$C$4-1)/12,0)+1)/12+(BG5>'Rent Roll'!$AD$4)*(BG5<=EOMONTH('Rent Roll'!$AD$4,'Rent Roll'!$S$4))*'Rent Roll'!$O$4*'Rent Roll'!$F$4*(1+'Rent Roll'!$P$4)^(ROUNDDOWN((BG4-$C$4-1)/12,0)+1)/12 -> 8140.663782 | BH7: =(BH5>='Rent Roll'!$J$4)*(BH5<='Rent Roll'!$K$4)*'Rent Roll'!$H$4*'Rent Roll'!$F$4*(1+'Rent Roll'!$I$4)^(ROUNDDOWN((BH4-$C$4-1)/12,0)+1)/12+(BH5>'Rent Roll'!$AD$4)*(BH5<=EOMONTH('Rent Roll'!$AD$4,'Rent Roll'!$S$4))*'Rent Roll'!$O$4*'Rent Roll'!$F$4*(1+'Rent Roll'!$P$4)^(ROUNDDOWN((BH4-$C$4-1)/12,0)+1)/12 -> 8140.663782 | BI7: =(BI5>='Rent Roll'!$J$4)*(BI5<='Rent Roll'!$K$4)*'Rent Roll'!$H$4*'Rent Roll'!$F$4*(1+'Rent Roll'!$I$4)^(ROUNDDOWN((BI4-$C$4-1)/12,0)+1)/12+(BI5>'Rent Roll'!$AD$4)*(BI5<=EOMONTH('Rent Roll'!$AD$4,'Rent Roll'!$S$4))*'Rent Roll'!$O$4*'Rent Roll'!$F$4*(1+'Rent Roll'!$P$4)^(ROUNDDOWN((BI4-$C$4-1)/12,0)+1)/12 -> 8140.663782 | BJ7: =(BJ5>='Rent Roll'!$J$4)*(BJ5<='Rent Roll'!$K$4)*'Rent Roll'!$H$4*'Rent Roll'!$F$4*(1+'Rent Roll'!$I$4)^(ROUNDDOWN((BJ4-$C$4-1)/12,0)+1)/12+(BJ5>'Rent Roll'!$AD$4)*(BJ5<=EOMONTH('Rent Roll'!$AD$4,'Rent Roll'!$S$4))*'Rent Roll'!$O$4*'Rent Roll'!$F$4*(1+'Rent Roll'!$P$4)^(ROUNDDOWN((BJ4-$C$4-1)/12,0)+1)/12 -> 8140.663782 | BK7: =(BK5>='Rent Roll'!$J$4)*(BK5<='Rent Roll'!$K$4)*'Rent Roll'!$H$4*'Rent Roll'!$F$4*(1+'Rent Roll'!$I$4)^(ROUNDDOWN((BK4-$C$4-1)/12,0)+1)/12+(BK5>'Rent Roll'!$AD$4)*(BK5<=EOMONTH('Rent Roll'!$AD$4,'Rent Roll'!$S$4))*'Rent Roll'!$O$4*'Rent Roll'!$F$4*(1+'Rent Roll'!$P$4)^(ROUNDDOWN((BK4-$C$4-1)/12,0)+1)/12 -> 8140.663782 | BM7: STOP
B8: =+'Rent Roll'!E5 -> EFG | D8: =(D5>='Rent Roll'!$J$5)*(D5<='Rent Roll'!$K$5)*'Rent Roll'!$H$5*'Rent Roll'!$F$5*(1+'Rent Roll'!$I$5)^(ROUNDDOWN((D4-$C$4-1)/12,0)+1)/12+(D5>'Rent Roll'!$AD$5)*(D5<=EOMONTH('Rent Roll'!$AD$5,'Rent Roll'!$S$5))*'Rent Roll'!$O$5*'Rent Roll'!$F$5*(1+'Rent Roll'!$P$5)^(ROUNDDOWN((D4-$C$4-1)/12,0)+1)/12 -> 3760.179 | E8: =(E5>='Rent Roll'!$J$5)*(E5<='Rent Roll'!$K$5)*'Rent Roll'!$H$5*'Rent Roll'!$F$5*(1+'Rent Roll'!$I$5)^(ROUNDDOWN((E4-$C$4-1)/12,0)+1)/12+(E5>'Rent Roll'!$AD$5)*(E5<=EOMONTH('Rent Roll'!$AD$5,'Rent Roll'!$S$5))*'Rent Roll'!$O$5*'Rent Roll'!$F$5*(1+'Rent Roll'!$P$5)^(ROUNDDOWN((E4-$C$4-1)/12,0)+1)/12 -> 3760.179 | F8: =(F5>='Rent Roll'!$J$5)*(F5<='Rent Roll'!$K$5)*'Rent Roll'!$H$5*'Rent Roll'!$F$5*(1+'Rent Roll'!$I$5)^(ROUNDDOWN((F4-$C$4-1)/12,0)+1)/12+(F5>'Rent Roll'!$AD$5)*(F5<=EOMONTH('Rent Roll'!$AD$5,'Rent Roll'!$S$5))*'Rent Roll'!$O$5*'Rent Roll'!$F$5*(1+'Rent Roll'!$P$5)^(ROUNDDOWN((F4-$C$4-1)/12,0)+1)/12 -> 3760.179 | G8: =(G5>='Rent Roll'!$J$5)*(G5<='Rent Roll'!$K$5)*'Rent Roll'!$H$5*'Rent Roll'!$F$5*(1+'Rent Roll'!$I$5)^(ROUNDDOWN((G4-$C$4-1)/12,0)+1)/12+(G5>'Rent Roll'!$AD$5)*(G5<=EOMONTH('Rent Roll'!$AD$5,'Rent Roll'!$S$5))*'Rent Roll'!$O$5*'Rent Roll'!$F$5*(1+'Rent Roll'!$P$5)^(ROUNDDOWN((G4-$C$4-1)/12,0)+1)/12 -> 3760.179 | H8: =(H5>='Rent Roll'!$J$5)*(H5<='Rent Roll'!$K$5)*'Rent Roll'!$H$5*'Rent Roll'!$F$5*(1+'Rent Roll'!$I$5)^(ROUNDDOWN((H4-$C$4-1)/12,0)+1)/12+(H5>'Rent Roll'!$AD$5)*(H5<=EOMONTH('Rent Roll'!$AD$5,'Rent Roll'!$S$5))*'Rent Roll'!$O$5*'Rent Roll'!$F$5*(1+'Rent Roll'!$P$5)^(ROUNDDOWN((H4-$C$4-1)/12,0)+1)/12 -> 3760.179 | I8: =(I5>='Rent Roll'!$J$5)*(I5<='Rent Roll'!$K$5)*'Rent Roll'!$H$5*'Rent Roll'!$F$5*(1+'Rent Roll'!$I$5)^(ROUNDDOWN((I4-$C$4-1)/12,0)+1)/12+(I5>'Rent Roll'!$AD$5)*(I5<=EOMONTH('Rent Roll'!$AD$5,'Rent Roll'!$S$5))*'Rent Roll'!$O$5*'Rent Roll'!$F$5*(1+'Rent Roll'!$P$5)^(ROUNDDOWN((I4-$C$4-1)/12,0)+1)/12 -> 3760.179 | J8: =(J5>='Rent Roll'!$J$5)*(J5<='Rent Roll'!$K$5)*'Rent Roll'!$H$5*'Rent Roll'!$F$5*(1+'Rent Roll'!$I$5)^(ROUNDDOWN((J4-$C$4-1)/12,0)+1)/12+(J5>'Rent Roll'!$AD$5)*(J5<=EOMONTH('Rent Roll'!$AD$5,'Rent Roll'!$S$5))*'Rent Roll'!$O$5*'Rent Roll'!$F$5*(1+'Rent Roll'!$P$5)^(ROUNDDOWN((J4-$C$4-1)/12,0)+1)/12 -> 3760.179 | K8: =(K5>='Rent Roll'!$J$5)*(K5<='Rent Roll'!$K$5)*'Rent Roll'!$H$5*'Rent Roll'!$F$5*(1+'Rent Roll'!$I$5)^(ROUNDDOWN((K4-$C$4-1)/12,0)+1)/12+(K5>'Rent Roll'!$AD$5)*(K5<=EOMONTH('Rent Roll'!$AD$5,'Rent Roll'!$S$5))*'Rent Roll'!$O$5*'Rent Roll'!$F$5*(1+'Rent Roll'!$P$5)^(ROUNDDOWN((K4-$C$4-1)/12,0)+1)/12 -> 3760.179 | L8: =(L5>='Rent Roll'!$J$5)*(L5<='Rent Roll'!$K$5)*'Rent Roll'!$H$5*'Rent Roll'!$F$5*(1+'Rent Roll'!$I$5)^(ROUNDDOWN((L4-$C$4-1)/12,0)+1)/12+(L5>'Rent Roll'!$AD$5)*(L5<=EOMONTH('Rent Roll'!$AD$5,'Rent Roll'!$S$5))*'Rent Roll'!$O$5*'Rent Roll'!$F$5*(1+'Rent Roll'!$P$5)^(ROUNDDOWN((L4-$C$4-1)/12,0)+1)/12 -> 3760.179 | M8: =(M5>='Rent Roll'!$J$5)*(M5<='Rent Roll'!$K$5)*'Rent Roll'!$H$5*'Rent Roll'!$F$5*(1+'Rent Roll'!$I$5)^(ROUNDDOWN((M4-$C$4-1)/12,0)+1)/12+(M5>'Rent Roll'!$AD$5)*(M5<=EOMONTH('Rent Roll'!$AD$5,'Rent Roll'!$S$5))*'Rent Roll'!$O$5*'Rent Roll'!$F$5*(1+'Rent Roll'!$P$5)^(ROUNDDOWN((M4-$C$4-1)/12,0)+1)/12 -> 3760.179 | N8: =(N5>='Rent Roll'!$J$5)*(N5<='Rent Roll'!$K$5)*'Rent Roll'!$H$5*'Rent Roll'!$F$5*(1+'Rent Roll'!$I$5)^(ROUNDDOWN((N4-$C$4-1)/12,0)+1)/12+(N5>'Rent Roll'!$AD$5)*(N5<=EOMONTH('Rent Roll'!$AD$5,'Rent Roll'!$S$5))*'Rent Roll'!$O$5*'Rent Roll'!$F$5*(1+'Rent Roll'!$P$5)^(ROUNDDOWN((N4-$C$4-1)/12,0)+1)/12 -> 3760.179 | O8: =(O5>='Rent Roll'!$J$5)*(O5<='Rent Roll'!$K$5)*'Rent Roll'!$H$5*'Rent Roll'!$F$5*(1+'Rent Roll'!$I$5)^(ROUNDDOWN((O4-$C$4-1)/12,0)+1)/12+(O5>'Rent Roll'!$AD$5)*(O5<=EOMONTH('Rent Roll'!$AD$5,'Rent Roll'!$S$5))*'Rent Roll'!$O$5*'Rent Roll'!$F$5*(1+'Rent Roll'!$P$5)^(ROUNDDOWN((O4-$C$4-1)/12,0)+1)/12 -> 3760.179 | P8: =(P5>='Rent Roll'!$J$5)*(P5<='Rent Roll'!$K$5)*'Rent Roll'!$H$5*'Rent Roll'!$F$5*(1+'Rent Roll'!$I$5)^(ROUNDDOWN((P4-$C$4-1)/12,0)+1)/12+(P5>'Rent Roll'!$AD$5)*(P5<=EOMONTH('Rent Roll'!$AD$5,'Rent Roll'!$S$5))*'Rent Roll'!$O$5*'Rent Roll'!$F$5*(1+'Rent Roll'!$P$5)^(ROUNDDOWN((P4-$C$4-1)/12,0)+1)/12 -> 3835.38258 | Q8: =(Q5>='Rent Roll'!$J$5)*(Q5<='Rent Roll'!$K$5)*'Rent Roll'!$H$5*'Rent Roll'!$F$5*(1+'Rent Roll'!$I$5)^(ROUNDDOWN((Q4-$C$4-1)/12,0)+1)/12+(Q5>'Rent Roll'!$AD$5)*(Q5<=EOMONTH('Rent Roll'!$AD$5,'Rent Roll'!$S$5))*'Rent Roll'!$O$5*'Rent Roll'!$F$5*(1+'Rent Roll'!$P$5)^(ROUNDDOWN((Q4-$C$4-1)/12,0)+1)/12 -> 3835.38258 | R8: =(R5>='Rent Roll'!$J$5)*(R5<='Rent Roll'!$K$5)*'Rent Roll'!$H$5*'Rent Roll'!$F$5*(1+'Rent Roll'!$I$5)^(ROUNDDOWN((R4-$C$4-1)/12,0)+1)/12+(R5>'Rent Roll'!$AD$5)*(R5<=EOMONTH('Rent Roll'!$AD$5,'Rent Roll'!$S$5))*'Rent Roll'!$O$5*'Rent Roll'!$F$5*(1+'Rent Roll'!$P$5)^(ROUNDDOWN((R4-$C$4-1)/12,0)+1)/12 -> 3835.38258 | S8: =(S5>='Rent Roll'!$J$5)*(S5<='Rent Roll'!$K$5)*'Rent Roll'!$H$5*'Rent Roll'!$F$5*(1+'Rent Roll'!$I$5)^(ROUNDDOWN((S4-$C$4-1)/12,0)+1)/12+(S5>'Rent Roll'!$AD$5)*(S5<=EOMONTH('Rent Roll'!$AD$5,'Rent Roll'!$S$5))*'Rent Roll'!$O$5*'Rent Roll'!$F$5*(1+'Rent Roll'!$P$5)^(ROUNDDOWN((S4-$C$4-1)/12,0)+1)/12 -> 3835.38258 | T8: =(T5>='Rent Roll'!$J$5)*(T5<='Rent Roll'!$K$5)*'Rent Roll'!$H$5*'Rent Roll'!$F$5*(1+'Rent Roll'!$I$5)^(ROUNDDOWN((T4-$C$4-1)/12,0)+1)/12+(T5>'Rent Roll'!$AD$5)*(T5<=EOMONTH('Rent Roll'!$AD$5,'Rent Roll'!$S$5))*'Rent Roll'!$O$5*'Rent Roll'!$F$5*(1+'Rent Roll'!$P$5)^(ROUNDDOWN((T4-$C$4-1)/12,0)+1)/12 -> 3835.38258 | U8: =(U5>='Rent Roll'!$J$5)*(U5<='Rent Roll'!$K$5)*'Rent Roll'!$H$5*'Rent Roll'!$F$5*(1+'Rent Roll'!$I$5)^(ROUNDDOWN((U4-$C$4-1)/12,0)+1)/12+(U5>'Rent Roll'!$AD$5)*(U5<=EOMONTH('Rent Roll'!$AD$5,'Rent Roll'!$S$5))*'Rent Roll'!$O$5*'Rent Roll'!$F$5*(1+'Rent Roll'!$P$5)^(ROUNDDOWN((U4-$C$4-1)/12,0)+1)/12 -> 3835.38258 | V8: =(V5>='Rent Roll'!$J$5)*(V5<='Rent Roll'!$K$5)*'Rent Roll'!$H$5*'Rent Roll'!$F$5*(1+'Rent Roll'!$I$5)^(ROUNDDOWN((V4-$C$4-1)/12,0)+1)/12+(V5>'Rent Roll'!$AD$5)*(V5<=EOMONTH('Rent Roll'!$AD$5,'Rent Roll'!$S$5))*'Rent Roll'!$O$5*'Rent Roll'!$F$5*(1+'Rent Roll'!$P$5)^(ROUNDDOWN((V4-$C$4-1)/12,0)+1)/12 -> 3835.38258 | W8: =(W5>='Rent Roll'!$J$5)*(W5<='Rent Roll'!$K$5)*'Rent Roll'!$H$5*'Rent Roll'!$F$5*(1+'Rent Roll'!$I$5)^(ROUNDDOWN((W4-$C$4-1)/12,0)+1)/12+(W5>'Rent Roll'!$AD$5)*(W5<=EOMONTH('Rent Roll'!$AD$5,'Rent Roll'!$S$5))*'Rent Roll'!$O$5*'Rent Roll'!$F$5*(1+'Rent Roll'!$P$5)^(ROUNDDOWN((W4-$C$4-1)/12,0)+1)/12 -> 3835.38258 | X8: =(X5>='Rent Roll'!$J$5)*(X5<='Rent Roll'!$K$5)*'Rent Roll'!$H$5*'Rent Roll'!$F$5*(1+'Rent Roll'!$I$5)^(ROUNDDOWN((X4-$C$4-1)/12,0)+1)/12+(X5>'Rent Roll'!$AD$5)*(X5<=EOMONTH('Rent Roll'!$AD$5,'Rent Roll'!$S$5))*'Rent Roll'!$O$5*'Rent Roll'!$F$5*(1+'Rent Roll'!$P$5)^(ROUNDDOWN((X4-$C$4-1)/12,0)+1)/12 -> 3835.38258 | Y8: =(Y5>='Rent Roll'!$J$5)*(Y5<='Rent Roll'!$K$5)*'Rent Roll'!$H$5*'Rent Roll'!$F$5*(1+'Rent Roll'!$I$5)^(ROUNDDOWN((Y4-$C$4-1)/12,0)+1)/12+(Y5>'Rent Roll'!$AD$5)*(Y5<=EOMONTH('Rent Roll'!$AD$5,'Rent Roll'!$S$5))*'Rent Roll'!$O$5*'Rent Roll'!$F$5*(1+'Rent Roll'!$P$5)^(ROUNDDOWN((Y4-$C$4-1)/12,0)+1)/12 -> 3835.38258 | Z8: =(Z5>='Rent Roll'!$J$5)*(Z5<='Rent Roll'!$K$5)*'Rent Roll'!$H$5*'Rent Roll'!$F$5*(1+'Rent Roll'!$I$5)^(ROUNDDOWN((Z4-$C$4-1)/12,0)+1)/12+(Z5>'Rent Roll'!$AD$5)*(Z5<=EOMONTH('Rent Roll'!$AD$5,'Rent Roll'!$S$5))*'Rent Roll'!$O$5*'Rent Roll'!$F$5*(1+'Rent Roll'!$P$5)^(ROUNDDOWN((Z4-$C$4-1)/12,0)+1)/12 -> 3835.38258 | AA8: =(AA5>='Rent Roll'!$J$5)*(AA5<='Rent Roll'!$K$5)*'Rent Roll'!$H$5*'Rent Roll'!$F$5*(1+'Rent Roll'!$I$5)^(ROUNDDOWN((AA4-$C$4-1)/12,0)+1)/12+(AA5>'Rent Roll'!$AD$5)*(AA5<=EOMONTH('Rent Roll'!$AD$5,'Rent Roll'!$S$5))*'Rent Roll'!$O$5*'Rent Roll'!$F$5*(1+'Rent Roll'!$P$5)^(ROUNDDOWN((AA4-$C$4-1)/12,0)+1)/12 -> 3835.38258 | AB8: =(AB5>='Rent Roll'!$J$5)*(AB5<='Rent Roll'!$K$5)*'Rent Roll'!$H$5*'Rent Roll'!$F$5*(1+'Rent Roll'!$I$5)^(ROUNDDOWN((AB4-$C$4-1)/12,0)+1)/12+(AB5>'Rent Roll'!$AD$5)*(AB5<=EOMONTH('Rent Roll'!$AD$5,'Rent Roll'!$S$5))*'Rent Roll'!$O$5*'Rent Roll'!$F$5*(1+'Rent Roll'!$P$5)^(ROUNDDOWN((AB4-$C$4-1)/12,0)+1)/12 -> 3912.090232 | AC8: =(AC5>='Rent Roll'!$J$5)*(AC5<='Rent Roll'!$K$5)*'Rent Roll'!$H$5*'Rent Roll'!$F$5*(1+'Rent Roll'!$I$5)^(ROUNDDOWN((AC4-$C$4-1)/12,0)+1)/12+(AC5>'Rent Roll'!$AD$5)*(AC5<=EOMONTH('Rent Roll'!$AD$5,'Rent Roll'!$S$5))*'Rent Roll'!$O$5*'Rent Roll'!$F$5*(1+'Rent Roll'!$P$5)^(ROUNDDOWN((AC4-$C$4-1)/12,0)+1)/12 -> 3912.090232 | AD8: =(AD5>='Rent Roll'!$J$5)*(AD5<='Rent Roll'!$K$5)*'Rent Roll'!$H$5*'Rent Roll'!$F$5*(1+'Rent Roll'!$I$5)^(ROUNDDOWN((AD4-$C$4-1)/12,0)+1)/12+(AD5>'Rent Roll'!$AD$5)*(AD5<=EOMONTH('Rent Roll'!$AD$5,'Rent Roll'!$S$5))*'Rent Roll'!$O$5*'Rent Roll'!$F$5*(1+'Rent Roll'!$P$5)^(ROUNDDOWN((AD4-$C$4-1)/12,0)+1)/12 -> 3912.090232 | AE8: =(AE5>='Rent Roll'!$J$5)*(AE5<='Rent Roll'!$K$5)*'Rent Roll'!$H$5*'Rent Roll'!$F$5*(1+'Rent Roll'!$I$5)^(ROUNDDOWN((AE4-$C$4-1)/12,0)+1)/12+(AE5>'Rent Roll'!$AD$5)*(AE5<=EOMONTH('Rent Roll'!$AD$5,'Rent Roll'!$S$5))*'Rent Roll'!$O$5*'Rent Roll'!$F$5*(1+'Rent Roll'!$P$5)^(ROUNDDOWN((AE4-$C$4-1)/12,0)+1)/12 -> 3912.090232 | AF8: =(AF5>='Rent Roll'!$J$5)*(AF5<='Rent Roll'!$K$5)*'Rent Roll'!$H$5*'Rent Roll'!$F$5*(1+'Rent Roll'!$I$5)^(ROUNDDOWN((AF4-$C$4-1)/12,0)+1)/12+(AF5>'Rent Roll'!$AD$5)*(AF5<=EOMONTH('Rent Roll'!$AD$5,'Rent Roll'!$S$5))*'Rent Roll'!$O$5*'Rent Roll'!$F$5*(1+'Rent Roll'!$P$5)^(ROUNDDOWN((AF4-$C$4-1)/12,0)+1)/12 -> 3912.090232 | AG8: =(AG5>='Rent Roll'!$J$5)*(AG5<='Rent Roll'!$K$5)*'Rent Roll'!$H$5*'Rent Roll'!$F$5*(1+'Rent Roll'!$I$5)^(ROUNDDOWN((AG4-$C$4-1)/12,0)+1)/12+(AG5>'Rent Roll'!$AD$5)*(AG5<=EOMONTH('Rent Roll'!$AD$5,'Rent Roll'!$S$5))*'Rent Roll'!$O$5*'Rent Roll'!$F$5*(1+'Rent Roll'!$P$5)^(ROUNDDOWN((AG4-$C$4-1)/12,0)+1)/12 -> 3912.090232 | AH8: =(AH5>='Rent Roll'!$J$5)*(AH5<='Rent Roll'!$K$5)*'Rent Roll'!$H$5*'Rent Roll'!$F$5*(1+'Rent Roll'!$I$5)^(ROUNDDOWN((AH4-$C$4-1)/12,0)+1)/12+(AH5>'Rent Roll'!$AD$5)*(AH5<=EOMONTH('Rent Roll'!$AD$5,'Rent Roll'!$S$5))*'Rent Roll'!$O$5*'Rent Roll'!$F$5*(1+'Rent Roll'!$P$5)^(ROUNDDOWN((AH4-$C$4-1)/12,0)+1)/12 -> 3912.090232 | AI8: =(AI5>='Rent Roll'!$J$5)*(AI5<='Rent Roll'!$K$5)*'Rent Roll'!$H$5*'Rent Roll'!$F$5*(1+'Rent Roll'!$I$5)^(ROUNDDOWN((AI4-$C$4-1)/12,0)+1)/12+(AI5>'Rent Roll'!$AD$5)*(AI5<=EOMONTH('Rent Roll'!$AD$5,'Rent Roll'!$S$5))*'Rent Roll'!$O$5*'Rent Roll'!$F$5*(1+'Rent Roll'!$P$5)^(ROUNDDOWN((AI4-$C$4-1)/12,0)+1)/12 -> 3912.090232 | AJ8: =(AJ5>='Rent Roll'!$J$5)*(AJ5<='Rent Roll'!$K$5)*'Rent Roll'!$H$5*'Rent Roll'!$F$5*(1+'Rent Roll'!$I$5)^(ROUNDDOWN((AJ4-$C$4-1)/12,0)+1)/12+(AJ5>'Rent Roll'!$AD$5)*(AJ5<=EOMONTH('Rent Roll'!$AD$5,'Rent Roll'!$S$5))*'Rent Roll'!$O$5*'Rent Roll'!$F$5*(1+'Rent Roll'!$P$5)^(ROUNDDOWN((AJ4-$C$4-1)/12,0)+1)/12 -> 3912.090232 | AK8: =(AK5>='Rent Roll'!$J$5)*(AK5<='Rent Roll'!$K$5)*'Rent Roll'!$H$5*'Rent Roll'!$F$5*(1+'Rent Roll'!$I$5)^(ROUNDDOWN((AK4-$C$4-1)/12,0)+1)/12+(AK5>'Rent Roll'!$AD$5)*(AK5<=EOMONTH('Rent Roll'!$AD$5,'Rent Roll'!$S$5))*'Rent Roll'!$O$5*'Rent Roll'!$F$5*(1+'Rent Roll'!$P$5)^(ROUNDDOWN((AK4-$C$4-1)/12,0)+1)/12 -> 3912.090232 | AL8: =(AL5>='Rent Roll'!$J$5)*(AL5<='Rent Roll'!$K$5)*'Rent Roll'!$H$5*'Rent Roll'!$F$5*(1+'Rent Roll'!$I$5)^(ROUNDDOWN((AL4-$C$4-1)/12,0)+1)/12+(AL5>'Rent Roll'!$AD$5)*(AL5<=EOMONTH('Rent Roll'!$AD$5,'Rent Roll'!$S$5))*'Rent Roll'!$O$5*'Rent Roll'!$F$5*(1+'Rent Roll'!$P$5)^(ROUNDDOWN((AL4-$C$4-1)/12,0)+1)/12 -> 3912.090232 | AM8: =(AM5>='Rent Roll'!$J$5)*(AM5<='Rent Roll'!$K$5)*'Rent Roll'!$H$5*'Rent Roll'!$F$5*(1+'Rent Roll'!$I$5)^(ROUNDDOWN((AM4-$C$4-1)/12,0)+1)/12+(AM5>'Rent Roll'!$AD$5)*(AM5<=EOMONTH('Rent Roll'!$AD$5,'Rent Roll'!$S$5))*'Rent Roll'!$O$5*'Rent Roll'!$F$5*(1+'Rent Roll'!$P$5)^(ROUNDDOWN((AM4-$C$4-1)/12,0)+1)/12 -> 3912.090232 | AN8: =(AN5>='Rent Roll'!$J$5)*(AN5<='Rent Roll'!$K$5)*'Rent Roll'!$H$5*'Rent Roll'!$F$5*(1+'Rent Roll'!$I$5)^(ROUNDDOWN((AN4-$C$4-1)/12,0)+1)/12+(AN5>'Rent Roll'!$AD$5)*(AN5<=EOMONTH('Rent Roll'!$AD$5,'Rent Roll'!$S$5))*'Rent Roll'!$O$5*'Rent Roll'!$F$5*(1+'Rent Roll'!$P$5)^(ROUNDDOWN((AN4-$C$4-1)/12,0)+1)/12 -> 3990.332036 | AO8: =(AO5>='Rent Roll'!$J$5)*(AO5<='Rent Roll'!$K$5)*'Rent Roll'!$H$5*'Rent Roll'!$F$5*(1+'Rent Roll'!$I$5)^(ROUNDDOWN((AO4-$C$4-1)/12,0)+1)/12+(AO5>'Rent Roll'!$AD$5)*(AO5<=EOMONTH('Rent Roll'!$AD$5,'Rent Roll'!$S$5))*'Rent Roll'!$O$5*'Rent Roll'!$F$5*(1+'Rent Roll'!$P$5)^(ROUNDDOWN((AO4-$C$4-1)/12,0)+1)/12 -> 3990.332036 | AP8: =(AP5>='Rent Roll'!$J$5)*(AP5<='Rent Roll'!$K$5)*'Rent Roll'!$H$5*'Rent Roll'!$F$5*(1+'Rent Roll'!$I$5)^(ROUNDDOWN((AP4-$C$4-1)/12,0)+1)/12+(AP5>'Rent Roll'!$AD$5)*(AP5<=EOMONTH('Rent Roll'!$AD$5,'Rent Roll'!$S$5))*'Rent Roll'!$O$5*'Rent Roll'!$F$5*(1+'Rent Roll'!$P$5)^(ROUNDDOWN((AP4-$C$4-1)/12,0)+1)/12 -> 3990.332036 | AQ8: =(AQ5>='Rent Roll'!$J$5)*(AQ5<='Rent Roll'!$K$5)*'Rent Roll'!$H$5*'Rent Roll'!$F$5*(1+'Rent Roll'!$I$5)^(ROUNDDOWN((AQ4-$C$4-1)/12,0)+1)/12+(AQ5>'Rent Roll'!$AD$5)*(AQ5<=EOMONTH('Rent Roll'!$AD$5,'Rent Roll'!$S$5))*'Rent Roll'!$O$5*'Rent Roll'!$F$5*(1+'Rent Roll'!$P$5)^(ROUNDDOWN((AQ4-$C$4-1)/12,0)+1)/12 -> 3990.332036 | AR8: =(AR5>='Rent Roll'!$J$5)*(AR5<='Rent Roll'!$K$5)*'Rent Roll'!$H$5*'Rent Roll'!$F$5*(1+'Rent Roll'!$I$5)^(ROUNDDOWN((AR4-$C$4-1)/12,0)+1)/12+(AR5>'Rent Roll'!$AD$5)*(AR5<=EOMONTH('Rent Roll'!$AD$5,'Rent Roll'!$S$5))*'Rent Roll'!$O$5*'Rent Roll'!$F$5*(1+'Rent Roll'!$P$5)^(ROUNDDOWN((AR4-$C$4-1)/12,0)+1)/12 -> 3990.332036 | AS8: =(AS5>='Rent Roll'!$J$5)*(AS5<='Rent Roll'!$K$5)*'Rent Roll'!$H$5*'Rent Roll'!$F$5*(1+'Rent Roll'!$I$5)^(ROUNDDOWN((AS4-$C$4-1)/12,0)+1)/12+(AS5>'Rent Roll'!$AD$5)*(AS5<=EOMONTH('Rent Roll'!$AD$5,'Rent Roll'!$S$5))*'Rent Roll'!$O$5*'Rent Roll'!$F$5*(1+'Rent Roll'!$P$5)^(ROUNDDOWN((AS4-$C$4-1)/12,0)+1)/12 -> 3990.332036 | AT8: =(AT5>='Rent Roll'!$J$5)*(AT5<='Rent Roll'!$K$5)*'Rent Roll'!$H$5*'Rent Roll'!$F$5*(1+'Rent Roll'!$I$5)^(ROUNDDOWN((AT4-$C$4-1)/12,0)+1)/12+(AT5>'Rent Roll'!$AD$5)*(AT5<=EOMONTH('Rent Roll'!$AD$5,'Rent Roll'!$S$5))*'Rent Roll'!$O$5*'Rent Roll'!$F$5*(1+'Rent Roll'!$P$5)^(ROUNDDOWN((AT4-$C$4-1)/12,0)+1)/12 -> 3990.332036 | AU8: =(AU5>='Rent Roll'!$J$5)*(AU5<='Rent Roll'!$K$5)*'Rent Roll'!$H$5*'Rent Roll'!$F$5*(1+'Rent Roll'!$I$5)^(ROUNDDOWN((AU4-$C$4-1)/12,0)+1)/12+(AU5>'Rent Roll'!$AD$5)*(AU5<=EOMONTH('Rent Roll'!$AD$5,'Rent Roll'!$S$5))*'Rent Roll'!$O$5*'Rent Roll'!$F$5*(1+'Rent Roll'!$P$5)^(ROUNDDOWN((AU4-$C$4-1)/12,0)+1)/12 -> 3990.332036 | AV8: =(AV5>='Rent Roll'!$J$5)*(AV5<='Rent Roll'!$K$5)*'Rent Roll'!$H$5*'Rent Roll'!$F$5*(1+'Rent Roll'!$I$5)^(ROUNDDOWN((AV4-$C$4-1)/12,0)+1)/12+(AV5>'Rent Roll'!$AD$5)*(AV5<=EOMONTH('Rent Roll'!$AD$5,'Rent Roll'!$S$5))*'Rent Roll'!$O$5*'Rent Roll'!$F$5*(1+'Rent Roll'!$P$5)^(ROUNDDOWN((AV4-$C$4-1)/12,0)+1)/12 -> 3990.332036 | AW8: =(AW5>='Rent Roll'!$J$5)*(AW5<='Rent Roll'!$K$5)*'Rent Roll'!$H$5*'Rent Roll'!$F$5*(1+'Rent Roll'!$I$5)^(ROUNDDOWN((AW4-$C$4-1)/12,0)+1)/12+(AW5>'Rent Roll'!$AD$5)*(AW5<=EOMONTH('Rent Roll'!$AD$5,'Rent Roll'!$S$5))*'Rent Roll'!$O$5*'Rent Roll'!$F$5*(1+'Rent Roll'!$P$5)^(ROUNDDOWN((AW4-$C$4-1)/12,0)+1)/12 -> 3990.332036 | AX8: =(AX5>='Rent Roll'!$J$5)*(AX5<='Rent Roll'!$K$5)*'Rent Roll'!$H$5*'Rent Roll'!$F$5*(1+'Rent Roll'!$I$5)^(ROUNDDOWN((AX4-$C$4-1)/12,0)+1)/12+(AX5>'Rent Roll'!$AD$5)*(AX5<=EOMONTH('Rent Roll'!$AD$5,'Rent Roll'!$S$5))*'Rent Roll'!$O$5*'Rent Roll'!$F$5*(1+'Rent Roll'!$P$5)^(ROUNDDOWN((AX4-$C$4-1)/12,0)+1)/12 -> 3990.332036 | AY8: =(AY5>='Rent Roll'!$J$5)*(AY5<='Rent Roll'!$K$5)*'Rent Roll'!$H$5*'Rent Roll'!$F$5*(1+'Rent Roll'!$I$5)^(ROUNDDOWN((AY4-$C$4-1)/12,0)+1)/12+(AY5>'Rent Roll'!$AD$5)*(AY5<=EOMONTH('Rent Roll'!$AD$5,'Rent Roll'!$S$5))*'Rent Roll'!$O$5*'Rent Roll'!$F$5*(1+'Rent Roll'!$P$5)^(ROUNDDOWN((AY4-$C$4-1)/12,0)+1)/12 -> 3990.332036 | AZ8: =(AZ5>='Rent Roll'!$J$5)*(AZ5<='Rent Roll'!$K$5)*'Rent Roll'!$H$5*'Rent Roll'!$F$5*(1+'Rent Roll'!$I$5)^(ROUNDDOWN((AZ4-$C$4-1)/12,0)+1)/12+(AZ5>'Rent Roll'!$AD$5)*(AZ5<=EOMONTH('Rent Roll'!$AD$5,'Rent Roll'!$S$5))*'Rent Roll'!$O$5*'Rent Roll'!$F$5*(1+'Rent Roll'!$P$5)^(ROUNDDOWN((AZ4-$C$4-1)/12,0)+1)/12 -> 4070.138677 | BA8: =(BA5>='Rent Roll'!$J$5)*(BA5<='Rent Roll'!$K$5)*'Rent Roll'!$H$5*'Rent Roll'!$F$5*(1+'Rent Roll'!$I$5)^(ROUNDDOWN((BA4-$C$4-1)/12,0)+1)/12+(BA5>'Rent Roll'!$AD$5)*(BA5<=EOMONTH('Rent Roll'!$AD$5,'Rent Roll'!$S$5))*'Rent Roll'!$O$5*'Rent Roll'!$F$5*(1+'Rent Roll'!$P$5)^(ROUNDDOWN((BA4-$C$4-1)/12,0)+1)/12 -> 4070.138677 | BB8: =(BB5>='Rent Roll'!$J$5)*(BB5<='Rent Roll'!$K$5)*'Rent Roll'!$H$5*'Rent Roll'!$F$5*(1+'Rent Roll'!$I$5)^(ROUNDDOWN((BB4-$C$4-1)/12,0)+1)/12+(BB5>'Rent Roll'!$AD$5)*(BB5<=EOMONTH('Rent Roll'!$AD$5,'Rent Roll'!$S$5))*'Rent Roll'!$O$5*'Rent Roll'!$F$5*(1+'Rent Roll'!$P$5)^(ROUNDDOWN((BB4-$C$4-1)/12,0)+1)/12 -> 4437.249224 | BC8: =(BC5>='Rent Roll'!$J$5)*(BC5<='Rent Roll'!$K$5)*'Rent Roll'!$H$5*'Rent Roll'!$F$5*(1+'Rent Roll'!$I$5)^(ROUNDDOWN((BC4-$C$4-1)/12,0)+1)/12+(BC5>'Rent Roll'!$AD$5)*(BC5<=EOMONTH('Rent Roll'!$AD$5,'Rent Roll'!$S$5))*'Rent Roll'!$O$5*'Rent Roll'!$F$5*(1+'Rent Roll'!$P$5)^(ROUNDDOWN((BC4-$C$4-1)/12,0)+1)/12 -> 4437.249224 | BD8: =(BD5>='Rent Roll'!$J$5)*(BD5<='Rent Roll'!$K$5)*'Rent Roll'!$H$5*'Rent Roll'!$F$5*(1+'Rent Roll'!$I$5)^(ROUNDDOWN((BD4-$C$4-1)/12,0)+1)/12+(BD5>'Rent Roll'!$AD$5)*(BD5<=EOMONTH('Rent Roll'!$AD$5,'Rent Roll'!$S$5))*'Rent Roll'!$O$5*'Rent Roll'!$F$5*(1+'Rent Roll'!$P$5)^(ROUNDDOWN((BD4-$C$4-1)/12,0)+1)/12 -> 4437.249224 | BE8: =(BE5>='Rent Roll'!$J$5)*(BE5<='Rent Roll'!$K$5)*'Rent Roll'!$H$5*'Rent Roll'!$F$5*(1+'Rent Roll'!$I$5)^(ROUNDDOWN((BE4-$C$4-1)/12,0)+1)/12+(BE5>'Rent Roll'!$AD$5)*(BE5<=EOMONTH('Rent Roll'!$AD$5,'Rent Roll'!$S$5))*'Rent Roll'!$O$5*'Rent Roll'!$F$5*(1+'Rent Roll'!$P$5)^(ROUNDDOWN((BE4-$C$4-1)/12,0)+1)/12 -> 4437.249224 | BF8: =(BF5>='Rent Roll'!$J$5)*(BF5<='Rent Roll'!$K$5)*'Rent Roll'!$H$5*'Rent Roll'!$F$5*(1+'Rent Roll'!$I$5)^(ROUNDDOWN((BF4-$C$4-1)/12,0)+1)/12+(BF5>'Rent Roll'!$AD$5)*(BF5<=EOMONTH('Rent Roll'!$AD$5,'Rent Roll'!$S$5))*'Rent Roll'!$O$5*'Rent Roll'!$F$5*(1+'Rent Roll'!$P$5)^(ROUNDDOWN((BF4-$C$4-1)/12,0)+1)/12 -> 4437.249224 | BG8: =(BG5>='Rent Roll'!$J$5)*(BG5<='Rent Roll'!$K$5)*'Rent Roll'!$H$5*'Rent Roll'!$F$5*(1+'Rent Roll'!$I$5)^(ROUNDDOWN((BG4-$C$4-1)/12,0)+1)/12+(BG5>'Rent Roll'!$AD$5)*(BG5<=EOMONTH('Rent Roll'!$AD$5,'Rent Roll'!$S$5))*'Rent Roll'!$O$5*'Rent Roll'!$F$5*(1+'Rent Roll'!$P$5)^(ROUNDDOWN((BG4-$C$4-1)/12,0)+1)/12 -> 4437.249224 | BH8: =(BH5>='Rent Roll'!$J$5)*(BH5<='Rent Roll'!$K$5)*'Rent Roll'!$H$5*'Rent Roll'!$F$5*(1+'Rent Roll'!$I$5)^(ROUNDDOWN((BH4-$C$4-1)/12,0)+1)/12+(BH5>'Rent Roll'!$AD$5)*(BH5<=EOMONTH('Rent Roll'!$AD$5,'Rent Roll'!$S$5))*'Rent Roll'!$O$5*'Rent Roll'!$F$5*(1+'Rent Roll'!$P$5)^(ROUNDDOWN((BH4-$C$4-1)/12,0)+1)/12 -> 4437.249224 | BI8: =(BI5>='Rent Roll'!$J$5)*(BI5<='Rent Roll'!$K$5)*'Rent Roll'!$H$5*'Rent Roll'!$F$5*(1+'Rent Roll'!$I$5)^(ROUNDDOWN((BI4-$C$4-1)/12,0)+1)/12+(BI5>'Rent Roll'!$AD$5)*(BI5<=EOMONTH('Rent Roll'!$AD$5,'Rent Roll'!$S$5))*'Rent Roll'!$O$5*'Rent Roll'!$F$5*(1+'Rent Roll'!$P$5)^(ROUNDDOWN((BI4-$C$4-1)/12,0)+1)/12 -> 4437.249224 | BJ8: =(BJ5>='Rent Roll'!$J$5)*(BJ5<='Rent Roll'!$K$5)*'Rent Roll'!$H$5*'Rent Roll'!$F$5*(1+'Rent Roll'!$I$5)^(ROUNDDOWN((BJ4-$C$4-1)/12,0)+1)/12+(BJ5>'Rent Roll'!$AD$5)*(BJ5<=EOMONTH('Rent Roll'!$AD$5,'Rent Roll'!$S$5))*'Rent Roll'!$O$5*'Rent Roll'!$F$5*(1+'Rent Roll'!$P$5)^(ROUNDDOWN((BJ4-$C$4-1)/12,0)+1)/12 -> 4437.249224 | BK8: =(BK5>='Rent Roll'!$J$5)*(BK5<='Rent Roll'!$K$5)*'Rent Roll'!$H$5*'Rent Roll'!$F$5*(1+'Rent Roll'!$I$5)^(ROUNDDOWN((BK4-$C$4-1)/12,0)+1)/12+(BK5>'Rent Roll'!$AD$5)*(BK5<=EOMONTH('Rent Roll'!$AD$5,'Rent Roll'!$S$5))*'Rent Roll'!$O$5*'Rent Roll'!$F$5*(1+'Rent Roll'!$P$5)^(ROUNDDOWN((BK4-$C$4-1)/12,0)+1)/12 -> 4437.249224 | BM8: STOP
B9: =+'Rent Roll'!E6 -> ASD | D9: =(D5>='Rent Roll'!$J$6)*(D5<='Rent Roll'!$K$6)*'Rent Roll'!$H$6*'Rent Roll'!$F$6*(1+'Rent Roll'!$I$6)^(ROUNDDOWN((D4-$C$4-1)/12,0)+1)/12+(D5>'Rent Roll'!$AD$6)*(D5<=EOMONTH('Rent Roll'!$AD$6,'Rent Roll'!$S$6))*'Rent Roll'!$O$6*'Rent Roll'!$F$6*(1+'Rent Roll'!$P$6)^(ROUNDDOWN((D4-$C$4-1)/12,0)+1)/12 -> 2406.4452 | E9: =(E5>='Rent Roll'!$J$6)*(E5<='Rent Roll'!$K$6)*'Rent Roll'!$H$6*'Rent Roll'!$F$6*(1+'Rent Roll'!$I$6)^(ROUNDDOWN((E4-$C$4-1)/12,0)+1)/12+(E5>'Rent Roll'!$AD$6)*(E5<=EOMONTH('Rent Roll'!$AD$6,'Rent Roll'!$S$6))*'Rent Roll'!$O$6*'Rent Roll'!$F$6*(1+'Rent Roll'!$P$6)^(ROUNDDOWN((E4-$C$4-1)/12,0)+1)/12 -> 2406.4452 | F9: =(F5>='Rent Roll'!$J$6)*(F5<='Rent Roll'!$K$6)*'Rent Roll'!$H$6*'Rent Roll'!$F$6*(1+'Rent Roll'!$I$6)^(ROUNDDOWN((F4-$C$4-1)/12,0)+1)/12+(F5>'Rent Roll'!$AD$6)*(F5<=EOMONTH('Rent Roll'!$AD$6,'Rent Roll'!$S$6))*'Rent Roll'!$O$6*'Rent Roll'!$F$6*(1+'Rent Roll'!$P$6)^(ROUNDDOWN((F4-$C$4-1)/12,0)+1)/12 -> 2406.4452 | G9: =(G5>='Rent Roll'!$J$6)*(G5<='Rent Roll'!$K$6)*'Rent Roll'!$H$6*'Rent Roll'!$F$6*(1+'Rent Roll'!$I$6)^(ROUNDDOWN((G4-$C$4-1)/12,0)+1)/12+(G5>'Rent Roll'!$AD$6)*(G5<=EOMONTH('Rent Roll'!$AD$6,'Rent Roll'!$S$6))*'Rent Roll'!$O$6*'Rent Roll'!$F$6*(1+'Rent Roll'!$P$6)^(ROUNDDOWN((G4-$C$4-1)/12,0)+1)/12 -> 2406.4452 | H9: =(H5>='Rent Roll'!$J$6)*(H5<='Rent Roll'!$K$6)*'Rent Roll'!$H$6*'Rent Roll'!$F$6*(1+'Rent Roll'!$I$6)^(ROUNDDOWN((H4-$C$4-1)/12,0)+1)/12+(H5>'Rent Roll'!$AD$6)*(H5<=EOMONTH('Rent Roll'!$AD$6,'Rent Roll'!$S$6))*'Rent Roll'!$O$6*'Rent Roll'!$F$6*(1+'Rent Roll'!$P$6)^(ROUNDDOWN((H4-$C$4-1)/12,0)+1)/12 -> 2406.4452 | I9: =(I5>='Rent Roll'!$J$6)*(I5<='Rent Roll'!$K$6)*'Rent Roll'!$H$6*'Rent Roll'!$F$6*(1+'Rent Roll'!$I$6)^(ROUNDDOWN((I4-$C$4-1)/12,0)+1)/12+(I5>'Rent Roll'!$AD$6)*(I5<=EOMONTH('Rent Roll'!$AD$6,'Rent Roll'!$S$6))*'Rent Roll'!$O$6*'Rent Roll'!$F$6*(1+'Rent Roll'!$P$6)^(ROUNDDOWN((I4-$C$4-1)/12,0)+1)/12 -> 2406.4452 | J9: =(J5>='Rent Roll'!$J$6)*(J5<='Rent Roll'!$K$6)*'Rent Roll'!$H$6*'Rent Roll'!$F$6*(1+'Rent Roll'!$I$6)^(ROUNDDOWN((J4-$C$4-1)/12,0)+1)/12+(J5>'Rent Roll'!$AD$6)*(J5<=EOMONTH('Rent Roll'!$AD$6,'Rent Roll'!$S$6))*'Rent Roll'!$O$6*'Rent Roll'!$F$6*(1+'Rent Roll'!$P$6)^(ROUNDDOWN((J4-$C$4-1)/12,0)+1)/12 -> 2406.4452 | K9: =(K5>='Rent Roll'!$J$6)*(K5<='Rent Roll'!$K$6)*'Rent Roll'!$H$6*'Rent Roll'!$F$6*(1+'Rent Roll'!$I$6)^(ROUNDDOWN((K4-$C$4-1)/12,0)+1)/12+(K5>'Rent Roll'!$AD$6)*(K5<=EOMONTH('Rent Roll'!$AD$6,'Rent Roll'!$S$6))*'Rent Roll'!$O$6*'Rent Roll'!$F$6*(1+'Rent Roll'!$P$6)^(ROUNDDOWN((K4-$C$4-1)/12,0)+1)/12 -> 2406.4452 | L9: =(L5>='Rent Roll'!$J$6)*(L5<='Rent Roll'!$K$6)*'Rent Roll'!$H$6*'Rent Roll'!$F$6*(1+'Rent Roll'!$I$6)^(ROUNDDOWN((L4-$C$4-1)/12,0)+1)/12+(L5>'Rent Roll'!$AD$6)*(L5<=EOMONTH('Rent Roll'!$AD$6,'Rent Roll'!$S$6))*'Rent Roll'!$O$6*'Rent Roll'!$F$6*(1+'Rent Roll'!$P$6)^(ROUNDDOWN((L4-$C$4-1)/12,0)+1)/12 -> 2406.4452 | M9: =(M5>='Rent Roll'!$J$6)*(M5<='Rent Roll'!$K$6)*'Rent Roll'!$H$6*'Rent Roll'!$F$6*(1+'Rent Roll'!$I$6)^(ROUNDDOWN((M4-$C$4-1)/12,0)+1)/12+(M5>'Rent Roll'!$AD$6)*(M5<=EOMONTH('Rent Roll'!$AD$6,'Rent Roll'!$S$6))*'Rent Roll'!$O$6*'Rent Roll'!$F$6*(1+'Rent Roll'!$P$6)^(ROUNDDOWN((M4-$C$4-1)/12,0)+1)/12 -> 2406.4452 | N9: =(N5>='Rent Roll'!$J$6)*(N5<='Rent Roll'!$K$6)*'Rent Roll'!$H$6*'Rent Roll'!$F$6*(1+'Rent Roll'!$I$6)^(ROUNDDOWN((N4-$C$4-1)/12,0)+1)/12+(N5>'Rent Roll'!$AD$6)*(N5<=EOMONTH('Rent Roll'!$AD$6,'Rent Roll'!$S$6))*'Rent Roll'!$O$6*'Rent Roll'!$F$6*(1+'Rent Roll'!$P$6)^(ROUNDDOWN((N4-$C$4-1)/12,0)+1)/12 -> 2406.4452 | O9: =(O5>='Rent Roll'!$J$6)*(O5<='Rent Roll'!$K$6)*'Rent Roll'!$H$6*'Rent Roll'!$F$6*(1+'Rent Roll'!$I$6)^(ROUNDDOWN((O4-$C$4-1)/12,0)+1)/12+(O5>'Rent Roll'!$AD$6)*(O5<=EOMONTH('Rent Roll'!$AD$6,'Rent Roll'!$S$6))*'Rent Roll'!$O$6*'Rent Roll'!$F$6*(1+'Rent Roll'!$P$6)^(ROUNDDOWN((O4-$C$4-1)/12,0)+1)/12 -> 2406.4452 | P9: =(P5>='Rent Roll'!$J$6)*(P5<='Rent Roll'!$K$6)*'Rent Roll'!$H$6*'Rent Roll'!$F$6*(1+'Rent Roll'!$I$6)^(ROUNDDOWN((P4-$C$4-1)/12,0)+1)/12+(P5>'Rent Roll'!$AD$6)*(P5<=EOMONTH('Rent Roll'!$AD$6,'Rent Roll'!$S$6))*'Rent Roll'!$O$6*'Rent Roll'!$F$6*(1+'Rent Roll'!$P$6)^(ROUNDDOWN((P4-$C$4-1)/12,0)+1)/12 -> 2454.574104 | Q9: =(Q5>='Rent Roll'!$J$6)*(Q5<='Rent Roll'!$K$6)*'Rent Roll'!$H$6*'Rent Roll'!$F$6*(1+'Rent Roll'!$I$6)^(ROUNDDOWN((Q4-$C$4-1)/12,0)+1)/12+(Q5>'Rent Roll'!$AD$6)*(Q5<=EOMONTH('Rent Roll'!$AD$6,'Rent Roll'!$S$6))*'Rent Roll'!$O$6*'Rent Roll'!$F$6*(1+'Rent Roll'!$P$6)^(ROUNDDOWN((Q4-$C$4-1)/12,0)+1)/12 -> 2454.574104 | R9: =(R5>='Rent Roll'!$J$6)*(R5<='Rent Roll'!$K$6)*'Rent Roll'!$H$6*'Rent Roll'!$F$6*(1+'Rent Roll'!$I$6)^(ROUNDDOWN((R4-$C$4-1)/12,0)+1)/12+(R5>'Rent Roll'!$AD$6)*(R5<=EOMONTH('Rent Roll'!$AD$6,'Rent Roll'!$S$6))*'Rent Roll'!$O$6*'Rent Roll'!$F$6*(1+'Rent Roll'!$P$6)^(ROUNDDOWN((R4-$C$4-1)/12,0)+1)/12 -> 2454.574104 | S9: =(S5>='Rent Roll'!$J$6)*(S5<='Rent Roll'!$K$6)*'Rent Roll'!$H$6*'Rent Roll'!$F$6*(1+'Rent Roll'!$I$6)^(ROUNDDOWN((S4-$C$4-1)/12,0)+1)/12+(S5>'Rent Roll'!$AD$6)*(S5<=EOMONTH('Rent Roll'!$AD$6,'Rent Roll'!$S$6))*'Rent Roll'!$O$6*'Rent Roll'!$F$6*(1+'Rent Roll'!$P$6)^(ROUNDDOWN((S4-$C$4-1)/12,0)+1)/12 -> 2454.574104 | T9: =(T5>='Rent Roll'!$J$6)*(T5<='Rent Roll'!$K$6)*'Rent Roll'!$H$6*'Rent Roll'!$F$6*(1+'Rent Roll'!$I$6)^(ROUNDDOWN((T4-$C$4-1)/12,0)+1)/12+(T5>'Rent Roll'!$AD$6)*(T5<=EOMONTH('Rent Roll'!$AD$6,'Rent Roll'!$S$6))*'Rent Roll'!$O$6*'Rent Roll'!$F$6*(1+'Rent Roll'!$P$6)^(ROUNDDOWN((T4-$C$4-1)/12,0)+1)/12 -> 2454.574104 | U9: =(U5>='Rent Roll'!$J$6)*(U5<='Rent Roll'!$K$6)*'Rent Roll'!$H$6*'Rent Roll'!$F$6*(1+'Rent Roll'!$I$6)^(ROUNDDOWN((U4-$C$4-1)/12,0)+1)/12+(U5>'Rent Roll'!$AD$6)*(U5<=EOMONTH('Rent Roll'!$AD$6,'Rent Roll'!$S$6))*'Rent Roll'!$O$6*'Rent Roll'!$F$6*(1+'Rent Roll'!$P$6)^(ROUNDDOWN((U4-$C$4-1)/12,0)+1)/12 -> 2454.574104 | V9: =(V5>='Rent Roll'!$J$6)*(V5<='Rent Roll'!$K$6)*'Rent Roll'!$H$6*'Rent Roll'!$F$6*(1+'Rent Roll'!$I$6)^(ROUNDDOWN((V4-$C$4-1)/12,0)+1)/12+(V5>'Rent Roll'!$AD$6)*(V5<=EOMONTH('Rent Roll'!$AD$6,'Rent Roll'!$S$6))*'Rent Roll'!$O$6*'Rent Roll'!$F$6*(1+'Rent Roll'!$P$6)^(ROUNDDOWN((V4-$C$4-1)/12,0)+1)/12 -> 2454.574104 | W9: =(W5>='Rent Roll'!$J$6)*(W5<='Rent Roll'!$K$6)*'Rent Roll'!$H$6*'Rent Roll'!$F$6*(1+'Rent Roll'!$I$6)^(ROUNDDOWN((W4-$C$4-1)/12,0)+1)/12+(W5>'Rent Roll'!$AD$6)*(W5<=EOMONTH('Rent Roll'!$AD$6,'Rent Roll'!$S$6))*'Rent Roll'!$O$6*'Rent Roll'!$F$6*(1+'Rent Roll'!$P$6)^(ROUNDDOWN((W4-$C$4-1)/12,0)+1)/12 -> 2454.574104 | X9: =(X5>='Rent Roll'!$J$6)*(X5<='Rent Roll'!$K$6)*'Rent Roll'!$H$6*'Rent Roll'!$F$6*(1+'Rent Roll'!$I$6)^(ROUNDDOWN((X4-$C$4-1)/12,0)+1)/12+(X5>'Rent Roll'!$AD$6)*(X5<=EOMONTH('Rent Roll'!$AD$6,'Rent Roll'!$S$6))*'Rent Roll'!$O$6*'Rent Roll'!$F$6*(1+'Rent Roll'!$P$6)^(ROUNDDOWN((X4-$C$4-1)/12,0)+1)/12 -> 2454.574104 | Y9: =(Y5>='Rent Roll'!$J$6)*(Y5<='Rent Roll'!$K$6)*'Rent Roll'!$H$6*'Rent Roll'!$F$6*(1+'Rent Roll'!$I$6)^(ROUNDDOWN((Y4-$C$4-1)/12,0)+1)/12+(Y5>'Rent Roll'!$AD$6)*(Y5<=EOMONTH('Rent Roll'!$AD$6,'Rent Roll'!$S$6))*'Rent Roll'!$O$6*'Rent Roll'!$F$6*(1+'Rent Roll'!$P$6)^(ROUNDDOWN((Y4-$C$4-1)/12,0)+1)/12 -> 2454.574104 | Z9: =(Z5>='Rent Roll'!$J$6)*(Z5<='Rent Roll'!$K$6)*'Rent Roll'!$H$6*'Rent Roll'!$F$6*(1+'Rent Roll'!$I$6)^(ROUNDDOWN((Z4-$C$4-1)/12,0)+1)/12+(Z5>'Rent Roll'!$AD$6)*(Z5<=EOMONTH('Rent Roll'!$AD$6,'Rent Roll'!$S$6))*'Rent Roll'!$O$6*'Rent Roll'!$F$6*(1+'Rent Roll'!$P$6)^(ROUNDDOWN((Z4-$C$4-1)/12,0)+1)/12 -> 2454.574104 | AA9: =(AA5>='Rent Roll'!$J$6)*(AA5<='Rent Roll'!$K$6)*'Rent Roll'!$H$6*'Rent Roll'!$F$6*(1+'Rent Roll'!$I$6)^(ROUNDDOWN((AA4-$C$4-1)/12,0)+1)/12+(AA5>'Rent Roll'!$AD$6)*(AA5<=EOMONTH('Rent Roll'!$AD$6,'Rent Roll'!$S$6))*'Rent Roll'!$O$6*'Rent Roll'!$F$6*(1+'Rent Roll'!$P$6)^(ROUNDDOWN((AA4-$C$4-1)/12,0)+1)/12 -> 2454.574104 | AB9: =(AB5>='Rent Roll'!$J$6)*(AB5<='Rent Roll'!$K$6)*'Rent Roll'!$H$6*'Rent Roll'!$F$6*(1+'Rent Roll'!$I$6)^(ROUNDDOWN((AB4-$C$4-1)/12,0)+1)/12+(AB5>'Rent Roll'!$AD$6)*(AB5<=EOMONTH('Rent Roll'!$AD$6,'Rent Roll'!$S$6))*'Rent Roll'!$O$6*'Rent Roll'!$F$6*(1+'Rent Roll'!$P$6)^(ROUNDDOWN((AB4-$C$4-1)/12,0)+1)/12 -> 2503.665586 | AC9: =(AC5>='Rent Roll'!$J$6)*(AC5<='Rent Roll'!$K$6)*'Rent Roll'!$H$6*'Rent Roll'!$F$6*(1+'Rent Roll'!$I$6)^(ROUNDDOWN((AC4-$C$4-1)/12,0)+1)/12+(AC5>'Rent Roll'!$AD$6)*(AC5<=EOMONTH('Rent Roll'!$AD$6,'Rent Roll'!$S$6))*'Rent Roll'!$O$6*'Rent Roll'!$F$6*(1+'Rent Roll'!$P$6)^(ROUNDDOWN((AC4-$C$4-1)/12,0)+1)/12 -> 2503.665586 | AD9: =(AD5>='Rent Roll'!$J$6)*(AD5<='Rent Roll'!$K$6)*'Rent Roll'!$H$6*'Rent Roll'!$F$6*(1+'Rent Roll'!$I$6)^(ROUNDDOWN((AD4-$C$4-1)/12,0)+1)/12+(AD5>'Rent Roll'!$AD$6)*(AD5<=EOMONTH('Rent Roll'!$AD$6,'Rent Roll'!$S$6))*'Rent Roll'!$O$6*'Rent Roll'!$F$6*(1+'Rent Roll'!$P$6)^(ROUNDDOWN((AD4-$C$4-1)/12,0)+1)/12 -> 2503.665586 | AE9: =(AE5>='Rent Roll'!$J$6)*(AE5<='Rent Roll'!$K$6)*'Rent Roll'!$H$6*'Rent Roll'!$F$6*(1+'Rent Roll'!$I$6)^(ROUNDDOWN((AE4-$C$4-1)/12,0)+1)/12+(AE5>'Rent Roll'!$AD$6)*(AE5<=EOMONTH('Rent Roll'!$AD$6,'Rent Roll'!$S$6))*'Rent Roll'!$O$6*'Rent Roll'!$F$6*(1+'Rent Roll'!$P$6)^(ROUNDDOWN((AE4-$C$4-1)/12,0)+1)/12 -> 2503.665586 | AF9: =(AF5>='Rent Roll'!$J$6)*(AF5<='Rent Roll'!$K$6)*'Rent Roll'!$H$6*'Rent Roll'!$F$6*(1+'Rent Roll'!$I$6)^(ROUNDDOWN((AF4-$C$4-1)/12,0)+1)/12+(AF5>'Rent Roll'!$AD$6)*(AF5<=EOMONTH('Rent Roll'!$AD$6,'Rent Roll'!$S$6))*'Rent Roll'!$O$6*'Rent Roll'!$F$6*(1+'Rent Roll'!$P$6)^(ROUNDDOWN((AF4-$C$4-1)/12,0)+1)/12 -> 2503.665586 | AG9: =(AG5>='Rent Roll'!$J$6)*(AG5<='Rent Roll'!$K$6)*'Rent Roll'!$H$6*'Rent Roll'!$F$6*(1+'Rent Roll'!$I$6)^(ROUNDDOWN((AG4-$C$4-1)/12,0)+1)/12+(AG5>'Rent Roll'!$AD$6)*(AG5<=EOMONTH('Rent Roll'!$AD$6,'Rent Roll'!$S$6))*'Rent Roll'!$O$6*'Rent Roll'!$F$6*(1+'Rent Roll'!$P$6)^(ROUNDDOWN((AG4-$C$4-1)/12,0)+1)/12 -> 2503.665586 | AH9: =(AH5>='Rent Roll'!$J$6)*(AH5<='Rent Roll'!$K$6)*'Rent Roll'!$H$6*'Rent Roll'!$F$6*(1+'Rent Roll'!$I$6)^(ROUNDDOWN((AH4-$C$4-1)/12,0)+1)/12+(AH5>'Rent Roll'!$AD$6)*(AH5<=EOMONTH('Rent Roll'!$AD$6,'Rent Roll'!$S$6))*'Rent Roll'!$O$6*'Rent Roll'!$F$6*(1+'Rent Roll'!$P$6)^(ROUNDDOWN((AH4-$C$4-1)/12,0)+1)/12 -> 2503.665586 | AI9: =(AI5>='Rent Roll'!$J$6)*(AI5<='Rent Roll'!$K$6)*'Rent Roll'!$H$6*'Rent Roll'!$F$6*(1+'Rent Roll'!$I$6)^(ROUNDDOWN((AI4-$C$4-1)/12,0)+1)/12+(AI5>'Rent Roll'!$AD$6)*(AI5<=EOMONTH('Rent Roll'!$AD$6,'Rent Roll'!$S$6))*'Rent Roll'!$O$6*'Rent Roll'!$F$6*(1+'Rent Roll'!$P$6)^(ROUNDDOWN((AI4-$C$4-1)/12,0)+1)/12 -> 2503.665586 | AJ9: =(AJ5>='Rent Roll'!$J$6)*(AJ5<='Rent Roll'!$K$6)*'Rent Roll'!$H$6*'Rent Roll'!$F$6*(1+'Rent Roll'!$I$6)^(ROUNDDOWN((AJ4-$C$4-1)/12,0)+1)/12+(AJ5>'Rent Roll'!$AD$6)*(AJ5<=EOMONTH('Rent Roll'!$AD$6,'Rent Roll'!$S$6))*'Rent Roll'!$O$6*'Rent Roll'!$F$6*(1+'Rent Roll'!$P$6)^(ROUNDDOWN((AJ4-$C$4-1)/12,0)+1)/12 -> 2503.665586 | AK9: =(AK5>='Rent Roll'!$J$6)*(AK5<='Rent Roll'!$K$6)*'Rent Roll'!$H$6*'Rent Roll'!$F$6*(1+'Rent Roll'!$I$6)^(ROUNDDOWN((AK4-$C$4-1)/12,0)+1)/12+(AK5>'Rent Roll'!$AD$6)*(AK5<=EOMONTH('Rent Roll'!$AD$6,'Rent Roll'!$S$6))*'Rent Roll'!$O$6*'Rent Roll'!$F$6*(1+'Rent Roll'!$P$6)^(ROUNDDOWN((AK4-$C$4-1)/12,0)+1)/12 -> 2503.665586 | AL9: =(AL5>='Rent Roll'!$J$6)*(AL5<='Rent Roll'!$K$6)*'Rent Roll'!$H$6*'Rent Roll'!$F$6*(1+'Rent Roll'!$I$6)^(ROUNDDOWN((AL4-$C$4-1)/12,0)+1)/12+(AL5>'Rent Roll'!$AD$6)*(AL5<=EOMONTH('Rent Roll'!$AD$6,'Rent Roll'!$S$6))*'Rent Roll'!$O$6*'Rent Roll'!$F$6*(1+'Rent Roll'!$P$6)^(ROUNDDOWN((AL4-$C$4-1)/12,0)+1)/12 -> 2503.665586 | AM9: =(AM5>='Rent Roll'!$J$6)*(AM5<='Rent Roll'!$K$6)*'Rent Roll'!$H$6*'Rent Roll'!$F$6*(1+'Rent Roll'!$I$6)^(ROUNDDOWN((AM4-$C$4-1)/12,0)+1)/12+(AM5>'Rent Roll'!$AD$6)*(AM5<=EOMONTH('Rent Roll'!$AD$6,'Rent Roll'!$S$6))*'Rent Roll'!$O$6*'Rent Roll'!$F$6*(1+'Rent Roll'!$P$6)^(ROUNDDOWN((AM4-$C$4-1)/12,0)+1)/12 -> 2503.665586 | AN9: =(AN5>='Rent Roll'!$J$6)*(AN5<='Rent Roll'!$K$6)*'Rent Roll'!$H$6*'Rent Roll'!$F$6*(1+'Rent Roll'!$I$6)^(ROUNDDOWN((AN4-$C$4-1)/12,0)+1)/12+(AN5>'Rent Roll'!$AD$6)*(AN5<=EOMONTH('Rent Roll'!$AD$6,'Rent Roll'!$S$6))*'Rent Roll'!$O$6*'Rent Roll'!$F$6*(1+'Rent Roll'!$P$6)^(ROUNDDOWN((AN4-$C$4-1)/12,0)+1)/12 -> 2553.738898 | AO9: =(AO5>='Rent Roll'!$J$6)*(AO5<='Rent Roll'!$K$6)*'Rent Roll'!$H$6*'Rent Roll'!$F$6*(1+'Rent Roll'!$I$6)^(ROUNDDOWN((AO4-$C$4-1)/12,0)+1)/12+(AO5>'Rent Roll'!$AD$6)*(AO5<=EOMONTH('Rent Roll'!$AD$6,'Rent Roll'!$S$6))*'Rent Roll'!$O$6*'Rent Roll'!$F$6*(1+'Rent Roll'!$P$6)^(ROUNDDOWN((AO4-$C$4-1)/12,0)+1)/12 -> 2553.738898 | AP9: =(AP5>='Rent Roll'!$J$6)*(AP5<='Rent Roll'!$K$6)*'Rent Roll'!$H$6*'Rent Roll'!$F$6*(1+'Rent Roll'!$I$6)^(ROUNDDOWN((AP4-$C$4-1)/12,0)+1)/12+(AP5>'Rent Roll'!$AD$6)*(AP5<=EOMONTH('Rent Roll'!$AD$6,'Rent Roll'!$S$6))*'Rent Roll'!$O$6*'Rent Roll'!$F$6*(1+'Rent Roll'!$P$6)^(ROUNDDOWN((AP4-$C$4-1)/12,0)+1)/12 -> 2553.738898 | AQ9: =(AQ5>='Rent Roll'!$J$6)*(AQ5<='Rent Roll'!$K$6)*'Rent Roll'!$H$6*'Rent Roll'!$F$6*(1+'Rent Roll'!$I$6)^(ROUNDDOWN((AQ4-$C$4-1)/12,0)+1)/12+(AQ5>'Rent Roll'!$AD$6)*(AQ5<=EOMONTH('Rent Roll'!$AD$6,'Rent Roll'!$S$6))*'Rent Roll'!$O$6*'Rent Roll'!$F$6*(1+'Rent Roll'!$P$6)^(ROUNDDOWN((AQ4-$C$4-1)/12,0)+1)/12 -> 2553.738898 | AR9: =(AR5>='Rent Roll'!$J$6)*(AR5<='Rent Roll'!$K$6)*'Rent Roll'!$H$6*'Rent Roll'!$F$6*(1+'Rent Roll'!$I$6)^(ROUNDDOWN((AR4-$C$4-1)/12,0)+1)/12+(AR5>'Rent Roll'!$AD$6)*(AR5<=EOMONTH('Rent Roll'!$AD$6,'Rent Roll'!$S$6))*'Rent Roll'!$O$6*'Rent Roll'!$F$6*(1+'Rent Roll'!$P$6)^(ROUNDDOWN((AR4-$C$4-1)/12,0)+1)/12 -> 2553.738898 | AS9: =(AS5>='Rent Roll'!$J$6)*(AS5<='Rent Roll'!$K$6)*'Rent Roll'!$H$6*'Rent Roll'!$F$6*(1+'Rent Roll'!$I$6)^(ROUNDDOWN((AS4-$C$4-1)/12,0)+1)/12+(AS5>'Rent Roll'!$AD$6)*(AS5<=EOMONTH('Rent Roll'!$AD$6,'Rent Roll'!$S$6))*'Rent Roll'!$O$6*'Rent Roll'!$F$6*(1+'Rent Roll'!$P$6)^(ROUNDDOWN((AS4-$C$4-1)/12,0)+1)/12 -> 2553.738898 | AT9: =(AT5>='Rent Roll'!$J$6)*(AT5<='Rent Roll'!$K$6)*'Rent Roll'!$H$6*'Rent Roll'!$F$6*(1+'Rent Roll'!$I$6)^(ROUNDDOWN((AT4-$C$4-1)/12,0)+1)/12+(AT5>'Rent Roll'!$AD$6)*(AT5<=EOMONTH('Rent Roll'!$AD$6,'Rent Roll'!$S$6))*'Rent Roll'!$O$6*'Rent Roll'!$F$6*(1+'Rent Roll'!$P$6)^(ROUNDDOWN((AT4-$C$4-1)/12,0)+1)/12 -> 2553.738898 | AU9: =(AU5>='Rent Roll'!$J$6)*(AU5<='Rent Roll'!$K$6)*'Rent Roll'!$H$6*'Rent Roll'!$F$6*(1+'Rent Roll'!$I$6)^(ROUNDDOWN((AU4-$C$4-1)/12,0)+1)/12+(AU5>'Rent Roll'!$AD$6)*(AU5<=EOMONTH('Rent Roll'!$AD$6,'Rent Roll'!$S$6))*'Rent Roll'!$O$6*'Rent Roll'!$F$6*(1+'Rent Roll'!$P$6)^(ROUNDDOWN((AU4-$C$4-1)/12,0)+1)/12 -> 2553.738898 | AV9: =(AV5>='Rent Roll'!$J$6)*(AV5<='Rent Roll'!$K$6)*'Rent Roll'!$H$6*'Rent Roll'!$F$6*(1+'Rent Roll'!$I$6)^(ROUNDDOWN((AV4-$C$4-1)/12,0)+1)/12+(AV5>'Rent Roll'!$AD$6)*(AV5<=EOMONTH('Rent Roll'!$AD$6,'Rent Roll'!$S$6))*'Rent Roll'!$O$6*'Rent Roll'!$F$6*(1+'Rent Roll'!$P$6)^(ROUNDDOWN((AV4-$C$4-1)/12,0)+1)/12 -> 2553.738898 | AW9: =(AW5>='Rent Roll'!$J$6)*(AW5<='Rent Roll'!$K$6)*'Rent Roll'!$H$6*'Rent Roll'!$F$6*(1+'Rent Roll'!$I$6)^(ROUNDDOWN((AW4-$C$4-1)/12,0)+1)/12+(AW5>'Rent Roll'!$AD$6)*(AW5<=EOMONTH('Rent Roll'!$AD$6,'Rent Roll'!$S$6))*'Rent Roll'!$O$6*'Rent Roll'!$F$6*(1+'Rent Roll'!$P$6)^(ROUNDDOWN((AW4-$C$4-1)/12,0)+1)/12 -> 2553.738898 | AX9: =(AX5>='Rent Roll'!$J$6)*(AX5<='Rent Roll'!$K$6)*'Rent Roll'!$H$6*'Rent Roll'!$F$6*(1+'Rent Roll'!$I$6)^(ROUNDDOWN((AX4-$C$4-1)/12,0)+1)/12+(AX5>'Rent Roll'!$AD$6)*(AX5<=EOMONTH('Rent Roll'!$AD$6,'Rent Roll'!$S$6))*'Rent Roll'!$O$6*'Rent Roll'!$F$6*(1+'Rent Roll'!$P$6)^(ROUNDDOWN((AX4-$C$4-1)/12,0)+1)/12 -> 2553.738898 | AY9: =(AY5>='Rent Roll'!$J$6)*(AY5<='Rent Roll'!$K$6)*'Rent Roll'!$H$6*'Rent Roll'!$F$6*(1+'Rent Roll'!$I$6)^(ROUNDDOWN((AY4-$C$4-1)/12,0)+1)/12+(AY5>'Rent Roll'!$AD$6)*(AY5<=EOMONTH('Rent Roll'!$AD$6,'Rent Roll'!$S$6))*'Rent Roll'!$O$6*'Rent Roll'!$F$6*(1+'Rent Roll'!$P$6)^(ROUNDDOWN((AY4-$C$4-1)/12,0)+1)/12 -> 2553.738898 | AZ9: =(AZ5>='Rent Roll'!$J$6)*(AZ5<='Rent Roll'!$K$6)*'Rent Roll'!$H$6*'Rent Roll'!$F$6*(1+'Rent Roll'!$I$6)^(ROUNDDOWN((AZ4-$C$4-1)/12,0)+1)/12+(AZ5>'Rent Roll'!$AD$6)*(AZ5<=EOMONTH('Rent Roll'!$AD$6,'Rent Roll'!$S$6))*'Rent Roll'!$O$6*'Rent Roll'!$F$6*(1+'Rent Roll'!$P$6)^(ROUNDDOWN((AZ4-$C$4-1)/12,0)+1)/12 -> 2604.813676 | BA9: =(BA5>='Rent Roll'!$J$6)*(BA5<='Rent Roll'!$K$6)*'Rent Roll'!$H$6*'Rent Roll'!$F$6*(1+'Rent Roll'!$I$6)^(ROUNDDOWN((BA4-$C$4-1)/12,0)+1)/12+(BA5>'Rent Roll'!$AD$6)*(BA5<=EOMONTH('Rent Roll'!$AD$6,'Rent Roll'!$S$6))*'Rent Roll'!$O$6*'Rent Roll'!$F$6*(1+'Rent Roll'!$P$6)^(ROUNDDOWN((BA4-$C$4-1)/12,0)+1)/12 -> 2604.813676 | BB9: =(BB5>='Rent Roll'!$J$6)*(BB5<='Rent Roll'!$K$6)*'Rent Roll'!$H$6*'Rent Roll'!$F$6*(1+'Rent Roll'!$I$6)^(ROUNDDOWN((BB4-$C$4-1)/12,0)+1)/12+(BB5>'Rent Roll'!$AD$6)*(BB5<=EOMONTH('Rent Roll'!$AD$6,'Rent Roll'!$S$6))*'Rent Roll'!$O$6*'Rent Roll'!$F$6*(1+'Rent Roll'!$P$6)^(ROUNDDOWN((BB4-$C$4-1)/12,0)+1)/12 -> 2821.881482 | BC9: =(BC5>='Rent Roll'!$J$6)*(BC5<='Rent Roll'!$K$6)*'Rent Roll'!$H$6*'Rent Roll'!$F$6*(1+'Rent Roll'!$I$6)^(ROUNDDOWN((BC4-$C$4-1)/12,0)+1)/12+(BC5>'Rent Roll'!$AD$6)*(BC5<=EOMONTH('Rent Roll'!$AD$6,'Rent Roll'!$S$6))*'Rent Roll'!$O$6*'Rent Roll'!$F$6*(1+'Rent Roll'!$P$6)^(ROUNDDOWN((BC4-$C$4-1)/12,0)+1)/12 -> 2821.881482 | BD9: =(BD5>='Rent Roll'!$J$6)*(BD5<='Rent Roll'!$K$6)*'Rent Roll'!$H$6*'Rent Roll'!$F$6*(1+'Rent Roll'!$I$6)^(ROUNDDOWN((BD4-$C$4-1)/12,0)+1)/12+(BD5>'Rent Roll'!$AD$6)*(BD5<=EOMONTH('Rent Roll'!$AD$6,'Rent Roll'!$S$6))*'Rent Roll'!$O$6*'Rent Roll'!$F$6*(1+'Rent Roll'!$P$6)^(ROUNDDOWN((BD4-$C$4-1)/12,0)+1)/12 -> 2821.881482 | BE9: =(BE5>='Rent Roll'!$J$6)*(BE5<='Rent Roll'!$K$6)*'Rent Roll'!$H$6*'Rent Roll'!$F$6*(1+'Rent Roll'!$I$6)^(ROUNDDOWN((BE4-$C$4-1)/12,0)+1)/12+(BE5>'Rent Roll'!$AD$6)*(BE5<=EOMONTH('Rent Roll'!$AD$6,'Rent Roll'!$S$6))*'Rent Roll'!$O$6*'Rent Roll'!$F$6*(1+'Rent Roll'!$P$6)^(ROUNDDOWN((BE4-$C$4-1)/12,0)+1)/12 -> 2821.881482 | BF9: =(BF5>='Rent Roll'!$J$6)*(BF5<='Rent Roll'!$K$6)*'Rent Roll'!$H$6*'Rent Roll'!$F$6*(1+'Rent Roll'!$I$6)^(ROUNDDOWN((BF4-$C$4-1)/12,0)+1)/12+(BF5>'Rent Roll'!$AD$6)*(BF5<=EOMONTH('Rent Roll'!$AD$6,'Rent Roll'!$S$6))*'Rent Roll'!$O$6*'Rent Roll'!$F$6*(1+'Rent Roll'!$P$6)^(ROUNDDOWN((BF4-$C$4-1)/12,0)+1)/12 -> 2821.881482 | BG9: =(BG5>='Rent Roll'!$J$6)*(BG5<='Rent Roll'!$K$6)*'Rent Roll'!$H$6*'Rent Roll'!$F$6*(1+'Rent Roll'!$I$6)^(ROUNDDOWN((BG4-$C$4-1)/12,0)+1)/12+(BG5>'Rent Roll'!$AD$6)*(BG5<=EOMONTH('Rent Roll'!$AD$6,'Rent Roll'!$S$6))*'Rent Roll'!$O$6*'Rent Roll'!$F$6*(1+'Rent Roll'!$P$6)^(ROUNDDOWN((BG4-$C$4-1)/12,0)+1)/12 -> 2821.881482 | BH9: =(BH5>='Rent Roll'!$J$6)*(BH5<='Rent Roll'!$K$6)*'Rent Roll'!$H$6*'Rent Roll'!$F$6*(1+'Rent Roll'!$I$6)^(ROUNDDOWN((BH4-$C$4-1)/12,0)+1)/12+(BH5>'Rent Roll'!$AD$6)*(BH5<=EOMONTH('Rent Roll'!$AD$6,'Rent Roll'!$S$6))*'Rent Roll'!$O$6*'Rent Roll'!$F$6*(1+'Rent Roll'!$P$6)^(ROUNDDOWN((BH4-$C$4-1)/12,0)+1)/12 -> 2821.881482 | BI9: =(BI5>='Rent Roll'!$J$6)*(BI5<='Rent Roll'!$K$6)*'Rent Roll'!$H$6*'Rent Roll'!$F$6*(1+'Rent Roll'!$I$6)^(ROUNDDOWN((BI4-$C$4-1)/12,0)+1)/12+(BI5>'Rent Roll'!$AD$6)*(BI5<=EOMONTH('Rent Roll'!$AD$6,'Rent Roll'!$S$6))*'Rent Roll'!$O$6*'Rent Roll'!$F$6*(1+'Rent Roll'!$P$6)^(ROUNDDOWN((BI4-$C$4-1)/12,0)+1)/12 -> 2821.881482 | BJ9: =(BJ5>='Rent Roll'!$J$6)*(BJ5<='Rent Roll'!$K$6)*'Rent Roll'!$H$6*'Rent Roll'!$F$6*(1+'Rent Roll'!$I$6)^(ROUNDDOWN((BJ4-$C$4-1)/12,0)+1)/12+(BJ5>'Rent Roll'!$AD$6)*(BJ5<=EOMONTH('Rent Roll'!$AD$6,'Rent Roll'!$S$6))*'Rent Roll'!$O$6*'Rent Roll'!$F$6*(1+'Rent Roll'!$P$6)^(ROUNDDOWN((BJ4-$C$4-1)/12,0)+1)/12 -> 2821.881482 | BK9: =(BK5>='Rent Roll'!$J$6)*(BK5<='Rent Roll'!$K$6)*'Rent Roll'!$H$6*'Rent Roll'!$F$6*(1+'Rent Roll'!$I$6)^(ROUNDDOWN((BK4-$C$4-1)/12,0)+1)/12+(BK5>'Rent Roll'!$AD$6)*(BK5<=EOMONTH('Rent Roll'!$AD$6,'Rent Roll'!$S$6))*'Rent Roll'!$O$6*'Rent Roll'!$F$6*(1+'Rent Roll'!$P$6)^(ROUNDDOWN((BK4-$C$4-1)/12,0)+1)/12 -> 2821.881482 | BM9: STOP
B10: =+'Rent Roll'!E7 -> Vacant | D10: =(D5>='Rent Roll'!$J$7)*(D5<='Rent Roll'!$K$7)*'Rent Roll'!$H$7*'Rent Roll'!$F$7*(1+'Rent Roll'!$I$7)^(ROUNDDOWN((D4-$C$4-1)/12,0)+1)/12+(D5>'Rent Roll'!$AD$7)*(D5<=EOMONTH('Rent Roll'!$AD$7,'Rent Roll'!$S$7))*'Rent Roll'!$O$7*'Rent Roll'!$F$7*(1+'Rent Roll'!$P$7)^(ROUNDDOWN((D4-$C$4-1)/12,0)+1)/12 -> 2880.96875 | E10: =(E5>='Rent Roll'!$J$7)*(E5<='Rent Roll'!$K$7)*'Rent Roll'!$H$7*'Rent Roll'!$F$7*(1+'Rent Roll'!$I$7)^(ROUNDDOWN((E4-$C$4-1)/12,0)+1)/12+(E5>'Rent Roll'!$AD$7)*(E5<=EOMONTH('Rent Roll'!$AD$7,'Rent Roll'!$S$7))*'Rent Roll'!$O$7*'Rent Roll'!$F$7*(1+'Rent Roll'!$P$7)^(ROUNDDOWN((E4-$C$4-1)/12,0)+1)/12 -> 2880.96875 | F10: =(F5>='Rent Roll'!$J$7)*(F5<='Rent Roll'!$K$7)*'Rent Roll'!$H$7*'Rent Roll'!$F$7*(1+'Rent Roll'!$I$7)^(ROUNDDOWN((F4-$C$4-1)/12,0)+1)/12+(F5>'Rent Roll'!$AD$7)*(F5<=EOMONTH('Rent Roll'!$AD$7,'Rent Roll'!$S$7))*'Rent Roll'!$O$7*'Rent Roll'!$F$7*(1+'Rent Roll'!$P$7)^(ROUNDDOWN((F4-$C$4-1)/12,0)+1)/12 -> 2880.96875 | G10: =(G5>='Rent Roll'!$J$7)*(G5<='Rent Roll'!$K$7)*'Rent Roll'!$H$7*'Rent Roll'!$F$7*(1+'Rent Roll'!$I$7)^(ROUNDDOWN((G4-$C$4-1)/12,0)+1)/12+(G5>'Rent Roll'!$AD$7)*(G5<=EOMONTH('Rent Roll'!$AD$7,'Rent Roll'!$S$7))*'Rent Roll'!$O$7*'Rent Roll'!$F$7*(1+'Rent Roll'!$P$7)^(ROUNDDOWN((G4-$C$4-1)/12,0)+1)/12 -> 2880.96875 | H10: =(H5>='Rent Roll'!$J$7)*(H5<='Rent Roll'!$K$7)*'Rent Roll'!$H$7*'Rent Roll'!$F$7*(1+'Rent Roll'!$I$7)^(ROUNDDOWN((H4-$C$4-1)/12,0)+1)/12+(H5>'Rent Roll'!$AD$7)*(H5<=EOMONTH('Rent Roll'!$AD$7,'Rent Roll'!$S$7))*'Rent Roll'!$O$7*'Rent Roll'!$F$7*(1+'Rent Roll'!$P$7)^(ROUNDDOWN((H4-$C$4-1)/12,0)+1)/12 -> 2880.96875 | I10: =(I5>='Rent Roll'!$J$7)*(I5<='Rent Roll'!$K$7)*'Rent Roll'!$H$7*'Rent Roll'!$F$7*(1+'Rent Roll'!$I$7)^(ROUNDDOWN((I4-$C$4-1)/12,0)+1)/12+(I5>'Rent Roll'!$AD$7)*(I5<=EOMONTH('Rent Roll'!$AD$7,'Rent Roll'!$S$7))*'Rent Roll'!$O$7*'Rent Roll'!$F$7*(1+'Rent Roll'!$P$7)^(ROUNDDOWN((I4-$C$4-1)/12,0)+1)/12 -> 2880.96875 | J10: =(J5>='Rent Roll'!$J$7)*(J5<='Rent Roll'!$K$7)*'Rent Roll'!$H$7*'Rent Roll'!$F$7*(1+'Rent Roll'!$I$7)^(ROUNDDOWN((J4-$C$4-1)/12,0)+1)/12+(J5>'Rent Roll'!$AD$7)*(J5<=EOMONTH('Rent Roll'!$AD$7,'Rent Roll'!$S$7))*'Rent Roll'!$O$7*'Rent Roll'!$F$7*(1+'Rent Roll'!$P$7)^(ROUNDDOWN((J4-$C$4-1)/12,0)+1)/12 -> 2880.96875 | K10: =(K5>='Rent Roll'!$J$7)*(K5<='Rent Roll'!$K$7)*'Rent Roll'!$H$7*'Rent Roll'!$F$7*(1+'Rent Roll'!$I$7)^(ROUNDDOWN((K4-$C$4-1)/12,0)+1)/12+(K5>'Rent Roll'!$AD$7)*(K5<=EOMONTH('Rent Roll'!$AD$7,'Rent Roll'!$S$7))*'Rent Roll'!$O$7*'Rent Roll'!$F$7*(1+'Rent Roll'!$P$7)^(ROUNDDOWN((K4-$C$4-1)/12,0)+1)/12 -> 2880.96875 | L10: =(L5>='Rent Roll'!$J$7)*(L5<='Rent Roll'!$K$7)*'Rent Roll'!$H$7*'Rent Roll'!$F$7*(1+'Rent Roll'!$I$7)^(ROUNDDOWN((L4-$C$4-1)/12,0)+1)/12+(L5>'Rent Roll'!$AD$7)*(L5<=EOMONTH('Rent Roll'!$AD$7,'Rent Roll'!$S$7))*'Rent Roll'!$O$7*'Rent Roll'!$F$7*(1+'Rent Roll'!$P$7)^(ROUNDDOWN((L4-$C$4-1)/12,0)+1)/12 -> 2880.96875 | M10: =(M5>='Rent Roll'!$J$7)*(M5<='Rent Roll'!$K$7)*'Rent Roll'!$H$7*'Rent Roll'!$F$7*(1+'Rent Roll'!$I$7)^(ROUNDDOWN((M4-$C$4-1)/12,0)+1)/12+(M5>'Rent Roll'!$AD$7)*(M5<=EOMONTH('Rent Roll'!$AD$7,'Rent Roll'!$S$7))*'Rent Roll'!$O$7*'Rent Roll'!$F$7*(1+'Rent Roll'!$P$7)^(ROUNDDOWN((M4-$C$4-1)/12,0)+1)/12 -> 2880.96875 | N10: =(N5>='Rent Roll'!$J$7)*(N5<='Rent Roll'!$K$7)*'Rent Roll'!$H$7*'Rent Roll'!$F$7*(1+'Rent Roll'!$I$7)^(ROUNDDOWN((N4-$C$4-1)/12,0)+1)/12+(N5>'Rent Roll'!$AD$7)*(N5<=EOMONTH('Rent Roll'!$AD$7,'Rent Roll'!$S$7))*'Rent Roll'!$O$7*'Rent Roll'!$F$7*(1+'Rent Roll'!$P$7)^(ROUNDDOWN((N4-$C$4-1)/12,0)+1)/12 -> 2880.96875 | O10: =(O5>='Rent Roll'!$J$7)*(O5<='Rent Roll'!$K$7)*'Rent Roll'!$H$7*'Rent Roll'!$F$7*(1+'Rent Roll'!$I$7)^(ROUNDDOWN((O4-$C$4-1)/12,0)+1)/12+(O5>'Rent Roll'!$AD$7)*(O5<=EOMONTH('Rent Roll'!$AD$7,'Rent Roll'!$S$7))*'Rent Roll'!$O$7*'Rent Roll'!$F$7*(1+'Rent Roll'!$P$7)^(ROUNDDOWN((O4-$C$4-1)/12,0)+1)/12 -> 2880.96875 | P10: =(P5>='Rent Roll'!$J$7)*(P5<='Rent Roll'!$K$7)*'Rent Roll'!$H$7*'Rent Roll'!$F$7*(1+'Rent Roll'!$I$7)^(ROUNDDOWN((P4-$C$4-1)/12,0)+1)/12+(P5>'Rent Roll'!$AD$7)*(P5<=EOMONTH('Rent Roll'!$AD$7,'Rent Roll'!$S$7))*'Rent Roll'!$O$7*'Rent Roll'!$F$7*(1+'Rent Roll'!$P$7)^(ROUNDDOWN((P4-$C$4-1)/12,0)+1)/12 -> 2938.588125 | Q10: =(Q5>='Rent Roll'!$J$7)*(Q5<='Rent Roll'!$K$7)*'Rent Roll'!$H$7*'Rent Roll'!$F$7*(1+'Rent Roll'!$I$7)^(ROUNDDOWN((Q4-$C$4-1)/12,0)+1)/12+(Q5>'Rent Roll'!$AD$7)*(Q5<=EOMONTH('Rent Roll'!$AD$7,'Rent Roll'!$S$7))*'Rent Roll'!$O$7*'Rent Roll'!$F$7*(1+'Rent Roll'!$P$7)^(ROUNDDOWN((Q4-$C$4-1)/12,0)+1)/12 -> 2938.588125 | R10: =(R5>='Rent Roll'!$J$7)*(R5<='Rent Roll'!$K$7)*'Rent Roll'!$H$7*'Rent Roll'!$F$7*(1+'Rent Roll'!$I$7)^(ROUNDDOWN((R4-$C$4-1)/12,0)+1)/12+(R5>'Rent Roll'!$AD$7)*(R5<=EOMONTH('Rent Roll'!$AD$7,'Rent Roll'!$S$7))*'Rent Roll'!$O$7*'Rent Roll'!$F$7*(1+'Rent Roll'!$P$7)^(ROUNDDOWN((R4-$C$4-1)/12,0)+1)/12 -> 2938.588125 | S10: =(S5>='Rent Roll'!$J$7)*(S5<='Rent Roll'!$K$7)*'Rent Roll'!$H$7*'Rent Roll'!$F$7*(1+'Rent Roll'!$I$7)^(ROUNDDOWN((S4-$C$4-1)/12,0)+1)/12+(S5>'Rent Roll'!$AD$7)*(S5<=EOMONTH('Rent Roll'!$AD$7,'Rent Roll'!$S$7))*'Rent Roll'!$O$7*'Rent Roll'!$F$7*(1+'Rent Roll'!$P$7)^(ROUNDDOWN((S4-$C$4-1)/12,0)+1)/12 -> 2938.588125 | T10: =(T5>='Rent Roll'!$J$7)*(T5<='Rent Roll'!$K$7)*'Rent Roll'!$H$7*'Rent Roll'!$F$7*(1+'Rent Roll'!$I$7)^(ROUNDDOWN((T4-$C$4-1)/12,0)+1)/12+(T5>'Rent Roll'!$AD$7)*(T5<=EOMONTH('Rent Roll'!$AD$7,'Rent Roll'!$S$7))*'Rent Roll'!$O$7*'Rent Roll'!$F$7*(1+'Rent Roll'!$P$7)^(ROUNDDOWN((T4-$C$4-1)/12,0)+1)/12 -> 2938.588125 | U10: =(U5>='Rent Roll'!$J$7)*(U5<='Rent Roll'!$K$7)*'Rent Roll'!$H$7*'Rent Roll'!$F$7*(1+'Rent Roll'!$I$7)^(ROUNDDOWN((U4-$C$4-1)/12,0)+1)/12+(U5>'Rent Roll'!$AD$7)*(U5<=EOMONTH('Rent Roll'!$AD$7,'Rent Roll'!$S$7))*'Rent Roll'!$O$7*'Rent Roll'!$F$7*(1+'Rent Roll'!$P$7)^(ROUNDDOWN((U4-$C$4-1)/12,0)+1)/12 -> 2938.588125 | V10: =(V5>='Rent Roll'!$J$7)*(V5<='Rent Roll'!$K$7)*'Rent Roll'!$H$7*'Rent Roll'!$F$7*(1+'Rent Roll'!$I$7)^(ROUNDDOWN((V4-$C$4-1)/12,0)+1)/12+(V5>'Rent Roll'!$AD$7)*(V5<=EOMONTH('Rent Roll'!$AD$7,'Rent Roll'!$S$7))*'Rent Roll'!$O$7*'Rent Roll'!$F$7*(1+'Rent Roll'!$P$7)^(ROUNDDOWN((V4-$C$4-1)/12,0)+1)/12 -> 2938.588125 | W10: =(W5>='Rent Roll'!$J$7)*(W5<='Rent Roll'!$K$7)*'Rent Roll'!$H$7*'Rent Roll'!$F$7*(1+'Rent Roll'!$I$7)^(ROUNDDOWN((W4-$C$4-1)/12,0)+1)/12+(W5>'Rent Roll'!$AD$7)*(W5<=EOMONTH('Rent Roll'!$AD$7,'Rent Roll'!$S$7))*'Rent Roll'!$O$7*'Rent Roll'!$F$7*(1+'Rent Roll'!$P$7)^(ROUNDDOWN((W4-$C$4-1)/12,0)+1)/12 -> 2938.588125 | X10: =(X5>='Rent Roll'!$J$7)*(X5<='Rent Roll'!$K$7)*'Rent Roll'!$H$7*'Rent Roll'!$F$7*(1+'Rent Roll'!$I$7)^(ROUNDDOWN((X4-$C$4-1)/12,0)+1)/12+(X5>'Rent Roll'!$AD$7)*(X5<=EOMONTH('Rent Roll'!$AD$7,'Rent Roll'!$S$7))*'Rent Roll'!$O$7*'Rent Roll'!$F$7*(1+'Rent Roll'!$P$7)^(ROUNDDOWN((X4-$C$4-1)/12,0)+1)/12 -> 2938.588125 | Y10: =(Y5>='Rent Roll'!$J$7)*(Y5<='Rent Roll'!$K$7)*'Rent Roll'!$H$7*'Rent Roll'!$F$7*(1+'Rent Roll'!$I$7)^(ROUNDDOWN((Y4-$C$4-1)/12,0)+1)/12+(Y5>'Rent Roll'!$AD$7)*(Y5<=EOMONTH('Rent Roll'!$AD$7,'Rent Roll'!$S$7))*'Rent Roll'!$O$7*'Rent Roll'!$F$7*(1+'Rent Roll'!$P$7)^(ROUNDDOWN((Y4-$C$4-1)/12,0)+1)/12 -> 2938.588125 | Z10: =(Z5>='Rent Roll'!$J$7)*(Z5<='Rent Roll'!$K$7)*'Rent Roll'!$H$7*'Rent Roll'!$F$7*(1+'Rent Roll'!$I$7)^(ROUNDDOWN((Z4-$C$4-1)/12,0)+1)/12+(Z5>'Rent Roll'!$AD$7)*(Z5<=EOMONTH('Rent Roll'!$AD$7,'Rent Roll'!$S$7))*'Rent Roll'!$O$7*'Rent Roll'!$F$7*(1+'Rent Roll'!$P$7)^(ROUNDDOWN((Z4-$C$4-1)/12,0)+1)/12 -> 2938.588125 | AA10: =(AA5>='Rent Roll'!$J$7)*(AA5<='Rent Roll'!$K$7)*'Rent Roll'!$H$7*'Rent Roll'!$F$7*(1+'Rent Roll'!$I$7)^(ROUNDDOWN((AA4-$C$4-1)/12,0)+1)/12+(AA5>'Rent Roll'!$AD$7)*(AA5<=EOMONTH('Rent Roll'!$AD$7,'Rent Roll'!$S$7))*'Rent Roll'!$O$7*'Rent Roll'!$F$7*(1+'Rent Roll'!$P$7)^(ROUNDDOWN((AA4-$C$4-1)/12,0)+1)/12 -> 2938.588125 | AB10: =(AB5>='Rent Roll'!$J$7)*(AB5<='Rent Roll'!$K$7)*'Rent Roll'!$H$7*'Rent Roll'!$F$7*(1+'Rent Roll'!$I$7)^(ROUNDDOWN((AB4-$C$4-1)/12,0)+1)/12+(AB5>'Rent Roll'!$AD$7)*(AB5<=EOMONTH('Rent Roll'!$AD$7,'Rent Roll'!$S$7))*'Rent Roll'!$O$7*'Rent Roll'!$F$7*(1+'Rent Roll'!$P$7)^(ROUNDDOWN((AB4-$C$4-1)/12,0)+1)/12 -> 2997.359888 | AC10: =(AC5>='Rent Roll'!$J$7)*(AC5<='Rent Roll'!$K$7)*'Rent Roll'!$H$7*'Rent Roll'!$F$7*(1+'Rent Roll'!$I$7)^(ROUNDDOWN((AC4-$C$4-1)/12,0)+1)/12+(AC5>'Rent Roll'!$AD$7)*(AC5<=EOMONTH('Rent Roll'!$AD$7,'Rent Roll'!$S$7))*'Rent Roll'!$O$7*'Rent Roll'!$F$7*(1+'Rent Roll'!$P$7)^(ROUNDDOWN((AC4-$C$4-1)/12,0)+1)/12 -> 2997.359888 | AD10: =(AD5>='Rent Roll'!$J$7)*(AD5<='Rent Roll'!$K$7)*'Rent Roll'!$H$7*'Rent Roll'!$F$7*(1+'Rent Roll'!$I$7)^(ROUNDDOWN((AD4-$C$4-1)/12,0)+1)/12+(AD5>'Rent Roll'!$AD$7)*(AD5<=EOMONTH('Rent Roll'!$AD$7,'Rent Roll'!$S$7))*'Rent Roll'!$O$7*'Rent Roll'!$F$7*(1+'Rent Roll'!$P$7)^(ROUNDDOWN((AD4-$C$4-1)/12,0)+1)/12 -> 2997.359888 | AE10: =(AE5>='Rent Roll'!$J$7)*(AE5<='Rent Roll'!$K$7)*'Rent Roll'!$H$7*'Rent Roll'!$F$7*(1+'Rent Roll'!$I$7)^(ROUNDDOWN((AE4-$C$4-1)/12,0)+1)/12+(AE5>'Rent Roll'!$AD$7)*(AE5<=EOMONTH('Rent Roll'!$AD$7,'Rent Roll'!$S$7))*'Rent Roll'!$O$7*'Rent Roll'!$F$7*(1+'Rent Roll'!$P$7)^(ROUNDDOWN((AE4-$C$4-1)/12,0)+1)/12 -> 2997.359888 | AF10: =(AF5>='Rent Roll'!$J$7)*(AF5<='Rent Roll'!$K$7)*'Rent Roll'!$H$7*'Rent Roll'!$F$7*(1+'Rent Roll'!$I$7)^(ROUNDDOWN((AF4-$C$4-1)/12,0)+1)/12+(AF5>'Rent Roll'!$AD$7)*(AF5<=EOMONTH('Rent Roll'!$AD$7,'Rent Roll'!$S$7))*'Rent Roll'!$O$7*'Rent Roll'!$F$7*(1+'Rent Roll'!$P$7)^(ROUNDDOWN((AF4-$C$4-1)/12,0)+1)/12 -> 2997.359888 | AG10: =(AG5>='Rent Roll'!$J$7)*(AG5<='Rent Roll'!$K$7)*'Rent Roll'!$H$7*'Rent Roll'!$F$7*(1+'Rent Roll'!$I$7)^(ROUNDDOWN((AG4-$C$4-1)/12,0)+1)/12+(AG5>'Rent Roll'!$AD$7)*(AG5<=EOMONTH('Rent Roll'!$AD$7,'Rent Roll'!$S$7))*'Rent Roll'!$O$7*'Rent Roll'!$F$7*(1+'Rent Roll'!$P$7)^(ROUNDDOWN((AG4-$C$4-1)/12,0)+1)/12 -> 2997.359888 | AH10: =(AH5>='Rent Roll'!$J$7)*(AH5<='Rent Roll'!$K$7)*'Rent Roll'!$H$7*'Rent Roll'!$F$7*(1+'Rent Roll'!$I$7)^(ROUNDDOWN((AH4-$C$4-1)/12,0)+1)/12+(AH5>'Rent Roll'!$AD$7)*(AH5<=EOMONTH('Rent Roll'!$AD$7,'Rent Roll'!$S$7))*'Rent Roll'!$O$7*'Rent Roll'!$F$7*(1+'Rent Roll'!$P$7)^(ROUNDDOWN((AH4-$C$4-1)/12,0)+1)/12 -> 2997.359888 | AI10: =(AI5>='Rent Roll'!$J$7)*(AI5<='Rent Roll'!$K$7)*'Rent Roll'!$H$7*'Rent Roll'!$F$7*(1+'Rent Roll'!$I$7)^(ROUNDDOWN((AI4-$C$4-1)/12,0)+1)/12+(AI5>'Rent Roll'!$AD$7)*(AI5<=EOMONTH('Rent Roll'!$AD$7,'Rent Roll'!$S$7))*'Rent Roll'!$O$7*'Rent Roll'!$F$7*(1+'Rent Roll'!$P$7)^(ROUNDDOWN((AI4-$C$4-1)/12,0)+1)/12 -> 2997.359888 | AJ10: =(AJ5>='Rent Roll'!$J$7)*(AJ5<='Rent Roll'!$K$7)*'Rent Roll'!$H$7*'Rent Roll'!$F$7*(1+'Rent Roll'!$I$7)^(ROUNDDOWN((AJ4-$C$4-1)/12,0)+1)/12+(AJ5>'Rent Roll'!$AD$7)*(AJ5<=EOMONTH('Rent Roll'!$AD$7,'Rent Roll'!$S$7))*'Rent Roll'!$O$7*'Rent Roll'!$F$7*(1+'Rent Roll'!$P$7)^(ROUNDDOWN((AJ4-$C$4-1)/12,0)+1)/12 -> 2997.359888 | AK10: =(AK5>='Rent Roll'!$J$7)*(AK5<='Rent Roll'!$K$7)*'Rent Roll'!$H$7*'Rent Roll'!$F$7*(1+'Rent Roll'!$I$7)^(ROUNDDOWN((AK4-$C$4-1)/12,0)+1)/12+(AK5>'Rent Roll'!$AD$7)*(AK5<=EOMONTH('Rent Roll'!$AD$7,'Rent Roll'!$S$7))*'Rent Roll'!$O$7*'Rent Roll'!$F$7*(1+'Rent Roll'!$P$7)^(ROUNDDOWN((AK4-$C$4-1)/12,0)+1)/12 -> 2997.359888 | AL10: =(AL5>='Rent Roll'!$J$7)*(AL5<='Rent Roll'!$K$7)*'Rent Roll'!$H$7*'Rent Roll'!$F$7*(1+'Rent Roll'!$I$7)^(ROUNDDOWN((AL4-$C$4-1)/12,0)+1)/12+(AL5>'Rent Roll'!$AD$7)*(AL5<=EOMONTH('Rent Roll'!$AD$7,'Rent Roll'!$S$7))*'Rent Roll'!$O$7*'Rent Roll'!$F$7*(1+'Rent Roll'!$P$7)^(ROUNDDOWN((AL4-$C$4-1)/12,0)+1)/12 -> 2997.359888 | AM10: =(AM5>='Rent Roll'!$J$7)*(AM5<='Rent Roll'!$K$7)*'Rent Roll'!$H$7*'Rent Roll'!$F$7*(1+'Rent Roll'!$I$7)^(ROUNDDOWN((AM4-$C$4-1)/12,0)+1)/12+(AM5>'Rent Roll'!$AD$7)*(AM5<=EOMONTH('Rent Roll'!$AD$7,'Rent Roll'!$S$7))*'Rent Roll'!$O$7*'Rent Roll'!$F$7*(1+'Rent Roll'!$P$7)^(ROUNDDOWN((AM4-$C$4-1)/12,0)+1)/12 -> 2997.359888 | AN10: =(AN5>='Rent Roll'!$J$7)*(AN5<='Rent Roll'!$K$7)*'Rent Roll'!$H$7*'Rent Roll'!$F$7*(1+'Rent Roll'!$I$7)^(ROUNDDOWN((AN4-$C$4-1)/12,0)+1)/12+(AN5>'Rent Roll'!$AD$7)*(AN5<=EOMONTH('Rent Roll'!$AD$7,'Rent Roll'!$S$7))*'Rent Roll'!$O$7*'Rent Roll'!$F$7*(1+'Rent Roll'!$P$7)^(ROUNDDOWN((AN4-$C$4-1)/12,0)+1)/12 -> 3057.307085 | AO10: =(AO5>='Rent Roll'!$J$7)*(AO5<='Rent Roll'!$K$7)*'Rent Roll'!$H$7*'Rent Roll'!$F$7*(1+'Rent Roll'!$I$7)^(ROUNDDOWN((AO4-$C$4-1)/12,0)+1)/12+(AO5>'Rent Roll'!$AD$7)*(AO5<=EOMONTH('Rent Roll'!$AD$7,'Rent Roll'!$S$7))*'Rent Roll'!$O$7*'Rent Roll'!$F$7*(1+'Rent Roll'!$P$7)^(ROUNDDOWN((AO4-$C$4-1)/12,0)+1)/12 -> 3057.307085 | AP10: =(AP5>='Rent Roll'!$J$7)*(AP5<='Rent Roll'!$K$7)*'Rent Roll'!$H$7*'Rent Roll'!$F$7*(1+'Rent Roll'!$I$7)^(ROUNDDOWN((AP4-$C$4-1)/12,0)+1)/12+(AP5>'Rent Roll'!$AD$7)*(AP5<=EOMONTH('Rent Roll'!$AD$7,'Rent Roll'!$S$7))*'Rent Roll'!$O$7*'Rent Roll'!$F$7*(1+'Rent Roll'!$P$7)^(ROUNDDOWN((AP4-$C$4-1)/12,0)+1)/12 -> 3057.307085 | AQ10: =(AQ5>='Rent Roll'!$J$7)*(AQ5<='Rent Roll'!$K$7)*'Rent Roll'!$H$7*'Rent Roll'!$F$7*(1+'Rent Roll'!$I$7)^(ROUNDDOWN((AQ4-$C$4-1)/12,0)+1)/12+(AQ5>'Rent Roll'!$AD$7)*(AQ5<=EOMONTH('Rent Roll'!$AD$7,'Rent Roll'!$S$7))*'Rent Roll'!$O$7*'Rent Roll'!$F$7*(1+'Rent Roll'!$P$7)^(ROUNDDOWN((AQ4-$C$4-1)/12,0)+1)/12 -> 3057.307085 | AR10: =(AR5>='Rent Roll'!$J$7)*(AR5<='Rent Roll'!$K$7)*'Rent Roll'!$H$7*'Rent Roll'!$F$7*(1+'Rent Roll'!$I$7)^(ROUNDDOWN((AR4-$C$4-1)/12,0)+1)/12+(AR5>'Rent Roll'!$AD$7)*(AR5<=EOMONTH('Rent Roll'!$AD$7,'Rent Roll'!$S$7))*'Rent Roll'!$O$7*'Rent Roll'!$F$7*(1+'Rent Roll'!$P$7)^(ROUNDDOWN((AR4-$C$4-1)/12,0)+1)/12 -> 3057.307085 | AS10: =(AS5>='Rent Roll'!$J$7)*(AS5<='Rent Roll'!$K$7)*'Rent Roll'!$H$7*'Rent Roll'!$F$7*(1+'Rent Roll'!$I$7)^(ROUNDDOWN((AS4-$C$4-1)/12,0)+1)/12+(AS5>'Rent Roll'!$AD$7)*(AS5<=EOMONTH('Rent Roll'!$AD$7,'Rent Roll'!$S$7))*'Rent Roll'!$O$7*'Rent Roll'!$F$7*(1+'Rent Roll'!$P$7)^(ROUNDDOWN((AS4-$C$4-1)/12,0)+1)/12 -> 3057.307085 | AT10: =(AT5>='Rent Roll'!$J$7)*(AT5<='Rent Roll'!$K$7)*'Rent Roll'!$H$7*'Rent Roll'!$F$7*(1+'Rent Roll'!$I$7)^(ROUNDDOWN((AT4-$C$4-1)/12,0)+1)/12+(AT5>'Rent Roll'!$AD$7)*(AT5<=EOMONTH('Rent Roll'!$AD$7,'Rent Roll'!$S$7))*'Rent Roll'!$O$7*'Rent Roll'!$F$7*(1+'Rent Roll'!$P$7)^(ROUNDDOWN((AT4-$C$4-1)/12,0)+1)/12 -> 3057.307085 | AU10: =(AU5>='Rent Roll'!$J$7)*(AU5<='Rent Roll'!$K$7)*'Rent Roll'!$H$7*'Rent Roll'!$F$7*(1+'Rent Roll'!$I$7)^(ROUNDDOWN((AU4-$C$4-1)/12,0)+1)/12+(AU5>'Rent Roll'!$AD$7)*(AU5<=EOMONTH('Rent Roll'!$AD$7,'Rent Roll'!$S$7))*'Rent Roll'!$O$7*'Rent Roll'!$F$7*(1+'Rent Roll'!$P$7)^(ROUNDDOWN((AU4-$C$4-1)/12,0)+1)/12 -> 3057.307085 | AV10: =(AV5>='Rent Roll'!$J$7)*(AV5<='Rent Roll'!$K$7)*'Rent Roll'!$H$7*'Rent Roll'!$F$7*(1+'Rent Roll'!$I$7)^(ROUNDDOWN((AV4-$C$4-1)/12,0)+1)/12+(AV5>'Rent Roll'!$AD$7)*(AV5<=EOMONTH('Rent Roll'!$AD$7,'Rent Roll'!$S$7))*'Rent Roll'!$O$7*'Rent Roll'!$F$7*(1+'Rent Roll'!$P$7)^(ROUNDDOWN((AV4-$C$4-1)/12,0)+1)/12 -> 3057.307085 | AW10: =(AW5>='Rent Roll'!$J$7)*(AW5<='Rent Roll'!$K$7)*'Rent Roll'!$H$7*'Rent Roll'!$F$7*(1+'Rent Roll'!$I$7)^(ROUNDDOWN((AW4-$C$4-1)/12,0)+1)/12+(AW5>'Rent Roll'!$AD$7)*(AW5<=EOMONTH('Rent Roll'!$AD$7,'Rent Roll'!$S$7))*'Rent Roll'!$O$7*'Rent Roll'!$F$7*(1+'Rent Roll'!$P$7)^(ROUNDDOWN((AW4-$C$4-1)/12,0)+1)/12 -> 3057.307085 | AX10: =(AX5>='Rent Roll'!$J$7)*(AX5<='Rent Roll'!$K$7)*'Rent Roll'!$H$7*'Rent Roll'!$F$7*(1+'Rent Roll'!$I$7)^(ROUNDDOWN((AX4-$C$4-1)/12,0)+1)/12+(AX5>'Rent Roll'!$AD$7)*(AX5<=EOMONTH('Rent Roll'!$AD$7,'Rent Roll'!$S$7))*'Rent Roll'!$O$7*'Rent Roll'!$F$7*(1+'Rent Roll'!$P$7)^(ROUNDDOWN((AX4-$C$4-1)/12,0)+1)/12 -> 3057.307085 | AY10: =(AY5>='Rent Roll'!$J$7)*(AY5<='Rent Roll'!$K$7)*'Rent Roll'!$H$7*'Rent Roll'!$F$7*(1+'Rent Roll'!$I$7)^(ROUNDDOWN((AY4-$C$4-1)/12,0)+1)/12+(AY5>'Rent Roll'!$AD$7)*(AY5<=EOMONTH('Rent Roll'!$AD$7,'Rent Roll'!$S$7))*'Rent Roll'!$O$7*'Rent Roll'!$F$7*(1+'Rent Roll'!$P$7)^(ROUNDDOWN((AY4-$C$4-1)/12,0)+1)/12 -> 3057.307085 | AZ10: =(AZ5>='Rent Roll'!$J$7)*(AZ5<='Rent Roll'!$K$7)*'Rent Roll'!$H$7*'Rent Roll'!$F$7*(1+'Rent Roll'!$I$7)^(ROUNDDOWN((AZ4-$C$4-1)/12,0)+1)/12+(AZ5>'Rent Roll'!$AD$7)*(AZ5<=EOMONTH('Rent Roll'!$AD$7,'Rent Roll'!$S$7))*'Rent Roll'!$O$7*'Rent Roll'!$F$7*(1+'Rent Roll'!$P$7)^(ROUNDDOWN((AZ4-$C$4-1)/12,0)+1)/12 -> 3118.453227 | BA10: =(BA5>='Rent Roll'!$J$7)*(BA5<='Rent Roll'!$K$7)*'Rent Roll'!$H$7*'Rent Roll'!$F$7*(1+'Rent Roll'!$I$7)^(ROUNDDOWN((BA4-$C$4-1)/12,0)+1)/12+(BA5>'Rent Roll'!$AD$7)*(BA5<=EOMONTH('Rent Roll'!$AD$7,'Rent Roll'!$S$7))*'Rent Roll'!$O$7*'Rent Roll'!$F$7*(1+'Rent Roll'!$P$7)^(ROUNDDOWN((BA4-$C$4-1)/12,0)+1)/12 -> 3118.453227 | BB10: =(BB5>='Rent Roll'!$J$7)*(BB5<='Rent Roll'!$K$7)*'Rent Roll'!$H$7*'Rent Roll'!$F$7*(1+'Rent Roll'!$I$7)^(ROUNDDOWN((BB4-$C$4-1)/12,0)+1)/12+(BB5>'Rent Roll'!$AD$7)*(BB5<=EOMONTH('Rent Roll'!$AD$7,'Rent Roll'!$S$7))*'Rent Roll'!$O$7*'Rent Roll'!$F$7*(1+'Rent Roll'!$P$7)^(ROUNDDOWN((BB4-$C$4-1)/12,0)+1)/12 -> 3118.453227 | BC10: =(BC5>='Rent Roll'!$J$7)*(BC5<='Rent Roll'!$K$7)*'Rent Roll'!$H$7*'Rent Roll'!$F$7*(1+'Rent Roll'!$I$7)^(ROUNDDOWN((BC4-$C$4-1)/12,0)+1)/12+(BC5>'Rent Roll'!$AD$7)*(BC5<=EOMONTH('Rent Roll'!$AD$7,'Rent Roll'!$S$7))*'Rent Roll'!$O$7*'Rent Roll'!$F$7*(1+'Rent Roll'!$P$7)^(ROUNDDOWN((BC4-$C$4-1)/12,0)+1)/12 -> 3118.453227 | BD10: =(BD5>='Rent Roll'!$J$7)*(BD5<='Rent Roll'!$K$7)*'Rent Roll'!$H$7*'Rent Roll'!$F$7*(1+'Rent Roll'!$I$7)^(ROUNDDOWN((BD4-$C$4-1)/12,0)+1)/12+(BD5>'Rent Roll'!$AD$7)*(BD5<=EOMONTH('Rent Roll'!$AD$7,'Rent Roll'!$S$7))*'Rent Roll'!$O$7*'Rent Roll'!$F$7*(1+'Rent Roll'!$P$7)^(ROUNDDOWN((BD4-$C$4-1)/12,0)+1)/12 -> 3118.453227 | BE10: =(BE5>='Rent Roll'!$J$7)*(BE5<='Rent Roll'!$K$7)*'Rent Roll'!$H$7*'Rent Roll'!$F$7*(1+'Rent Roll'!$I$7)^(ROUNDDOWN((BE4-$C$4-1)/12,0)+1)/12+(BE5>'Rent Roll'!$AD$7)*(BE5<=EOMONTH('Rent Roll'!$AD$7,'Rent Roll'!$S$7))*'Rent Roll'!$O$7*'Rent Roll'!$F$7*(1+'Rent Roll'!$P$7)^(ROUNDDOWN((BE4-$C$4-1)/12,0)+1)/12 -> 3118.453227 | BF10: =(BF5>='Rent Roll'!$J$7)*(BF5<='Rent Roll'!$K$7)*'Rent Roll'!$H$7*'Rent Roll'!$F$7*(1+'Rent Roll'!$I$7)^(ROUNDDOWN((BF4-$C$4-1)/12,0)+1)/12+(BF5>'Rent Roll'!$AD$7)*(BF5<=EOMONTH('Rent Roll'!$AD$7,'Rent Roll'!$S$7))*'Rent Roll'!$O$7*'Rent Roll'!$F$7*(1+'Rent Roll'!$P$7)^(ROUNDDOWN((BF4-$C$4-1)/12,0)+1)/12 -> 3118.453227 | BG10: =(BG5>='Rent Roll'!$J$7)*(BG5<='Rent Roll'!$K$7)*'Rent Roll'!$H$7*'Rent Roll'!$F$7*(1+'Rent Roll'!$I$7)^(ROUNDDOWN((BG4-$C$4-1)/12,0)+1)/12+(BG5>'Rent Roll'!$AD$7)*(BG5<=EOMONTH('Rent Roll'!$AD$7,'Rent Roll'!$S$7))*'Rent Roll'!$O$7*'Rent Roll'!$F$7*(1+'Rent Roll'!$P$7)^(ROUNDDOWN((BG4-$C$4-1)/12,0)+1)/12 -> 3118.453227 | BH10: =(BH5>='Rent Roll'!$J$7)*(BH5<='Rent Roll'!$K$7)*'Rent Roll'!$H$7*'Rent Roll'!$F$7*(1+'Rent Roll'!$I$7)^(ROUNDDOWN((BH4-$C$4-1)/12,0)+1)/12+(BH5>'Rent Roll'!$AD$7)*(BH5<=EOMONTH('Rent Roll'!$AD$7,'Rent Roll'!$S$7))*'Rent Roll'!$O$7*'Rent Roll'!$F$7*(1+'Rent Roll'!$P$7)^(ROUNDDOWN((BH4-$C$4-1)/12,0)+1)/12 -> 3118.453227 | BI10: =(BI5>='Rent Roll'!$J$7)*(BI5<='Rent Roll'!$K$7)*'Rent Roll'!$H$7*'Rent Roll'!$F$7*(1+'Rent Roll'!$I$7)^(ROUNDDOWN((BI4-$C$4-1)/12,0)+1)/12+(BI5>'Rent Roll'!$AD$7)*(BI5<=EOMONTH('Rent Roll'!$AD$7,'Rent Roll'!$S$7))*'Rent Roll'!$O$7*'Rent Roll'!$F$7*(1+'Rent Roll'!$P$7)^(ROUNDDOWN((BI4-$C$4-1)/12,0)+1)/12 -> 3118.453227 | BJ10: =(BJ5>='Rent Roll'!$J$7)*(BJ5<='Rent Roll'!$K$7)*'Rent Roll'!$H$7*'Rent Roll'!$F$7*(1+'Rent Roll'!$I$7)^(ROUNDDOWN((BJ4-$C$4-1)/12,0)+1)/12+(BJ5>'Rent Roll'!$AD$7)*(BJ5<=EOMONTH('Rent Roll'!$AD$7,'Rent Roll'!$S$7))*'Rent Roll'!$O$7*'Rent Roll'!$F$7*(1+'Rent Roll'!$P$7)^(ROUNDDOWN((BJ4-$C$4-1)/12,0)+1)/12 -> 3118.453227 | BK10: =(BK5>='Rent Roll'!$J$7)*(BK5<='Rent Roll'!$K$7)*'Rent Roll'!$H$7*'Rent Roll'!$F$7*(1+'Rent Roll'!$I$7)^(ROUNDDOWN((BK4-$C$4-1)/12,0)+1)/12+(BK5>'Rent Roll'!$AD$7)*(BK5<=EOMONTH('Rent Roll'!$AD$7,'Rent Roll'!$S$7))*'Rent Roll'!$O$7*'Rent Roll'!$F$7*(1+'Rent Roll'!$P$7)^(ROUNDDOWN((BK4-$C$4-1)/12,0)+1)/12 -> 3118.453227 | BM10: STOP
B11: =+'Rent Roll'!E8 -> Vacant | D11: =(D5>='Rent Roll'!$J$8)*(D5<='Rent Roll'!$K$8)*'Rent Roll'!$H$8*'Rent Roll'!$F$8*(1+'Rent Roll'!$I$8)^(ROUNDDOWN((D4-$C$4-1)/12,0)+1)/12+(D5>'Rent Roll'!$AD$8)*(D5<=EOMONTH('Rent Roll'!$AD$8,'Rent Roll'!$S$8))*'Rent Roll'!$O$8*'Rent Roll'!$F$8*(1+'Rent Roll'!$P$8)^(ROUNDDOWN((D4-$C$4-1)/12,0)+1)/12 -> 701.25 | E11: =(E5>='Rent Roll'!$J$8)*(E5<='Rent Roll'!$K$8)*'Rent Roll'!$H$8*'Rent Roll'!$F$8*(1+'Rent Roll'!$I$8)^(ROUNDDOWN((E4-$C$4-1)/12,0)+1)/12+(E5>'Rent Roll'!$AD$8)*(E5<=EOMONTH('Rent Roll'!$AD$8,'Rent Roll'!$S$8))*'Rent Roll'!$O$8*'Rent Roll'!$F$8*(1+'Rent Roll'!$P$8)^(ROUNDDOWN((E4-$C$4-1)/12,0)+1)/12 -> 701.25 | F11: =(F5>='Rent Roll'!$J$8)*(F5<='Rent Roll'!$K$8)*'Rent Roll'!$H$8*'Rent Roll'!$F$8*(1+'Rent Roll'!$I$8)^(ROUNDDOWN((F4-$C$4-1)/12,0)+1)/12+(F5>'Rent Roll'!$AD$8)*(F5<=EOMONTH('Rent Roll'!$AD$8,'Rent Roll'!$S$8))*'Rent Roll'!$O$8*'Rent Roll'!$F$8*(1+'Rent Roll'!$P$8)^(ROUNDDOWN((F4-$C$4-1)/12,0)+1)/12 -> 701.25 | G11: =(G5>='Rent Roll'!$J$8)*(G5<='Rent Roll'!$K$8)*'Rent Roll'!$H$8*'Rent Roll'!$F$8*(1+'Rent Roll'!$I$8)^(ROUNDDOWN((G4-$C$4-1)/12,0)+1)/12+(G5>'Rent Roll'!$AD$8)*(G5<=EOMONTH('Rent Roll'!$AD$8,'Rent Roll'!$S$8))*'Rent Roll'!$O$8*'Rent Roll'!$F$8*(1+'Rent Roll'!$P$8)^(ROUNDDOWN((G4-$C$4-1)/12,0)+1)/12 -> 701.25 | H11: =(H5>='Rent Roll'!$J$8)*(H5<='Rent Roll'!$K$8)*'Rent Roll'!$H$8*'Rent Roll'!$F$8*(1+'Rent Roll'!$I$8)^(ROUNDDOWN((H4-$C$4-1)/12,0)+1)/12+(H5>'Rent Roll'!$AD$8)*(H5<=EOMONTH('Rent Roll'!$AD$8,'Rent Roll'!$S$8))*'Rent Roll'!$O$8*'Rent Roll'!$F$8*(1+'Rent Roll'!$P$8)^(ROUNDDOWN((H4-$C$4-1)/12,0)+1)/12 -> 701.25 | I11: =(I5>='Rent Roll'!$J$8)*(I5<='Rent Roll'!$K$8)*'Rent Roll'!$H$8*'Rent Roll'!$F$8*(1+'Rent Roll'!$I$8)^(ROUNDDOWN((I4-$C$4-1)/12,0)+1)/12+(I5>'Rent Roll'!$AD$8)*(I5<=EOMONTH('Rent Roll'!$AD$8,'Rent Roll'!$S$8))*'Rent Roll'!$O$8*'Rent Roll'!$F$8*(1+'Rent Roll'!$P$8)^(ROUNDDOWN((I4-$C$4-1)/12,0)+1)/12 -> 701.25 | J11: =(J5>='Rent Roll'!$J$8)*(J5<='Rent Roll'!$K$8)*'Rent Roll'!$H$8*'Rent Roll'!$F$8*(1+'Rent Roll'!$I$8)^(ROUNDDOWN((J4-$C$4-1)/12,0)+1)/12+(J5>'Rent Roll'!$AD$8)*(J5<=EOMONTH('Rent Roll'!$AD$8,'Rent Roll'!$S$8))*'Rent Roll'!$O$8*'Rent Roll'!$F$8*(1+'Rent Roll'!$P$8)^(ROUNDDOWN((J4-$C$4-1)/12,0)+1)/12 -> 701.25 | K11: =(K5>='Rent Roll'!$J$8)*(K5<='Rent Roll'!$K$8)*'Rent Roll'!$H$8*'Rent Roll'!$F$8*(1+'Rent Roll'!$I$8)^(ROUNDDOWN((K4-$C$4-1)/12,0)+1)/12+(K5>'Rent Roll'!$AD$8)*(K5<=EOMONTH('Rent Roll'!$AD$8,'Rent Roll'!$S$8))*'Rent Roll'!$O$8*'Rent Roll'!$F$8*(1+'Rent Roll'!$P$8)^(ROUNDDOWN((K4-$C$4-1)/12,0)+1)/12 -> 701.25 | L11: =(L5>='Rent Roll'!$J$8)*(L5<='Rent Roll'!$K$8)*'Rent Roll'!$H$8*'Rent Roll'!$F$8*(1+'Rent Roll'!$I$8)^(ROUNDDOWN((L4-$C$4-1)/12,0)+1)/12+(L5>'Rent Roll'!$AD$8)*(L5<=EOMONTH('Rent Roll'!$AD$8,'Rent Roll'!$S$8))*'Rent Roll'!$O$8*'Rent Roll'!$F$8*(1+'Rent Roll'!$P$8)^(ROUNDDOWN((L4-$C$4-1)/12,0)+1)/12 -> 701.25 | M11: =(M5>='Rent Roll'!$J$8)*(M5<='Rent Roll'!$K$8)*'Rent Roll'!$H$8*'Rent Roll'!$F$8*(1+'Rent Roll'!$I$8)^(ROUNDDOWN((M4-$C$4-1)/12,0)+1)/12+(M5>'Rent Roll'!$AD$8)*(M5<=EOMONTH('Rent Roll'!$AD$8,'Rent Roll'!$S$8))*'Rent Roll'!$O$8*'Rent Roll'!$F$8*(1+'Rent Roll'!$P$8)^(ROUNDDOWN((M4-$C$4-1)/12,0)+1)/12 -> 701.25 | N11: =(N5>='Rent Roll'!$J$8)*(N5<='Rent Roll'!$K$8)*'Rent Roll'!$H$8*'Rent Roll'!$F$8*(1+'Rent Roll'!$I$8)^(ROUNDDOWN((N4-$C$4-1)/12,0)+1)/12+(N5>'Rent Roll'!$AD$8)*(N5<=EOMONTH('Rent Roll'!$AD$8,'Rent Roll'!$S$8))*'Rent Roll'!$O$8*'Rent Roll'!$F$8*(1+'Rent Roll'!$P$8)^(ROUNDDOWN((N4-$C$4-1)/12,0)+1)/12 -> 701.25 | O11: =(O5>='Rent Roll'!$J$8)*(O5<='Rent Roll'!$K$8)*'Rent Roll'!$H$8*'Rent Roll'!$F$8*(1+'Rent Roll'!$I$8)^(ROUNDDOWN((O4-$C$4-1)/12,0)+1)/12+(O5>'Rent Roll'!$AD$8)*(O5<=EOMONTH('Rent Roll'!$AD$8,'Rent Roll'!$S$8))*'Rent Roll'!$O$8*'Rent Roll'!$F$8*(1+'Rent Roll'!$P$8)^(ROUNDDOWN((O4-$C$4-1)/12,0)+1)/12 -> 701.25 | P11: =(P5>='Rent Roll'!$J$8)*(P5<='Rent Roll'!$K$8)*'Rent Roll'!$H$8*'Rent Roll'!$F$8*(1+'Rent Roll'!$I$8)^(ROUNDDOWN((P4-$C$4-1)/12,0)+1)/12+(P5>'Rent Roll'!$AD$8)*(P5<=EOMONTH('Rent Roll'!$AD$8,'Rent Roll'!$S$8))*'Rent Roll'!$O$8*'Rent Roll'!$F$8*(1+'Rent Roll'!$P$8)^(ROUNDDOWN((P4-$C$4-1)/12,0)+1)/12 -> 715.275 | Q11: =(Q5>='Rent Roll'!$J$8)*(Q5<='Rent Roll'!$K$8)*'Rent Roll'!$H$8*'Rent Roll'!$F$8*(1+'Rent Roll'!$I$8)^(ROUNDDOWN((Q4-$C$4-1)/12,0)+1)/12+(Q5>'Rent Roll'!$AD$8)*(Q5<=EOMONTH('Rent Roll'!$AD$8,'Rent Roll'!$S$8))*'Rent Roll'!$O$8*'Rent Roll'!$F$8*(1+'Rent Roll'!$P$8)^(ROUNDDOWN((Q4-$C$4-1)/12,0)+1)/12 -> 715.275 | R11: =(R5>='Rent Roll'!$J$8)*(R5<='Rent Roll'!$K$8)*'Rent Roll'!$H$8*'Rent Roll'!$F$8*(1+'Rent Roll'!$I$8)^(ROUNDDOWN((R4-$C$4-1)/12,0)+1)/12+(R5>'Rent Roll'!$AD$8)*(R5<=EOMONTH('Rent Roll'!$AD$8,'Rent Roll'!$S$8))*'Rent Roll'!$O$8*'Rent Roll'!$F$8*(1+'Rent Roll'!$P$8)^(ROUNDDOWN((R4-$C$4-1)/12,0)+1)/12 -> 715.275 | S11: =(S5>='Rent Roll'!$J$8)*(S5<='Rent Roll'!$K$8)*'Rent Roll'!$H$8*'Rent Roll'!$F$8*(1+'Rent Roll'!$I$8)^(ROUNDDOWN((S4-$C$4-1)/12,0)+1)/12+(S5>'Rent Roll'!$AD$8)*(S5<=EOMONTH('Rent Roll'!$AD$8,'Rent Roll'!$S$8))*'Rent Roll'!$O$8*'Rent Roll'!$F$8*(1+'Rent Roll'!$P$8)^(ROUNDDOWN((S4-$C$4-1)/12,0)+1)/12 -> 715.275 | T11: =(T5>='Rent Roll'!$J$8)*(T5<='Rent Roll'!$K$8)*'Rent Roll'!$H$8*'Rent Roll'!$F$8*(1+'Rent Roll'!$I$8)^(ROUNDDOWN((T4-$C$4-1)/12,0)+1)/12+(T5>'Rent Roll'!$AD$8)*(T5<=EOMONTH('Rent Roll'!$AD$8,'Rent Roll'!$S$8))*'Rent Roll'!$O$8*'Rent Roll'!$F$8*(1+'Rent Roll'!$P$8)^(ROUNDDOWN((T4-$C$4-1)/12,0)+1)/12 -> 715.275 | U11: =(U5>='Rent Roll'!$J$8)*(U5<='Rent Roll'!$K$8)*'Rent Roll'!$H$8*'Rent Roll'!$F$8*(1+'Rent Roll'!$I$8)^(ROUNDDOWN((U4-$C$4-1)/12,0)+1)/12+(U5>'Rent Roll'!$AD$8)*(U5<=EOMONTH('Rent Roll'!$AD$8,'Rent Roll'!$S$8))*'Rent Roll'!$O$8*'Rent Roll'!$F$8*(1+'Rent Roll'!$P$8)^(ROUNDDOWN((U4-$C$4-1)/12,0)+1)/12 -> 715.275 | V11: =(V5>='Rent Roll'!$J$8)*(V5<='Rent Roll'!$K$8)*'Rent Roll'!$H$8*'Rent Roll'!$F$8*(1+'Rent Roll'!$I$8)^(ROUNDDOWN((V4-$C$4-1)/12,0)+1)/12+(V5>'Rent Roll'!$AD$8)*(V5<=EOMONTH('Rent Roll'!$AD$8,'Rent Roll'!$S$8))*'Rent Roll'!$O$8*'Rent Roll'!$F$8*(1+'Rent Roll'!$P$8)^(ROUNDDOWN((V4-$C$4-1)/12,0)+1)/12 -> 715.275 | W11: =(W5>='Rent Roll'!$J$8)*(W5<='Rent Roll'!$K$8)*'Rent Roll'!$H$8*'Rent Roll'!$F$8*(1+'Rent Roll'!$I$8)^(ROUNDDOWN((W4-$C$4-1)/12,0)+1)/12+(W5>'Rent Roll'!$AD$8)*(W5<=EOMONTH('Rent Roll'!$AD$8,'Rent Roll'!$S$8))*'Rent Roll'!$O$8*'Rent Roll'!$F$8*(1+'Rent Roll'!$P$8)^(ROUNDDOWN((W4-$C$4-1)/12,0)+1)/12 -> 715.275 | X11: =(X5>='Rent Roll'!$J$8)*(X5<='Rent Roll'!$K$8)*'Rent Roll'!$H$8*'Rent Roll'!$F$8*(1+'Rent Roll'!$I$8)^(ROUNDDOWN((X4-$C$4-1)/12,0)+1)/12+(X5>'Rent Roll'!$AD$8)*(X5<=EOMONTH('Rent Roll'!$AD$8,'Rent Roll'!$S$8))*'Rent Roll'!$O$8*'Rent Roll'!$F$8*(1+'Rent Roll'!$P$8)^(ROUNDDOWN((X4-$C$4-1)/12,0)+1)/12 -> 715.275 | Y11: =(Y5>='Rent Roll'!$J$8)*(Y5<='Rent Roll'!$K$8)*'Rent Roll'!$H$8*'Rent Roll'!$F$8*(1+'Rent Roll'!$I$8)^(ROUNDDOWN((Y4-$C$4-1)/12,0)+1)/12+(Y5>'Rent Roll'!$AD$8)*(Y5<=EOMONTH('Rent Roll'!$AD$8,'Rent Roll'!$S$8))*'Rent Roll'!$O$8*'Rent Roll'!$F$8*(1+'Rent Roll'!$P$8)^(ROUNDDOWN((Y4-$C$4-1)/12,0)+1)/12 -> 715.275 | Z11: =(Z5>='Rent Roll'!$J$8)*(Z5<='Rent Roll'!$K$8)*'Rent Roll'!$H$8*'Rent Roll'!$F$8*(1+'Rent Roll'!$I$8)^(ROUNDDOWN((Z4-$C$4-1)/12,0)+1)/12+(Z5>'Rent Roll'!$AD$8)*(Z5<=EOMONTH('Rent Roll'!$AD$8,'Rent Roll'!$S$8))*'Rent Roll'!$O$8*'Rent Roll'!$F$8*(1+'Rent Roll'!$P$8)^(ROUNDDOWN((Z4-$C$4-1)/12,0)+1)/12 -> 715.275 | AA11: =(AA5>='Rent Roll'!$J$8)*(AA5<='Rent Roll'!$K$8)*'Rent Roll'!$H$8*'Rent Roll'!$F$8*(1+'Rent Roll'!$I$8)^(ROUNDDOWN((AA4-$C$4-1)/12,0)+1)/12+(AA5>'Rent Roll'!$AD$8)*(AA5<=EOMONTH('Rent Roll'!$AD$8,'Rent Roll'!$S$8))*'Rent Roll'!$O$8*'Rent Roll'!$F$8*(1+'Rent Roll'!$P$8)^(ROUNDDOWN((AA4-$C$4-1)/12,0)+1)/12 -> 715.275 | AB11: =(AB5>='Rent Roll'!$J$8)*(AB5<='Rent Roll'!$K$8)*'Rent Roll'!$H$8*'Rent Roll'!$F$8*(1+'Rent Roll'!$I$8)^(ROUNDDOWN((AB4-$C$4-1)/12,0)+1)/12+(AB5>'Rent Roll'!$AD$8)*(AB5<=EOMONTH('Rent Roll'!$AD$8,'Rent Roll'!$S$8))*'Rent Roll'!$O$8*'Rent Roll'!$F$8*(1+'Rent Roll'!$P$8)^(ROUNDDOWN((AB4-$C$4-1)/12,0)+1)/12 -> 729.5805 | AC11: =(AC5>='Rent Roll'!$J$8)*(AC5<='Rent Roll'!$K$8)*'Rent Roll'!$H$8*'Rent Roll'!$F$8*(1+'Rent Roll'!$I$8)^(ROUNDDOWN((AC4-$C$4-1)/12,0)+1)/12+(AC5>'Rent Roll'!$AD$8)*(AC5<=EOMONTH('Rent Roll'!$AD$8,'Rent Roll'!$S$8))*'Rent Roll'!$O$8*'Rent Roll'!$F$8*(1+'Rent Roll'!$P$8)^(ROUNDDOWN((AC4-$C$4-1)/12,0)+1)/12 -> 729.5805 | AD11: =(AD5>='Rent Roll'!$J$8)*(AD5<='Rent Roll'!$K$8)*'Rent Roll'!$H$8*'Rent Roll'!$F$8*(1+'Rent Roll'!$I$8)^(ROUNDDOWN((AD4-$C$4-1)/12,0)+1)/12+(AD5>'Rent Roll'!$AD$8)*(AD5<=EOMONTH('Rent Roll'!$AD$8,'Rent Roll'!$S$8))*'Rent Roll'!$O$8*'Rent Roll'!$F$8*(1+'Rent Roll'!$P$8)^(ROUNDDOWN((AD4-$C$4-1)/12,0)+1)/12 -> 729.5805 | AE11: =(AE5>='Rent Roll'!$J$8)*(AE5<='Rent Roll'!$K$8)*'Rent Roll'!$H$8*'Rent Roll'!$F$8*(1+'Rent Roll'!$I$8)^(ROUNDDOWN((AE4-$C$4-1)/12,0)+1)/12+(AE5>'Rent Roll'!$AD$8)*(AE5<=EOMONTH('Rent Roll'!$AD$8,'Rent Roll'!$S$8))*'Rent Roll'!$O$8*'Rent Roll'!$F$8*(1+'Rent Roll'!$P$8)^(ROUNDDOWN((AE4-$C$4-1)/12,0)+1)/12 -> 729.5805 | AF11: =(AF5>='Rent Roll'!$J$8)*(AF5<='Rent Roll'!$K$8)*'Rent Roll'!$H$8*'Rent Roll'!$F$8*(1+'Rent Roll'!$I$8)^(ROUNDDOWN((AF4-$C$4-1)/12,0)+1)/12+(AF5>'Rent Roll'!$AD$8)*(AF5<=EOMONTH('Rent Roll'!$AD$8,'Rent Roll'!$S$8))*'Rent Roll'!$O$8*'Rent Roll'!$F$8*(1+'Rent Roll'!$P$8)^(ROUNDDOWN((AF4-$C$4-1)/12,0)+1)/12 -> 729.5805 | AG11: =(AG5>='Rent Roll'!$J$8)*(AG5<='Rent Roll'!$K$8)*'Rent Roll'!$H$8*'Rent Roll'!$F$8*(1+'Rent Roll'!$I$8)^(ROUNDDOWN((AG4-$C$4-1)/12,0)+1)/12+(AG5>'Rent Roll'!$AD$8)*(AG5<=EOMONTH('Rent Roll'!$AD$8,'Rent Roll'!$S$8))*'Rent Roll'!$O$8*'Rent Roll'!$F$8*(1+'Rent Roll'!$P$8)^(ROUNDDOWN((AG4-$C$4-1)/12,0)+1)/12 -> 729.5805 | AH11: =(AH5>='Rent Roll'!$J$8)*(AH5<='Rent Roll'!$K$8)*'Rent Roll'!$H$8*'Rent Roll'!$F$8*(1+'Rent Roll'!$I$8)^(ROUNDDOWN((AH4-$C$4-1)/12,0)+1)/12+(AH5>'Rent Roll'!$AD$8)*(AH5<=EOMONTH('Rent Roll'!$AD$8,'Rent Roll'!$S$8))*'Rent Roll'!$O$8*'Rent Roll'!$F$8*(1+'Rent Roll'!$P$8)^(ROUNDDOWN((AH4-$C$4-1)/12,0)+1)/12 -> 729.5805 | AI11: =(AI5>='Rent Roll'!$J$8)*(AI5<='Rent Roll'!$K$8)*'Rent Roll'!$H$8*'Rent Roll'!$F$8*(1+'Rent Roll'!$I$8)^(ROUNDDOWN((AI4-$C$4-1)/12,0)+1)/12+(AI5>'Rent Roll'!$AD$8)*(AI5<=EOMONTH('Rent Roll'!$AD$8,'Rent Roll'!$S$8))*'Rent Roll'!$O$8*'Rent Roll'!$F$8*(1+'Rent Roll'!$P$8)^(ROUNDDOWN((AI4-$C$4-1)/12,0)+1)/12 -> 729.5805 | AJ11: =(AJ5>='Rent Roll'!$J$8)*(AJ5<='Rent Roll'!$K$8)*'Rent Roll'!$H$8*'Rent Roll'!$F$8*(1+'Rent Roll'!$I$8)^(ROUNDDOWN((AJ4-$C$4-1)/12,0)+1)/12+(AJ5>'Rent Roll'!$AD$8)*(AJ5<=EOMONTH('Rent Roll'!$AD$8,'Rent Roll'!$S$8))*'Rent Roll'!$O$8*'Rent Roll'!$F$8*(1+'Rent Roll'!$P$8)^(ROUNDDOWN((AJ4-$C$4-1)/12,0)+1)/12 -> 729.5805 | AK11: =(AK5>='Rent Roll'!$J$8)*(AK5<='Rent Roll'!$K$8)*'Rent Roll'!$H$8*'Rent Roll'!$F$8*(1+'Rent Roll'!$I$8)^(ROUNDDOWN((AK4-$C$4-1)/12,0)+1)/12+(AK5>'Rent Roll'!$AD$8)*(AK5<=EOMONTH('Rent Roll'!$AD$8,'Rent Roll'!$S$8))*'Rent Roll'!$O$8*'Rent Roll'!$F$8*(1+'Rent Roll'!$P$8)^(ROUNDDOWN((AK4-$C$4-1)/12,0)+1)/12 -> 729.5805 | AL11: =(AL5>='Rent Roll'!$J$8)*(AL5<='Rent Roll'!$K$8)*'Rent Roll'!$H$8*'Rent Roll'!$F$8*(1+'Rent Roll'!$I$8)^(ROUNDDOWN((AL4-$C$4-1)/12,0)+1)/12+(AL5>'Rent Roll'!$AD$8)*(AL5<=EOMONTH('Rent Roll'!$AD$8,'Rent Roll'!$S$8))*'Rent Roll'!$O$8*'Rent Roll'!$F$8*(1+'Rent Roll'!$P$8)^(ROUNDDOWN((AL4-$C$4-1)/12,0)+1)/12 -> 729.5805 | AM11: =(AM5>='Rent Roll'!$J$8)*(AM5<='Rent Roll'!$K$8)*'Rent Roll'!$H$8*'Rent Roll'!$F$8*(1+'Rent Roll'!$I$8)^(ROUNDDOWN((AM4-$C$4-1)/12,0)+1)/12+(AM5>'Rent Roll'!$AD$8)*(AM5<=EOMONTH('Rent Roll'!$AD$8,'Rent Roll'!$S$8))*'Rent Roll'!$O$8*'Rent Roll'!$F$8*(1+'Rent Roll'!$P$8)^(ROUNDDOWN((AM4-$C$4-1)/12,0)+1)/12 -> 729.5805 | AN11: =(AN5>='Rent Roll'!$J$8)*(AN5<='Rent Roll'!$K$8)*'Rent Roll'!$H$8*'Rent Roll'!$F$8*(1+'Rent Roll'!$I$8)^(ROUNDDOWN((AN4-$C$4-1)/12,0)+1)/12+(AN5>'Rent Roll'!$AD$8)*(AN5<=EOMONTH('Rent Roll'!$AD$8,'Rent Roll'!$S$8))*'Rent Roll'!$O$8*'Rent Roll'!$F$8*(1+'Rent Roll'!$P$8)^(ROUNDDOWN((AN4-$C$4-1)/12,0)+1)/12 -> 744.17211 | AO11: =(AO5>='Rent Roll'!$J$8)*(AO5<='Rent Roll'!$K$8)*'Rent Roll'!$H$8*'Rent Roll'!$F$8*(1+'Rent Roll'!$I$8)^(ROUNDDOWN((AO4-$C$4-1)/12,0)+1)/12+(AO5>'Rent Roll'!$AD$8)*(AO5<=EOMONTH('Rent Roll'!$AD$8,'Rent Roll'!$S$8))*'Rent Roll'!$O$8*'Rent Roll'!$F$8*(1+'Rent Roll'!$P$8)^(ROUNDDOWN((AO4-$C$4-1)/12,0)+1)/12 -> 744.17211 | AP11: =(AP5>='Rent Roll'!$J$8)*(AP5<='Rent Roll'!$K$8)*'Rent Roll'!$H$8*'Rent Roll'!$F$8*(1+'Rent Roll'!$I$8)^(ROUNDDOWN((AP4-$C$4-1)/12,0)+1)/12+(AP5>'Rent Roll'!$AD$8)*(AP5<=EOMONTH('Rent Roll'!$AD$8,'Rent Roll'!$S$8))*'Rent Roll'!$O$8*'Rent Roll'!$F$8*(1+'Rent Roll'!$P$8)^(ROUNDDOWN((AP4-$C$4-1)/12,0)+1)/12 -> 744.17211 | AQ11: =(AQ5>='Rent Roll'!$J$8)*(AQ5<='Rent Roll'!$K$8)*'Rent Roll'!$H$8*'Rent Roll'!$F$8*(1+'Rent Roll'!$I$8)^(ROUNDDOWN((AQ4-$C$4-1)/12,0)+1)/12+(AQ5>'Rent Roll'!$AD$8)*(AQ5<=EOMONTH('Rent Roll'!$AD$8,'Rent Roll'!$S$8))*'Rent Roll'!$O$8*'Rent Roll'!$F$8*(1+'Rent Roll'!$P$8)^(ROUNDDOWN((AQ4-$C$4-1)/12,0)+1)/12 -> 744.17211 | AR11: =(AR5>='Rent Roll'!$J$8)*(AR5<='Rent Roll'!$K$8)*'Rent Roll'!$H$8*'Rent Roll'!$F$8*(1+'Rent Roll'!$I$8)^(ROUNDDOWN((AR4-$C$4-1)/12,0)+1)/12+(AR5>'Rent Roll'!$AD$8)*(AR5<=EOMONTH('Rent Roll'!$AD$8,'Rent Roll'!$S$8))*'Rent Roll'!$O$8*'Rent Roll'!$F$8*(1+'Rent Roll'!$P$8)^(ROUNDDOWN((AR4-$C$4-1)/12,0)+1)/12 -> 744.17211 | AS11: =(AS5>='Rent Roll'!$J$8)*(AS5<='Rent Roll'!$K$8)*'Rent Roll'!$H$8*'Rent Roll'!$F$8*(1+'Rent Roll'!$I$8)^(ROUNDDOWN((AS4-$C$4-1)/12,0)+1)/12+(AS5>'Rent Roll'!$AD$8)*(AS5<=EOMONTH('Rent Roll'!$AD$8,'Rent Roll'!$S$8))*'Rent Roll'!$O$8*'Rent Roll'!$F$8*(1+'Rent Roll'!$P$8)^(ROUNDDOWN((AS4-$C$4-1)/12,0)+1)/12 -> 744.17211 | AT11: =(AT5>='Rent Roll'!$J$8)*(AT5<='Rent Roll'!$K$8)*'Rent Roll'!$H$8*'Rent Roll'!$F$8*(1+'Rent Roll'!$I$8)^(ROUNDDOWN((AT4-$C$4-1)/12,0)+1)/12+(AT5>'Rent Roll'!$AD$8)*(AT5<=EOMONTH('Rent Roll'!$AD$8,'Rent Roll'!$S$8))*'Rent Roll'!$O$8*'Rent Roll'!$F$8*(1+'Rent Roll'!$P$8)^(ROUNDDOWN((AT4-$C$4-1)/12,0)+1)/12 -> 744.17211 | AU11: =(AU5>='Rent Roll'!$J$8)*(AU5<='Rent Roll'!$K$8)*'Rent Roll'!$H$8*'Rent Roll'!$F$8*(1+'Rent Roll'!$I$8)^(ROUNDDOWN((AU4-$C$4-1)/12,0)+1)/12+(AU5>'Rent Roll'!$AD$8)*(AU5<=EOMONTH('Rent Roll'!$AD$8,'Rent Roll'!$S$8))*'Rent Roll'!$O$8*'Rent Roll'!$F$8*(1+'Rent Roll'!$P$8)^(ROUNDDOWN((AU4-$C$4-1)/12,0)+1)/12 -> 744.17211 | AV11: =(AV5>='Rent Roll'!$J$8)*(AV5<='Rent Roll'!$K$8)*'Rent Roll'!$H$8*'Rent Roll'!$F$8*(1+'Rent Roll'!$I$8)^(ROUNDDOWN((AV4-$C$4-1)/12,0)+1)/12+(AV5>'Rent Roll'!$AD$8)*(AV5<=EOMONTH('Rent Roll'!$AD$8,'Rent Roll'!$S$8))*'Rent Roll'!$O$8*'Rent Roll'!$F$8*(1+'Rent Roll'!$P$8)^(ROUNDDOWN((AV4-$C$4-1)/12,0)+1)/12 -> 744.17211 | AW11: =(AW5>='Rent Roll'!$J$8)*(AW5<='Rent Roll'!$K$8)*'Rent Roll'!$H$8*'Rent Roll'!$F$8*(1+'Rent Roll'!$I$8)^(ROUNDDOWN((AW4-$C$4-1)/12,0)+1)/12+(AW5>'Rent Roll'!$AD$8)*(AW5<=EOMONTH('Rent Roll'!$AD$8,'Rent Roll'!$S$8))*'Rent Roll'!$O$8*'Rent Roll'!$F$8*(1+'Rent Roll'!$P$8)^(ROUNDDOWN((AW4-$C$4-1)/12,0)+1)/12 -> 744.17211 | AX11: =(AX5>='Rent Roll'!$J$8)*(AX5<='Rent Roll'!$K$8)*'Rent Roll'!$H$8*'Rent Roll'!$F$8*(1+'Rent Roll'!$I$8)^(ROUNDDOWN((AX4-$C$4-1)/12,0)+1)/12+(AX5>'Rent Roll'!$AD$8)*(AX5<=EOMONTH('Rent Roll'!$AD$8,'Rent Roll'!$S$8))*'Rent Roll'!$O$8*'Rent Roll'!$F$8*(1+'Rent Roll'!$P$8)^(ROUNDDOWN((AX4-$C$4-1)/12,0)+1)/12 -> 744.17211 | AY11: =(AY5>='Rent Roll'!$J$8)*(AY5<='Rent Roll'!$K$8)*'Rent Roll'!$H$8*'Rent Roll'!$F$8*(1+'Rent Roll'!$I$8)^(ROUNDDOWN((AY4-$C$4-1)/12,0)+1)/12+(AY5>'Rent Roll'!$AD$8)*(AY5<=EOMONTH('Rent Roll'!$AD$8,'Rent Roll'!$S$8))*'Rent Roll'!$O$8*'Rent Roll'!$F$8*(1+'Rent Roll'!$P$8)^(ROUNDDOWN((AY4-$C$4-1)/12,0)+1)/12 -> 744.17211 | AZ11: =(AZ5>='Rent Roll'!$J$8)*(AZ5<='Rent Roll'!$K$8)*'Rent Roll'!$H$8*'Rent Roll'!$F$8*(1+'Rent Roll'!$I$8)^(ROUNDDOWN((AZ4-$C$4-1)/12,0)+1)/12+(AZ5>'Rent Roll'!$AD$8)*(AZ5<=EOMONTH('Rent Roll'!$AD$8,'Rent Roll'!$S$8))*'Rent Roll'!$O$8*'Rent Roll'!$F$8*(1+'Rent Roll'!$P$8)^(ROUNDDOWN((AZ4-$C$4-1)/12,0)+1)/12 -> 759.0555522 | BA11: =(BA5>='Rent Roll'!$J$8)*(BA5<='Rent Roll'!$K$8)*'Rent Roll'!$H$8*'Rent Roll'!$F$8*(1+'Rent Roll'!$I$8)^(ROUNDDOWN((BA4-$C$4-1)/12,0)+1)/12+(BA5>'Rent Roll'!$AD$8)*(BA5<=EOMONTH('Rent Roll'!$AD$8,'Rent Roll'!$S$8))*'Rent Roll'!$O$8*'Rent Roll'!$F$8*(1+'Rent Roll'!$P$8)^(ROUNDDOWN((BA4-$C$4-1)/12,0)+1)/12 -> 759.0555522 | BB11: =(BB5>='Rent Roll'!$J$8)*(BB5<='Rent Roll'!$K$8)*'Rent Roll'!$H$8*'Rent Roll'!$F$8*(1+'Rent Roll'!$I$8)^(ROUNDDOWN((BB4-$C$4-1)/12,0)+1)/12+(BB5>'Rent Roll'!$AD$8)*(BB5<=EOMONTH('Rent Roll'!$AD$8,'Rent Roll'!$S$8))*'Rent Roll'!$O$8*'Rent Roll'!$F$8*(1+'Rent Roll'!$P$8)^(ROUNDDOWN((BB4-$C$4-1)/12,0)+1)/12 -> 759.0555522 | BC11: =(BC5>='Rent Roll'!$J$8)*(BC5<='Rent Roll'!$K$8)*'Rent Roll'!$H$8*'Rent Roll'!$F$8*(1+'Rent Roll'!$I$8)^(ROUNDDOWN((BC4-$C$4-1)/12,0)+1)/12+(BC5>'Rent Roll'!$AD$8)*(BC5<=EOMONTH('Rent Roll'!$AD$8,'Rent Roll'!$S$8))*'Rent Roll'!$O$8*'Rent Roll'!$F$8*(1+'Rent Roll'!$P$8)^(ROUNDDOWN((BC4-$C$4-1)/12,0)+1)/12 -> 759.0555522 | BD11: =(BD5>='Rent Roll'!$J$8)*(BD5<='Rent Roll'!$K$8)*'Rent Roll'!$H$8*'Rent Roll'!$F$8*(1+'Rent Roll'!$I$8)^(ROUNDDOWN((BD4-$C$4-1)/12,0)+1)/12+(BD5>'Rent Roll'!$AD$8)*(BD5<=EOMONTH('Rent Roll'!$AD$8,'Rent Roll'!$S$8))*'Rent Roll'!$O$8*'Rent Roll'!$F$8*(1+'Rent Roll'!$P$8)^(ROUNDDOWN((BD4-$C$4-1)/12,0)+1)/12 -> 759.0555522 | BE11: =(BE5>='Rent Roll'!$J$8)*(BE5<='Rent Roll'!$K$8)*'Rent Roll'!$H$8*'Rent Roll'!$F$8*(1+'Rent Roll'!$I$8)^(ROUNDDOWN((BE4-$C$4-1)/12,0)+1)/12+(BE5>'Rent Roll'!$AD$8)*(BE5<=EOMONTH('Rent Roll'!$AD$8,'Rent Roll'!$S$8))*'Rent Roll'!$O$8*'Rent Roll'!$F$8*(1+'Rent Roll'!$P$8)^(ROUNDDOWN((BE4-$C$4-1)/12,0)+1)/12 -> 759.0555522 | BF11: =(BF5>='Rent Roll'!$J$8)*(BF5<='Rent Roll'!$K$8)*'Rent Roll'!$H$8*'Rent Roll'!$F$8*(1+'Rent Roll'!$I$8)^(ROUNDDOWN((BF4-$C$4-1)/12,0)+1)/12+(BF5>'Rent Roll'!$AD$8)*(BF5<=EOMONTH('Rent Roll'!$AD$8,'Rent Roll'!$S$8))*'Rent Roll'!$O$8*'Rent Roll'!$F$8*(1+'Rent Roll'!$P$8)^(ROUNDDOWN((BF4-$C$4-1)/12,0)+1)/12 -> 759.0555522 | BG11: =(BG5>='Rent Roll'!$J$8)*(BG5<='Rent Roll'!$K$8)*'Rent Roll'!$H$8*'Rent Roll'!$F$8*(1+'Rent Roll'!$I$8)^(ROUNDDOWN((BG4-$C$4-1)/12,0)+1)/12+(BG5>'Rent Roll'!$AD$8)*(BG5<=EOMONTH('Rent Roll'!$AD$8,'Rent Roll'!$S$8))*'Rent Roll'!$O$8*'Rent Roll'!$F$8*(1+'Rent Roll'!$P$8)^(ROUNDDOWN((BG4-$C$4-1)/12,0)+1)/12 -> 759.0555522 | BH11: =(BH5>='Rent Roll'!$J$8)*(BH5<='Rent Roll'!$K$8)*'Rent Roll'!$H$8*'Rent Roll'!$F$8*(1+'Rent Roll'!$I$8)^(ROUNDDOWN((BH4-$C$4-1)/12,0)+1)/12+(BH5>'Rent Roll'!$AD$8)*(BH5<=EOMONTH('Rent Roll'!$AD$8,'Rent Roll'!$S$8))*'Rent Roll'!$O$8*'Rent Roll'!$F$8*(1+'Rent Roll'!$P$8)^(ROUNDDOWN((BH4-$C$4-1)/12,0)+1)/12 -> 759.0555522 | BI11: =(BI5>='Rent Roll'!$J$8)*(BI5<='Rent Roll'!$K$8)*'Rent Roll'!$H$8*'Rent Roll'!$F$8*(1+'Rent Roll'!$I$8)^(ROUNDDOWN((BI4-$C$4-1)/12,0)+1)/12+(BI5>'Rent Roll'!$AD$8)*(BI5<=EOMONTH('Rent Roll'!$AD$8,'Rent Roll'!$S$8))*'Rent Roll'!$O$8*'Rent Roll'!$F$8*(1+'Rent Roll'!$P$8)^(ROUNDDOWN((BI4-$C$4-1)/12,0)+1)/12 -> 759.0555522 | BJ11: =(BJ5>='Rent Roll'!$J$8)*(BJ5<='Rent Roll'!$K$8)*'Rent Roll'!$H$8*'Rent Roll'!$F$8*(1+'Rent Roll'!$I$8)^(ROUNDDOWN((BJ4-$C$4-1)/12,0)+1)/12+(BJ5>'Rent Roll'!$AD$8)*(BJ5<=EOMONTH('Rent Roll'!$AD$8,'Rent Roll'!$S$8))*'Rent Roll'!$O$8*'Rent Roll'!$F$8*(1+'Rent Roll'!$P$8)^(ROUNDDOWN((BJ4-$C$4-1)/12,0)+1)/12 -> 759.0555522 | BK11: =(BK5>='Rent Roll'!$J$8)*(BK5<='Rent Roll'!$K$8)*'Rent Roll'!$H$8*'Rent Roll'!$F$8*(1+'Rent Roll'!$I$8)^(ROUNDDOWN((BK4-$C$4-1)/12,0)+1)/12+(BK5>'Rent Roll'!$AD$8)*(BK5<=EOMONTH('Rent Roll'!$AD$8,'Rent Roll'!$S$8))*'Rent Roll'!$O$8*'Rent Roll'!$F$8*(1+'Rent Roll'!$P$8)^(ROUNDDOWN((BK4-$C$4-1)/12,0)+1)/12 -> 759.0555522 | BM11: STOP
B12: Gross Potential Revenue | D12: =SUM(D7:D11) -> 16712.46795 | E12: =SUM(E7:E11) -> 16712.46795 | F12: 16712.46795 | G12: 16712.46795 | H12: 16712.46795 | I12: 16712.46795 | J12: 16712.46795 | K12: 16712.46795 | L12: 16712.46795 | M12: 16712.46795 | N12: 16712.46795 | O12: 16712.46795 | P12: 17046.71731 | Q12: 17046.71731 | R12: 17046.71731 | S12: 17046.71731 | T12: 17046.71731 | U12: 17046.71731 | V12: 17046.71731 | W12: 17046.71731 | X12: 17046.71731 | Y12: 17046.71731 | Z12: 17046.71731 | AA12: 17046.71731 | AB12: 17387.65166 | AC12: 17387.65166 | AD12: 17387.65166 | AE12: 17387.65166 | AF12: 17387.65166 | AG12: 17387.65166 | AH12: 17387.65166 | AI12: 17387.65166 | AJ12: 17387.65166 | AK12: 17387.65166 | AL12: 17387.65166 | AM12: 17387.65166 | AN12: 17735.40469 | AO12: 17735.40469 | AP12: 17735.40469 | AQ12: 17735.40469 | AR12: 17735.40469 | AS12: 17735.40469 | AT12: 17735.40469 | AU12: 17735.40469 | AV12: 17735.40469 | AW12: 17735.40469 | AX12: 17735.40469 | AY12: 17735.40469 | AZ12: 18090.11278 | BA12: 18090.11278 | BB12: 19277.30327 | BC12: 19277.30327 | BD12: 19277.30327 | BE12: 19277.30327 | BF12: 19277.30327 | BG12: 19277.30327 | BH12: 19277.30327 | BI12: 19277.30327 | BJ12: 19277.30327 | BK12: 19277.30327 | BM12: STOP
BM13: STOP
B14: ABSORPTION & TURNOVER VACANCY: | BM14: STOP
B15: =+B7 -> ABC | D15: =-(D$5>'Rent Roll'!$AD4)*(D$5<='Rent Roll'!$AE4)*D7-(D$5>'Rent Roll'!$AG4)*(D$5<='Rent Roll'!$AH4)*D7 -> 0 | E15: =-(E$5>'Rent Roll'!$AD4)*(E$5<='Rent Roll'!$AE4)*E7-(E$5>'Rent Roll'!$AG4)*(E$5<='Rent Roll'!$AH4)*E7 -> 0 | F15: =-(F$5>'Rent Roll'!$AD4)*(F$5<='Rent Roll'!$AE4)*F7-(F$5>'Rent Roll'!$AG4)*(F$5<='Rent Roll'!$AH4)*F7 -> 0 | G15: =-(G$5>'Rent Roll'!$AD4)*(G$5<='Rent Roll'!$AE4)*G7-(G$5>'Rent Roll'!$AG4)*(G$5<='Rent Roll'!$AH4)*G7 -> 0 | H15: =-(H$5>'Rent Roll'!$AD4)*(H$5<='Rent Roll'!$AE4)*H7-(H$5>'Rent Roll'!$AG4)*(H$5<='Rent Roll'!$AH4)*H7 -> 0 | I15: =-(I$5>'Rent Roll'!$AD4)*(I$5<='Rent Roll'!$AE4)*I7-(I$5>'Rent Roll'!$AG4)*(I$5<='Rent Roll'!$AH4)*I7 -> 0 | J15: =-(J$5>'Rent Roll'!$AD4)*(J$5<='Rent Roll'!$AE4)*J7-(J$5>'Rent Roll'!$AG4)*(J$5<='Rent Roll'!$AH4)*J7 -> 0 | K15: =-(K$5>'Rent Roll'!$AD4)*(K$5<='Rent Roll'!$AE4)*K7-(K$5>'Rent Roll'!$AG4)*(K$5<='Rent Roll'!$AH4)*K7 -> 0 | L15: =-(L$5>'Rent Roll'!$AD4)*(L$5<='Rent Roll'!$AE4)*L7-(L$5>'Rent Roll'!$AG4)*(L$5<='Rent Roll'!$AH4)*L7 -> 0 | M15: =-(M$5>'Rent Roll'!$AD4)*(M$5<='Rent Roll'!$AE4)*M7-(M$5>'Rent Roll'!$AG4)*(M$5<='Rent Roll'!$AH4)*M7 -> 0 | N15: =-(N$5>'Rent Roll'!$AD4)*(N$5<='Rent Roll'!$AE4)*N7-(N$5>'Rent Roll'!$AG4)*(N$5<='Rent Roll'!$AH4)*N7 -> 0 | O15: =-(O$5>'Rent Roll'!$AD4)*(O$5<='Rent Roll'!$AE4)*O7-(O$5>'Rent Roll'!$AG4)*(O$5<='Rent Roll'!$AH4)*O7 -> 0 | P15: =-(P$5>'Rent Roll'!$AD4)*(P$5<='Rent Roll'!$AE4)*P7-(P$5>'Rent Roll'!$AG4)*(P$5<='Rent Roll'!$AH4)*P7 -> 0 | Q15: =-(Q$5>'Rent Roll'!$AD4)*(Q$5<='Rent Roll'!$AE4)*Q7-(Q$5>'Rent Roll'!$AG4)*(Q$5<='Rent Roll'!$AH4)*Q7 -> 0 | R15: =-(R$5>'Rent Roll'!$AD4)*(R$5<='Rent Roll'!$AE4)*R7-(R$5>'Rent Roll'!$AG4)*(R$5<='Rent Roll'!$AH4)*R7 -> 0 | S15: =-(S$5>'Rent Roll'!$AD4)*(S$5<='Rent Roll'!$AE4)*S7-(S$5>'Rent Roll'!$AG4)*(S$5<='Rent Roll'!$AH4)*S7 -> 0 | T15: =-(T$5>'Rent Roll'!$AD4)*(T$5<='Rent Roll'!$AE4)*T7-(T$5>'Rent Roll'!$AG4)*(T$5<='Rent Roll'!$AH4)*T7 -> 0 | U15: =-(U$5>'Rent Roll'!$AD4)*(U$5<='Rent Roll'!$AE4)*U7-(U$5>'Rent Roll'!$AG4)*(U$5<='Rent Roll'!$AH4)*U7 -> 0 | V15: =-(V$5>'Rent Roll'!$AD4)*(V$5<='Rent Roll'!$AE4)*V7-(V$5>'Rent Roll'!$AG4)*(V$5<='Rent Roll'!$AH4)*V7 -> 0 | W15: =-(W$5>'Rent Roll'!$AD4)*(W$5<='Rent Roll'!$AE4)*W7-(W$5>'Rent Roll'!$AG4)*(W$5<='Rent Roll'!$AH4)*W7 -> 0 | X15: =-(X$5>'Rent Roll'!$AD4)*(X$5<='Rent Roll'!$AE4)*X7-(X$5>'Rent Roll'!$AG4)*(X$5<='Rent Roll'!$AH4)*X7 -> 0 | Y15: =-(Y$5>'Rent Roll'!$AD4)*(Y$5<='Rent Roll'!$AE4)*Y7-(Y$5>'Rent Roll'!$AG4)*(Y$5<='Rent Roll'!$AH4)*Y7 -> 0 | Z15: =-(Z$5>'Rent Roll'!$AD4)*(Z$5<='Rent Roll'!$AE4)*Z7-(Z$5>'Rent Roll'!$AG4)*(Z$5<='Rent Roll'!$AH4)*Z7 -> 0 | AA15: =-(AA$5>'Rent Roll'!$AD4)*(AA$5<='Rent Roll'!$AE4)*AA7-(AA$5>'Rent Roll'!$AG4)*(AA$5<='Rent Roll'!$AH4)*AA7 -> 0 | AB15: =-(AB$5>'Rent Roll'!$AD4)*(AB$5<='Rent Roll'!$AE4)*AB7-(AB$5>'Rent Roll'!$AG4)*(AB$5<='Rent Roll'!$AH4)*AB7 -> 0 | AC15: =-(AC$5>'Rent Roll'!$AD4)*(AC$5<='Rent Roll'!$AE4)*AC7-(AC$5>'Rent Roll'!$AG4)*(AC$5<='Rent Roll'!$AH4)*AC7 -> 0 | AD15: =-(AD$5>'Rent Roll'!$AD4)*(AD$5<='Rent Roll'!$AE4)*AD7-(AD$5>'Rent Roll'!$AG4)*(AD$5<='Rent Roll'!$AH4)*AD7 -> 0 | AE15: =-(AE$5>'Rent Roll'!$AD4)*(AE$5<='Rent Roll'!$AE4)*AE7-(AE$5>'Rent Roll'!$AG4)*(AE$5<='Rent Roll'!$AH4)*AE7 -> 0 | AF15: =-(AF$5>'Rent Roll'!$AD4)*(AF$5<='Rent Roll'!$AE4)*AF7-(AF$5>'Rent Roll'!$AG4)*(AF$5<='Rent Roll'!$AH4)*AF7 -> 0 | AG15: =-(AG$5>'Rent Roll'!$AD4)*(AG$5<='Rent Roll'!$AE4)*AG7-(AG$5>'Rent Roll'!$AG4)*(AG$5<='Rent Roll'!$AH4)*AG7 -> 0 | AH15: =-(AH$5>'Rent Roll'!$AD4)*(AH$5<='Rent Roll'!$AE4)*AH7-(AH$5>'Rent Roll'!$AG4)*(AH$5<='Rent Roll'!$AH4)*AH7 -> 0 | AI15: =-(AI$5>'Rent Roll'!$AD4)*(AI$5<='Rent Roll'!$AE4)*AI7-(AI$5>'Rent Roll'!$AG4)*(AI$5<='Rent Roll'!$AH4)*AI7 -> 0 | AJ15: =-(AJ$5>'Rent Roll'!$AD4)*(AJ$5<='Rent Roll'!$AE4)*AJ7-(AJ$5>'Rent Roll'!$AG4)*(AJ$5<='Rent Roll'!$AH4)*AJ7 -> 0 | AK15: =-(AK$5>'Rent Roll'!$AD4)*(AK$5<='Rent Roll'!$AE4)*AK7-(AK$5>'Rent Roll'!$AG4)*(AK$5<='Rent Roll'!$AH4)*AK7 -> 0 | AL15: =-(AL$5>'Rent Roll'!$AD4)*(AL$5<='Rent Roll'!$AE4)*AL7-(AL$5>'Rent Roll'!$AG4)*(AL$5<='Rent Roll'!$AH4)*AL7 -> 0 | AM15: =-(AM$5>'Rent Roll'!$AD4)*(AM$5<='Rent Roll'!$AE4)*AM7-(AM$5>'Rent Roll'!$AG4)*(AM$5<='Rent Roll'!$AH4)*AM7 -> 0 | AN15: =-(AN$5>'Rent Roll'!$AD4)*(AN$5<='Rent Roll'!$AE4)*AN7-(AN$5>'Rent Roll'!$AG4)*(AN$5<='Rent Roll'!$AH4)*AN7 -> 0 | AO15: =-(AO$5>'Rent Roll'!$AD4)*(AO$5<='Rent Roll'!$AE4)*AO7-(AO$5>'Rent Roll'!$AG4)*(AO$5<='Rent Roll'!$AH4)*AO7 -> 0 | AP15: =-(AP$5>'Rent Roll'!$AD4)*(AP$5<='Rent Roll'!$AE4)*AP7-(AP$5>'Rent Roll'!$AG4)*(AP$5<='Rent Roll'!$AH4)*AP7 -> 0 | AQ15: =-(AQ$5>'Rent Roll'!$AD4)*(AQ$5<='Rent Roll'!$AE4)*AQ7-(AQ$5>'Rent Roll'!$AG4)*(AQ$5<='Rent Roll'!$AH4)*AQ7 -> 0 | AR15: =-(AR$5>'Rent Roll'!$AD4)*(AR$5<='Rent Roll'!$AE4)*AR7-(AR$5>'Rent Roll'!$AG4)*(AR$5<='Rent Roll'!$AH4)*AR7 -> 0 | AS15: =-(AS$5>'Rent Roll'!$AD4)*(AS$5<='Rent Roll'!$AE4)*AS7-(AS$5>'Rent Roll'!$AG4)*(AS$5<='Rent Roll'!$AH4)*AS7 -> 0 | AT15: =-(AT$5>'Rent Roll'!$AD4)*(AT$5<='Rent Roll'!$AE4)*AT7-(AT$5>'Rent Roll'!$AG4)*(AT$5<='Rent Roll'!$AH4)*AT7 -> 0 | AU15: =-(AU$5>'Rent Roll'!$AD4)*(AU$5<='Rent Roll'!$AE4)*AU7-(AU$5>'Rent Roll'!$AG4)*(AU$5<='Rent Roll'!$AH4)*AU7 -> 0 | AV15: =-(AV$5>'Rent Roll'!$AD4)*(AV$5<='Rent Roll'!$AE4)*AV7-(AV$5>'Rent Roll'!$AG4)*(AV$5<='Rent Roll'!$AH4)*AV7 -> 0 | AW15: =-(AW$5>'Rent Roll'!$AD4)*(AW$5<='Rent Roll'!$AE4)*AW7-(AW$5>'Rent Roll'!$AG4)*(AW$5<='Rent Roll'!$AH4)*AW7 -> 0 | AX15: =-(AX$5>'Rent Roll'!$AD4)*(AX$5<='Rent Roll'!$AE4)*AX7-(AX$5>'Rent Roll'!$AG4)*(AX$5<='Rent Roll'!$AH4)*AX7 -> 0 | AY15: =-(AY$5>'Rent Roll'!$AD4)*(AY$5<='Rent Roll'!$AE4)*AY7-(AY$5>'Rent Roll'!$AG4)*(AY$5<='Rent Roll'!$AH4)*AY7 -> 0 | AZ15: =-(AZ$5>'Rent Roll'!$AD4)*(AZ$5<='Rent Roll'!$AE4)*AZ7-(AZ$5>'Rent Roll'!$AG4)*(AZ$5<='Rent Roll'!$AH4)*AZ7 -> 0 | BA15: =-(BA$5>'Rent Roll'!$AD4)*(BA$5<='Rent Roll'!$AE4)*BA7-(BA$5>'Rent Roll'!$AG4)*(BA$5<='Rent Roll'!$AH4)*BA7 -> 0 | BB15: =-(BB$5>'Rent Roll'!$AD4)*(BB$5<='Rent Roll'!$AE4)*BB7-(BB$5>'Rent Roll'!$AG4)*(BB$5<='Rent Roll'!$AH4)*BB7 -> -8140.663782 | BC15: =-(BC$5>'Rent Roll'!$AD4)*(BC$5<='Rent Roll'!$AE4)*BC7-(BC$5>'Rent Roll'!$AG4)*(BC$5<='Rent Roll'!$AH4)*BC7 -> -8140.663782 | BD15: =-(BD$5>'Rent Roll'!$AD4)*(BD$5<='Rent Roll'!$AE4)*BD7-(BD$5>'Rent Roll'!$AG4)*(BD$5<='Rent Roll'!$AH4)*BD7 -> -8140.663782 | BE15: =-(BE$5>'Rent Roll'!$AD4)*(BE$5<='Rent Roll'!$AE4)*BE7-(BE$5>'Rent Roll'!$AG4)*(BE$5<='Rent Roll'!$AH4)*BE7 -> -8140.663782 | BF15: =-(BF$5>'Rent Roll'!$AD4)*(BF$5<='Rent Roll'!$AE4)*BF7-(BF$5>'Rent Roll'!$AG4)*(BF$5<='Rent Roll'!$AH4)*BF7 -> -8140.663782 | BG15: =-(BG$5>'Rent Roll'!$AD4)*(BG$5<='Rent Roll'!$AE4)*BG7-(BG$5>'Rent Roll'!$AG4)*(BG$5<='Rent Roll'!$AH4)*BG7 -> -8140.663782 | BH15: =-(BH$5>'Rent Roll'!$AD4)*(BH$5<='Rent Roll'!$AE4)*BH7-(BH$5>'Rent Roll'!$AG4)*(BH$5<='Rent Roll'!$AH4)*BH7 -> -8140.663782 | BI15: =-(BI$5>'Rent Roll'!$AD4)*(BI$5<='Rent Roll'!$AE4)*BI7-(BI$5>'Rent Roll'!$AG4)*(BI$5<='Rent Roll'!$AH4)*BI7 -> -8140.663782 | BJ15: =-(BJ$5>'Rent Roll'!$AD4)*(BJ$5<='Rent Roll'!$AE4)*BJ7-(BJ$5>'Rent Roll'!$AG4)*(BJ$5<='Rent Roll'!$AH4)*BJ7 -> 0 | BK15: =-(BK$5>'Rent Roll'!$AD4)*(BK$5<='Rent Roll'!$AE4)*BK7-(BK$5>'Rent Roll'!$AG4)*(BK$5<='Rent Roll'!$AH4)*BK7 -> 0 | BM15: STOP
B16: =+B8 -> EFG | D16: =-(D$5>'Rent Roll'!$AD5)*(D$5<='Rent Roll'!$AE5)*D8-(D$5>'Rent Roll'!$AG5)*(D$5<='Rent Roll'!$AH5)*D8 -> 0 | E16: =-(E$5>'Rent Roll'!$AD5)*(E$5<='Rent Roll'!$AE5)*E8-(E$5>'Rent Roll'!$AG5)*(E$5<='Rent Roll'!$AH5)*E8 -> 0 | F16: =-(F$5>'Rent Roll'!$AD5)*(F$5<='Rent Roll'!$AE5)*F8-(F$5>'Rent Roll'!$AG5)*(F$5<='Rent Roll'!$AH5)*F8 -> 0 | G16: =-(G$5>'Rent Roll'!$AD5)*(G$5<='Rent Roll'!$AE5)*G8-(G$5>'Rent Roll'!$AG5)*(G$5<='Rent Roll'!$AH5)*G8 -> 0 | H16: =-(H$5>'Rent Roll'!$AD5)*(H$5<='Rent Roll'!$AE5)*H8-(H$5>'Rent Roll'!$AG5)*(H$5<='Rent Roll'!$AH5)*H8 -> 0 | I16: =-(I$5>'Rent Roll'!$AD5)*(I$5<='Rent Roll'!$AE5)*I8-(I$5>'Rent Roll'!$AG5)*(I$5<='Rent Roll'!$AH5)*I8 -> 0 | J16: =-(J$5>'Rent Roll'!$AD5)*(J$5<='Rent Roll'!$AE5)*J8-(J$5>'Rent Roll'!$AG5)*(J$5<='Rent Roll'!$AH5)*J8 -> 0 | K16: =-(K$5>'Rent Roll'!$AD5)*(K$5<='Rent Roll'!$AE5)*K8-(K$5>'Rent Roll'!$AG5)*(K$5<='Rent Roll'!$AH5)*K8 -> 0 | L16: =-(L$5>'Rent Roll'!$AD5)*(L$5<='Rent Roll'!$AE5)*L8-(L$5>'Rent Roll'!$AG5)*(L$5<='Rent Roll'!$AH5)*L8 -> 0 | M16: =-(M$5>'Rent Roll'!$AD5)*(M$5<='Rent Roll'!$AE5)*M8-(M$5>'Rent Roll'!$AG5)*(M$5<='Rent Roll'!$AH5)*M8 -> 0 | N16: =-(N$5>'Rent Roll'!$AD5)*(N$5<='Rent Roll'!$AE5)*N8-(N$5>'Rent Roll'!$AG5)*(N$5<='Rent Roll'!$AH5)*N8 -> 0 | O16: =-(O$5>'Rent Roll'!$AD5)*(O$5<='Rent Roll'!$AE5)*O8-(O$5>'Rent Roll'!$AG5)*(O$5<='Rent Roll'!$AH5)*O8 -> 0 | P16: =-(P$5>'Rent Roll'!$AD5)*(P$5<='Rent Roll'!$AE5)*P8-(P$5>'Rent Roll'!$AG5)*(P$5<='Rent Roll'!$AH5)*P8 -> 0 | Q16: =-(Q$5>'Rent Roll'!$AD5)*(Q$5<='Rent Roll'!$AE5)*Q8-(Q$5>'Rent Roll'!$AG5)*(Q$5<='Rent Roll'!$AH5)*Q8 -> 0 | R16: =-(R$5>'Rent Roll'!$AD5)*(R$5<='Rent Roll'!$AE5)*R8-(R$5>'Rent Roll'!$AG5)*(R$5<='Rent Roll'!$AH5)*R8 -> 0 | S16: =-(S$5>'Rent Roll'!$AD5)*(S$5<='Rent Roll'!$AE5)*S8-(S$5>'Rent Roll'!$AG5)*(S$5<='Rent Roll'!$AH5)*S8 -> 0 | T16: =-(T$5>'Rent Roll'!$AD5)*(T$5<='Rent Roll'!$AE5)*T8-(T$5>'Rent Roll'!$AG5)*(T$5<='Rent Roll'!$AH5)*T8 -> 0 | U16: =-(U$5>'Rent Roll'!$AD5)*(U$5<='Rent Roll'!$AE5)*U8-(U$5>'Rent Roll'!$AG5)*(U$5<='Rent Roll'!$AH5)*U8 -> 0 | V16: =-(V$5>'Rent Roll'!$AD5)*(V$5<='Rent Roll'!$AE5)*V8-(V$5>'Rent Roll'!$AG5)*(V$5<='Rent Roll'!$AH5)*V8 -> 0 | W16: =-(W$5>'Rent Roll'!$AD5)*(W$5<='Rent Roll'!$AE5)*W8-(W$5>'Rent Roll'!$AG5)*(W$5<='Rent Roll'!$AH5)*W8 -> 0 | X16: =-(X$5>'Rent Roll'!$AD5)*(X$5<='Rent Roll'!$AE5)*X8-(X$5>'Rent Roll'!$AG5)*(X$5<='Rent Roll'!$AH5)*X8 -> 0 | Y16: =-(Y$5>'Rent Roll'!$AD5)*(Y$5<='Rent Roll'!$AE5)*Y8-(Y$5>'Rent Roll'!$AG5)*(Y$5<='Rent Roll'!$AH5)*Y8 -> 0 | Z16: =-(Z$5>'Rent Roll'!$AD5)*(Z$5<='Rent Roll'!$AE5)*Z8-(Z$5>'Rent Roll'!$AG5)*(Z$5<='Rent Roll'!$AH5)*Z8 -> 0 | AA16: =-(AA$5>'Rent Roll'!$AD5)*(AA$5<='Rent Roll'!$AE5)*AA8-(AA$5>'Rent Roll'!$AG5)*(AA$5<='Rent Roll'!$AH5)*AA8 -> 0 | AB16: =-(AB$5>'Rent Roll'!$AD5)*(AB$5<='Rent Roll'!$AE5)*AB8-(AB$5>'Rent Roll'!$AG5)*(AB$5<='Rent Roll'!$AH5)*AB8 -> 0 | AC16: =-(AC$5>'Rent Roll'!$AD5)*(AC$5<='Rent Roll'!$AE5)*AC8-(AC$5>'Rent Roll'!$AG5)*(AC$5<='Rent Roll'!$AH5)*AC8 -> 0 | AD16: =-(AD$5>'Rent Roll'!$AD5)*(AD$5<='Rent Roll'!$AE5)*AD8-(AD$5>'Rent Roll'!$AG5)*(AD$5<='Rent Roll'!$AH5)*AD8 -> 0 | AE16: =-(AE$5>'Rent Roll'!$AD5)*(AE$5<='Rent Roll'!$AE5)*AE8-(AE$5>'Rent Roll'!$AG5)*(AE$5<='Rent Roll'!$AH5)*AE8 -> 0 | AF16: =-(AF$5>'Rent Roll'!$AD5)*(AF$5<='Rent Roll'!$AE5)*AF8-(AF$5>'Rent Roll'!$AG5)*(AF$5<='Rent Roll'!$AH5)*AF8 -> 0 | AG16: =-(AG$5>'Rent Roll'!$AD5)*(AG$5<='Rent Roll'!$AE5)*AG8-(AG$5>'Rent Roll'!$AG5)*(AG$5<='Rent Roll'!$AH5)*AG8 -> 0 | AH16: =-(AH$5>'Rent Roll'!$AD5)*(AH$5<='Rent Roll'!$AE5)*AH8-(AH$5>'Rent Roll'!$AG5)*(AH$5<='Rent Roll'!$AH5)*AH8 -> 0 | AI16: =-(AI$5>'Rent Roll'!$AD5)*(AI$5<='Rent Roll'!$AE5)*AI8-(AI$5>'Rent Roll'!$AG5)*(AI$5<='Rent Roll'!$AH5)*AI8 -> 0 | AJ16: =-(AJ$5>'Rent Roll'!$AD5)*(AJ$5<='Rent Roll'!$AE5)*AJ8-(AJ$5>'Rent Roll'!$AG5)*(AJ$5<='Rent Roll'!$AH5)*AJ8 -> 0 | AK16: =-(AK$5>'Rent Roll'!$AD5)*(AK$5<='Rent Roll'!$AE5)*AK8-(AK$5>'Rent Roll'!$AG5)*(AK$5<='Rent Roll'!$AH5)*AK8 -> 0 | AL16: =-(AL$5>'Rent Roll'!$AD5)*(AL$5<='Rent Roll'!$AE5)*AL8-(AL$5>'Rent Roll'!$AG5)*(AL$5<='Rent Roll'!$AH5)*AL8 -> 0 | AM16: =-(AM$5>'Rent Roll'!$AD5)*(AM$5<='Rent Roll'!$AE5)*AM8-(AM$5>'Rent Roll'!$AG5)*(AM$5<='Rent Roll'!$AH5)*AM8 -> 0 | AN16: =-(AN$5>'Rent Roll'!$AD5)*(AN$5<='Rent Roll'!$AE5)*AN8-(AN$5>'Rent Roll'!$AG5)*(AN$5<='Rent Roll'!$AH5)*AN8 -> 0 | AO16: =-(AO$5>'Rent Roll'!$AD5)*(AO$5<='Rent Roll'!$AE5)*AO8-(AO$5>'Rent Roll'!$AG5)*(AO$5<='Rent Roll'!$AH5)*AO8 -> 0 | AP16: =-(AP$5>'Rent Roll'!$AD5)*(AP$5<='Rent Roll'!$AE5)*AP8-(AP$5>'Rent Roll'!$AG5)*(AP$5<='Rent Roll'!$AH5)*AP8 -> 0 | AQ16: =-(AQ$5>'Rent Roll'!$AD5)*(AQ$5<='Rent Roll'!$AE5)*AQ8-(AQ$5>'Rent Roll'!$AG5)*(AQ$5<='Rent Roll'!$AH5)*AQ8 -> 0 | AR16: =-(AR$5>'Rent Roll'!$AD5)*(AR$5<='Rent Roll'!$AE5)*AR8-(AR$5>'Rent Roll'!$AG5)*(AR$5<='Rent Roll'!$AH5)*AR8 -> 0 | AS16: =-(AS$5>'Rent Roll'!$AD5)*(AS$5<='Rent Roll'!$AE5)*AS8-(AS$5>'Rent Roll'!$AG5)*(AS$5<='Rent Roll'!$AH5)*AS8 -> 0 | AT16: =-(AT$5>'Rent Roll'!$AD5)*(AT$5<='Rent Roll'!$AE5)*AT8-(AT$5>'Rent Roll'!$AG5)*(AT$5<='Rent Roll'!$AH5)*AT8 -> 0 | AU16: =-(AU$5>'Rent Roll'!$AD5)*(AU$5<='Rent Roll'!$AE5)*AU8-(AU$5>'Rent Roll'!$AG5)*(AU$5<='Rent Roll'!$AH5)*AU8 -> 0 | AV16: =-(AV$5>'Rent Roll'!$AD5)*(AV$5<='Rent Roll'!$AE5)*AV8-(AV$5>'Rent Roll'!$AG5)*(AV$5<='Rent Roll'!$AH5)*AV8 -> 0 | AW16: =-(AW$5>'Rent Roll'!$AD5)*(AW$5<='Rent Roll'!$AE5)*AW8-(AW$5>'Rent Roll'!$AG5)*(AW$5<='Rent Roll'!$AH5)*AW8 -> 0 | AX16: =-(AX$5>'Rent Roll'!$AD5)*(AX$5<='Rent Roll'!$AE5)*AX8-(AX$5>'Rent Roll'!$AG5)*(AX$5<='Rent Roll'!$AH5)*AX8 -> 0 | AY16: =-(AY$5>'Rent Roll'!$AD5)*(AY$5<='Rent Roll'!$AE5)*AY8-(AY$5>'Rent Roll'!$AG5)*(AY$5<='Rent Roll'!$AH5)*AY8 -> 0 | AZ16: =-(AZ$5>'Rent Roll'!$AD5)*(AZ$5<='Rent Roll'!$AE5)*AZ8-(AZ$5>'Rent Roll'!$AG5)*(AZ$5<='Rent Roll'!$AH5)*AZ8 -> 0 | BA16: =-(BA$5>'Rent Roll'!$AD5)*(BA$5<='Rent Roll'!$AE5)*BA8-(BA$5>'Rent Roll'!$AG5)*(BA$5<='Rent Roll'!$AH5)*BA8 -> 0 | BB16: =-(BB$5>'Rent Roll'!$AD5)*(BB$5<='Rent Roll'!$AE5)*BB8-(BB$5>'Rent Roll'!$AG5)*(BB$5<='Rent Roll'!$AH5)*BB8 -> -4437.249224 | BC16: =-(BC$5>'Rent Roll'!$AD5)*(BC$5<='Rent Roll'!$AE5)*BC8-(BC$5>'Rent Roll'!$AG5)*(BC$5<='Rent Roll'!$AH5)*BC8 -> -4437.249224 | BD16: =-(BD$5>'Rent Roll'!$AD5)*(BD$5<='Rent Roll'!$AE5)*BD8-(BD$5>'Rent Roll'!$AG5)*(BD$5<='Rent Roll'!$AH5)*BD8 -> -4437.249224 | BE16: =-(BE$5>'Rent Roll'!$AD5)*(BE$5<='Rent Roll'!$AE5)*BE8-(BE$5>'Rent Roll'!$AG5)*(BE$5<='Rent Roll'!$AH5)*BE8 -> -4437.249224 | BF16: =-(BF$5>'Rent Roll'!$AD5)*(BF$5<='Rent Roll'!$AE5)*BF8-(BF$5>'Rent Roll'!$AG5)*(BF$5<='Rent Roll'!$AH5)*BF8 -> -4437.249224 | BG16: =-(BG$5>'Rent Roll'!$AD5)*(BG$5<='Rent Roll'!$AE5)*BG8-(BG$5>'Rent Roll'!$AG5)*(BG$5<='Rent Roll'!$AH5)*BG8 -> -4437.249224 | BH16: =-(BH$5>'Rent Roll'!$AD5)*(BH$5<='Rent Roll'!$AE5)*BH8-(BH$5>'Rent Roll'!$AG5)*(BH$5<='Rent Roll'!$AH5)*BH8 -> -4437.249224 | BI16: =-(BI$5>'Rent Roll'!$AD5)*(BI$5<='Rent Roll'!$AE5)*BI8-(BI$5>'Rent Roll'!$AG5)*(BI$5<='Rent Roll'!$AH5)*BI8 -> -4437.249224 | BJ16: =-(BJ$5>'Rent Roll'!$AD5)*(BJ$5<='Rent Roll'!$AE5)*BJ8-(BJ$5>'Rent Roll'!$AG5)*(BJ$5<='Rent Roll'!$AH5)*BJ8 -> 0 | BK16: =-(BK$5>'Rent Roll'!$AD5)*(BK$5<='Rent Roll'!$AE5)*BK8-(BK$5>'Rent Roll'!$AG5)*(BK$5<='Rent Roll'!$AH5)*BK8 -> 0 | BM16: STOP
B17: =+B9 -> ASD | D17: =-(D$5>'Rent Roll'!$AD6)*(D$5<='Rent Roll'!$AE6)*D9-(D$5>'Rent Roll'!$AG6)*(D$5<='Rent Roll'!$AH6)*D9 -> 0 | E17: =-(E$5>'Rent Roll'!$AD6)*(E$5<='Rent Roll'!$AE6)*E9-(E$5>'Rent Roll'!$AG6)*(E$5<='Rent Roll'!$AH6)*E9 -> 0 | F17: =-(F$5>'Rent Roll'!$AD6)*(F$5<='Rent Roll'!$AE6)*F9-(F$5>'Rent Roll'!$AG6)*(F$5<='Rent Roll'!$AH6)*F9 -> 0 | G17: =-(G$5>'Rent Roll'!$AD6)*(G$5<='Rent Roll'!$AE6)*G9-(G$5>'Rent Roll'!$AG6)*(G$5<='Rent Roll'!$AH6)*G9 -> 0 | H17: =-(H$5>'Rent Roll'!$AD6)*(H$5<='Rent Roll'!$AE6)*H9-(H$5>'Rent Roll'!$AG6)*(H$5<='Rent Roll'!$AH6)*H9 -> 0 | I17: =-(I$5>'Rent Roll'!$AD6)*(I$5<='Rent Roll'!$AE6)*I9-(I$5>'Rent Roll'!$AG6)*(I$5<='Rent Roll'!$AH6)*I9 -> 0 | J17: =-(J$5>'Rent Roll'!$AD6)*(J$5<='Rent Roll'!$AE6)*J9-(J$5>'Rent Roll'!$AG6)*(J$5<='Rent Roll'!$AH6)*J9 -> 0 | K17: =-(K$5>'Rent Roll'!$AD6)*(K$5<='Rent Roll'!$AE6)*K9-(K$5>'Rent Roll'!$AG6)*(K$5<='Rent Roll'!$AH6)*K9 -> 0 | L17: =-(L$5>'Rent Roll'!$AD6)*(L$5<='Rent Roll'!$AE6)*L9-(L$5>'Rent Roll'!$AG6)*(L$5<='Rent Roll'!$AH6)*L9 -> 0 | M17: =-(M$5>'Rent Roll'!$AD6)*(M$5<='Rent Roll'!$AE6)*M9-(M$5>'Rent Roll'!$AG6)*(M$5<='Rent Roll'!$AH6)*M9 -> 0 | N17: =-(N$5>'Rent Roll'!$AD6)*(N$5<='Rent Roll'!$AE6)*N9-(N$5>'Rent Roll'!$AG6)*(N$5<='Rent Roll'!$AH6)*N9 -> 0 | O17: =-(O$5>'Rent Roll'!$AD6)*(O$5<='Rent Roll'!$AE6)*O9-(O$5>'Rent Roll'!$AG6)*(O$5<='Rent Roll'!$AH6)*O9 -> 0 | P17: =-(P$5>'Rent Roll'!$AD6)*(P$5<='Rent Roll'!$AE6)*P9-(P$5>'Rent Roll'!$AG6)*(P$5<='Rent Roll'!$AH6)*P9 -> 0 | Q17: =-(Q$5>'Rent Roll'!$AD6)*(Q$5<='Rent Roll'!$AE6)*Q9-(Q$5>'Rent Roll'!$AG6)*(Q$5<='Rent Roll'!$AH6)*Q9 -> 0 | R17: =-(R$5>'Rent Roll'!$AD6)*(R$5<='Rent Roll'!$AE6)*R9-(R$5>'Rent Roll'!$AG6)*(R$5<='Rent Roll'!$AH6)*R9 -> 0 | S17: =-(S$5>'Rent Roll'!$AD6)*(S$5<='Rent Roll'!$AE6)*S9-(S$5>'Rent Roll'!$AG6)*(S$5<='Rent Roll'!$AH6)*S9 -> 0 | T17: =-(T$5>'Rent Roll'!$AD6)*(T$5<='Rent Roll'!$AE6)*T9-(T$5>'Rent Roll'!$AG6)*(T$5<='Rent Roll'!$AH6)*T9 -> 0 | U17: =-(U$5>'Rent Roll'!$AD6)*(U$5<='Rent Roll'!$AE6)*U9-(U$5>'Rent Roll'!$AG6)*(U$5<='Rent Roll'!$AH6)*U9 -> 0 | V17: =-(V$5>'Rent Roll'!$AD6)*(V$5<='Rent Roll'!$AE6)*V9-(V$5>'Rent Roll'!$AG6)*(V$5<='Rent Roll'!$AH6)*V9 -> 0 | W17: =-(W$5>'Rent Roll'!$AD6)*(W$5<='Rent Roll'!$AE6)*W9-(W$5>'Rent Roll'!$AG6)*(W$5<='Rent Roll'!$AH6)*W9 -> 0 | X17: =-(X$5>'Rent Roll'!$AD6)*(X$5<='Rent Roll'!$AE6)*X9-(X$5>'Rent Roll'!$AG6)*(X$5<='Rent Roll'!$AH6)*X9 -> 0 | Y17: =-(Y$5>'Rent Roll'!$AD6)*(Y$5<='Rent Roll'!$AE6)*Y9-(Y$5>'Rent Roll'!$AG6)*(Y$5<='Rent Roll'!$AH6)*Y9 -> 0 | Z17: =-(Z$5>'Rent Roll'!$AD6)*(Z$5<='Rent Roll'!$AE6)*Z9-(Z$5>'Rent Roll'!$AG6)*(Z$5<='Rent Roll'!$AH6)*Z9 -> 0 | AA17: =-(AA$5>'Rent Roll'!$AD6)*(AA$5<='Rent Roll'!$AE6)*AA9-(AA$5>'Rent Roll'!$AG6)*(AA$5<='Rent Roll'!$AH6)*AA9 -> 0 | AB17: =-(AB$5>'Rent Roll'!$AD6)*(AB$5<='Rent Roll'!$AE6)*AB9-(AB$5>'Rent Roll'!$AG6)*(AB$5<='Rent Roll'!$AH6)*AB9 -> 0 | AC17: =-(AC$5>'Rent Roll'!$AD6)*(AC$5<='Rent Roll'!$AE6)*AC9-(AC$5>'Rent Roll'!$AG6)*(AC$5<='Rent Roll'!$AH6)*AC9 -> 0 | AD17: =-(AD$5>'Rent Roll'!$AD6)*(AD$5<='Rent Roll'!$AE6)*AD9-(AD$5>'Rent Roll'!$AG6)*(AD$5<='Rent Roll'!$AH6)*AD9 -> 0 | AE17: =-(AE$5>'Rent Roll'!$AD6)*(AE$5<='Rent Roll'!$AE6)*AE9-(AE$5>'Rent Roll'!$AG6)*(AE$5<='Rent Roll'!$AH6)*AE9 -> 0 | AF17: =-(AF$5>'Rent Roll'!$AD6)*(AF$5<='Rent Roll'!$AE6)*AF9-(AF$5>'Rent Roll'!$AG6)*(AF$5<='Rent Roll'!$AH6)*AF9 -> 0 | AG17: =-(AG$5>'Rent Roll'!$AD6)*(AG$5<='Rent Roll'!$AE6)*AG9-(AG$5>'Rent Roll'!$AG6)*(AG$5<='Rent Roll'!$AH6)*AG9 -> 0 | AH17: =-(AH$5>'Rent Roll'!$AD6)*(AH$5<='Rent Roll'!$AE6)*AH9-(AH$5>'Rent Roll'!$AG6)*(AH$5<='Rent Roll'!$AH6)*AH9 -> 0 | AI17: =-(AI$5>'Rent Roll'!$AD6)*(AI$5<='Rent Roll'!$AE6)*AI9-(AI$5>'Rent Roll'!$AG6)*(AI$5<='Rent Roll'!$AH6)*AI9 -> 0 | AJ17: =-(AJ$5>'Rent Roll'!$AD6)*(AJ$5<='Rent Roll'!$AE6)*AJ9-(AJ$5>'Rent Roll'!$AG6)*(AJ$5<='Rent Roll'!$AH6)*AJ9 -> 0 | AK17: =-(AK$5>'Rent Roll'!$AD6)*(AK$5<='Rent Roll'!$AE6)*AK9-(AK$5>'Rent Roll'!$AG6)*(AK$5<='Rent Roll'!$AH6)*AK9 -> 0 | AL17: =-(AL$5>'Rent Roll'!$AD6)*(AL$5<='Rent Roll'!$AE6)*AL9-(AL$5>'Rent Roll'!$AG6)*(AL$5<='Rent Roll'!$AH6)*AL9 -> 0 | AM17: =-(AM$5>'Rent Roll'!$AD6)*(AM$5<='Rent Roll'!$AE6)*AM9-(AM$5>'Rent Roll'!$AG6)*(AM$5<='Rent Roll'!$AH6)*AM9 -> 0 | AN17: =-(AN$5>'Rent Roll'!$AD6)*(AN$5<='Rent Roll'!$AE6)*AN9-(AN$5>'Rent Roll'!$AG6)*(AN$5<='Rent Roll'!$AH6)*AN9 -> 0 | AO17: =-(AO$5>'Rent Roll'!$AD6)*(AO$5<='Rent Roll'!$AE6)*AO9-(AO$5>'Rent Roll'!$AG6)*(AO$5<='Rent Roll'!$AH6)*AO9 -> 0 | AP17: =-(AP$5>'Rent Roll'!$AD6)*(AP$5<='Rent Roll'!$AE6)*AP9-(AP$5>'Rent Roll'!$AG6)*(AP$5<='Rent Roll'!$AH6)*AP9 -> 0 | AQ17: =-(AQ$5>'Rent Roll'!$AD6)*(AQ$5<='Rent Roll'!$AE6)*AQ9-(AQ$5>'Rent Roll'!$AG6)*(AQ$5<='Rent Roll'!$AH6)*AQ9 -> 0 | AR17: =-(AR$5>'Rent Roll'!$AD6)*(AR$5<='Rent Roll'!$AE6)*AR9-(AR$5>'Rent Roll'!$AG6)*(AR$5<='Rent Roll'!$AH6)*AR9 -> 0 | AS17: =-(AS$5>'Rent Roll'!$AD6)*(AS$5<='Rent Roll'!$AE6)*AS9-(AS$5>'Rent Roll'!$AG6)*(AS$5<='Rent Roll'!$AH6)*AS9 -> 0 | AT17: =-(AT$5>'Rent Roll'!$AD6)*(AT$5<='Rent Roll'!$AE6)*AT9-(AT$5>'Rent Roll'!$AG6)*(AT$5<='Rent Roll'!$AH6)*AT9 -> 0 | AU17: =-(AU$5>'Rent Roll'!$AD6)*(AU$5<='Rent Roll'!$AE6)*AU9-(AU$5>'Rent Roll'!$AG6)*(AU$5<='Rent Roll'!$AH6)*AU9 -> 0 | AV17: =-(AV$5>'Rent Roll'!$AD6)*(AV$5<='Rent Roll'!$AE6)*AV9-(AV$5>'Rent Roll'!$AG6)*(AV$5<='Rent Roll'!$AH6)*AV9 -> 0 | AW17: =-(AW$5>'Rent Roll'!$AD6)*(AW$5<='Rent Roll'!$AE6)*AW9-(AW$5>'Rent Roll'!$AG6)*(AW$5<='Rent Roll'!$AH6)*AW9 -> 0 | AX17: =-(AX$5>'Rent Roll'!$AD6)*(AX$5<='Rent Roll'!$AE6)*AX9-(AX$5>'Rent Roll'!$AG6)*(AX$5<='Rent Roll'!$AH6)*AX9 -> 0 | AY17: =-(AY$5>'Rent Roll'!$AD6)*(AY$5<='Rent Roll'!$AE6)*AY9-(AY$5>'Rent Roll'!$AG6)*(AY$5<='Rent Roll'!$AH6)*AY9 -> 0 | AZ17: =-(AZ$5>'Rent Roll'!$AD6)*(AZ$5<='Rent Roll'!$AE6)*AZ9-(AZ$5>'Rent Roll'!$AG6)*(AZ$5<='Rent Roll'!$AH6)*AZ9 -> 0 | BA17: =-(BA$5>'Rent Roll'!$AD6)*(BA$5<='Rent Roll'!$AE6)*BA9-(BA$5>'Rent Roll'!$AG6)*(BA$5<='Rent Roll'!$AH6)*BA9 -> 0 | BB17: =-(BB$5>'Rent Roll'!$AD6)*(BB$5<='Rent Roll'!$AE6)*BB9-(BB$5>'Rent Roll'!$AG6)*(BB$5<='Rent Roll'!$AH6)*BB9 -> -2821.881482 | BC17: =-(BC$5>'Rent Roll'!$AD6)*(BC$5<='Rent Roll'!$AE6)*BC9-(BC$5>'Rent Roll'!$AG6)*(BC$5<='Rent Roll'!$AH6)*BC9 -> -2821.881482 | BD17: =-(BD$5>'Rent Roll'!$AD6)*(BD$5<='Rent Roll'!$AE6)*BD9-(BD$5>'Rent Roll'!$AG6)*(BD$5<='Rent Roll'!$AH6)*BD9 -> -2821.881482 | BE17: =-(BE$5>'Rent Roll'!$AD6)*(BE$5<='Rent Roll'!$AE6)*BE9-(BE$5>'Rent Roll'!$AG6)*(BE$5<='Rent Roll'!$AH6)*BE9 -> -2821.881482 | BF17: =-(BF$5>'Rent Roll'!$AD6)*(BF$5<='Rent Roll'!$AE6)*BF9-(BF$5>'Rent Roll'!$AG6)*(BF$5<='Rent Roll'!$AH6)*BF9 -> -2821.881482 | BG17: =-(BG$5>'Rent Roll'!$AD6)*(BG$5<='Rent Roll'!$AE6)*BG9-(BG$5>'Rent Roll'!$AG6)*(BG$5<='Rent Roll'!$AH6)*BG9 -> -2821.881482 | BH17: =-(BH$5>'Rent Roll'!$AD6)*(BH$5<='Rent Roll'!$AE6)*BH9-(BH$5>'Rent Roll'!$AG6)*(BH$5<='Rent Roll'!$AH6)*BH9 -> -2821.881482 | BI17: =-(BI$5>'Rent Roll'!$AD6)*(BI$5<='Rent Roll'!$AE6)*BI9-(BI$5>'Rent Roll'!$AG6)*(BI$5<='Rent Roll'!$AH6)*BI9 -> -2821.881482 | BJ17: =-(BJ$5>'Rent Roll'!$AD6)*(BJ$5<='Rent Roll'!$AE6)*BJ9-(BJ$5>'Rent Roll'!$AG6)*(BJ$5<='Rent Roll'!$AH6)*BJ9 -> 0 | BK17: =-(BK$5>'Rent Roll'!$AD6)*(BK$5<='Rent Roll'!$AE6)*BK9-(BK$5>'Rent Roll'!$AG6)*(BK$5<='Rent Roll'!$AH6)*BK9 -> 0 | BM17: STOP
B18: =+B10 -> Vacant | D18: =-(D$5>'Rent Roll'!$AD7)*(D$5<='Rent Roll'!$AE7)*D10-(D$5>'Rent Roll'!$AG7)*(D$5<='Rent Roll'!$AH7)*D10 -> -2880.96875 | E18: =-(E$5>'Rent Roll'!$AD7)*(E$5<='Rent Roll'!$AE7)*E10-(E$5>'Rent Roll'!$AG7)*(E$5<='Rent Roll'!$AH7)*E10 -> -2880.96875 | F18: =-(F$5>'Rent Roll'!$AD7)*(F$5<='Rent Roll'!$AE7)*F10-(F$5>'Rent Roll'!$AG7)*(F$5<='Rent Roll'!$AH7)*F10 -> -2880.96875 | G18: =-(G$5>'Rent Roll'!$AD7)*(G$5<='Rent Roll'!$AE7)*G10-(G$5>'Rent Roll'!$AG7)*(G$5<='Rent Roll'!$AH7)*G10 -> -2880.96875 | H18: =-(H$5>'Rent Roll'!$AD7)*(H$5<='Rent Roll'!$AE7)*H10-(H$5>'Rent Roll'!$AG7)*(H$5<='Rent Roll'!$AH7)*H10 -> -2880.96875 | I18: =-(I$5>'Rent Roll'!$AD7)*(I$5<='Rent Roll'!$AE7)*I10-(I$5>'Rent Roll'!$AG7)*(I$5<='Rent Roll'!$AH7)*I10 -> -2880.96875 | J18: =-(J$5>'Rent Roll'!$AD7)*(J$5<='Rent Roll'!$AE7)*J10-(J$5>'Rent Roll'!$AG7)*(J$5<='Rent Roll'!$AH7)*J10 -> -2880.96875 | K18: =-(K$5>'Rent Roll'!$AD7)*(K$5<='Rent Roll'!$AE7)*K10-(K$5>'Rent Roll'!$AG7)*(K$5<='Rent Roll'!$AH7)*K10 -> -2880.96875 | L18: =-(L$5>'Rent Roll'!$AD7)*(L$5<='Rent Roll'!$AE7)*L10-(L$5>'Rent Roll'!$AG7)*(L$5<='Rent Roll'!$AH7)*L10 -> -2880.96875 | M18: =-(M$5>'Rent Roll'!$AD7)*(M$5<='Rent Roll'!$AE7)*M10-(M$5>'Rent Roll'!$AG7)*(M$5<='Rent Roll'!$AH7)*M10 -> -2880.96875 | N18: =-(N$5>'Rent Roll'!$AD7)*(N$5<='Rent Roll'!$AE7)*N10-(N$5>'Rent Roll'!$AG7)*(N$5<='Rent Roll'!$AH7)*N10 -> -2880.96875 | O18: =-(O$5>'Rent Roll'!$AD7)*(O$5<='Rent Roll'!$AE7)*O10-(O$5>'Rent Roll'!$AG7)*(O$5<='Rent Roll'!$AH7)*O10 -> -2880.96875 | P18: =-(P$5>'Rent Roll'!$AD7)*(P$5<='Rent Roll'!$AE7)*P10-(P$5>'Rent Roll'!$AG7)*(P$5<='Rent Roll'!$AH7)*P10 -> -2938.588125 | Q18: =-(Q$5>'Rent Roll'!$AD7)*(Q$5<='Rent Roll'!$AE7)*Q10-(Q$5>'Rent Roll'!$AG7)*(Q$5<='Rent Roll'!$AH7)*Q10 -> 0 | R18: =-(R$5>'Rent Roll'!$AD7)*(R$5<='Rent Roll'!$AE7)*R10-(R$5>'Rent Roll'!$AG7)*(R$5<='Rent Roll'!$AH7)*R10 -> 0 | S18: =-(S$5>'Rent Roll'!$AD7)*(S$5<='Rent Roll'!$AE7)*S10-(S$5>'Rent Roll'!$AG7)*(S$5<='Rent Roll'!$AH7)*S10 -> 0 | T18: =-(T$5>'Rent Roll'!$AD7)*(T$5<='Rent Roll'!$AE7)*T10-(T$5>'Rent Roll'!$AG7)*(T$5<='Rent Roll'!$AH7)*T10 -> 0 | U18: =-(U$5>'Rent Roll'!$AD7)*(U$5<='Rent Roll'!$AE7)*U10-(U$5>'Rent Roll'!$AG7)*(U$5<='Rent Roll'!$AH7)*U10 -> 0 | V18: =-(V$5>'Rent Roll'!$AD7)*(V$5<='Rent Roll'!$AE7)*V10-(V$5>'Rent Roll'!$AG7)*(V$5<='Rent Roll'!$AH7)*V10 -> 0 | W18: =-(W$5>'Rent Roll'!$AD7)*(W$5<='Rent Roll'!$AE7)*W10-(W$5>'Rent Roll'!$AG7)*(W$5<='Rent Roll'!$AH7)*W10 -> 0 | X18: =-(X$5>'Rent Roll'!$AD7)*(X$5<='Rent Roll'!$AE7)*X10-(X$5>'Rent Roll'!$AG7)*(X$5<='Rent Roll'!$AH7)*X10 -> 0 | Y18: =-(Y$5>'Rent Roll'!$AD7)*(Y$5<='Rent Roll'!$AE7)*Y10-(Y$5>'Rent Roll'!$AG7)*(Y$5<='Rent Roll'!$AH7)*Y10 -> 0 | Z18: =-(Z$5>'Rent Roll'!$AD7)*(Z$5<='Rent Roll'!$AE7)*Z10-(Z$5>'Rent Roll'!$AG7)*(Z$5<='Rent Roll'!$AH7)*Z10 -> 0 | AA18: =-(AA$5>'Rent Roll'!$AD7)*(AA$5<='Rent Roll'!$AE7)*AA10-(AA$5>'Rent Roll'!$AG7)*(AA$5<='Rent Roll'!$AH7)*AA10 -> 0 | AB18: =-(AB$5>'Rent Roll'!$AD7)*(AB$5<='Rent Roll'!$AE7)*AB10-(AB$5>'Rent Roll'!$AG7)*(AB$5<='Rent Roll'!$AH7)*AB10 -> 0 | AC18: =-(AC$5>'Rent Roll'!$AD7)*(AC$5<='Rent Roll'!$AE7)*AC10-(AC$5>'Rent Roll'!$AG7)*(AC$5<='Rent Roll'!$AH7)*AC10 -> 0 | AD18: =-(AD$5>'Rent Roll'!$AD7)*(AD$5<='Rent Roll'!$AE7)*AD10-(AD$5>'Rent Roll'!$AG7)*(AD$5<='Rent Roll'!$AH7)*AD10 -> 0 | AE18: =-(AE$5>'Rent Roll'!$AD7)*(AE$5<='Rent Roll'!$AE7)*AE10-(AE$5>'Rent Roll'!$AG7)*(AE$5<='Rent Roll'!$AH7)*AE10 -> 0 | AF18: =-(AF$5>'Rent Roll'!$AD7)*(AF$5<='Rent Roll'!$AE7)*AF10-(AF$5>'Rent Roll'!$AG7)*(AF$5<='Rent Roll'!$AH7)*AF10 -> 0 | AG18: =-(AG$5>'Rent Roll'!$AD7)*(AG$5<='Rent Roll'!$AE7)*AG10-(AG$5>'Rent Roll'!$AG7)*(AG$5<='Rent Roll'!$AH7)*AG10 -> 0 | AH18: =-(AH$5>'Rent Roll'!$AD7)*(AH$5<='Rent Roll'!$AE7)*AH10-(AH$5>'Rent Roll'!$AG7)*(AH$5<='Rent Roll'!$AH7)*AH10 -> 0 | AI18: =-(AI$5>'Rent Roll'!$AD7)*(AI$5<='Rent Roll'!$AE7)*AI10-(AI$5>'Rent Roll'!$AG7)*(AI$5<='Rent Roll'!$AH7)*AI10 -> 0 | AJ18: =-(AJ$5>'Rent Roll'!$AD7)*(AJ$5<='Rent Roll'!$AE7)*AJ10-(AJ$5>'Rent Roll'!$AG7)*(AJ$5<='Rent Roll'!$AH7)*AJ10 -> 0 | AK18: =-(AK$5>'Rent Roll'!$AD7)*(AK$5<='Rent Roll'!$AE7)*AK10-(AK$5>'Rent Roll'!$AG7)*(AK$5<='Rent Roll'!$AH7)*AK10 -> 0 | AL18: =-(AL$5>'Rent Roll'!$AD7)*(AL$5<='Rent Roll'!$AE7)*AL10-(AL$5>'Rent Roll'!$AG7)*(AL$5<='Rent Roll'!$AH7)*AL10 -> 0 | AM18: =-(AM$5>'Rent Roll'!$AD7)*(AM$5<='Rent Roll'!$AE7)*AM10-(AM$5>'Rent Roll'!$AG7)*(AM$5<='Rent Roll'!$AH7)*AM10 -> 0 | AN18: =-(AN$5>'Rent Roll'!$AD7)*(AN$5<='Rent Roll'!$AE7)*AN10-(AN$5>'Rent Roll'!$AG7)*(AN$5<='Rent Roll'!$AH7)*AN10 -> 0 | AO18: =-(AO$5>'Rent Roll'!$AD7)*(AO$5<='Rent Roll'!$AE7)*AO10-(AO$5>'Rent Roll'!$AG7)*(AO$5<='Rent Roll'!$AH7)*AO10 -> 0 | AP18: =-(AP$5>'Rent Roll'!$AD7)*(AP$5<='Rent Roll'!$AE7)*AP10-(AP$5>'Rent Roll'!$AG7)*(AP$5<='Rent Roll'!$AH7)*AP10 -> 0 | AQ18: =-(AQ$5>'Rent Roll'!$AD7)*(AQ$5<='Rent Roll'!$AE7)*AQ10-(AQ$5>'Rent Roll'!$AG7)*(AQ$5<='Rent Roll'!$AH7)*AQ10 -> 0 | AR18: =-(AR$5>'Rent Roll'!$AD7)*(AR$5<='Rent Roll'!$AE7)*AR10-(AR$5>'Rent Roll'!$AG7)*(AR$5<='Rent Roll'!$AH7)*AR10 -> 0 | AS18: =-(AS$5>'Rent Roll'!$AD7)*(AS$5<='Rent Roll'!$AE7)*AS10-(AS$5>'Rent Roll'!$AG7)*(AS$5<='Rent Roll'!$AH7)*AS10 -> 0 | AT18: =-(AT$5>'Rent Roll'!$AD7)*(AT$5<='Rent Roll'!$AE7)*AT10-(AT$5>'Rent Roll'!$AG7)*(AT$5<='Rent Roll'!$AH7)*AT10 -> 0 | AU18: =-(AU$5>'Rent Roll'!$AD7)*(AU$5<='Rent Roll'!$AE7)*AU10-(AU$5>'Rent Roll'!$AG7)*(AU$5<='Rent Roll'!$AH7)*AU10 -> 0 | AV18: =-(AV$5>'Rent Roll'!$AD7)*(AV$5<='Rent Roll'!$AE7)*AV10-(AV$5>'Rent Roll'!$AG7)*(AV$5<='Rent Roll'!$AH7)*AV10 -> 0 | AW18: =-(AW$5>'Rent Roll'!$AD7)*(AW$5<='Rent Roll'!$AE7)*AW10-(AW$5>'Rent Roll'!$AG7)*(AW$5<='Rent Roll'!$AH7)*AW10 -> 0 | AX18: =-(AX$5>'Rent Roll'!$AD7)*(AX$5<='Rent Roll'!$AE7)*AX10-(AX$5>'Rent Roll'!$AG7)*(AX$5<='Rent Roll'!$AH7)*AX10 -> 0 | AY18: =-(AY$5>'Rent Roll'!$AD7)*(AY$5<='Rent Roll'!$AE7)*AY10-(AY$5>'Rent Roll'!$AG7)*(AY$5<='Rent Roll'!$AH7)*AY10 -> 0 | AZ18: =-(AZ$5>'Rent Roll'!$AD7)*(AZ$5<='Rent Roll'!$AE7)*AZ10-(AZ$5>'Rent Roll'!$AG7)*(AZ$5<='Rent Roll'!$AH7)*AZ10 -> 0 | BA18: =-(BA$5>'Rent Roll'!$AD7)*(BA$5<='Rent Roll'!$AE7)*BA10-(BA$5>'Rent Roll'!$AG7)*(BA$5<='Rent Roll'!$AH7)*BA10 -> 0 | BB18: =-(BB$5>'Rent Roll'!$AD7)*(BB$5<='Rent Roll'!$AE7)*BB10-(BB$5>'Rent Roll'!$AG7)*(BB$5<='Rent Roll'!$AH7)*BB10 -> 0 | BC18: =-(BC$5>'Rent Roll'!$AD7)*(BC$5<='Rent Roll'!$AE7)*BC10-(BC$5>'Rent Roll'!$AG7)*(BC$5<='Rent Roll'!$AH7)*BC10 -> 0 | BD18: =-(BD$5>'Rent Roll'!$AD7)*(BD$5<='Rent Roll'!$AE7)*BD10-(BD$5>'Rent Roll'!$AG7)*(BD$5<='Rent Roll'!$AH7)*BD10 -> 0 | BE18: =-(BE$5>'Rent Roll'!$AD7)*(BE$5<='Rent Roll'!$AE7)*BE10-(BE$5>'Rent Roll'!$AG7)*(BE$5<='Rent Roll'!$AH7)*BE10 -> 0 | BF18: =-(BF$5>'Rent Roll'!$AD7)*(BF$5<='Rent Roll'!$AE7)*BF10-(BF$5>'Rent Roll'!$AG7)*(BF$5<='Rent Roll'!$AH7)*BF10 -> 0 | BG18: =-(BG$5>'Rent Roll'!$AD7)*(BG$5<='Rent Roll'!$AE7)*BG10-(BG$5>'Rent Roll'!$AG7)*(BG$5<='Rent Roll'!$AH7)*BG10 -> 0 | BH18: =-(BH$5>'Rent Roll'!$AD7)*(BH$5<='Rent Roll'!$AE7)*BH10-(BH$5>'Rent Roll'!$AG7)*(BH$5<='Rent Roll'!$AH7)*BH10 -> 0 | BI18: =-(BI$5>'Rent Roll'!$AD7)*(BI$5<='Rent Roll'!$AE7)*BI10-(BI$5>'Rent Roll'!$AG7)*(BI$5<='Rent Roll'!$AH7)*BI10 -> 0 | BJ18: =-(BJ$5>'Rent Roll'!$AD7)*(BJ$5<='Rent Roll'!$AE7)*BJ10-(BJ$5>'Rent Roll'!$AG7)*(BJ$5<='Rent Roll'!$AH7)*BJ10 -> 0 | BK18: =-(BK$5>'Rent Roll'!$AD7)*(BK$5<='Rent Roll'!$AE7)*BK10-(BK$5>'Rent Roll'!$AG7)*(BK$5<='Rent Roll'!$AH7)*BK10 -> 0 | BM18: STOP
B19: =+B11 -> Vacant | D19: =-(D$5>'Rent Roll'!$AD8)*(D$5<='Rent Roll'!$AE8)*D11-(D$5>'Rent Roll'!$AG8)*(D$5<='Rent Roll'!$AH8)*D11 -> -701.25 | E19: =-(E$5>'Rent Roll'!$AD8)*(E$5<='Rent Roll'!$AE8)*E11-(E$5>'Rent Roll'!$AG8)*(E$5<='Rent Roll'!$AH8)*E11 -> -701.25 | F19: =-(F$5>'Rent Roll'!$AD8)*(F$5<='Rent Roll'!$AE8)*F11-(F$5>'Rent Roll'!$AG8)*(F$5<='Rent Roll'!$AH8)*F11 -> -701.25 | G19: =-(G$5>'Rent Roll'!$AD8)*(G$5<='Rent Roll'!$AE8)*G11-(G$5>'Rent Roll'!$AG8)*(G$5<='Rent Roll'!$AH8)*G11 -> -701.25 | H19: =-(H$5>'Rent Roll'!$AD8)*(H$5<='Rent Roll'!$AE8)*H11-(H$5>'Rent Roll'!$AG8)*(H$5<='Rent Roll'!$AH8)*H11 -> -701.25 | I19: =-(I$5>'Rent Roll'!$AD8)*(I$5<='Rent Roll'!$AE8)*I11-(I$5>'Rent Roll'!$AG8)*(I$5<='Rent Roll'!$AH8)*I11 -> -701.25 | J19: =-(J$5>'Rent Roll'!$AD8)*(J$5<='Rent Roll'!$AE8)*J11-(J$5>'Rent Roll'!$AG8)*(J$5<='Rent Roll'!$AH8)*J11 -> -701.25 | K19: =-(K$5>'Rent Roll'!$AD8)*(K$5<='Rent Roll'!$AE8)*K11-(K$5>'Rent Roll'!$AG8)*(K$5<='Rent Roll'!$AH8)*K11 -> -701.25 | L19: =-(L$5>'Rent Roll'!$AD8)*(L$5<='Rent Roll'!$AE8)*L11-(L$5>'Rent Roll'!$AG8)*(L$5<='Rent Roll'!$AH8)*L11 -> -701.25 | M19: =-(M$5>'Rent Roll'!$AD8)*(M$5<='Rent Roll'!$AE8)*M11-(M$5>'Rent Roll'!$AG8)*(M$5<='Rent Roll'!$AH8)*M11 -> -701.25 | N19: =-(N$5>'Rent Roll'!$AD8)*(N$5<='Rent Roll'!$AE8)*N11-(N$5>'Rent Roll'!$AG8)*(N$5<='Rent Roll'!$AH8)*N11 -> -701.25 | O19: =-(O$5>'Rent Roll'!$AD8)*(O$5<='Rent Roll'!$AE8)*O11-(O$5>'Rent Roll'!$AG8)*(O$5<='Rent Roll'!$AH8)*O11 -> -701.25 | P19: =-(P$5>'Rent Roll'!$AD8)*(P$5<='Rent Roll'!$AE8)*P11-(P$5>'Rent Roll'!$AG8)*(P$5<='Rent Roll'!$AH8)*P11 -> -715.275 | Q19: =-(Q$5>'Rent Roll'!$AD8)*(Q$5<='Rent Roll'!$AE8)*Q11-(Q$5>'Rent Roll'!$AG8)*(Q$5<='Rent Roll'!$AH8)*Q11 -> 0 | R19: =-(R$5>'Rent Roll'!$AD8)*(R$5<='Rent Roll'!$AE8)*R11-(R$5>'Rent Roll'!$AG8)*(R$5<='Rent Roll'!$AH8)*R11 -> 0 | S19: =-(S$5>'Rent Roll'!$AD8)*(S$5<='Rent Roll'!$AE8)*S11-(S$5>'Rent Roll'!$AG8)*(S$5<='Rent Roll'!$AH8)*S11 -> 0 | T19: =-(T$5>'Rent Roll'!$AD8)*(T$5<='Rent Roll'!$AE8)*T11-(T$5>'Rent Roll'!$AG8)*(T$5<='Rent Roll'!$AH8)*T11 -> 0 | U19: =-(U$5>'Rent Roll'!$AD8)*(U$5<='Rent Roll'!$AE8)*U11-(U$5>'Rent Roll'!$AG8)*(U$5<='Rent Roll'!$AH8)*U11 -> 0 | V19: =-(V$5>'Rent Roll'!$AD8)*(V$5<='Rent Roll'!$AE8)*V11-(V$5>'Rent Roll'!$AG8)*(V$5<='Rent Roll'!$AH8)*V11 -> 0 | W19: =-(W$5>'Rent Roll'!$AD8)*(W$5<='Rent Roll'!$AE8)*W11-(W$5>'Rent Roll'!$AG8)*(W$5<='Rent Roll'!$AH8)*W11 -> 0 | X19: =-(X$5>'Rent Roll'!$AD8)*(X$5<='Rent Roll'!$AE8)*X11-(X$5>'Rent Roll'!$AG8)*(X$5<='Rent Roll'!$AH8)*X11 -> 0 | Y19: =-(Y$5>'Rent Roll'!$AD8)*(Y$5<='Rent Roll'!$AE8)*Y11-(Y$5>'Rent Roll'!$AG8)*(Y$5<='Rent Roll'!$AH8)*Y11 -> 0 | Z19: =-(Z$5>'Rent Roll'!$AD8)*(Z$5<='Rent Roll'!$AE8)*Z11-(Z$5>'Rent Roll'!$AG8)*(Z$5<='Rent Roll'!$AH8)*Z11 -> 0 | AA19: =-(AA$5>'Rent Roll'!$AD8)*(AA$5<='Rent Roll'!$AE8)*AA11-(AA$5>'Rent Roll'!$AG8)*(AA$5<='Rent Roll'!$AH8)*AA11 -> 0 | AB19: =-(AB$5>'Rent Roll'!$AD8)*(AB$5<='Rent Roll'!$AE8)*AB11-(AB$5>'Rent Roll'!$AG8)*(AB$5<='Rent Roll'!$AH8)*AB11 -> 0 | AC19: =-(AC$5>'Rent Roll'!$AD8)*(AC$5<='Rent Roll'!$AE8)*AC11-(AC$5>'Rent Roll'!$AG8)*(AC$5<='Rent Roll'!$AH8)*AC11 -> 0 | AD19: =-(AD$5>'Rent Roll'!$AD8)*(AD$5<='Rent Roll'!$AE8)*AD11-(AD$5>'Rent Roll'!$AG8)*(AD$5<='Rent Roll'!$AH8)*AD11 -> 0 | AE19: =-(AE$5>'Rent Roll'!$AD8)*(AE$5<='Rent Roll'!$AE8)*AE11-(AE$5>'Rent Roll'!$AG8)*(AE$5<='Rent Roll'!$AH8)*AE11 -> 0 | AF19: =-(AF$5>'Rent Roll'!$AD8)*(AF$5<='Rent Roll'!$AE8)*AF11-(AF$5>'Rent Roll'!$AG8)*(AF$5<='Rent Roll'!$AH8)*AF11 -> 0 | AG19: =-(AG$5>'Rent Roll'!$AD8)*(AG$5<='Rent Roll'!$AE8)*AG11-(AG$5>'Rent Roll'!$AG8)*(AG$5<='Rent Roll'!$AH8)*AG11 -> 0 | AH19: =-(AH$5>'Rent Roll'!$AD8)*(AH$5<='Rent Roll'!$AE8)*AH11-(AH$5>'Rent Roll'!$AG8)*(AH$5<='Rent Roll'!$AH8)*AH11 -> 0 | AI19: =-(AI$5>'Rent Roll'!$AD8)*(AI$5<='Rent Roll'!$AE8)*AI11-(AI$5>'Rent Roll'!$AG8)*(AI$5<='Rent Roll'!$AH8)*AI11 -> 0 | AJ19: =-(AJ$5>'Rent Roll'!$AD8)*(AJ$5<='Rent Roll'!$AE8)*AJ11-(AJ$5>'Rent Roll'!$AG8)*(AJ$5<='Rent Roll'!$AH8)*AJ11 -> 0 | AK19: =-(AK$5>'Rent Roll'!$AD8)*(AK$5<='Rent Roll'!$AE8)*AK11-(AK$5>'Rent Roll'!$AG8)*(AK$5<='Rent Roll'!$AH8)*AK11 -> 0 | AL19: =-(AL$5>'Rent Roll'!$AD8)*(AL$5<='Rent Roll'!$AE8)*AL11-(AL$5>'Rent Roll'!$AG8)*(AL$5<='Rent Roll'!$AH8)*AL11 -> 0 | AM19: =-(AM$5>'Rent Roll'!$AD8)*(AM$5<='Rent Roll'!$AE8)*AM11-(AM$5>'Rent Roll'!$AG8)*(AM$5<='Rent Roll'!$AH8)*AM11 -> 0 | AN19: =-(AN$5>'Rent Roll'!$AD8)*(AN$5<='Rent Roll'!$AE8)*AN11-(AN$5>'Rent Roll'!$AG8)*(AN$5<='Rent Roll'!$AH8)*AN11 -> 0 | AO19: =-(AO$5>'Rent Roll'!$AD8)*(AO$5<='Rent Roll'!$AE8)*AO11-(AO$5>'Rent Roll'!$AG8)*(AO$5<='Rent Roll'!$AH8)*AO11 -> 0 | AP19: =-(AP$5>'Rent Roll'!$AD8)*(AP$5<='Rent Roll'!$AE8)*AP11-(AP$5>'Rent Roll'!$AG8)*(AP$5<='Rent Roll'!$AH8)*AP11 -> 0 | AQ19: =-(AQ$5>'Rent Roll'!$AD8)*(AQ$5<='Rent Roll'!$AE8)*AQ11-(AQ$5>'Rent Roll'!$AG8)*(AQ$5<='Rent Roll'!$AH8)*AQ11 -> 0 | AR19: =-(AR$5>'Rent Roll'!$AD8)*(AR$5<='Rent Roll'!$AE8)*AR11-(AR$5>'Rent Roll'!$AG8)*(AR$5<='Rent Roll'!$AH8)*AR11 -> 0 | AS19: =-(AS$5>'Rent Roll'!$AD8)*(AS$5<='Rent Roll'!$AE8)*AS11-(AS$5>'Rent Roll'!$AG8)*(AS$5<='Rent Roll'!$AH8)*AS11 -> 0 | AT19: =-(AT$5>'Rent Roll'!$AD8)*(AT$5<='Rent Roll'!$AE8)*AT11-(AT$5>'Rent Roll'!$AG8)*(AT$5<='Rent Roll'!$AH8)*AT11 -> 0 | AU19: =-(AU$5>'Rent Roll'!$AD8)*(AU$5<='Rent Roll'!$AE8)*AU11-(AU$5>'Rent Roll'!$AG8)*(AU$5<='Rent Roll'!$AH8)*AU11 -> 0 | AV19: =-(AV$5>'Rent Roll'!$AD8)*(AV$5<='Rent Roll'!$AE8)*AV11-(AV$5>'Rent Roll'!$AG8)*(AV$5<='Rent Roll'!$AH8)*AV11 -> 0 | AW19: =-(AW$5>'Rent Roll'!$AD8)*(AW$5<='Rent Roll'!$AE8)*AW11-(AW$5>'Rent Roll'!$AG8)*(AW$5<='Rent Roll'!$AH8)*AW11 -> 0 | AX19: =-(AX$5>'Rent Roll'!$AD8)*(AX$5<='Rent Roll'!$AE8)*AX11-(AX$5>'Rent Roll'!$AG8)*(AX$5<='Rent Roll'!$AH8)*AX11 -> 0 | AY19: =-(AY$5>'Rent Roll'!$AD8)*(AY$5<='Rent Roll'!$AE8)*AY11-(AY$5>'Rent Roll'!$AG8)*(AY$5<='Rent Roll'!$AH8)*AY11 -> 0 | AZ19: =-(AZ$5>'Rent Roll'!$AD8)*(AZ$5<='Rent Roll'!$AE8)*AZ11-(AZ$5>'Rent Roll'!$AG8)*(AZ$5<='Rent Roll'!$AH8)*AZ11 -> 0 | BA19: =-(BA$5>'Rent Roll'!$AD8)*(BA$5<='Rent Roll'!$AE8)*BA11-(BA$5>'Rent Roll'!$AG8)*(BA$5<='Rent Roll'!$AH8)*BA11 -> 0 | BB19: =-(BB$5>'Rent Roll'!$AD8)*(BB$5<='Rent Roll'!$AE8)*BB11-(BB$5>'Rent Roll'!$AG8)*(BB$5<='Rent Roll'!$AH8)*BB11 -> 0 | BC19: =-(BC$5>'Rent Roll'!$AD8)*(BC$5<='Rent Roll'!$AE8)*BC11-(BC$5>'Rent Roll'!$AG8)*(BC$5<='Rent Roll'!$AH8)*BC11 -> 0 | BD19: =-(BD$5>'Rent Roll'!$AD8)*(BD$5<='Rent Roll'!$AE8)*BD11-(BD$5>'Rent Roll'!$AG8)*(BD$5<='Rent Roll'!$AH8)*BD11 -> 0 | BE19: =-(BE$5>'Rent Roll'!$AD8)*(BE$5<='Rent Roll'!$AE8)*BE11-(BE$5>'Rent Roll'!$AG8)*(BE$5<='Rent Roll'!$AH8)*BE11 -> 0 | BF19: =-(BF$5>'Rent Roll'!$AD8)*(BF$5<='Rent Roll'!$AE8)*BF11-(BF$5>'Rent Roll'!$AG8)*(BF$5<='Rent Roll'!$AH8)*BF11 -> 0 | BG19: =-(BG$5>'Rent Roll'!$AD8)*(BG$5<='Rent Roll'!$AE8)*BG11-(BG$5>'Rent Roll'!$AG8)*(BG$5<='Rent Roll'!$AH8)*BG11 -> 0 | BH19: =-(BH$5>'Rent Roll'!$AD8)*(BH$5<='Rent Roll'!$AE8)*BH11-(BH$5>'Rent Roll'!$AG8)*(BH$5<='Rent Roll'!$AH8)*BH11 -> 0 | BI19: =-(BI$5>'Rent Roll'!$AD8)*(BI$5<='Rent Roll'!$AE8)*BI11-(BI$5>'Rent Roll'!$AG8)*(BI$5<='Rent Roll'!$AH8)*BI11 -> 0 | BJ19: =-(BJ$5>'Rent Roll'!$AD8)*(BJ$5<='Rent Roll'!$AE8)*BJ11-(BJ$5>'Rent Roll'!$AG8)*(BJ$5<='Rent Roll'!$AH8)*BJ11 -> 0 | BK19: =-(BK$5>'Rent Roll'!$AD8)*(BK$5<='Rent Roll'!$AE8)*BK11-(BK$5>'Rent Roll'!$AG8)*(BK$5<='Rent Roll'!$AH8)*BK11 -> 0 | BM19: STOP
B20: Less: Absorption & Turnover Vacancy | D20: =SUM(D15:D19) -> -3582.21875 | E20: =SUM(E15:E19) -> -3582.21875 | F20: -3582.21875 | G20: -3582.21875 | H20: -3582.21875 | I20: -3582.21875 | J20: -3582.21875 | K20: -3582.21875 | L20: -3582.21875 | M20: -3582.21875 | N20: -3582.21875 | O20: -3582.21875 | P20: -3653.863125 | Q20: 0 | R20: 0 | S20: 0 | T20: 0 | U20: 0 | V20: 0 | W20: 0 | X20: 0 | Y20: 0 | Z20: 0 | AA20: 0 | AB20: 0 | AC20: 0 | AD20: 0 | AE20: 0 | AF20: 0 | AG20: 0 | AH20: 0 | AI20: 0 | AJ20: 0 | AK20: 0 | AL20: 0 | AM20: 0 | AN20: 0 | AO20: 0 | AP20: 0 | AQ20: 0 | AR20: 0 | AS20: 0 | AT20: 0 | AU20: 0 | AV20: 0 | AW20: 0 | AX20: 0 | AY20: 0 | AZ20: 0 | BA20: 0 | BB20: -15399.79449 | BC20: -15399.79449 | BD20: -15399.79449 | BE20: -15399.79449 | BF20: -15399.79449 | BG20: -15399.79449 | BH20: -15399.79449 | BI20: -15399.79449 | BJ20: 0 | BK20: 0 | BM20: STOP
BM21: STOP
B22: Net Scheduled Base Rental Revenue | D22: =+D12+D20 -> 13130.2492 | E22: =+E12+E20 -> 13130.2492 | F22: 13130.2492 | G22: 13130.2492 | H22: 13130.2492 | I22: 13130.2492 | J22: 13130.2492 | K22: 13130.2492 | L22: 13130.2492 | M22: 13130.2492 | N22: 13130.2492 | O22: 13130.2492 | P22: 13392.85418 | Q22: 17046.71731 | R22: 17046.71731 | S22: 17046.71731 | T22: 17046.71731 | U22: 17046.71731 | V22: 17046.71731 | W22: 17046.71731 | X22: 17046.71731 | Y22: 17046.71731 | Z22: 17046.71731 | AA22: 17046.71731 | AB22: 17387.65166 | AC22: 17387.65166 | AD22: 17387.65166 | AE22: 17387.65166 | AF22: 17387.65166 | AG22: 17387.65166 | AH22: 17387.65166 | AI22: 17387.65166 | AJ22: 17387.65166 | AK22: 17387.65166 | AL22: 17387.65166 | AM22: 17387.65166 | AN22: 17735.40469 | AO22: 17735.40469 | AP22: 17735.40469 | AQ22: 17735.40469 | AR22: 17735.40469 | AS22: 17735.40469 | AT22: 17735.40469 | AU22: 17735.40469 | AV22: 17735.40469 | AW22: 17735.40469 | AX22: 17735.40469 | AY22: 17735.40469 | AZ22: 18090.11278 | BA22: 18090.11278 | BB22: 3877.508779 | BC22: 3877.508779 | BD22: 3877.508779 | BE22: 3877.508779 | BF22: 3877.508779 | BG22: 3877.508779 | BH22: 3877.508779 | BI22: 3877.508779 | BJ22: 19277.30327 | BK22: 19277.30327 | BM22: STOP
BM23: STOP
B24: Other Income | D24: 0 | E24: 0 | F24: 0 | G24: 0 | H24: 0 | I24: 0 | J24: 0 | K24: 0 | L24: 0 | M24: 0 | N24: 0 | O24: 0 | P24: 0 | Q24: 0 | R24: 0 | S24: 0 | T24: 0 | U24: 0 | V24: 0 | W24: 0 | X24: 0 | Y24: 0 | Z24: 0 | AA24: 0 | AB24: 0 | AC24: 0 | AD24: 0 | AE24: 0 | AF24: 0 | AG24: 0 | AH24: 0 | AI24: 0 | AJ24: 0 | AK24: 0 | AL24: 0 | AM24: 0 | AN24: 0 | AO24: 0 | AP24: 0 | AQ24: 0 | AR24: 0 | AS24: 0 | AT24: 0 | AU24: 0 | AV24: 0 | AW24: 0 | AX24: 0 | AY24: 0 | AZ24: 0 | BA24: 0 | BB24: 0 | BC24: 0 | BD24: 0 | BE24: 0 | BF24: 0 | BG24: 0 | BH24: 0 | BI24: 0 | BJ24: 0 | BK24: 0 | BM24: STOP
BM25: STOP
B26: REIMBURSEMENT: | BM26: STOP
B27: =+B15 -> ABC | D27: =(D5>='Rent Roll'!$J$4)*(D5<='Rent Roll'!$K$4)*'Rent Roll'!$M$4*'Rent Roll'!$F$4*(1+Assumptions!$C$5)^(ROUNDDOWN((D4-$C$4-1)/12,0)+1)/12+(D5>'Rent Roll'!$AE$4)*(D5<=EOMONTH('Rent Roll'!$AD$4,'Rent Roll'!$S$4))*'Rent Roll'!$T$4*'Rent Roll'!$F$4*(1+Assumptions!$C$5)^(ROUNDDOWN((D4-$C$4-1)/12,0)+1)/12 -> 4709.63886 | E27: =(E5>='Rent Roll'!$J$4)*(E5<='Rent Roll'!$K$4)*'Rent Roll'!$M$4*'Rent Roll'!$F$4*(1+Assumptions!$C$5)^(ROUNDDOWN((E4-$C$4-1)/12,0)+1)/12+(E5>'Rent Roll'!$AE$4)*(E5<=EOMONTH('Rent Roll'!$AD$4,'Rent Roll'!$S$4))*'Rent Roll'!$T$4*'Rent Roll'!$F$4*(1+Assumptions!$C$5)^(ROUNDDOWN((E4-$C$4-1)/12,0)+1)/12 -> 4709.63886 | F27: =(F5>='Rent Roll'!$J$4)*(F5<='Rent Roll'!$K$4)*'Rent Roll'!$M$4*'Rent Roll'!$F$4*(1+Assumptions!$C$5)^(ROUNDDOWN((F4-$C$4-1)/12,0)+1)/12+(F5>'Rent Roll'!$AE$4)*(F5<=EOMONTH('Rent Roll'!$AD$4,'Rent Roll'!$S$4))*'Rent Roll'!$T$4*'Rent Roll'!$F$4*(1+Assumptions!$C$5)^(ROUNDDOWN((F4-$C$4-1)/12,0)+1)/12 -> 4709.63886 | G27: =(G5>='Rent Roll'!$J$4)*(G5<='Rent Roll'!$K$4)*'Rent Roll'!$M$4*'Rent Roll'!$F$4*(1+Assumptions!$C$5)^(ROUNDDOWN((G4-$C$4-1)/12,0)+1)/12+(G5>'Rent Roll'!$AE$4)*(G5<=EOMONTH('Rent Roll'!$AD$4,'Rent Roll'!$S$4))*'Rent Roll'!$T$4*'Rent Roll'!$F$4*(1+Assumptions!$C$5)^(ROUNDDOWN((G4-$C$4-1)/12,0)+1)/12 -> 4709.63886 | H27: =(H5>='Rent Roll'!$J$4)*(H5<='Rent Roll'!$K$4)*'Rent Roll'!$M$4*'Rent Roll'!$F$4*(1+Assumptions!$C$5)^(ROUNDDOWN((H4-$C$4-1)/12,0)+1)/12+(H5>'Rent Roll'!$AE$4)*(H5<=EOMONTH('Rent Roll'!$AD$4,'Rent Roll'!$S$4))*'Rent Roll'!$T$4*'Rent Roll'!$F$4*(1+Assumptions!$C$5)^(ROUNDDOWN((H4-$C$4-1)/12,0)+1)/12 -> 4709.63886 | I27: =(I5>='Rent Roll'!$J$4)*(I5<='Rent Roll'!$K$4)*'Rent Roll'!$M$4*'Rent Roll'!$F$4*(1+Assumptions!$C$5)^(ROUNDDOWN((I4-$C$4-1)/12,0)+1)/12+(I5>'Rent Roll'!$AE$4)*(I5<=EOMONTH('Rent Roll'!$AD$4,'Rent Roll'!$S$4))*'Rent Roll'!$T$4*'Rent Roll'!$F$4*(1+Assumptions!$C$5)^(ROUNDDOWN((I4-$C$4-1)/12,0)+1)/12 -> 4709.63886 | J27: =(J5>='Rent Roll'!$J$4)*(J5<='Rent Roll'!$K$4)*'Rent Roll'!$M$4*'Rent Roll'!$F$4*(1+Assumptions!$C$5)^(ROUNDDOWN((J4-$C$4-1)/12,0)+1)/12+(J5>'Rent Roll'!$AE$4)*(J5<=EOMONTH('Rent Roll'!$AD$4,'Rent Roll'!$S$4))*'Rent Roll'!$T$4*'Rent Roll'!$F$4*(1+Assumptions!$C$5)^(ROUNDDOWN((J4-$C$4-1)/12,0)+1)/12 -> 4709.63886 | K27: =(K5>='Rent Roll'!$J$4)*(K5<='Rent Roll'!$K$4)*'Rent Roll'!$M$4*'Rent Roll'!$F$4*(1+Assumptions!$C$5)^(ROUNDDOWN((K4-$C$4-1)/12,0)+1)/12+(K5>'Rent Roll'!$AE$4)*(K5<=EOMONTH('Rent Roll'!$AD$4,'Rent Roll'!$S$4))*'Rent Roll'!$T$4*'Rent Roll'!$F$4*(1+Assumptions!$C$5)^(ROUNDDOWN((K4-$C$4-1)/12,0)+1)/12 -> 4709.63886 | L27: =(L5>='Rent Roll'!$J$4)*(L5<='Rent Roll'!$K$4)*'Rent Roll'!$M$4*'Rent Roll'!$F$4*(1+Assumptions!$C$5)^(ROUNDDOWN((L4-$C$4-1)/12,0)+1)/12+(L5>'Rent Roll'!$AE$4)*(L5<=EOMONTH('Rent Roll'!$AD$4,'Rent Roll'!$S$4))*'Rent Roll'!$T$4*'Rent Roll'!$F$4*(1+Assumptions!$C$5)^(ROUNDDOWN((L4-$C$4-1)/12,0)+1)/12 -> 4709.63886 | M27: =(M5>='Rent Roll'!$J$4)*(M5<='Rent Roll'!$K$4)*'Rent Roll'!$M$4*'Rent Roll'!$F$4*(1+Assumptions!$C$5)^(ROUNDDOWN((M4-$C$4-1)/12,0)+1)/12+(M5>'Rent Roll'!$AE$4)*(M5<=EOMONTH('Rent Roll'!$AD$4,'Rent Roll'!$S$4))*'Rent Roll'!$T$4*'Rent Roll'!$F$4*(1+Assumptions!$C$5)^(ROUNDDOWN((M4-$C$4-1)/12,0)+1)/12 -> 4709.63886 | N27: =(N5>='Rent Roll'!$J$4)*(N5<='Rent Roll'!$K$4)*'Rent Roll'!$M$4*'Rent Roll'!$F$4*(1+Assumptions!$C$5)^(ROUNDDOWN((N4-$C$4-1)/12,0)+1)/12+(N5>'Rent Roll'!$AE$4)*(N5<=EOMONTH('Rent Roll'!$AD$4,'Rent Roll'!$S$4))*'Rent Roll'!$T$4*'Rent Roll'!$F$4*(1+Assumptions!$C$5)^(ROUNDDOWN((N4-$C$4-1)/12,0)+1)/12 -> 4709.63886 | O27: =(O5>='Rent Roll'!$J$4)*(O5<='Rent Roll'!$K$4)*'Rent Roll'!$M$4*'Rent Roll'!$F$4*(1+Assumptions!$C$5)^(ROUNDDOWN((O4-$C$4-1)/12,0)+1)/12+(O5>'Rent Roll'!$AE$4)*(O5<=EOMONTH('Rent Roll'!$AD$4,'Rent Roll'!$S$4))*'Rent Roll'!$T$4*'Rent Roll'!$F$4*(1+Assumptions!$C$5)^(ROUNDDOWN((O4-$C$4-1)/12,0)+1)/12 -> 4709.63886 | P27: =(P5>='Rent Roll'!$J$4)*(P5<='Rent Roll'!$K$4)*'Rent Roll'!$M$4*'Rent Roll'!$F$4*(1+Assumptions!$C$5)^(ROUNDDOWN((P4-$C$4-1)/12,0)+1)/12+(P5>'Rent Roll'!$AE$4)*(P5<=EOMONTH('Rent Roll'!$AD$4,'Rent Roll'!$S$4))*'Rent Roll'!$T$4*'Rent Roll'!$F$4*(1+Assumptions!$C$5)^(ROUNDDOWN((P4-$C$4-1)/12,0)+1)/12 -> 4803.831637 | Q27: =(Q5>='Rent Roll'!$J$4)*(Q5<='Rent Roll'!$K$4)*'Rent Roll'!$M$4*'Rent Roll'!$F$4*(1+Assumptions!$C$5)^(ROUNDDOWN((Q4-$C$4-1)/12,0)+1)/12+(Q5>'Rent Roll'!$AE$4)*(Q5<=EOMONTH('Rent Roll'!$AD$4,'Rent Roll'!$S$4))*'Rent Roll'!$T$4*'Rent Roll'!$F$4*(1+Assumptions!$C$5)^(ROUNDDOWN((Q4-$C$4-1)/12,0)+1)/12 -> 4803.831637 | R27: =(R5>='Rent Roll'!$J$4)*(R5<='Rent Roll'!$K$4)*'Rent Roll'!$M$4*'Rent Roll'!$F$4*(1+Assumptions!$C$5)^(ROUNDDOWN((R4-$C$4-1)/12,0)+1)/12+(R5>'Rent Roll'!$AE$4)*(R5<=EOMONTH('Rent Roll'!$AD$4,'Rent Roll'!$S$4))*'Rent Roll'!$T$4*'Rent Roll'!$F$4*(1+Assumptions!$C$5)^(ROUNDDOWN((R4-$C$4-1)/12,0)+1)/12 -> 4803.831637 | S27: =(S5>='Rent Roll'!$J$4)*(S5<='Rent Roll'!$K$4)*'Rent Roll'!$M$4*'Rent Roll'!$F$4*(1+Assumptions!$C$5)^(ROUNDDOWN((S4-$C$4-1)/12,0)+1)/12+(S5>'Rent Roll'!$AE$4)*(S5<=EOMONTH('Rent Roll'!$AD$4,'Rent Roll'!$S$4))*'Rent Roll'!$T$4*'Rent Roll'!$F$4*(1+Assumptions!$C$5)^(ROUNDDOWN((S4-$C$4-1)/12,0)+1)/12 -> 4803.831637 | T27: =(T5>='Rent Roll'!$J$4)*(T5<='Rent Roll'!$K$4)*'Rent Roll'!$M$4*'Rent Roll'!$F$4*(1+Assumptions!$C$5)^(ROUNDDOWN((T4-$C$4-1)/12,0)+1)/12+(T5>'Rent Roll'!$AE$4)*(T5<=EOMONTH('Rent Roll'!$AD$4,'Rent Roll'!$S$4))*'Rent Roll'!$T$4*'Rent Roll'!$F$4*(1+Assumptions!$C$5)^(ROUNDDOWN((T4-$C$4-1)/12,0)+1)/12 -> 4803.831637 | U27: =(U5>='Rent Roll'!$J$4)*(U5<='Rent Roll'!$K$4)*'Rent Roll'!$M$4*'Rent Roll'!$F$4*(1+Assumptions!$C$5)^(ROUNDDOWN((U4-$C$4-1)/12,0)+1)/12+(U5>'Rent Roll'!$AE$4)*(U5<=EOMONTH('Rent Roll'!$AD$4,'Rent Roll'!$S$4))*'Rent Roll'!$T$4*'Rent Roll'!$F$4*(1+Assumptions!$C$5)^(ROUNDDOWN((U4-$C$4-1)/12,0)+1)/12 -> 4803.831637 | V27: =(V5>='Rent Roll'!$J$4)*(V5<='Rent Roll'!$K$4)*'Rent Roll'!$M$4*'Rent Roll'!$F$4*(1+Assumptions!$C$5)^(ROUNDDOWN((V4-$C$4-1)/12,0)+1)/12+(V5>'Rent Roll'!$AE$4)*(V5<=EOMONTH('Rent Roll'!$AD$4,'Rent Roll'!$S$4))*'Rent Roll'!$T$4*'Rent Roll'!$F$4*(1+Assumptions!$C$5)^(ROUNDDOWN((V4-$C$4-1)/12,0)+1)/12 -> 4803.831637 | W27: =(W5>='Rent Roll'!$J$4)*(W5<='Rent Roll'!$K$4)*'Rent Roll'!$M$4*'Rent Roll'!$F$4*(1+Assumptions!$C$5)^(ROUNDDOWN((W4-$C$4-1)/12,0)+1)/12+(W5>'Rent Roll'!$AE$4)*(W5<=EOMONTH('Rent Roll'!$AD$4,'Rent Roll'!$S$4))*'Rent Roll'!$T$4*'Rent Roll'!$F$4*(1+Assumptions!$C$5)^(ROUNDDOWN((W4-$C$4-1)/12,0)+1)/12 -> 4803.831637 | X27: =(X5>='Rent Roll'!$J$4)*(X5<='Rent Roll'!$K$4)*'Rent Roll'!$M$4*'Rent Roll'!$F$4*(1+Assumptions!$C$5)^(ROUNDDOWN((X4-$C$4-1)/12,0)+1)/12+(X5>'Rent Roll'!$AE$4)*(X5<=EOMONTH('Rent Roll'!$AD$4,'Rent Roll'!$S$4))*'Rent Roll'!$T$4*'Rent Roll'!$F$4*(1+Assumptions!$C$5)^(ROUNDDOWN((X4-$C$4-1)/12,0)+1)/12 -> 4803.831637 | Y27: =(Y5>='Rent Roll'!$J$4)*(Y5<='Rent Roll'!$K$4)*'Rent Roll'!$M$4*'Rent Roll'!$F$4*(1+Assumptions!$C$5)^(ROUNDDOWN((Y4-$C$4-1)/12,0)+1)/12+(Y5>'Rent Roll'!$AE$4)*(Y5<=EOMONTH('Rent Roll'!$AD$4,'Rent Roll'!$S$4))*'Rent Roll'!$T$4*'Rent Roll'!$F$4*(1+Assumptions!$C$5)^(ROUNDDOWN((Y4-$C$4-1)/12,0)+1)/12 -> 4803.831637 | Z27: =(Z5>='Rent Roll'!$J$4)*(Z5<='Rent Roll'!$K$4)*'Rent Roll'!$M$4*'Rent Roll'!$F$4*(1+Assumptions!$C$5)^(ROUNDDOWN((Z4-$C$4-1)/12,0)+1)/12+(Z5>'Rent Roll'!$AE$4)*(Z5<=EOMONTH('Rent Roll'!$AD$4,'Rent Roll'!$S$4))*'Rent Roll'!$T$4*'Rent Roll'!$F$4*(1+Assumptions!$C$5)^(ROUNDDOWN((Z4-$C$4-1)/12,0)+1)/12 -> 4803.831637 | AA27: =(AA5>='Rent Roll'!$J$4)*(AA5<='Rent Roll'!$K$4)*'Rent Roll'!$M$4*'Rent Roll'!$F$4*(1+Assumptions!$C$5)^(ROUNDDOWN((AA4-$C$4-1)/12,0)+1)/12+(AA5>'Rent Roll'!$AE$4)*(AA5<=EOMONTH('Rent Roll'!$AD$4,'Rent Roll'!$S$4))*'Rent Roll'!$T$4*'Rent Roll'!$F$4*(1+Assumptions!$C$5)^(ROUNDDOWN((AA4-$C$4-1)/12,0)+1)/12 -> 4803.831637 | AB27: =(AB5>='Rent Roll'!$J$4)*(AB5<='Rent Roll'!$K$4)*'Rent Roll'!$M$4*'Rent Roll'!$F$4*(1+Assumptions!$C$5)^(ROUNDDOWN((AB4-$C$4-1)/12,0)+1)/12+(AB5>'Rent Roll'!$AE$4)*(AB5<=EOMONTH('Rent Roll'!$AD$4,'Rent Roll'!$S$4))*'Rent Roll'!$T$4*'Rent Roll'!$F$4*(1+Assumptions!$C$5)^(ROUNDDOWN((AB4-$C$4-1)/12,0)+1)/12 -> 4899.90827 | AC27: =(AC5>='Rent Roll'!$J$4)*(AC5<='Rent Roll'!$K$4)*'Rent Roll'!$M$4*'Rent Roll'!$F$4*(1+Assumptions!$C$5)^(ROUNDDOWN((AC4-$C$4-1)/12,0)+1)/12+(AC5>'Rent Roll'!$AE$4)*(AC5<=EOMONTH('Rent Roll'!$AD$4,'Rent Roll'!$S$4))*'Rent Roll'!$T$4*'Rent Roll'!$F$4*(1+Assumptions!$C$5)^(ROUNDDOWN((AC4-$C$4-1)/12,0)+1)/12 -> 4899.90827 | AD27: =(AD5>='Rent Roll'!$J$4)*(AD5<='Rent Roll'!$K$4)*'Rent Roll'!$M$4*'Rent Roll'!$F$4*(1+Assumptions!$C$5)^(ROUNDDOWN((AD4-$C$4-1)/12,0)+1)/12+(AD5>'Rent Roll'!$AE$4)*(AD5<=EOMONTH('Rent Roll'!$AD$4,'Rent Roll'!$S$4))*'Rent Roll'!$T$4*'Rent Roll'!$F$4*(1+Assumptions!$C$5)^(ROUNDDOWN((AD4-$C$4-1)/12,0)+1)/12 -> 4899.90827 | AE27: =(AE5>='Rent Roll'!$J$4)*(AE5<='Rent Roll'!$K$4)*'Rent Roll'!$M$4*'Rent Roll'!$F$4*(1+Assumptions!$C$5)^(ROUNDDOWN((AE4-$C$4-1)/12,0)+1)/12+(AE5>'Rent Roll'!$AE$4)*(AE5<=EOMONTH('Rent Roll'!$AD$4,'Rent Roll'!$S$4))*'Rent Roll'!$T$4*'Rent Roll'!$F$4*(1+Assumptions!$C$5)^(ROUNDDOWN((AE4-$C$4-1)/12,0)+1)/12 -> 4899.90827 | AF27: =(AF5>='Rent Roll'!$J$4)*(AF5<='Rent Roll'!$K$4)*'Rent Roll'!$M$4*'Rent Roll'!$F$4*(1+Assumptions!$C$5)^(ROUNDDOWN((AF4-$C$4-1)/12,0)+1)/12+(AF5>'Rent Roll'!$AE$4)*(AF5<=EOMONTH('Rent Roll'!$AD$4,'Rent Roll'!$S$4))*'Rent Roll'!$T$4*'Rent Roll'!$F$4*(1+Assumptions!$C$5)^(ROUNDDOWN((AF4-$C$4-1)/12,0)+1)/12 -> 4899.90827 | AG27: =(AG5>='Rent Roll'!$J$4)*(AG5<='Rent Roll'!$K$4)*'Rent Roll'!$M$4*'Rent Roll'!$F$4*(1+Assumptions!$C$5)^(ROUNDDOWN((AG4-$C$4-1)/12,0)+1)/12+(AG5>'Rent Roll'!$AE$4)*(AG5<=EOMONTH('Rent Roll'!$AD$4,'Rent Roll'!$S$4))*'Rent Roll'!$T$4*'Rent Roll'!$F$4*(1+Assumptions!$C$5)^(ROUNDDOWN((AG4-$C$4-1)/12,0)+1)/12 -> 4899.90827 | AH27: =(AH5>='Rent Roll'!$J$4)*(AH5<='Rent Roll'!$K$4)*'Rent Roll'!$M$4*'Rent Roll'!$F$4*(1+Assumptions!$C$5)^(ROUNDDOWN((AH4-$C$4-1)/12,0)+1)/12+(AH5>'Rent Roll'!$AE$4)*(AH5<=EOMONTH('Rent Roll'!$AD$4,'Rent Roll'!$S$4))*'Rent Roll'!$T$4*'Rent Roll'!$F$4*(1+Assumptions!$C$5)^(ROUNDDOWN((AH4-$C$4-1)/12,0)+1)/12 -> 4899.90827 | AI27: =(AI5>='Rent Roll'!$J$4)*(AI5<='Rent Roll'!$K$4)*'Rent Roll'!$M$4*'Rent Roll'!$F$4*(1+Assumptions!$C$5)^(ROUNDDOWN((AI4-$C$4-1)/12,0)+1)/12+(AI5>'Rent Roll'!$AE$4)*(AI5<=EOMONTH('Rent Roll'!$AD$4,'Rent Roll'!$S$4))*'Rent Roll'!$T$4*'Rent Roll'!$F$4*(1+Assumptions!$C$5)^(ROUNDDOWN((AI4-$C$4-1)/12,0)+1)/12 -> 4899.90827 | AJ27: =(AJ5>='Rent Roll'!$J$4)*(AJ5<='Rent Roll'!$K$4)*'Rent Roll'!$M$4*'Rent Roll'!$F$4*(1+Assumptions!$C$5)^(ROUNDDOWN((AJ4-$C$4-1)/12,0)+1)/12+(AJ5>'Rent Roll'!$AE$4)*(AJ5<=EOMONTH('Rent Roll'!$AD$4,'Rent Roll'!$S$4))*'Rent Roll'!$T$4*'Rent Roll'!$F$4*(1+Assumptions!$C$5)^(ROUNDDOWN((AJ4-$C$4-1)/12,0)+1)/12 -> 4899.90827 | AK27: =(AK5>='Rent Roll'!$J$4)*(AK5<='Rent Roll'!$K$4)*'Rent Roll'!$M$4*'Rent Roll'!$F$4*(1+Assumptions!$C$5)^(ROUNDDOWN((AK4-$C$4-1)/12,0)+1)/12+(AK5>'Rent Roll'!$AE$4)*(AK5<=EOMONTH('Rent Roll'!$AD$4,'Rent Roll'!$S$4))*'Rent Roll'!$T$4*'Rent Roll'!$F$4*(1+Assumptions!$C$5)^(ROUNDDOWN((AK4-$C$4-1)/12,0)+1)/12 -> 4899.90827 | AL27: =(AL5>='Rent Roll'!$J$4)*(AL5<='Rent Roll'!$K$4)*'Rent Roll'!$M$4*'Rent Roll'!$F$4*(1+Assumptions!$C$5)^(ROUNDDOWN((AL4-$C$4-1)/12,0)+1)/12+(AL5>'Rent Roll'!$AE$4)*(AL5<=EOMONTH('Rent Roll'!$AD$4,'Rent Roll'!$S$4))*'Rent Roll'!$T$4*'Rent Roll'!$F$4*(1+Assumptions!$C$5)^(ROUNDDOWN((AL4-$C$4-1)/12,0)+1)/12 -> 4899.90827 | AM27: =(AM5>='Rent Roll'!$J$4)*(AM5<='Rent Roll'!$K$4)*'Rent Roll'!$M$4*'Rent Roll'!$F$4*(1+Assumptions!$C$5)^(ROUNDDOWN((AM4-$C$4-1)/12,0)+1)/12+(AM5>'Rent Roll'!$AE$4)*(AM5<=EOMONTH('Rent Roll'!$AD$4,'Rent Roll'!$S$4))*'Rent Roll'!$T$4*'Rent Roll'!$F$4*(1+Assumptions!$C$5)^(ROUNDDOWN((AM4-$C$4-1)/12,0)+1)/12 -> 4899.90827 | AN27: =(AN5>='Rent Roll'!$J$4)*(AN5<='Rent Roll'!$K$4)*'Rent Roll'!$M$4*'Rent Roll'!$F$4*(1+Assumptions!$C$5)^(ROUNDDOWN((AN4-$C$4-1)/12,0)+1)/12+(AN5>'Rent Roll'!$AE$4)*(AN5<=EOMONTH('Rent Roll'!$AD$4,'Rent Roll'!$S$4))*'Rent Roll'!$T$4*'Rent Roll'!$F$4*(1+Assumptions!$C$5)^(ROUNDDOWN((AN4-$C$4-1)/12,0)+1)/12 -> 4997.906435 | AO27: =(AO5>='Rent Roll'!$J$4)*(AO5<='Rent Roll'!$K$4)*'Rent Roll'!$M$4*'Rent Roll'!$F$4*(1+Assumptions!$C$5)^(ROUNDDOWN((AO4-$C$4-1)/12,0)+1)/12+(AO5>'Rent Roll'!$AE$4)*(AO5<=EOMONTH('Rent Roll'!$AD$4,'Rent Roll'!$S$4))*'Rent Roll'!$T$4*'Rent Roll'!$F$4*(1+Assumptions!$C$5)^(ROUNDDOWN((AO4-$C$4-1)/12,0)+1)/12 -> 4997.906435 | AP27: =(AP5>='Rent Roll'!$J$4)*(AP5<='Rent Roll'!$K$4)*'Rent Roll'!$M$4*'Rent Roll'!$F$4*(1+Assumptions!$C$5)^(ROUNDDOWN((AP4-$C$4-1)/12,0)+1)/12+(AP5>'Rent Roll'!$AE$4)*(AP5<=EOMONTH('Rent Roll'!$AD$4,'Rent Roll'!$S$4))*'Rent Roll'!$T$4*'Rent Roll'!$F$4*(1+Assumptions!$C$5)^(ROUNDDOWN((AP4-$C$4-1)/12,0)+1)/12 -> 4997.906435 | AQ27: =(AQ5>='Rent Roll'!$J$4)*(AQ5<='Rent Roll'!$K$4)*'Rent Roll'!$M$4*'Rent Roll'!$F$4*(1+Assumptions!$C$5)^(ROUNDDOWN((AQ4-$C$4-1)/12,0)+1)/12+(AQ5>'Rent Roll'!$AE$4)*(AQ5<=EOMONTH('Rent Roll'!$AD$4,'Rent Roll'!$S$4))*'Rent Roll'!$T$4*'Rent Roll'!$F$4*(1+Assumptions!$C$5)^(ROUNDDOWN((AQ4-$C$4-1)/12,0)+1)/12 -> 4997.906435 | AR27: =(AR5>='Rent Roll'!$J$4)*(AR5<='Rent Roll'!$K$4)*'Rent Roll'!$M$4*'Rent Roll'!$F$4*(1+Assumptions!$C$5)^(ROUNDDOWN((AR4-$C$4-1)/12,0)+1)/12+(AR5>'Rent Roll'!$AE$4)*(AR5<=EOMONTH('Rent Roll'!$AD$4,'Rent Roll'!$S$4))*'Rent Roll'!$T$4*'Rent Roll'!$F$4*(1+Assumptions!$C$5)^(ROUNDDOWN((AR4-$C$4-1)/12,0)+1)/12 -> 4997.906435 | AS27: =(AS5>='Rent Roll'!$J$4)*(AS5<='Rent Roll'!$K$4)*'Rent Roll'!$M$4*'Rent Roll'!$F$4*(1+Assumptions!$C$5)^(ROUNDDOWN((AS4-$C$4-1)/12,0)+1)/12+(AS5>'Rent Roll'!$AE$4)*(AS5<=EOMONTH('Rent Roll'!$AD$4,'Rent Roll'!$S$4))*'Rent Roll'!$T$4*'Rent Roll'!$F$4*(1+Assumptions!$C$5)^(ROUNDDOWN((AS4-$C$4-1)/12,0)+1)/12 -> 4997.906435 | AT27: =(AT5>='Rent Roll'!$J$4)*(AT5<='Rent Roll'!$K$4)*'Rent Roll'!$M$4*'Rent Roll'!$F$4*(1+Assumptions!$C$5)^(ROUNDDOWN((AT4-$C$4-1)/12,0)+1)/12+(AT5>'Rent Roll'!$AE$4)*(AT5<=EOMONTH('Rent Roll'!$AD$4,'Rent Roll'!$S$4))*'Rent Roll'!$T$4*'Rent Roll'!$F$4*(1+Assumptions!$C$5)^(ROUNDDOWN((AT4-$C$4-1)/12,0)+1)/12 -> 4997.906435 | AU27: =(AU5>='Rent Roll'!$J$4)*(AU5<='Rent Roll'!$K$4)*'Rent Roll'!$M$4*'Rent Roll'!$F$4*(1+Assumptions!$C$5)^(ROUNDDOWN((AU4-$C$4-1)/12,0)+1)/12+(AU5>'Rent Roll'!$AE$4)*(AU5<=EOMONTH('Rent Roll'!$AD$4,'Rent Roll'!$S$4))*'Rent Roll'!$T$4*'Rent Roll'!$F$4*(1+Assumptions!$C$5)^(ROUNDDOWN((AU4-$C$4-1)/12,0)+1)/12 -> 4997.906435 | AV27: =(AV5>='Rent Roll'!$J$4)*(AV5<='Rent Roll'!$K$4)*'Rent Roll'!$M$4*'Rent Roll'!$F$4*(1+Assumptions!$C$5)^(ROUNDDOWN((AV4-$C$4-1)/12,0)+1)/12+(AV5>'Rent Roll'!$AE$4)*(AV5<=EOMONTH('Rent Roll'!$AD$4,'Rent Roll'!$S$4))*'Rent Roll'!$T$4*'Rent Roll'!$F$4*(1+Assumptions!$C$5)^(ROUNDDOWN((AV4-$C$4-1)/12,0)+1)/12 -> 4997.906435 | AW27: =(AW5>='Rent Roll'!$J$4)*(AW5<='Rent Roll'!$K$4)*'Rent Roll'!$M$4*'Rent Roll'!$F$4*(1+Assumptions!$C$5)^(ROUNDDOWN((AW4-$C$4-1)/12,0)+1)/12+(AW5>'Rent Roll'!$AE$4)*(AW5<=EOMONTH('Rent Roll'!$AD$4,'Rent Roll'!$S$4))*'Rent Roll'!$T$4*'Rent Roll'!$F$4*(1+Assumptions!$C$5)^(ROUNDDOWN((AW4-$C$4-1)/12,0)+1)/12 -> 4997.906435 | AX27: =(AX5>='Rent Roll'!$J$4)*(AX5<='Rent Roll'!$K$4)*'Rent Roll'!$M$4*'Rent Roll'!$F$4*(1+Assumptions!$C$5)^(ROUNDDOWN((AX4-$C$4-1)/12,0)+1)/12+(AX5>'Rent Roll'!$AE$4)*(AX5<=EOMONTH('Rent Roll'!$AD$4,'Rent Roll'!$S$4))*'Rent Roll'!$T$4*'Rent Roll'!$F$4*(1+Assumptions!$C$5)^(ROUNDDOWN((AX4-$C$4-1)/12,0)+1)/12 -> 4997.906435 | AY27: =(AY5>='Rent Roll'!$J$4)*(AY5<='Rent Roll'!$K$4)*'Rent Roll'!$M$4*'Rent Roll'!$F$4*(1+Assumptions!$C$5)^(ROUNDDOWN((AY4-$C$4-1)/12,0)+1)/12+(AY5>'Rent Roll'!$AE$4)*(AY5<=EOMONTH('Rent Roll'!$AD$4,'Rent Roll'!$S$4))*'Rent Roll'!$T$4*'Rent Roll'!$F$4*(1+Assumptions!$C$5)^(ROUNDDOWN((AY4-$C$4-1)/12,0)+1)/12 -> 4997.906435 | AZ27: =(AZ5>='Rent Roll'!$J$4)*(AZ5<='Rent Roll'!$K$4)*'Rent Roll'!$M$4*'Rent Roll'!$F$4*(1+Assumptions!$C$5)^(ROUNDDOWN((AZ4-$C$4-1)/12,0)+1)/12+(AZ5>'Rent Roll'!$AE$4)*(AZ5<=EOMONTH('Rent Roll'!$AD$4,'Rent Roll'!$S$4))*'Rent Roll'!$T$4*'Rent Roll'!$F$4*(1+Assumptions!$C$5)^(ROUNDDOWN((AZ4-$C$4-1)/12,0)+1)/12 -> 5097.864564 | BA27: =(BA5>='Rent Roll'!$J$4)*(BA5<='Rent Roll'!$K$4)*'Rent Roll'!$M$4*'Rent Roll'!$F$4*(1+Assumptions!$C$5)^(ROUNDDOWN((BA4-$C$4-1)/12,0)+1)/12+(BA5>'Rent Roll'!$AE$4)*(BA5<=EOMONTH('Rent Roll'!$AD$4,'Rent Roll'!$S$4))*'Rent Roll'!$T$4*'Rent Roll'!$F$4*(1+Assumptions!$C$5)^(ROUNDDOWN((BA4-$C$4-1)/12,0)+1)/12 -> 5097.864564 | BB27: =(BB5>='Rent Roll'!$J$4)*(BB5<='Rent Roll'!$K$4)*'Rent Roll'!$M$4*'Rent Roll'!$F$4*(1+Assumptions!$C$5)^(ROUNDDOWN((BB4-$C$4-1)/12,0)+1)/12+(BB5>'Rent Roll'!$AE$4)*(BB5<=EOMONTH('Rent Roll'!$AD$4,'Rent Roll'!$S$4))*'Rent Roll'!$T$4*'Rent Roll'!$F$4*(1+Assumptions!$C$5)^(ROUNDDOWN((BB4-$C$4-1)/12,0)+1)/12 -> 0 | BC27: =(BC5>='Rent Roll'!$J$4)*(BC5<='Rent Roll'!$K$4)*'Rent Roll'!$M$4*'Rent Roll'!$F$4*(1+Assumptions!$C$5)^(ROUNDDOWN((BC4-$C$4-1)/12,0)+1)/12+(BC5>'Rent Roll'!$AE$4)*(BC5<=EOMONTH('Rent Roll'!$AD$4,'Rent Roll'!$S$4))*'Rent Roll'!$T$4*'Rent Roll'!$F$4*(1+Assumptions!$C$5)^(ROUNDDOWN((BC4-$C$4-1)/12,0)+1)/12 -> 0 | BD27: =(BD5>='Rent Roll'!$J$4)*(BD5<='Rent Roll'!$K$4)*'Rent Roll'!$M$4*'Rent Roll'!$F$4*(1+Assumptions!$C$5)^(ROUNDDOWN((BD4-$C$4-1)/12,0)+1)/12+(BD5>'Rent Roll'!$AE$4)*(BD5<=EOMONTH('Rent Roll'!$AD$4,'Rent Roll'!$S$4))*'Rent Roll'!$T$4*'Rent Roll'!$F$4*(1+Assumptions!$C$5)^(ROUNDDOWN((BD4-$C$4-1)/12,0)+1)/12 -> 0 | BE27: =(BE5>='Rent Roll'!$J$4)*(BE5<='Rent Roll'!$K$4)*'Rent Roll'!$M$4*'Rent Roll'!$F$4*(1+Assumptions!$C$5)^(ROUNDDOWN((BE4-$C$4-1)/12,0)+1)/12+(BE5>'Rent Roll'!$AE$4)*(BE5<=EOMONTH('Rent Roll'!$AD$4,'Rent Roll'!$S$4))*'Rent Roll'!$T$4*'Rent Roll'!$F$4*(1+Assumptions!$C$5)^(ROUNDDOWN((BE4-$C$4-1)/12,0)+1)/12 -> 0 | BF27: =(BF5>='Rent Roll'!$J$4)*(BF5<='Rent Roll'!$K$4)*'Rent Roll'!$M$4*'Rent Roll'!$F$4*(1+Assumptions!$C$5)^(ROUNDDOWN((BF4-$C$4-1)/12,0)+1)/12+(BF5>'Rent Roll'!$AE$4)*(BF5<=EOMONTH('Rent Roll'!$AD$4,'Rent Roll'!$S$4))*'Rent Roll'!$T$4*'Rent Roll'!$F$4*(1+Assumptions!$C$5)^(ROUNDDOWN((BF4-$C$4-1)/12,0)+1)/12 -> 0 | BG27: =(BG5>='Rent Roll'!$J$4)*(BG5<='Rent Roll'!$K$4)*'Rent Roll'!$M$4*'Rent Roll'!$F$4*(1+Assumptions!$C$5)^(ROUNDDOWN((BG4-$C$4-1)/12,0)+1)/12+(BG5>'Rent Roll'!$AE$4)*(BG5<=EOMONTH('Rent Roll'!$AD$4,'Rent Roll'!$S$4))*'Rent Roll'!$T$4*'Rent Roll'!$F$4*(1+Assumptions!$C$5)^(ROUNDDOWN((BG4-$C$4-1)/12,0)+1)/12 -> 0 | BH27: =(BH5>='Rent Roll'!$J$4)*(BH5<='Rent Roll'!$K$4)*'Rent Roll'!$M$4*'Rent Roll'!$F$4*(1+Assumptions!$C$5)^(ROUNDDOWN((BH4-$C$4-1)/12,0)+1)/12+(BH5>'Rent Roll'!$AE$4)*(BH5<=EOMONTH('Rent Roll'!$AD$4,'Rent Roll'!$S$4))*'Rent Roll'!$T$4*'Rent Roll'!$F$4*(1+Assumptions!$C$5)^(ROUNDDOWN((BH4-$C$4-1)/12,0)+1)/12 -> 0 | BI27: =(BI5>='Rent Roll'!$J$4)*(BI5<='Rent Roll'!$K$4)*'Rent Roll'!$M$4*'Rent Roll'!$F$4*(1+Assumptions!$C$5)^(ROUNDDOWN((BI4-$C$4-1)/12,0)+1)/12+(BI5>'Rent Roll'!$AE$4)*(BI5<=EOMONTH('Rent Roll'!$AD$4,'Rent Roll'!$S$4))*'Rent Roll'!$T$4*'Rent Roll'!$F$4*(1+Assumptions!$C$5)^(ROUNDDOWN((BI4-$C$4-1)/12,0)+1)/12 -> 5427.109188 | BJ27: =(BJ5>='Rent Roll'!$J$4)*(BJ5<='Rent Roll'!$K$4)*'Rent Roll'!$M$4*'Rent Roll'!$F$4*(1+Assumptions!$C$5)^(ROUNDDOWN((BJ4-$C$4-1)/12,0)+1)/12+(BJ5>'Rent Roll'!$AE$4)*(BJ5<=EOMONTH('Rent Roll'!$AD$4,'Rent Roll'!$S$4))*'Rent Roll'!$T$4*'Rent Roll'!$F$4*(1+Assumptions!$C$5)^(ROUNDDOWN((BJ4-$C$4-1)/12,0)+1)/12 -> 5427.109188 | BK27: =(BK5>='Rent Roll'!$J$4)*(BK5<='Rent Roll'!$K$4)*'Rent Roll'!$M$4*'Rent Roll'!$F$4*(1+Assumptions!$C$5)^(ROUNDDOWN((BK4-$C$4-1)/12,0)+1)/12+(BK5>'Rent Roll'!$AE$4)*(BK5<=EOMONTH('Rent Roll'!$AD$4,'Rent Roll'!$S$4))*'Rent Roll'!$T$4*'Rent Roll'!$F$4*(1+Assumptions!$C$5)^(ROUNDDOWN((BK4-$C$4-1)/12,0)+1)/12 -> 5427.109188 | BM27: STOP
B28: =+B16 -> EFG | D28: =(D5>='Rent Roll'!$J$5)*(D5<='Rent Roll'!$K$5)*'Rent Roll'!$M$5*'Rent Roll'!$F$5*(1+Assumptions!$C$5)^(ROUNDDOWN((D4-$C$4-1)/12,0)+1)/12+(D5>'Rent Roll'!$AE$5)*(D5<=EOMONTH('Rent Roll'!$AD$5,'Rent Roll'!$S$5))*'Rent Roll'!$T$5*'Rent Roll'!$F$5*(1+Assumptions!$C$5)^(ROUNDDOWN((D4-$C$4-1)/12,0)+1)/12 -> 3116.52483 | E28: =(E5>='Rent Roll'!$J$5)*(E5<='Rent Roll'!$K$5)*'Rent Roll'!$M$5*'Rent Roll'!$F$5*(1+Assumptions!$C$5)^(ROUNDDOWN((E4-$C$4-1)/12,0)+1)/12+(E5>'Rent Roll'!$AE$5)*(E5<=EOMONTH('Rent Roll'!$AD$5,'Rent Roll'!$S$5))*'Rent Roll'!$T$5*'Rent Roll'!$F$5*(1+Assumptions!$C$5)^(ROUNDDOWN((E4-$C$4-1)/12,0)+1)/12 -> 3116.52483 | F28: =(F5>='Rent Roll'!$J$5)*(F5<='Rent Roll'!$K$5)*'Rent Roll'!$M$5*'Rent Roll'!$F$5*(1+Assumptions!$C$5)^(ROUNDDOWN((F4-$C$4-1)/12,0)+1)/12+(F5>'Rent Roll'!$AE$5)*(F5<=EOMONTH('Rent Roll'!$AD$5,'Rent Roll'!$S$5))*'Rent Roll'!$T$5*'Rent Roll'!$F$5*(1+Assumptions!$C$5)^(ROUNDDOWN((F4-$C$4-1)/12,0)+1)/12 -> 3116.52483 | G28: =(G5>='Rent Roll'!$J$5)*(G5<='Rent Roll'!$K$5)*'Rent Roll'!$M$5*'Rent Roll'!$F$5*(1+Assumptions!$C$5)^(ROUNDDOWN((G4-$C$4-1)/12,0)+1)/12+(G5>'Rent Roll'!$AE$5)*(G5<=EOMONTH('Rent Roll'!$AD$5,'Rent Roll'!$S$5))*'Rent Roll'!$T$5*'Rent Roll'!$F$5*(1+Assumptions!$C$5)^(ROUNDDOWN((G4-$C$4-1)/12,0)+1)/12 -> 3116.52483 | H28: =(H5>='Rent Roll'!$J$5)*(H5<='Rent Roll'!$K$5)*'Rent Roll'!$M$5*'Rent Roll'!$F$5*(1+Assumptions!$C$5)^(ROUNDDOWN((H4-$C$4-1)/12,0)+1)/12+(H5>'Rent Roll'!$AE$5)*(H5<=EOMONTH('Rent Roll'!$AD$5,'Rent Roll'!$S$5))*'Rent Roll'!$T$5*'Rent Roll'!$F$5*(1+Assumptions!$C$5)^(ROUNDDOWN((H4-$C$4-1)/12,0)+1)/12 -> 3116.52483 | I28: =(I5>='Rent Roll'!$J$5)*(I5<='Rent Roll'!$K$5)*'Rent Roll'!$M$5*'Rent Roll'!$F$5*(1+Assumptions!$C$5)^(ROUNDDOWN((I4-$C$4-1)/12,0)+1)/12+(I5>'Rent Roll'!$AE$5)*(I5<=EOMONTH('Rent Roll'!$AD$5,'Rent Roll'!$S$5))*'Rent Roll'!$T$5*'Rent Roll'!$F$5*(1+Assumptions!$C$5)^(ROUNDDOWN((I4-$C$4-1)/12,0)+1)/12 -> 3116.52483 | J28: =(J5>='Rent Roll'!$J$5)*(J5<='Rent Roll'!$K$5)*'Rent Roll'!$M$5*'Rent Roll'!$F$5*(1+Assumptions!$C$5)^(ROUNDDOWN((J4-$C$4-1)/12,0)+1)/12+(J5>'Rent Roll'!$AE$5)*(J5<=EOMONTH('Rent Roll'!$AD$5,'Rent Roll'!$S$5))*'Rent Roll'!$T$5*'Rent Roll'!$F$5*(1+Assumptions!$C$5)^(ROUNDDOWN((J4-$C$4-1)/12,0)+1)/12 -> 3116.52483 | K28: =(K5>='Rent Roll'!$J$5)*(K5<='Rent Roll'!$K$5)*'Rent Roll'!$M$5*'Rent Roll'!$F$5*(1+Assumptions!$C$5)^(ROUNDDOWN((K4-$C$4-1)/12,0)+1)/12+(K5>'Rent Roll'!$AE$5)*(K5<=EOMONTH('Rent Roll'!$AD$5,'Rent Roll'!$S$5))*'Rent Roll'!$T$5*'Rent Roll'!$F$5*(1+Assumptions!$C$5)^(ROUNDDOWN((K4-$C$4-1)/12,0)+1)/12 -> 3116.52483 | L28: =(L5>='Rent Roll'!$J$5)*(L5<='Rent Roll'!$K$5)*'Rent Roll'!$M$5*'Rent Roll'!$F$5*(1+Assumptions!$C$5)^(ROUNDDOWN((L4-$C$4-1)/12,0)+1)/12+(L5>'Rent Roll'!$AE$5)*(L5<=EOMONTH('Rent Roll'!$AD$5,'Rent Roll'!$S$5))*'Rent Roll'!$T$5*'Rent Roll'!$F$5*(1+Assumptions!$C$5)^(ROUNDDOWN((L4-$C$4-1)/12,0)+1)/12 -> 3116.52483 | M28: =(M5>='Rent Roll'!$J$5)*(M5<='Rent Roll'!$K$5)*'Rent Roll'!$M$5*'Rent Roll'!$F$5*(1+Assumptions!$C$5)^(ROUNDDOWN((M4-$C$4-1)/12,0)+1)/12+(M5>'Rent Roll'!$AE$5)*(M5<=EOMONTH('Rent Roll'!$AD$5,'Rent Roll'!$S$5))*'Rent Roll'!$T$5*'Rent Roll'!$F$5*(1+Assumptions!$C$5)^(ROUNDDOWN((M4-$C$4-1)/12,0)+1)/12 -> 3116.52483 | N28: =(N5>='Rent Roll'!$J$5)*(N5<='Rent Roll'!$K$5)*'Rent Roll'!$M$5*'Rent Roll'!$F$5*(1+Assumptions!$C$5)^(ROUNDDOWN((N4-$C$4-1)/12,0)+1)/12+(N5>'Rent Roll'!$AE$5)*(N5<=EOMONTH('Rent Roll'!$AD$5,'Rent Roll'!$S$5))*'Rent Roll'!$T$5*'Rent Roll'!$F$5*(1+Assumptions!$C$5)^(ROUNDDOWN((N4-$C$4-1)/12,0)+1)/12 -> 3116.52483 | O28: =(O5>='Rent Roll'!$J$5)*(O5<='Rent Roll'!$K$5)*'Rent Roll'!$M$5*'Rent Roll'!$F$5*(1+Assumptions!$C$5)^(ROUNDDOWN((O4-$C$4-1)/12,0)+1)/12+(O5>'Rent Roll'!$AE$5)*(O5<=EOMONTH('Rent Roll'!$AD$5,'Rent Roll'!$S$5))*'Rent Roll'!$T$5*'Rent Roll'!$F$5*(1+Assumptions!$C$5)^(ROUNDDOWN((O4-$C$4-1)/12,0)+1)/12 -> 3116.52483 | P28: =(P5>='Rent Roll'!$J$5)*(P5<='Rent Roll'!$K$5)*'Rent Roll'!$M$5*'Rent Roll'!$F$5*(1+Assumptions!$C$5)^(ROUNDDOWN((P4-$C$4-1)/12,0)+1)/12+(P5>'Rent Roll'!$AE$5)*(P5<=EOMONTH('Rent Roll'!$AD$5,'Rent Roll'!$S$5))*'Rent Roll'!$T$5*'Rent Roll'!$F$5*(1+Assumptions!$C$5)^(ROUNDDOWN((P4-$C$4-1)/12,0)+1)/12 -> 3178.855327 | Q28: =(Q5>='Rent Roll'!$J$5)*(Q5<='Rent Roll'!$K$5)*'Rent Roll'!$M$5*'Rent Roll'!$F$5*(1+Assumptions!$C$5)^(ROUNDDOWN((Q4-$C$4-1)/12,0)+1)/12+(Q5>'Rent Roll'!$AE$5)*(Q5<=EOMONTH('Rent Roll'!$AD$5,'Rent Roll'!$S$5))*'Rent Roll'!$T$5*'Rent Roll'!$F$5*(1+Assumptions!$C$5)^(ROUNDDOWN((Q4-$C$4-1)/12,0)+1)/12 -> 3178.855327 | R28: =(R5>='Rent Roll'!$J$5)*(R5<='Rent Roll'!$K$5)*'Rent Roll'!$M$5*'Rent Roll'!$F$5*(1+Assumptions!$C$5)^(ROUNDDOWN((R4-$C$4-1)/12,0)+1)/12+(R5>'Rent Roll'!$AE$5)*(R5<=EOMONTH('Rent Roll'!$AD$5,'Rent Roll'!$S$5))*'Rent Roll'!$T$5*'Rent Roll'!$F$5*(1+Assumptions!$C$5)^(ROUNDDOWN((R4-$C$4-1)/12,0)+1)/12 -> 3178.855327 | S28: =(S5>='Rent Roll'!$J$5)*(S5<='Rent Roll'!$K$5)*'Rent Roll'!$M$5*'Rent Roll'!$F$5*(1+Assumptions!$C$5)^(ROUNDDOWN((S4-$C$4-1)/12,0)+1)/12+(S5>'Rent Roll'!$AE$5)*(S5<=EOMONTH('Rent Roll'!$AD$5,'Rent Roll'!$S$5))*'Rent Roll'!$T$5*'Rent Roll'!$F$5*(1+Assumptions!$C$5)^(ROUNDDOWN((S4-$C$4-1)/12,0)+1)/12 -> 3178.855327 | T28: =(T5>='Rent Roll'!$J$5)*(T5<='Rent Roll'!$K$5)*'Rent Roll'!$M$5*'Rent Roll'!$F$5*(1+Assumptions!$C$5)^(ROUNDDOWN((T4-$C$4-1)/12,0)+1)/12+(T5>'Rent Roll'!$AE$5)*(T5<=EOMONTH('Rent Roll'!$AD$5,'Rent Roll'!$S$5))*'Rent Roll'!$T$5*'Rent Roll'!$F$5*(1+Assumptions!$C$5)^(ROUNDDOWN((T4-$C$4-1)/12,0)+1)/12 -> 3178.855327 | U28: =(U5>='Rent Roll'!$J$5)*(U5<='Rent Roll'!$K$5)*'Rent Roll'!$M$5*'Rent Roll'!$F$5*(1+Assumptions!$C$5)^(ROUNDDOWN((U4-$C$4-1)/12,0)+1)/12+(U5>'Rent Roll'!$AE$5)*(U5<=EOMONTH('Rent Roll'!$AD$5,'Rent Roll'!$S$5))*'Rent Roll'!$T$5*'Rent Roll'!$F$5*(1+Assumptions!$C$5)^(ROUNDDOWN((U4-$C$4-1)/12,0)+1)/12 -> 3178.855327 | V28: =(V5>='Rent Roll'!$J$5)*(V5<='Rent Roll'!$K$5)*'Rent Roll'!$M$5*'Rent Roll'!$F$5*(1+Assumptions!$C$5)^(ROUNDDOWN((V4-$C$4-1)/12,0)+1)/12+(V5>'Rent Roll'!$AE$5)*(V5<=EOMONTH('Rent Roll'!$AD$5,'Rent Roll'!$S$5))*'Rent Roll'!$T$5*'Rent Roll'!$F$5*(1+Assumptions!$C$5)^(ROUNDDOWN((V4-$C$4-1)/12,0)+1)/12 -> 3178.855327 | W28: =(W5>='Rent Roll'!$J$5)*(W5<='Rent Roll'!$K$5)*'Rent Roll'!$M$5*'Rent Roll'!$F$5*(1+Assumptions!$C$5)^(ROUNDDOWN((W4-$C$4-1)/12,0)+1)/12+(W5>'Rent Roll'!$AE$5)*(W5<=EOMONTH('Rent Roll'!$AD$5,'Rent Roll'!$S$5))*'Rent Roll'!$T$5*'Rent Roll'!$F$5*(1+Assumptions!$C$5)^(ROUNDDOWN((W4-$C$4-1)/12,0)+1)/12 -> 3178.855327 | X28: =(X5>='Rent Roll'!$J$5)*(X5<='Rent Roll'!$K$5)*'Rent Roll'!$M$5*'Rent Roll'!$F$5*(1+Assumptions!$C$5)^(ROUNDDOWN((X4-$C$4-1)/12,0)+1)/12+(X5>'Rent Roll'!$AE$5)*(X5<=EOMONTH('Rent Roll'!$AD$5,'Rent Roll'!$S$5))*'Rent Roll'!$T$5*'Rent Roll'!$F$5*(1+Assumptions!$C$5)^(ROUNDDOWN((X4-$C$4-1)/12,0)+1)/12 -> 3178.855327 | Y28: =(Y5>='Rent Roll'!$J$5)*(Y5<='Rent Roll'!$K$5)*'Rent Roll'!$M$5*'Rent Roll'!$F$5*(1+Assumptions!$C$5)^(ROUNDDOWN((Y4-$C$4-1)/12,0)+1)/12+(Y5>'Rent Roll'!$AE$5)*(Y5<=EOMONTH('Rent Roll'!$AD$5,'Rent Roll'!$S$5))*'Rent Roll'!$T$5*'Rent Roll'!$F$5*(1+Assumptions!$C$5)^(ROUNDDOWN((Y4-$C$4-1)/12,0)+1)/12 -> 3178.855327 | Z28: =(Z5>='Rent Roll'!$J$5)*(Z5<='Rent Roll'!$K$5)*'Rent Roll'!$M$5*'Rent Roll'!$F$5*(1+Assumptions!$C$5)^(ROUNDDOWN((Z4-$C$4-1)/12,0)+1)/12+(Z5>'Rent Roll'!$AE$5)*(Z5<=EOMONTH('Rent Roll'!$AD$5,'Rent Roll'!$S$5))*'Rent Roll'!$T$5*'Rent Roll'!$F$5*(1+Assumptions!$C$5)^(ROUNDDOWN((Z4-$C$4-1)/12,0)+1)/12 -> 3178.855327 | AA28: =(AA5>='Rent Roll'!$J$5)*(AA5<='Rent Roll'!$K$5)*'Rent Roll'!$M$5*'Rent Roll'!$F$5*(1+Assumptions!$C$5)^(ROUNDDOWN((AA4-$C$4-1)/12,0)+1)/12+(AA5>'Rent Roll'!$AE$5)*(AA5<=EOMONTH('Rent Roll'!$AD$5,'Rent Roll'!$S$5))*'Rent Roll'!$T$5*'Rent Roll'!$F$5*(1+Assumptions!$C$5)^(ROUNDDOWN((AA4-$C$4-1)/12,0)+1)/12 -> 3178.855327 | AB28: =(AB5>='Rent Roll'!$J$5)*(AB5<='Rent Roll'!$K$5)*'Rent Roll'!$M$5*'Rent Roll'!$F$5*(1+Assumptions!$C$5)^(ROUNDDOWN((AB4-$C$4-1)/12,0)+1)/12+(AB5>'Rent Roll'!$AE$5)*(AB5<=EOMONTH('Rent Roll'!$AD$5,'Rent Roll'!$S$5))*'Rent Roll'!$T$5*'Rent Roll'!$F$5*(1+Assumptions!$C$5)^(ROUNDDOWN((AB4-$C$4-1)/12,0)+1)/12 -> 3242.432433 | AC28: =(AC5>='Rent Roll'!$J$5)*(AC5<='Rent Roll'!$K$5)*'Rent Roll'!$M$5*'Rent Roll'!$F$5*(1+Assumptions!$C$5)^(ROUNDDOWN((AC4-$C$4-1)/12,0)+1)/12+(AC5>'Rent Roll'!$AE$5)*(AC5<=EOMONTH('Rent Roll'!$AD$5,'Rent Roll'!$S$5))*'Rent Roll'!$T$5*'Rent Roll'!$F$5*(1+Assumptions!$C$5)^(ROUNDDOWN((AC4-$C$4-1)/12,0)+1)/12 -> 3242.432433 | AD28: =(AD5>='Rent Roll'!$J$5)*(AD5<='Rent Roll'!$K$5)*'Rent Roll'!$M$5*'Rent Roll'!$F$5*(1+Assumptions!$C$5)^(ROUNDDOWN((AD4-$C$4-1)/12,0)+1)/12+(AD5>'Rent Roll'!$AE$5)*(AD5<=EOMONTH('Rent Roll'!$AD$5,'Rent Roll'!$S$5))*'Rent Roll'!$T$5*'Rent Roll'!$F$5*(1+Assumptions!$C$5)^(ROUNDDOWN((AD4-$C$4-1)/12,0)+1)/12 -> 3242.432433 | AE28: =(AE5>='Rent Roll'!$J$5)*(AE5<='Rent Roll'!$K$5)*'Rent Roll'!$M$5*'Rent Roll'!$F$5*(1+Assumptions!$C$5)^(ROUNDDOWN((AE4-$C$4-1)/12,0)+1)/12+(AE5>'Rent Roll'!$AE$5)*(AE5<=EOMONTH('Rent Roll'!$AD$5,'Rent Roll'!$S$5))*'Rent Roll'!$T$5*'Rent Roll'!$F$5*(1+Assumptions!$C$5)^(ROUNDDOWN((AE4-$C$4-1)/12,0)+1)/12 -> 3242.432433 | AF28: =(AF5>='Rent Roll'!$J$5)*(AF5<='Rent Roll'!$K$5)*'Rent Roll'!$M$5*'Rent Roll'!$F$5*(1+Assumptions!$C$5)^(ROUNDDOWN((AF4-$C$4-1)/12,0)+1)/12+(AF5>'Rent Roll'!$AE$5)*(AF5<=EOMONTH('Rent Roll'!$AD$5,'Rent Roll'!$S$5))*'Rent Roll'!$T$5*'Rent Roll'!$F$5*(1+Assumptions!$C$5)^(ROUNDDOWN((AF4-$C$4-1)/12,0)+1)/12 -> 3242.432433 | AG28: =(AG5>='Rent Roll'!$J$5)*(AG5<='Rent Roll'!$K$5)*'Rent Roll'!$M$5*'Rent Roll'!$F$5*(1+Assumptions!$C$5)^(ROUNDDOWN((AG4-$C$4-1)/12,0)+1)/12+(AG5>'Rent Roll'!$AE$5)*(AG5<=EOMONTH('Rent Roll'!$AD$5,'Rent Roll'!$S$5))*'Rent Roll'!$T$5*'Rent Roll'!$F$5*(1+Assumptions!$C$5)^(ROUNDDOWN((AG4-$C$4-1)/12,0)+1)/12 -> 3242.432433 | AH28: =(AH5>='Rent Roll'!$J$5)*(AH5<='Rent Roll'!$K$5)*'Rent Roll'!$M$5*'Rent Roll'!$F$5*(1+Assumptions!$C$5)^(ROUNDDOWN((AH4-$C$4-1)/12,0)+1)/12+(AH5>'Rent Roll'!$AE$5)*(AH5<=EOMONTH('Rent Roll'!$AD$5,'Rent Roll'!$S$5))*'Rent Roll'!$T$5*'Rent Roll'!$F$5*(1+Assumptions!$C$5)^(ROUNDDOWN((AH4-$C$4-1)/12,0)+1)/12 -> 3242.432433 | AI28: =(AI5>='Rent Roll'!$J$5)*(AI5<='Rent Roll'!$K$5)*'Rent Roll'!$M$5*'Rent Roll'!$F$5*(1+Assumptions!$C$5)^(ROUNDDOWN((AI4-$C$4-1)/12,0)+1)/12+(AI5>'Rent Roll'!$AE$5)*(AI5<=EOMONTH('Rent Roll'!$AD$5,'Rent Roll'!$S$5))*'Rent Roll'!$T$5*'Rent Roll'!$F$5*(1+Assumptions!$C$5)^(ROUNDDOWN((AI4-$C$4-1)/12,0)+1)/12 -> 3242.432433 | AJ28: =(AJ5>='Rent Roll'!$J$5)*(AJ5<='Rent Roll'!$K$5)*'Rent Roll'!$M$5*'Rent Roll'!$F$5*(1+Assumptions!$C$5)^(ROUNDDOWN((AJ4-$C$4-1)/12,0)+1)/12+(AJ5>'Rent Roll'!$AE$5)*(AJ5<=EOMONTH('Rent Roll'!$AD$5,'Rent Roll'!$S$5))*'Rent Roll'!$T$5*'Rent Roll'!$F$5*(1+Assumptions!$C$5)^(ROUNDDOWN((AJ4-$C$4-1)/12,0)+1)/12 -> 3242.432433 | AK28: =(AK5>='Rent Roll'!$J$5)*(AK5<='Rent Roll'!$K$5)*'Rent Roll'!$M$5*'Rent Roll'!$F$5*(1+Assumptions!$C$5)^(ROUNDDOWN((AK4-$C$4-1)/12,0)+1)/12+(AK5>'Rent Roll'!$AE$5)*(AK5<=EOMONTH('Rent Roll'!$AD$5,'Rent Roll'!$S$5))*'Rent Roll'!$T$5*'Rent Roll'!$F$5*(1+Assumptions!$C$5)^(ROUNDDOWN((AK4-$C$4-1)/12,0)+1)/12 -> 3242.432433 | AL28: =(AL5>='Rent Roll'!$J$5)*(AL5<='Rent Roll'!$K$5)*'Rent Roll'!$M$5*'Rent Roll'!$F$5*(1+Assumptions!$C$5)^(ROUNDDOWN((AL4-$C$4-1)/12,0)+1)/12+(AL5>'Rent Roll'!$AE$5)*(AL5<=EOMONTH('Rent Roll'!$AD$5,'Rent Roll'!$S$5))*'Rent Roll'!$T$5*'Rent Roll'!$F$5*(1+Assumptions!$C$5)^(ROUNDDOWN((AL4-$C$4-1)/12,0)+1)/12 -> 3242.432433 | AM28: =(AM5>='Rent Roll'!$J$5)*(AM5<='Rent Roll'!$K$5)*'Rent Roll'!$M$5*'Rent Roll'!$F$5*(1+Assumptions!$C$5)^(ROUNDDOWN((AM4-$C$4-1)/12,0)+1)/12+(AM5>'Rent Roll'!$AE$5)*(AM5<=EOMONTH('Rent Roll'!$AD$5,'Rent Roll'!$S$5))*'Rent Roll'!$T$5*'Rent Roll'!$F$5*(1+Assumptions!$C$5)^(ROUNDDOWN((AM4-$C$4-1)/12,0)+1)/12 -> 3242.432433 | AN28: =(AN5>='Rent Roll'!$J$5)*(AN5<='Rent Roll'!$K$5)*'Rent Roll'!$M$5*'Rent Roll'!$F$5*(1+Assumptions!$C$5)^(ROUNDDOWN((AN4-$C$4-1)/12,0)+1)/12+(AN5>'Rent Roll'!$AE$5)*(AN5<=EOMONTH('Rent Roll'!$AD$5,'Rent Roll'!$S$5))*'Rent Roll'!$T$5*'Rent Roll'!$F$5*(1+Assumptions!$C$5)^(ROUNDDOWN((AN4-$C$4-1)/12,0)+1)/12 -> 3307.281082 | AO28: =(AO5>='Rent Roll'!$J$5)*(AO5<='Rent Roll'!$K$5)*'Rent Roll'!$M$5*'Rent Roll'!$F$5*(1+Assumptions!$C$5)^(ROUNDDOWN((AO4-$C$4-1)/12,0)+1)/12+(AO5>'Rent Roll'!$AE$5)*(AO5<=EOMONTH('Rent Roll'!$AD$5,'Rent Roll'!$S$5))*'Rent Roll'!$T$5*'Rent Roll'!$F$5*(1+Assumptions!$C$5)^(ROUNDDOWN((AO4-$C$4-1)/12,0)+1)/12 -> 3307.281082 | AP28: =(AP5>='Rent Roll'!$J$5)*(AP5<='Rent Roll'!$K$5)*'Rent Roll'!$M$5*'Rent Roll'!$F$5*(1+Assumptions!$C$5)^(ROUNDDOWN((AP4-$C$4-1)/12,0)+1)/12+(AP5>'Rent Roll'!$AE$5)*(AP5<=EOMONTH('Rent Roll'!$AD$5,'Rent Roll'!$S$5))*'Rent Roll'!$T$5*'Rent Roll'!$F$5*(1+Assumptions!$C$5)^(ROUNDDOWN((AP4-$C$4-1)/12,0)+1)/12 -> 3307.281082 | AQ28: =(AQ5>='Rent Roll'!$J$5)*(AQ5<='Rent Roll'!$K$5)*'Rent Roll'!$M$5*'Rent Roll'!$F$5*(1+Assumptions!$C$5)^(ROUNDDOWN((AQ4-$C$4-1)/12,0)+1)/12+(AQ5>'Rent Roll'!$AE$5)*(AQ5<=EOMONTH('Rent Roll'!$AD$5,'Rent Roll'!$S$5))*'Rent Roll'!$T$5*'Rent Roll'!$F$5*(1+Assumptions!$C$5)^(ROUNDDOWN((AQ4-$C$4-1)/12,0)+1)/12 -> 3307.281082 | AR28: =(AR5>='Rent Roll'!$J$5)*(AR5<='Rent Roll'!$K$5)*'Rent Roll'!$M$5*'Rent Roll'!$F$5*(1+Assumptions!$C$5)^(ROUNDDOWN((AR4-$C$4-1)/12,0)+1)/12+(AR5>'Rent Roll'!$AE$5)*(AR5<=EOMONTH('Rent Roll'!$AD$5,'Rent Roll'!$S$5))*'Rent Roll'!$T$5*'Rent Roll'!$F$5*(1+Assumptions!$C$5)^(ROUNDDOWN((AR4-$C$4-1)/12,0)+1)/12 -> 3307.281082 | AS28: =(AS5>='Rent Roll'!$J$5)*(AS5<='Rent Roll'!$K$5)*'Rent Roll'!$M$5*'Rent Roll'!$F$5*(1+Assumptions!$C$5)^(ROUNDDOWN((AS4-$C$4-1)/12,0)+1)/12+(AS5>'Rent Roll'!$AE$5)*(AS5<=EOMONTH('Rent Roll'!$AD$5,'Rent Roll'!$S$5))*'Rent Roll'!$T$5*'Rent Roll'!$F$5*(1+Assumptions!$C$5)^(ROUNDDOWN((AS4-$C$4-1)/12,0)+1)/12 -> 3307.281082 | AT28: =(AT5>='Rent Roll'!$J$5)*(AT5<='Rent Roll'!$K$5)*'Rent Roll'!$M$5*'Rent Roll'!$F$5*(1+Assumptions!$C$5)^(ROUNDDOWN((AT4-$C$4-1)/12,0)+1)/12+(AT5>'Rent Roll'!$AE$5)*(AT5<=EOMONTH('Rent Roll'!$AD$5,'Rent Roll'!$S$5))*'Rent Roll'!$T$5*'Rent Roll'!$F$5*(1+Assumptions!$C$5)^(ROUNDDOWN((AT4-$C$4-1)/12,0)+1)/12 -> 3307.281082 | AU28: =(AU5>='Rent Roll'!$J$5)*(AU5<='Rent Roll'!$K$5)*'Rent Roll'!$M$5*'Rent Roll'!$F$5*(1+Assumptions!$C$5)^(ROUNDDOWN((AU4-$C$4-1)/12,0)+1)/12+(AU5>'Rent Roll'!$AE$5)*(AU5<=EOMONTH('Rent Roll'!$AD$5,'Rent Roll'!$S$5))*'Rent Roll'!$T$5*'Rent Roll'!$F$5*(1+Assumptions!$C$5)^(ROUNDDOWN((AU4-$C$4-1)/12,0)+1)/12 -> 3307.281082 | AV28: =(AV5>='Rent Roll'!$J$5)*(AV5<='Rent Roll'!$K$5)*'Rent Roll'!$M$5*'Rent Roll'!$F$5*(1+Assumptions!$C$5)^(ROUNDDOWN((AV4-$C$4-1)/12,0)+1)/12+(AV5>'Rent Roll'!$AE$5)*(AV5<=EOMONTH('Rent Roll'!$AD$5,'Rent Roll'!$S$5))*'Rent Roll'!$T$5*'Rent Roll'!$F$5*(1+Assumptions!$C$5)^(ROUNDDOWN((AV4-$C$4-1)/12,0)+1)/12 -> 3307.281082 | AW28: =(AW5>='Rent Roll'!$J$5)*(AW5<='Rent Roll'!$K$5)*'Rent Roll'!$M$5*'Rent Roll'!$F$5*(1+Assumptions!$C$5)^(ROUNDDOWN((AW4-$C$4-1)/12,0)+1)/12+(AW5>'Rent Roll'!$AE$5)*(AW5<=EOMONTH('Rent Roll'!$AD$5,'Rent Roll'!$S$5))*'Rent Roll'!$T$5*'Rent Roll'!$F$5*(1+Assumptions!$C$5)^(ROUNDDOWN((AW4-$C$4-1)/12,0)+1)/12 -> 3307.281082 | AX28: =(AX5>='Rent Roll'!$J$5)*(AX5<='Rent Roll'!$K$5)*'Rent Roll'!$M$5*'Rent Roll'!$F$5*(1+Assumptions!$C$5)^(ROUNDDOWN((AX4-$C$4-1)/12,0)+1)/12+(AX5>'Rent Roll'!$AE$5)*(AX5<=EOMONTH('Rent Roll'!$AD$5,'Rent Roll'!$S$5))*'Rent Roll'!$T$5*'Rent Roll'!$F$5*(1+Assumptions!$C$5)^(ROUNDDOWN((AX4-$C$4-1)/12,0)+1)/12 -> 3307.281082 | AY28: =(AY5>='Rent Roll'!$J$5)*(AY5<='Rent Roll'!$K$5)*'Rent Roll'!$M$5*'Rent Roll'!$F$5*(1+Assumptions!$C$5)^(ROUNDDOWN((AY4-$C$4-1)/12,0)+1)/12+(AY5>'Rent Roll'!$AE$5)*(AY5<=EOMONTH('Rent Roll'!$AD$5,'Rent Roll'!$S$5))*'Rent Roll'!$T$5*'Rent Roll'!$F$5*(1+Assumptions!$C$5)^(ROUNDDOWN((AY4-$C$4-1)/12,0)+1)/12 -> 3307.281082 | AZ28: =(AZ5>='Rent Roll'!$J$5)*(AZ5<='Rent Roll'!$K$5)*'Rent Roll'!$M$5*'Rent Roll'!$F$5*(1+Assumptions!$C$5)^(ROUNDDOWN((AZ4-$C$4-1)/12,0)+1)/12+(AZ5>'Rent Roll'!$AE$5)*(AZ5<=EOMONTH('Rent Roll'!$AD$5,'Rent Roll'!$S$5))*'Rent Roll'!$T$5*'Rent Roll'!$F$5*(1+Assumptions!$C$5)^(ROUNDDOWN((AZ4-$C$4-1)/12,0)+1)/12 -> 3373.426703 | BA28: =(BA5>='Rent Roll'!$J$5)*(BA5<='Rent Roll'!$K$5)*'Rent Roll'!$M$5*'Rent Roll'!$F$5*(1+Assumptions!$C$5)^(ROUNDDOWN((BA4-$C$4-1)/12,0)+1)/12+(BA5>'Rent Roll'!$AE$5)*(BA5<=EOMONTH('Rent Roll'!$AD$5,'Rent Roll'!$S$5))*'Rent Roll'!$T$5*'Rent Roll'!$F$5*(1+Assumptions!$C$5)^(ROUNDDOWN((BA4-$C$4-1)/12,0)+1)/12 -> 3373.426703 | BB28: =(BB5>='Rent Roll'!$J$5)*(BB5<='Rent Roll'!$K$5)*'Rent Roll'!$M$5*'Rent Roll'!$F$5*(1+Assumptions!$C$5)^(ROUNDDOWN((BB4-$C$4-1)/12,0)+1)/12+(BB5>'Rent Roll'!$AE$5)*(BB5<=EOMONTH('Rent Roll'!$AD$5,'Rent Roll'!$S$5))*'Rent Roll'!$T$5*'Rent Roll'!$F$5*(1+Assumptions!$C$5)^(ROUNDDOWN((BB4-$C$4-1)/12,0)+1)/12 -> 0 | BC28: =(BC5>='Rent Roll'!$J$5)*(BC5<='Rent Roll'!$K$5)*'Rent Roll'!$M$5*'Rent Roll'!$F$5*(1+Assumptions!$C$5)^(ROUNDDOWN((BC4-$C$4-1)/12,0)+1)/12+(BC5>'Rent Roll'!$AE$5)*(BC5<=EOMONTH('Rent Roll'!$AD$5,'Rent Roll'!$S$5))*'Rent Roll'!$T$5*'Rent Roll'!$F$5*(1+Assumptions!$C$5)^(ROUNDDOWN((BC4-$C$4-1)/12,0)+1)/12 -> 0 | BD28: =(BD5>='Rent Roll'!$J$5)*(BD5<='Rent Roll'!$K$5)*'Rent Roll'!$M$5*'Rent Roll'!$F$5*(1+Assumptions!$C$5)^(ROUNDDOWN((BD4-$C$4-1)/12,0)+1)/12+(BD5>'Rent Roll'!$AE$5)*(BD5<=EOMONTH('Rent Roll'!$AD$5,'Rent Roll'!$S$5))*'Rent Roll'!$T$5*'Rent Roll'!$F$5*(1+Assumptions!$C$5)^(ROUNDDOWN((BD4-$C$4-1)/12,0)+1)/12 -> 0 | BE28: =(BE5>='Rent Roll'!$J$5)*(BE5<='Rent Roll'!$K$5)*'Rent Roll'!$M$5*'Rent Roll'!$F$5*(1+Assumptions!$C$5)^(ROUNDDOWN((BE4-$C$4-1)/12,0)+1)/12+(BE5>'Rent Roll'!$AE$5)*(BE5<=EOMONTH('Rent Roll'!$AD$5,'Rent Roll'!$S$5))*'Rent Roll'!$T$5*'Rent Roll'!$F$5*(1+Assumptions!$C$5)^(ROUNDDOWN((BE4-$C$4-1)/12,0)+1)/12 -> 0 | BF28: =(BF5>='Rent Roll'!$J$5)*(BF5<='Rent Roll'!$K$5)*'Rent Roll'!$M$5*'Rent Roll'!$F$5*(1+Assumptions!$C$5)^(ROUNDDOWN((BF4-$C$4-1)/12,0)+1)/12+(BF5>'Rent Roll'!$AE$5)*(BF5<=EOMONTH('Rent Roll'!$AD$5,'Rent Roll'!$S$5))*'Rent Roll'!$T$5*'Rent Roll'!$F$5*(1+Assumptions!$C$5)^(ROUNDDOWN((BF4-$C$4-1)/12,0)+1)/12 -> 0 | BG28: =(BG5>='Rent Roll'!$J$5)*(BG5<='Rent Roll'!$K$5)*'Rent Roll'!$M$5*'Rent Roll'!$F$5*(1+Assumptions!$C$5)^(ROUNDDOWN((BG4-$C$4-1)/12,0)+1)/12+(BG5>'Rent Roll'!$AE$5)*(BG5<=EOMONTH('Rent Roll'!$AD$5,'Rent Roll'!$S$5))*'Rent Roll'!$T$5*'Rent Roll'!$F$5*(1+Assumptions!$C$5)^(ROUNDDOWN((BG4-$C$4-1)/12,0)+1)/12 -> 0 | BH28: =(BH5>='Rent Roll'!$J$5)*(BH5<='Rent Roll'!$K$5)*'Rent Roll'!$M$5*'Rent Roll'!$F$5*(1+Assumptions!$C$5)^(ROUNDDOWN((BH4-$C$4-1)/12,0)+1)/12+(BH5>'Rent Roll'!$AE$5)*(BH5<=EOMONTH('Rent Roll'!$AD$5,'Rent Roll'!$S$5))*'Rent Roll'!$T$5*'Rent Roll'!$F$5*(1+Assumptions!$C$5)^(ROUNDDOWN((BH4-$C$4-1)/12,0)+1)/12 -> 0 | BI28: =(BI5>='Rent Roll'!$J$5)*(BI5<='Rent Roll'!$K$5)*'Rent Roll'!$M$5*'Rent Roll'!$F$5*(1+Assumptions!$C$5)^(ROUNDDOWN((BI4-$C$4-1)/12,0)+1)/12+(BI5>'Rent Roll'!$AE$5)*(BI5<=EOMONTH('Rent Roll'!$AD$5,'Rent Roll'!$S$5))*'Rent Roll'!$T$5*'Rent Roll'!$F$5*(1+Assumptions!$C$5)^(ROUNDDOWN((BI4-$C$4-1)/12,0)+1)/12 -> 3591.298833 | BJ28: =(BJ5>='Rent Roll'!$J$5)*(BJ5<='Rent Roll'!$K$5)*'Rent Roll'!$M$5*'Rent Roll'!$F$5*(1+Assumptions!$C$5)^(ROUNDDOWN((BJ4-$C$4-1)/12,0)+1)/12+(BJ5>'Rent Roll'!$AE$5)*(BJ5<=EOMONTH('Rent Roll'!$AD$5,'Rent Roll'!$S$5))*'Rent Roll'!$T$5*'Rent Roll'!$F$5*(1+Assumptions!$C$5)^(ROUNDDOWN((BJ4-$C$4-1)/12,0)+1)/12 -> 3591.298833 | BK28: =(BK5>='Rent Roll'!$J$5)*(BK5<='Rent Roll'!$K$5)*'Rent Roll'!$M$5*'Rent Roll'!$F$5*(1+Assumptions!$C$5)^(ROUNDDOWN((BK4-$C$4-1)/12,0)+1)/12+(BK5>'Rent Roll'!$AE$5)*(BK5<=EOMONTH('Rent Roll'!$AD$5,'Rent Roll'!$S$5))*'Rent Roll'!$T$5*'Rent Roll'!$F$5*(1+Assumptions!$C$5)^(ROUNDDOWN((BK4-$C$4-1)/12,0)+1)/12 -> 3591.298833 | BM28: STOP
B29: =+B17 -> ASD | D29: =(D5>='Rent Roll'!$J$6)*(D5<='Rent Roll'!$K$6)*'Rent Roll'!$M$6*'Rent Roll'!$F$6*(1+Assumptions!$C$5)^(ROUNDDOWN((D4-$C$4-1)/12,0)+1)/12+(D5>'Rent Roll'!$AE$6)*(D5<=EOMONTH('Rent Roll'!$AD$6,'Rent Roll'!$S$6))*'Rent Roll'!$T$6*'Rent Roll'!$F$6*(1+Assumptions!$C$5)^(ROUNDDOWN((D4-$C$4-1)/12,0)+1)/12 -> 3324.19734 | E29: =(E5>='Rent Roll'!$J$6)*(E5<='Rent Roll'!$K$6)*'Rent Roll'!$M$6*'Rent Roll'!$F$6*(1+Assumptions!$C$5)^(ROUNDDOWN((E4-$C$4-1)/12,0)+1)/12+(E5>'Rent Roll'!$AE$6)*(E5<=EOMONTH('Rent Roll'!$AD$6,'Rent Roll'!$S$6))*'Rent Roll'!$T$6*'Rent Roll'!$F$6*(1+Assumptions!$C$5)^(ROUNDDOWN((E4-$C$4-1)/12,0)+1)/12 -> 3324.19734 | F29: =(F5>='Rent Roll'!$J$6)*(F5<='Rent Roll'!$K$6)*'Rent Roll'!$M$6*'Rent Roll'!$F$6*(1+Assumptions!$C$5)^(ROUNDDOWN((F4-$C$4-1)/12,0)+1)/12+(F5>'Rent Roll'!$AE$6)*(F5<=EOMONTH('Rent Roll'!$AD$6,'Rent Roll'!$S$6))*'Rent Roll'!$T$6*'Rent Roll'!$F$6*(1+Assumptions!$C$5)^(ROUNDDOWN((F4-$C$4-1)/12,0)+1)/12 -> 3324.19734 | G29: =(G5>='Rent Roll'!$J$6)*(G5<='Rent Roll'!$K$6)*'Rent Roll'!$M$6*'Rent Roll'!$F$6*(1+Assumptions!$C$5)^(ROUNDDOWN((G4-$C$4-1)/12,0)+1)/12+(G5>'Rent Roll'!$AE$6)*(G5<=EOMONTH('Rent Roll'!$AD$6,'Rent Roll'!$S$6))*'Rent Roll'!$T$6*'Rent Roll'!$F$6*(1+Assumptions!$C$5)^(ROUNDDOWN((G4-$C$4-1)/12,0)+1)/12 -> 3324.19734 | H29: =(H5>='Rent Roll'!$J$6)*(H5<='Rent Roll'!$K$6)*'Rent Roll'!$M$6*'Rent Roll'!$F$6*(1+Assumptions!$C$5)^(ROUNDDOWN((H4-$C$4-1)/12,0)+1)/12+(H5>'Rent Roll'!$AE$6)*(H5<=EOMONTH('Rent Roll'!$AD$6,'Rent Roll'!$S$6))*'Rent Roll'!$T$6*'Rent Roll'!$F$6*(1+Assumptions!$C$5)^(ROUNDDOWN((H4-$C$4-1)/12,0)+1)/12 -> 3324.19734 | I29: =(I5>='Rent Roll'!$J$6)*(I5<='Rent Roll'!$K$6)*'Rent Roll'!$M$6*'Rent Roll'!$F$6*(1+Assumptions!$C$5)^(ROUNDDOWN((I4-$C$4-1)/12,0)+1)/12+(I5>'Rent Roll'!$AE$6)*(I5<=EOMONTH('Rent Roll'!$AD$6,'Rent Roll'!$S$6))*'Rent Roll'!$T$6*'Rent Roll'!$F$6*(1+Assumptions!$C$5)^(ROUNDDOWN((I4-$C$4-1)/12,0)+1)/12 -> 3324.19734 | J29: =(J5>='Rent Roll'!$J$6)*(J5<='Rent Roll'!$K$6)*'Rent Roll'!$M$6*'Rent Roll'!$F$6*(1+Assumptions!$C$5)^(ROUNDDOWN((J4-$C$4-1)/12,0)+1)/12+(J5>'Rent Roll'!$AE$6)*(J5<=EOMONTH('Rent Roll'!$AD$6,'Rent Roll'!$S$6))*'Rent Roll'!$T$6*'Rent Roll'!$F$6*(1+Assumptions!$C$5)^(ROUNDDOWN((J4-$C$4-1)/12,0)+1)/12 -> 3324.19734 | K29: =(K5>='Rent Roll'!$J$6)*(K5<='Rent Roll'!$K$6)*'Rent Roll'!$M$6*'Rent Roll'!$F$6*(1+Assumptions!$C$5)^(ROUNDDOWN((K4-$C$4-1)/12,0)+1)/12+(K5>'Rent Roll'!$AE$6)*(K5<=EOMONTH('Rent Roll'!$AD$6,'Rent Roll'!$S$6))*'Rent Roll'!$T$6*'Rent Roll'!$F$6*(1+Assumptions!$C$5)^(ROUNDDOWN((K4-$C$4-1)/12,0)+1)/12 -> 3324.19734 | L29: =(L5>='Rent Roll'!$J$6)*(L5<='Rent Roll'!$K$6)*'Rent Roll'!$M$6*'Rent Roll'!$F$6*(1+Assumptions!$C$5)^(ROUNDDOWN((L4-$C$4-1)/12,0)+1)/12+(L5>'Rent Roll'!$AE$6)*(L5<=EOMONTH('Rent Roll'!$AD$6,'Rent Roll'!$S$6))*'Rent Roll'!$T$6*'Rent Roll'!$F$6*(1+Assumptions!$C$5)^(ROUNDDOWN((L4-$C$4-1)/12,0)+1)/12 -> 3324.19734 | M29: =(M5>='Rent Roll'!$J$6)*(M5<='Rent Roll'!$K$6)*'Rent Roll'!$M$6*'Rent Roll'!$F$6*(1+Assumptions!$C$5)^(ROUNDDOWN((M4-$C$4-1)/12,0)+1)/12+(M5>'Rent Roll'!$AE$6)*(M5<=EOMONTH('Rent Roll'!$AD$6,'Rent Roll'!$S$6))*'Rent Roll'!$T$6*'Rent Roll'!$F$6*(1+Assumptions!$C$5)^(ROUNDDOWN((M4-$C$4-1)/12,0)+1)/12 -> 3324.19734 | N29: =(N5>='Rent Roll'!$J$6)*(N5<='Rent Roll'!$K$6)*'Rent Roll'!$M$6*'Rent Roll'!$F$6*(1+Assumptions!$C$5)^(ROUNDDOWN((N4-$C$4-1)/12,0)+1)/12+(N5>'Rent Roll'!$AE$6)*(N5<=EOMONTH('Rent Roll'!$AD$6,'Rent Roll'!$S$6))*'Rent Roll'!$T$6*'Rent Roll'!$F$6*(1+Assumptions!$C$5)^(ROUNDDOWN((N4-$C$4-1)/12,0)+1)/12 -> 3324.19734 | O29: =(O5>='Rent Roll'!$J$6)*(O5<='Rent Roll'!$K$6)*'Rent Roll'!$M$6*'Rent Roll'!$F$6*(1+Assumptions!$C$5)^(ROUNDDOWN((O4-$C$4-1)/12,0)+1)/12+(O5>'Rent Roll'!$AE$6)*(O5<=EOMONTH('Rent Roll'!$AD$6,'Rent Roll'!$S$6))*'Rent Roll'!$T$6*'Rent Roll'!$F$6*(1+Assumptions!$C$5)^(ROUNDDOWN((O4-$C$4-1)/12,0)+1)/12 -> 3324.19734 | P29: =(P5>='Rent Roll'!$J$6)*(P5<='Rent Roll'!$K$6)*'Rent Roll'!$M$6*'Rent Roll'!$F$6*(1+Assumptions!$C$5)^(ROUNDDOWN((P4-$C$4-1)/12,0)+1)/12+(P5>'Rent Roll'!$AE$6)*(P5<=EOMONTH('Rent Roll'!$AD$6,'Rent Roll'!$S$6))*'Rent Roll'!$T$6*'Rent Roll'!$F$6*(1+Assumptions!$C$5)^(ROUNDDOWN((P4-$C$4-1)/12,0)+1)/12 -> 3390.681287 | Q29: =(Q5>='Rent Roll'!$J$6)*(Q5<='Rent Roll'!$K$6)*'Rent Roll'!$M$6*'Rent Roll'!$F$6*(1+Assumptions!$C$5)^(ROUNDDOWN((Q4-$C$4-1)/12,0)+1)/12+(Q5>'Rent Roll'!$AE$6)*(Q5<=EOMONTH('Rent Roll'!$AD$6,'Rent Roll'!$S$6))*'Rent Roll'!$T$6*'Rent Roll'!$F$6*(1+Assumptions!$C$5)^(ROUNDDOWN((Q4-$C$4-1)/12,0)+1)/12 -> 3390.681287 | R29: =(R5>='Rent Roll'!$J$6)*(R5<='Rent Roll'!$K$6)*'Rent Roll'!$M$6*'Rent Roll'!$F$6*(1+Assumptions!$C$5)^(ROUNDDOWN((R4-$C$4-1)/12,0)+1)/12+(R5>'Rent Roll'!$AE$6)*(R5<=EOMONTH('Rent Roll'!$AD$6,'Rent Roll'!$S$6))*'Rent Roll'!$T$6*'Rent Roll'!$F$6*(1+Assumptions!$C$5)^(ROUNDDOWN((R4-$C$4-1)/12,0)+1)/12 -> 3390.681287 | S29: =(S5>='Rent Roll'!$J$6)*(S5<='Rent Roll'!$K$6)*'Rent Roll'!$M$6*'Rent Roll'!$F$6*(1+Assumptions!$C$5)^(ROUNDDOWN((S4-$C$4-1)/12,0)+1)/12+(S5>'Rent Roll'!$AE$6)*(S5<=EOMONTH('Rent Roll'!$AD$6,'Rent Roll'!$S$6))*'Rent Roll'!$T$6*'Rent Roll'!$F$6*(1+Assumptions!$C$5)^(ROUNDDOWN((S4-$C$4-1)/12,0)+1)/12 -> 3390.681287 | T29: =(T5>='Rent Roll'!$J$6)*(T5<='Rent Roll'!$K$6)*'Rent Roll'!$M$6*'Rent Roll'!$F$6*(1+Assumptions!$C$5)^(ROUNDDOWN((T4-$C$4-1)/12,0)+1)/12+(T5>'Rent Roll'!$AE$6)*(T5<=EOMONTH('Rent Roll'!$AD$6,'Rent Roll'!$S$6))*'Rent Roll'!$T$6*'Rent Roll'!$F$6*(1+Assumptions!$C$5)^(ROUNDDOWN((T4-$C$4-1)/12,0)+1)/12 -> 3390.681287 | U29: =(U5>='Rent Roll'!$J$6)*(U5<='Rent Roll'!$K$6)*'Rent Roll'!$M$6*'Rent Roll'!$F$6*(1+Assumptions!$C$5)^(ROUNDDOWN((U4-$C$4-1)/12,0)+1)/12+(U5>'Rent Roll'!$AE$6)*(U5<=EOMONTH('Rent Roll'!$AD$6,'Rent Roll'!$S$6))*'Rent Roll'!$T$6*'Rent Roll'!$F$6*(1+Assumptions!$C$5)^(ROUNDDOWN((U4-$C$4-1)/12,0)+1)/12 -> 3390.681287 | V29: =(V5>='Rent Roll'!$J$6)*(V5<='Rent Roll'!$K$6)*'Rent Roll'!$M$6*'Rent Roll'!$F$6*(1+Assumptions!$C$5)^(ROUNDDOWN((V4-$C$4-1)/12,0)+1)/12+(V5>'Rent Roll'!$AE$6)*(V5<=EOMONTH('Rent Roll'!$AD$6,'Rent Roll'!$S$6))*'Rent Roll'!$T$6*'Rent Roll'!$F$6*(1+Assumptions!$C$5)^(ROUNDDOWN((V4-$C$4-1)/12,0)+1)/12 -> 3390.681287 | W29: =(W5>='Rent Roll'!$J$6)*(W5<='Rent Roll'!$K$6)*'Rent Roll'!$M$6*'Rent Roll'!$F$6*(1+Assumptions!$C$5)^(ROUNDDOWN((W4-$C$4-1)/12,0)+1)/12+(W5>'Rent Roll'!$AE$6)*(W5<=EOMONTH('Rent Roll'!$AD$6,'Rent Roll'!$S$6))*'Rent Roll'!$T$6*'Rent Roll'!$F$6*(1+Assumptions!$C$5)^(ROUNDDOWN((W4-$C$4-1)/12,0)+1)/12 -> 3390.681287 | X29: =(X5>='Rent Roll'!$J$6)*(X5<='Rent Roll'!$K$6)*'Rent Roll'!$M$6*'Rent Roll'!$F$6*(1+Assumptions!$C$5)^(ROUNDDOWN((X4-$C$4-1)/12,0)+1)/12+(X5>'Rent Roll'!$AE$6)*(X5<=EOMONTH('Rent Roll'!$AD$6,'Rent Roll'!$S$6))*'Rent Roll'!$T$6*'Rent Roll'!$F$6*(1+Assumptions!$C$5)^(ROUNDDOWN((X4-$C$4-1)/12,0)+1)/12 -> 3390.681287 | Y29: =(Y5>='Rent Roll'!$J$6)*(Y5<='Rent Roll'!$K$6)*'Rent Roll'!$M$6*'Rent Roll'!$F$6*(1+Assumptions!$C$5)^(ROUNDDOWN((Y4-$C$4-1)/12,0)+1)/12+(Y5>'Rent Roll'!$AE$6)*(Y5<=EOMONTH('Rent Roll'!$AD$6,'Rent Roll'!$S$6))*'Rent Roll'!$T$6*'Rent Roll'!$F$6*(1+Assumptions!$C$5)^(ROUNDDOWN((Y4-$C$4-1)/12,0)+1)/12 -> 3390.681287 | Z29: =(Z5>='Rent Roll'!$J$6)*(Z5<='Rent Roll'!$K$6)*'Rent Roll'!$M$6*'Rent Roll'!$F$6*(1+Assumptions!$C$5)^(ROUNDDOWN((Z4-$C$4-1)/12,0)+1)/12+(Z5>'Rent Roll'!$AE$6)*(Z5<=EOMONTH('Rent Roll'!$AD$6,'Rent Roll'!$S$6))*'Rent Roll'!$T$6*'Rent Roll'!$F$6*(1+Assumptions!$C$5)^(ROUNDDOWN((Z4-$C$4-1)/12,0)+1)/12 -> 3390.681287 | AA29: =(AA5>='Rent Roll'!$J$6)*(AA5<='Rent Roll'!$K$6)*'Rent Roll'!$M$6*'Rent Roll'!$F$6*(1+Assumptions!$C$5)^(ROUNDDOWN((AA4-$C$4-1)/12,0)+1)/12+(AA5>'Rent Roll'!$AE$6)*(AA5<=EOMONTH('Rent Roll'!$AD$6,'Rent Roll'!$S$6))*'Rent Roll'!$T$6*'Rent Roll'!$F$6*(1+Assumptions!$C$5)^(ROUNDDOWN((AA4-$C$4-1)/12,0)+1)/12 -> 3390.681287 | AB29: =(AB5>='Rent Roll'!$J$6)*(AB5<='Rent Roll'!$K$6)*'Rent Roll'!$M$6*'Rent Roll'!$F$6*(1+Assumptions!$C$5)^(ROUNDDOWN((AB4-$C$4-1)/12,0)+1)/12+(AB5>'Rent Roll'!$AE$6)*(AB5<=EOMONTH('Rent Roll'!$AD$6,'Rent Roll'!$S$6))*'Rent Roll'!$T$6*'Rent Roll'!$F$6*(1+Assumptions!$C$5)^(ROUNDDOWN((AB4-$C$4-1)/12,0)+1)/12 -> 3458.494913 | AC29: =(AC5>='Rent Roll'!$J$6)*(AC5<='Rent Roll'!$K$6)*'Rent Roll'!$M$6*'Rent Roll'!$F$6*(1+Assumptions!$C$5)^(ROUNDDOWN((AC4-$C$4-1)/12,0)+1)/12+(AC5>'Rent Roll'!$AE$6)*(AC5<=EOMONTH('Rent Roll'!$AD$6,'Rent Roll'!$S$6))*'Rent Roll'!$T$6*'Rent Roll'!$F$6*(1+Assumptions!$C$5)^(ROUNDDOWN((AC4-$C$4-1)/12,0)+1)/12 -> 3458.494913 | AD29: =(AD5>='Rent Roll'!$J$6)*(AD5<='Rent Roll'!$K$6)*'Rent Roll'!$M$6*'Rent Roll'!$F$6*(1+Assumptions!$C$5)^(ROUNDDOWN((AD4-$C$4-1)/12,0)+1)/12+(AD5>'Rent Roll'!$AE$6)*(AD5<=EOMONTH('Rent Roll'!$AD$6,'Rent Roll'!$S$6))*'Rent Roll'!$T$6*'Rent Roll'!$F$6*(1+Assumptions!$C$5)^(ROUNDDOWN((AD4-$C$4-1)/12,0)+1)/12 -> 3458.494913 | AE29: =(AE5>='Rent Roll'!$J$6)*(AE5<='Rent Roll'!$K$6)*'Rent Roll'!$M$6*'Rent Roll'!$F$6*(1+Assumptions!$C$5)^(ROUNDDOWN((AE4-$C$4-1)/12,0)+1)/12+(AE5>'Rent Roll'!$AE$6)*(AE5<=EOMONTH('Rent Roll'!$AD$6,'Rent Roll'!$S$6))*'Rent Roll'!$T$6*'Rent Roll'!$F$6*(1+Assumptions!$C$5)^(ROUNDDOWN((AE4-$C$4-1)/12,0)+1)/12 -> 3458.494913 | AF29: =(AF5>='Rent Roll'!$J$6)*(AF5<='Rent Roll'!$K$6)*'Rent Roll'!$M$6*'Rent Roll'!$F$6*(1+Assumptions!$C$5)^(ROUNDDOWN((AF4-$C$4-1)/12,0)+1)/12+(AF5>'Rent Roll'!$AE$6)*(AF5<=EOMONTH('Rent Roll'!$AD$6,'Rent Roll'!$S$6))*'Rent Roll'!$T$6*'Rent Roll'!$F$6*(1+Assumptions!$C$5)^(ROUNDDOWN((AF4-$C$4-1)/12,0)+1)/12 -> 3458.494913 | AG29: =(AG5>='Rent Roll'!$J$6)*(AG5<='Rent Roll'!$K$6)*'Rent Roll'!$M$6*'Rent Roll'!$F$6*(1+Assumptions!$C$5)^(ROUNDDOWN((AG4-$C$4-1)/12,0)+1)/12+(AG5>'Rent Roll'!$AE$6)*(AG5<=EOMONTH('Rent Roll'!$AD$6,'Rent Roll'!$S$6))*'Rent Roll'!$T$6*'Rent Roll'!$F$6*(1+Assumptions!$C$5)^(ROUNDDOWN((AG4-$C$4-1)/12,0)+1)/12 -> 3458.494913 | AH29: =(AH5>='Rent Roll'!$J$6)*(AH5<='Rent Roll'!$K$6)*'Rent Roll'!$M$6*'Rent Roll'!$F$6*(1+Assumptions!$C$5)^(ROUNDDOWN((AH4-$C$4-1)/12,0)+1)/12+(AH5>'Rent Roll'!$AE$6)*(AH5<=EOMONTH('Rent Roll'!$AD$6,'Rent Roll'!$S$6))*'Rent Roll'!$T$6*'Rent Roll'!$F$6*(1+Assumptions!$C$5)^(ROUNDDOWN((AH4-$C$4-1)/12,0)+1)/12 -> 3458.494913 | AI29: =(AI5>='Rent Roll'!$J$6)*(AI5<='Rent Roll'!$K$6)*'Rent Roll'!$M$6*'Rent Roll'!$F$6*(1+Assumptions!$C$5)^(ROUNDDOWN((AI4-$C$4-1)/12,0)+1)/12+(AI5>'Rent Roll'!$AE$6)*(AI5<=EOMONTH('Rent Roll'!$AD$6,'Rent Roll'!$S$6))*'Rent Roll'!$T$6*'Rent Roll'!$F$6*(1+Assumptions!$C$5)^(ROUNDDOWN((AI4-$C$4-1)/12,0)+1)/12 -> 3458.494913 | AJ29: =(AJ5>='Rent Roll'!$J$6)*(AJ5<='Rent Roll'!$K$6)*'Rent Roll'!$M$6*'Rent Roll'!$F$6*(1+Assumptions!$C$5)^(ROUNDDOWN((AJ4-$C$4-1)/12,0)+1)/12+(AJ5>'Rent Roll'!$AE$6)*(AJ5<=EOMONTH('Rent Roll'!$AD$6,'Rent Roll'!$S$6))*'Rent Roll'!$T$6*'Rent Roll'!$F$6*(1+Assumptions!$C$5)^(ROUNDDOWN((AJ4-$C$4-1)/12,0)+1)/12 -> 3458.494913 | AK29: =(AK5>='Rent Roll'!$J$6)*(AK5<='Rent Roll'!$K$6)*'Rent Roll'!$M$6*'Rent Roll'!$F$6*(1+Assumptions!$C$5)^(ROUNDDOWN((AK4-$C$4-1)/12,0)+1)/12+(AK5>'Rent Roll'!$AE$6)*(AK5<=EOMONTH('Rent Roll'!$AD$6,'Rent Roll'!$S$6))*'Rent Roll'!$T$6*'Rent Roll'!$F$6*(1+Assumptions!$C$5)^(ROUNDDOWN((AK4-$C$4-1)/12,0)+1)/12 -> 3458.494913 | AL29: =(AL5>='Rent Roll'!$J$6)*(AL5<='Rent Roll'!$K$6)*'Rent Roll'!$M$6*'Rent Roll'!$F$6*(1+Assumptions!$C$5)^(ROUNDDOWN((AL4-$C$4-1)/12,0)+1)/12+(AL5>'Rent Roll'!$AE$6)*(AL5<=EOMONTH('Rent Roll'!$AD$6,'Rent Roll'!$S$6))*'Rent Roll'!$T$6*'Rent Roll'!$F$6*(1+Assumptions!$C$5)^(ROUNDDOWN((AL4-$C$4-1)/12,0)+1)/12 -> 3458.494913 | AM29: =(AM5>='Rent Roll'!$J$6)*(AM5<='Rent Roll'!$K$6)*'Rent Roll'!$M$6*'Rent Roll'!$F$6*(1+Assumptions!$C$5)^(ROUNDDOWN((AM4-$C$4-1)/12,0)+1)/12+(AM5>'Rent Roll'!$AE$6)*(AM5<=EOMONTH('Rent Roll'!$AD$6,'Rent Roll'!$S$6))*'Rent Roll'!$T$6*'Rent Roll'!$F$6*(1+Assumptions!$C$5)^(ROUNDDOWN((AM4-$C$4-1)/12,0)+1)/12 -> 3458.494913 | AN29: =(AN5>='Rent Roll'!$J$6)*(AN5<='Rent Roll'!$K$6)*'Rent Roll'!$M$6*'Rent Roll'!$F$6*(1+Assumptions!$C$5)^(ROUNDDOWN((AN4-$C$4-1)/12,0)+1)/12+(AN5>'Rent Roll'!$AE$6)*(AN5<=EOMONTH('Rent Roll'!$AD$6,'Rent Roll'!$S$6))*'Rent Roll'!$T$6*'Rent Roll'!$F$6*(1+Assumptions!$C$5)^(ROUNDDOWN((AN4-$C$4-1)/12,0)+1)/12 -> 3527.664811 | AO29: =(AO5>='Rent Roll'!$J$6)*(AO5<='Rent Roll'!$K$6)*'Rent Roll'!$M$6*'Rent Roll'!$F$6*(1+Assumptions!$C$5)^(ROUNDDOWN((AO4-$C$4-1)/12,0)+1)/12+(AO5>'Rent Roll'!$AE$6)*(AO5<=EOMONTH('Rent Roll'!$AD$6,'Rent Roll'!$S$6))*'Rent Roll'!$T$6*'Rent Roll'!$F$6*(1+Assumptions!$C$5)^(ROUNDDOWN((AO4-$C$4-1)/12,0)+1)/12 -> 3527.664811 | AP29: =(AP5>='Rent Roll'!$J$6)*(AP5<='Rent Roll'!$K$6)*'Rent Roll'!$M$6*'Rent Roll'!$F$6*(1+Assumptions!$C$5)^(ROUNDDOWN((AP4-$C$4-1)/12,0)+1)/12+(AP5>'Rent Roll'!$AE$6)*(AP5<=EOMONTH('Rent Roll'!$AD$6,'Rent Roll'!$S$6))*'Rent Roll'!$T$6*'Rent Roll'!$F$6*(1+Assumptions!$C$5)^(ROUNDDOWN((AP4-$C$4-1)/12,0)+1)/12 -> 3527.664811 | AQ29: =(AQ5>='Rent Roll'!$J$6)*(AQ5<='Rent Roll'!$K$6)*'Rent Roll'!$M$6*'Rent Roll'!$F$6*(1+Assumptions!$C$5)^(ROUNDDOWN((AQ4-$C$4-1)/12,0)+1)/12+(AQ5>'Rent Roll'!$AE$6)*(AQ5<=EOMONTH('Rent Roll'!$AD$6,'Rent Roll'!$S$6))*'Rent Roll'!$T$6*'Rent Roll'!$F$6*(1+Assumptions!$C$5)^(ROUNDDOWN((AQ4-$C$4-1)/12,0)+1)/12 -> 3527.664811 | AR29: =(AR5>='Rent Roll'!$J$6)*(AR5<='Rent Roll'!$K$6)*'Rent Roll'!$M$6*'Rent Roll'!$F$6*(1+Assumptions!$C$5)^(ROUNDDOWN((AR4-$C$4-1)/12,0)+1)/12+(AR5>'Rent Roll'!$AE$6)*(AR5<=EOMONTH('Rent Roll'!$AD$6,'Rent Roll'!$S$6))*'Rent Roll'!$T$6*'Rent Roll'!$F$6*(1+Assumptions!$C$5)^(ROUNDDOWN((AR4-$C$4-1)/12,0)+1)/12 -> 3527.664811 | AS29: =(AS5>='Rent Roll'!$J$6)*(AS5<='Rent Roll'!$K$6)*'Rent Roll'!$M$6*'Rent Roll'!$F$6*(1+Assumptions!$C$5)^(ROUNDDOWN((AS4-$C$4-1)/12,0)+1)/12+(AS5>'Rent Roll'!$AE$6)*(AS5<=EOMONTH('Rent Roll'!$AD$6,'Rent Roll'!$S$6))*'Rent Roll'!$T$6*'Rent Roll'!$F$6*(1+Assumptions!$C$5)^(ROUNDDOWN((AS4-$C$4-1)/12,0)+1)/12 -> 3527.664811 | AT29: =(AT5>='Rent Roll'!$J$6)*(AT5<='Rent Roll'!$K$6)*'Rent Roll'!$M$6*'Rent Roll'!$F$6*(1+Assumptions!$C$5)^(ROUNDDOWN((AT4-$C$4-1)/12,0)+1)/12+(AT5>'Rent Roll'!$AE$6)*(AT5<=EOMONTH('Rent Roll'!$AD$6,'Rent Roll'!$S$6))*'Rent Roll'!$T$6*'Rent Roll'!$F$6*(1+Assumptions!$C$5)^(ROUNDDOWN((AT4-$C$4-1)/12,0)+1)/12 -> 3527.664811 | AU29: =(AU5>='Rent Roll'!$J$6)*(AU5<='Rent Roll'!$K$6)*'Rent Roll'!$M$6*'Rent Roll'!$F$6*(1+Assumptions!$C$5)^(ROUNDDOWN((AU4-$C$4-1)/12,0)+1)/12+(AU5>'Rent Roll'!$AE$6)*(AU5<=EOMONTH('Rent Roll'!$AD$6,'Rent Roll'!$S$6))*'Rent Roll'!$T$6*'Rent Roll'!$F$6*(1+Assumptions!$C$5)^(ROUNDDOWN((AU4-$C$4-1)/12,0)+1)/12 -> 3527.664811 | AV29: =(AV5>='Rent Roll'!$J$6)*(AV5<='Rent Roll'!$K$6)*'Rent Roll'!$M$6*'Rent Roll'!$F$6*(1+Assumptions!$C$5)^(ROUNDDOWN((AV4-$C$4-1)/12,0)+1)/12+(AV5>'Rent Roll'!$AE$6)*(AV5<=EOMONTH('Rent Roll'!$AD$6,'Rent Roll'!$S$6))*'Rent Roll'!$T$6*'Rent Roll'!$F$6*(1+Assumptions!$C$5)^(ROUNDDOWN((AV4-$C$4-1)/12,0)+1)/12 -> 3527.664811 | AW29: =(AW5>='Rent Roll'!$J$6)*(AW5<='Rent Roll'!$K$6)*'Rent Roll'!$M$6*'Rent Roll'!$F$6*(1+Assumptions!$C$5)^(ROUNDDOWN((AW4-$C$4-1)/12,0)+1)/12+(AW5>'Rent Roll'!$AE$6)*(AW5<=EOMONTH('Rent Roll'!$AD$6,'Rent Roll'!$S$6))*'Rent Roll'!$T$6*'Rent Roll'!$F$6*(1+Assumptions!$C$5)^(ROUNDDOWN((AW4-$C$4-1)/12,0)+1)/12 -> 3527.664811 | AX29: =(AX5>='Rent Roll'!$J$6)*(AX5<='Rent Roll'!$K$6)*'Rent Roll'!$M$6*'Rent Roll'!$F$6*(1+Assumptions!$C$5)^(ROUNDDOWN((AX4-$C$4-1)/12,0)+1)/12+(AX5>'Rent Roll'!$AE$6)*(AX5<=EOMONTH('Rent Roll'!$AD$6,'Rent Roll'!$S$6))*'Rent Roll'!$T$6*'Rent Roll'!$F$6*(1+Assumptions!$C$5)^(ROUNDDOWN((AX4-$C$4-1)/12,0)+1)/12 -> 3527.664811 | AY29: =(AY5>='Rent Roll'!$J$6)*(AY5<='Rent Roll'!$K$6)*'Rent Roll'!$M$6*'Rent Roll'!$F$6*(1+Assumptions!$C$5)^(ROUNDDOWN((AY4-$C$4-1)/12,0)+1)/12+(AY5>'Rent Roll'!$AE$6)*(AY5<=EOMONTH('Rent Roll'!$AD$6,'Rent Roll'!$S$6))*'Rent Roll'!$T$6*'Rent Roll'!$F$6*(1+Assumptions!$C$5)^(ROUNDDOWN((AY4-$C$4-1)/12,0)+1)/12 -> 3527.664811 | AZ29: =(AZ5>='Rent Roll'!$J$6)*(AZ5<='Rent Roll'!$K$6)*'Rent Roll'!$M$6*'Rent Roll'!$F$6*(1+Assumptions!$C$5)^(ROUNDDOWN((AZ4-$C$4-1)/12,0)+1)/12+(AZ5>'Rent Roll'!$AE$6)*(AZ5<=EOMONTH('Rent Roll'!$AD$6,'Rent Roll'!$S$6))*'Rent Roll'!$T$6*'Rent Roll'!$F$6*(1+Assumptions!$C$5)^(ROUNDDOWN((AZ4-$C$4-1)/12,0)+1)/12 -> 3598.218107 | BA29: =(BA5>='Rent Roll'!$J$6)*(BA5<='Rent Roll'!$K$6)*'Rent Roll'!$M$6*'Rent Roll'!$F$6*(1+Assumptions!$C$5)^(ROUNDDOWN((BA4-$C$4-1)/12,0)+1)/12+(BA5>'Rent Roll'!$AE$6)*(BA5<=EOMONTH('Rent Roll'!$AD$6,'Rent Roll'!$S$6))*'Rent Roll'!$T$6*'Rent Roll'!$F$6*(1+Assumptions!$C$5)^(ROUNDDOWN((BA4-$C$4-1)/12,0)+1)/12 -> 3598.218107 | BB29: =(BB5>='Rent Roll'!$J$6)*(BB5<='Rent Roll'!$K$6)*'Rent Roll'!$M$6*'Rent Roll'!$F$6*(1+Assumptions!$C$5)^(ROUNDDOWN((BB4-$C$4-1)/12,0)+1)/12+(BB5>'Rent Roll'!$AE$6)*(BB5<=EOMONTH('Rent Roll'!$AD$6,'Rent Roll'!$S$6))*'Rent Roll'!$T$6*'Rent Roll'!$F$6*(1+Assumptions!$C$5)^(ROUNDDOWN((BB4-$C$4-1)/12,0)+1)/12 -> 0 | BC29: =(BC5>='Rent Roll'!$J$6)*(BC5<='Rent Roll'!$K$6)*'Rent Roll'!$M$6*'Rent Roll'!$F$6*(1+Assumptions!$C$5)^(ROUNDDOWN((BC4-$C$4-1)/12,0)+1)/12+(BC5>'Rent Roll'!$AE$6)*(BC5<=EOMONTH('Rent Roll'!$AD$6,'Rent Roll'!$S$6))*'Rent Roll'!$T$6*'Rent Roll'!$F$6*(1+Assumptions!$C$5)^(ROUNDDOWN((BC4-$C$4-1)/12,0)+1)/12 -> 0 | BD29: =(BD5>='Rent Roll'!$J$6)*(BD5<='Rent Roll'!$K$6)*'Rent Roll'!$M$6*'Rent Roll'!$F$6*(1+Assumptions!$C$5)^(ROUNDDOWN((BD4-$C$4-1)/12,0)+1)/12+(BD5>'Rent Roll'!$AE$6)*(BD5<=EOMONTH('Rent Roll'!$AD$6,'Rent Roll'!$S$6))*'Rent Roll'!$T$6*'Rent Roll'!$F$6*(1+Assumptions!$C$5)^(ROUNDDOWN((BD4-$C$4-1)/12,0)+1)/12 -> 0 | BE29: =(BE5>='Rent Roll'!$J$6)*(BE5<='Rent Roll'!$K$6)*'Rent Roll'!$M$6*'Rent Roll'!$F$6*(1+Assumptions!$C$5)^(ROUNDDOWN((BE4-$C$4-1)/12,0)+1)/12+(BE5>'Rent Roll'!$AE$6)*(BE5<=EOMONTH('Rent Roll'!$AD$6,'Rent Roll'!$S$6))*'Rent Roll'!$T$6*'Rent Roll'!$F$6*(1+Assumptions!$C$5)^(ROUNDDOWN((BE4-$C$4-1)/12,0)+1)/12 -> 0 | BF29: =(BF5>='Rent Roll'!$J$6)*(BF5<='Rent Roll'!$K$6)*'Rent Roll'!$M$6*'Rent Roll'!$F$6*(1+Assumptions!$C$5)^(ROUNDDOWN((BF4-$C$4-1)/12,0)+1)/12+(BF5>'Rent Roll'!$AE$6)*(BF5<=EOMONTH('Rent Roll'!$AD$6,'Rent Roll'!$S$6))*'Rent Roll'!$T$6*'Rent Roll'!$F$6*(1+Assumptions!$C$5)^(ROUNDDOWN((BF4-$C$4-1)/12,0)+1)/12 -> 0 | BG29: =(BG5>='Rent Roll'!$J$6)*(BG5<='Rent Roll'!$K$6)*'Rent Roll'!$M$6*'Rent Roll'!$F$6*(1+Assumptions!$C$5)^(ROUNDDOWN((BG4-$C$4-1)/12,0)+1)/12+(BG5>'Rent Roll'!$AE$6)*(BG5<=EOMONTH('Rent Roll'!$AD$6,'Rent Roll'!$S$6))*'Rent Roll'!$T$6*'Rent Roll'!$F$6*(1+Assumptions!$C$5)^(ROUNDDOWN((BG4-$C$4-1)/12,0)+1)/12 -> 0 | BH29: =(BH5>='Rent Roll'!$J$6)*(BH5<='Rent Roll'!$K$6)*'Rent Roll'!$M$6*'Rent Roll'!$F$6*(1+Assumptions!$C$5)^(ROUNDDOWN((BH4-$C$4-1)/12,0)+1)/12+(BH5>'Rent Roll'!$AE$6)*(BH5<=EOMONTH('Rent Roll'!$AD$6,'Rent Roll'!$S$6))*'Rent Roll'!$T$6*'Rent Roll'!$F$6*(1+Assumptions!$C$5)^(ROUNDDOWN((BH4-$C$4-1)/12,0)+1)/12 -> 0 | BI29: =(BI5>='Rent Roll'!$J$6)*(BI5<='Rent Roll'!$K$6)*'Rent Roll'!$M$6*'Rent Roll'!$F$6*(1+Assumptions!$C$5)^(ROUNDDOWN((BI4-$C$4-1)/12,0)+1)/12+(BI5>'Rent Roll'!$AE$6)*(BI5<=EOMONTH('Rent Roll'!$AD$6,'Rent Roll'!$S$6))*'Rent Roll'!$T$6*'Rent Roll'!$F$6*(1+Assumptions!$C$5)^(ROUNDDOWN((BI4-$C$4-1)/12,0)+1)/12 -> 3830.608347 | BJ29: =(BJ5>='Rent Roll'!$J$6)*(BJ5<='Rent Roll'!$K$6)*'Rent Roll'!$M$6*'Rent Roll'!$F$6*(1+Assumptions!$C$5)^(ROUNDDOWN((BJ4-$C$4-1)/12,0)+1)/12+(BJ5>'Rent Roll'!$AE$6)*(BJ5<=EOMONTH('Rent Roll'!$AD$6,'Rent Roll'!$S$6))*'Rent Roll'!$T$6*'Rent Roll'!$F$6*(1+Assumptions!$C$5)^(ROUNDDOWN((BJ4-$C$4-1)/12,0)+1)/12 -> 3830.608347 | BK29: =(BK5>='Rent Roll'!$J$6)*(BK5<='Rent Roll'!$K$6)*'Rent Roll'!$M$6*'Rent Roll'!$F$6*(1+Assumptions!$C$5)^(ROUNDDOWN((BK4-$C$4-1)/12,0)+1)/12+(BK5>'Rent Roll'!$AE$6)*(BK5<=EOMONTH('Rent Roll'!$AD$6,'Rent Roll'!$S$6))*'Rent Roll'!$T$6*'Rent Roll'!$F$6*(1+Assumptions!$C$5)^(ROUNDDOWN((BK4-$C$4-1)/12,0)+1)/12 -> 3830.608347 | BM29: STOP
B30: =+B18 -> Vacant | D30: =(D5>='Rent Roll'!$J$7)*(D5<='Rent Roll'!$K$7)*'Rent Roll'!$M$7*'Rent Roll'!$F$7*(1+Assumptions!$C$5)^(ROUNDDOWN((D4-$C$4-1)/12,0)+1)/12+(D5>'Rent Roll'!$AE$7)*(D5<=EOMONTH('Rent Roll'!$AD$7,'Rent Roll'!$S$7))*'Rent Roll'!$T$7*'Rent Roll'!$F$7*(1+Assumptions!$C$5)^(ROUNDDOWN((D4-$C$4-1)/12,0)+1)/12 -> 0 | E30: =(E5>='Rent Roll'!$J$7)*(E5<='Rent Roll'!$K$7)*'Rent Roll'!$M$7*'Rent Roll'!$F$7*(1+Assumptions!$C$5)^(ROUNDDOWN((E4-$C$4-1)/12,0)+1)/12+(E5>'Rent Roll'!$AE$7)*(E5<=EOMONTH('Rent Roll'!$AD$7,'Rent Roll'!$S$7))*'Rent Roll'!$T$7*'Rent Roll'!$F$7*(1+Assumptions!$C$5)^(ROUNDDOWN((E4-$C$4-1)/12,0)+1)/12 -> 0 | F30: =(F5>='Rent Roll'!$J$7)*(F5<='Rent Roll'!$K$7)*'Rent Roll'!$M$7*'Rent Roll'!$F$7*(1+Assumptions!$C$5)^(ROUNDDOWN((F4-$C$4-1)/12,0)+1)/12+(F5>'Rent Roll'!$AE$7)*(F5<=EOMONTH('Rent Roll'!$AD$7,'Rent Roll'!$S$7))*'Rent Roll'!$T$7*'Rent Roll'!$F$7*(1+Assumptions!$C$5)^(ROUNDDOWN((F4-$C$4-1)/12,0)+1)/12 -> 0 | G30: =(G5>='Rent Roll'!$J$7)*(G5<='Rent Roll'!$K$7)*'Rent Roll'!$M$7*'Rent Roll'!$F$7*(1+Assumptions!$C$5)^(ROUNDDOWN((G4-$C$4-1)/12,0)+1)/12+(G5>'Rent Roll'!$AE$7)*(G5<=EOMONTH('Rent Roll'!$AD$7,'Rent Roll'!$S$7))*'Rent Roll'!$T$7*'Rent Roll'!$F$7*(1+Assumptions!$C$5)^(ROUNDDOWN((G4-$C$4-1)/12,0)+1)/12 -> 0 | H30: =(H5>='Rent Roll'!$J$7)*(H5<='Rent Roll'!$K$7)*'Rent Roll'!$M$7*'Rent Roll'!$F$7*(1+Assumptions!$C$5)^(ROUNDDOWN((H4-$C$4-1)/12,0)+1)/12+(H5>'Rent Roll'!$AE$7)*(H5<=EOMONTH('Rent Roll'!$AD$7,'Rent Roll'!$S$7))*'Rent Roll'!$T$7*'Rent Roll'!$F$7*(1+Assumptions!$C$5)^(ROUNDDOWN((H4-$C$4-1)/12,0)+1)/12 -> 0 | I30: =(I5>='Rent Roll'!$J$7)*(I5<='Rent Roll'!$K$7)*'Rent Roll'!$M$7*'Rent Roll'!$F$7*(1+Assumptions!$C$5)^(ROUNDDOWN((I4-$C$4-1)/12,0)+1)/12+(I5>'Rent Roll'!$AE$7)*(I5<=EOMONTH('Rent Roll'!$AD$7,'Rent Roll'!$S$7))*'Rent Roll'!$T$7*'Rent Roll'!$F$7*(1+Assumptions!$C$5)^(ROUNDDOWN((I4-$C$4-1)/12,0)+1)/12 -> 0 | J30: =(J5>='Rent Roll'!$J$7)*(J5<='Rent Roll'!$K$7)*'Rent Roll'!$M$7*'Rent Roll'!$F$7*(1+Assumptions!$C$5)^(ROUNDDOWN((J4-$C$4-1)/12,0)+1)/12+(J5>'Rent Roll'!$AE$7)*(J5<=EOMONTH('Rent Roll'!$AD$7,'Rent Roll'!$S$7))*'Rent Roll'!$T$7*'Rent Roll'!$F$7*(1+Assumptions!$C$5)^(ROUNDDOWN((J4-$C$4-1)/12,0)+1)/12 -> 0 | K30: =(K5>='Rent Roll'!$J$7)*(K5<='Rent Roll'!$K$7)*'Rent Roll'!$M$7*'Rent Roll'!$F$7*(1+Assumptions!$C$5)^(ROUNDDOWN((K4-$C$4-1)/12,0)+1)/12+(K5>'Rent Roll'!$AE$7)*(K5<=EOMONTH('Rent Roll'!$AD$7,'Rent Roll'!$S$7))*'Rent Roll'!$T$7*'Rent Roll'!$F$7*(1+Assumptions!$C$5)^(ROUNDDOWN((K4-$C$4-1)/12,0)+1)/12 -> 0 | L30: =(L5>='Rent Roll'!$J$7)*(L5<='Rent Roll'!$K$7)*'Rent Roll'!$M$7*'Rent Roll'!$F$7*(1+Assumptions!$C$5)^(ROUNDDOWN((L4-$C$4-1)/12,0)+1)/12+(L5>'Rent Roll'!$AE$7)*(L5<=EOMONTH('Rent Roll'!$AD$7,'Rent Roll'!$S$7))*'Rent Roll'!$T$7*'Rent Roll'!$F$7*(1+Assumptions!$C$5)^(ROUNDDOWN((L4-$C$4-1)/12,0)+1)/12 -> 0 | M30: =(M5>='Rent Roll'!$J$7)*(M5<='Rent Roll'!$K$7)*'Rent Roll'!$M$7*'Rent Roll'!$F$7*(1+Assumptions!$C$5)^(ROUNDDOWN((M4-$C$4-1)/12,0)+1)/12+(M5>'Rent Roll'!$AE$7)*(M5<=EOMONTH('Rent Roll'!$AD$7,'Rent Roll'!$S$7))*'Rent Roll'!$T$7*'Rent Roll'!$F$7*(1+Assumptions!$C$5)^(ROUNDDOWN((M4-$C$4-1)/12,0)+1)/12 -> 0 | N30: =(N5>='Rent Roll'!$J$7)*(N5<='Rent Roll'!$K$7)*'Rent Roll'!$M$7*'Rent Roll'!$F$7*(1+Assumptions!$C$5)^(ROUNDDOWN((N4-$C$4-1)/12,0)+1)/12+(N5>'Rent Roll'!$AE$7)*(N5<=EOMONTH('Rent Roll'!$AD$7,'Rent Roll'!$S$7))*'Rent Roll'!$T$7*'Rent Roll'!$F$7*(1+Assumptions!$C$5)^(ROUNDDOWN((N4-$C$4-1)/12,0)+1)/12 -> 0 | O30: =(O5>='Rent Roll'!$J$7)*(O5<='Rent Roll'!$K$7)*'Rent Roll'!$M$7*'Rent Roll'!$F$7*(1+Assumptions!$C$5)^(ROUNDDOWN((O4-$C$4-1)/12,0)+1)/12+(O5>'Rent Roll'!$AE$7)*(O5<=EOMONTH('Rent Roll'!$AD$7,'Rent Roll'!$S$7))*'Rent Roll'!$T$7*'Rent Roll'!$F$7*(1+Assumptions!$C$5)^(ROUNDDOWN((O4-$C$4-1)/12,0)+1)/12 -> 0 | P30: =(P5>='Rent Roll'!$J$7)*(P5<='Rent Roll'!$K$7)*'Rent Roll'!$M$7*'Rent Roll'!$F$7*(1+Assumptions!$C$5)^(ROUNDDOWN((P4-$C$4-1)/12,0)+1)/12+(P5>'Rent Roll'!$AE$7)*(P5<=EOMONTH('Rent Roll'!$AD$7,'Rent Roll'!$S$7))*'Rent Roll'!$T$7*'Rent Roll'!$F$7*(1+Assumptions!$C$5)^(ROUNDDOWN((P4-$C$4-1)/12,0)+1)/12 -> 1923.4395 | Q30: =(Q5>='Rent Roll'!$J$7)*(Q5<='Rent Roll'!$K$7)*'Rent Roll'!$M$7*'Rent Roll'!$F$7*(1+Assumptions!$C$5)^(ROUNDDOWN((Q4-$C$4-1)/12,0)+1)/12+(Q5>'Rent Roll'!$AE$7)*(Q5<=EOMONTH('Rent Roll'!$AD$7,'Rent Roll'!$S$7))*'Rent Roll'!$T$7*'Rent Roll'!$F$7*(1+Assumptions!$C$5)^(ROUNDDOWN((Q4-$C$4-1)/12,0)+1)/12 -> 1923.4395 | R30: =(R5>='Rent Roll'!$J$7)*(R5<='Rent Roll'!$K$7)*'Rent Roll'!$M$7*'Rent Roll'!$F$7*(1+Assumptions!$C$5)^(ROUNDDOWN((R4-$C$4-1)/12,0)+1)/12+(R5>'Rent Roll'!$AE$7)*(R5<=EOMONTH('Rent Roll'!$AD$7,'Rent Roll'!$S$7))*'Rent Roll'!$T$7*'Rent Roll'!$F$7*(1+Assumptions!$C$5)^(ROUNDDOWN((R4-$C$4-1)/12,0)+1)/12 -> 1923.4395 | S30: =(S5>='Rent Roll'!$J$7)*(S5<='Rent Roll'!$K$7)*'Rent Roll'!$M$7*'Rent Roll'!$F$7*(1+Assumptions!$C$5)^(ROUNDDOWN((S4-$C$4-1)/12,0)+1)/12+(S5>'Rent Roll'!$AE$7)*(S5<=EOMONTH('Rent Roll'!$AD$7,'Rent Roll'!$S$7))*'Rent Roll'!$T$7*'Rent Roll'!$F$7*(1+Assumptions!$C$5)^(ROUNDDOWN((S4-$C$4-1)/12,0)+1)/12 -> 1923.4395 | T30: =(T5>='Rent Roll'!$J$7)*(T5<='Rent Roll'!$K$7)*'Rent Roll'!$M$7*'Rent Roll'!$F$7*(1+Assumptions!$C$5)^(ROUNDDOWN((T4-$C$4-1)/12,0)+1)/12+(T5>'Rent Roll'!$AE$7)*(T5<=EOMONTH('Rent Roll'!$AD$7,'Rent Roll'!$S$7))*'Rent Roll'!$T$7*'Rent Roll'!$F$7*(1+Assumptions!$C$5)^(ROUNDDOWN((T4-$C$4-1)/12,0)+1)/12 -> 1923.4395 | U30: =(U5>='Rent Roll'!$J$7)*(U5<='Rent Roll'!$K$7)*'Rent Roll'!$M$7*'Rent Roll'!$F$7*(1+Assumptions!$C$5)^(ROUNDDOWN((U4-$C$4-1)/12,0)+1)/12+(U5>'Rent Roll'!$AE$7)*(U5<=EOMONTH('Rent Roll'!$AD$7,'Rent Roll'!$S$7))*'Rent Roll'!$T$7*'Rent Roll'!$F$7*(1+Assumptions!$C$5)^(ROUNDDOWN((U4-$C$4-1)/12,0)+1)/12 -> 1923.4395 | V30: =(V5>='Rent Roll'!$J$7)*(V5<='Rent Roll'!$K$7)*'Rent Roll'!$M$7*'Rent Roll'!$F$7*(1+Assumptions!$C$5)^(ROUNDDOWN((V4-$C$4-1)/12,0)+1)/12+(V5>'Rent Roll'!$AE$7)*(V5<=EOMONTH('Rent Roll'!$AD$7,'Rent Roll'!$S$7))*'Rent Roll'!$T$7*'Rent Roll'!$F$7*(1+Assumptions!$C$5)^(ROUNDDOWN((V4-$C$4-1)/12,0)+1)/12 -> 1923.4395 | W30: =(W5>='Rent Roll'!$J$7)*(W5<='Rent Roll'!$K$7)*'Rent Roll'!$M$7*'Rent Roll'!$F$7*(1+Assumptions!$C$5)^(ROUNDDOWN((W4-$C$4-1)/12,0)+1)/12+(W5>'Rent Roll'!$AE$7)*(W5<=EOMONTH('Rent Roll'!$AD$7,'Rent Roll'!$S$7))*'Rent Roll'!$T$7*'Rent Roll'!$F$7*(1+Assumptions!$C$5)^(ROUNDDOWN((W4-$C$4-1)/12,0)+1)/12 -> 1923.4395 | X30: =(X5>='Rent Roll'!$J$7)*(X5<='Rent Roll'!$K$7)*'Rent Roll'!$M$7*'Rent Roll'!$F$7*(1+Assumptions!$C$5)^(ROUNDDOWN((X4-$C$4-1)/12,0)+1)/12+(X5>'Rent Roll'!$AE$7)*(X5<=EOMONTH('Rent Roll'!$AD$7,'Rent Roll'!$S$7))*'Rent Roll'!$T$7*'Rent Roll'!$F$7*(1+Assumptions!$C$5)^(ROUNDDOWN((X4-$C$4-1)/12,0)+1)/12 -> 1923.4395 | Y30: =(Y5>='Rent Roll'!$J$7)*(Y5<='Rent Roll'!$K$7)*'Rent Roll'!$M$7*'Rent Roll'!$F$7*(1+Assumptions!$C$5)^(ROUNDDOWN((Y4-$C$4-1)/12,0)+1)/12+(Y5>'Rent Roll'!$AE$7)*(Y5<=EOMONTH('Rent Roll'!$AD$7,'Rent Roll'!$S$7))*'Rent Roll'!$T$7*'Rent Roll'!$F$7*(1+Assumptions!$C$5)^(ROUNDDOWN((Y4-$C$4-1)/12,0)+1)/12 -> 1923.4395 | Z30: =(Z5>='Rent Roll'!$J$7)*(Z5<='Rent Roll'!$K$7)*'Rent Roll'!$M$7*'Rent Roll'!$F$7*(1+Assumptions!$C$5)^(ROUNDDOWN((Z4-$C$4-1)/12,0)+1)/12+(Z5>'Rent Roll'!$AE$7)*(Z5<=EOMONTH('Rent Roll'!$AD$7,'Rent Roll'!$S$7))*'Rent Roll'!$T$7*'Rent Roll'!$F$7*(1+Assumptions!$C$5)^(ROUNDDOWN((Z4-$C$4-1)/12,0)+1)/12 -> 1923.4395 | AA30: =(AA5>='Rent Roll'!$J$7)*(AA5<='Rent Roll'!$K$7)*'Rent Roll'!$M$7*'Rent Roll'!$F$7*(1+Assumptions!$C$5)^(ROUNDDOWN((AA4-$C$4-1)/12,0)+1)/12+(AA5>'Rent Roll'!$AE$7)*(AA5<=EOMONTH('Rent Roll'!$AD$7,'Rent Roll'!$S$7))*'Rent Roll'!$T$7*'Rent Roll'!$F$7*(1+Assumptions!$C$5)^(ROUNDDOWN((AA4-$C$4-1)/12,0)+1)/12 -> 1923.4395 | AB30: =(AB5>='Rent Roll'!$J$7)*(AB5<='Rent Roll'!$K$7)*'Rent Roll'!$M$7*'Rent Roll'!$F$7*(1+Assumptions!$C$5)^(ROUNDDOWN((AB4-$C$4-1)/12,0)+1)/12+(AB5>'Rent Roll'!$AE$7)*(AB5<=EOMONTH('Rent Roll'!$AD$7,'Rent Roll'!$S$7))*'Rent Roll'!$T$7*'Rent Roll'!$F$7*(1+Assumptions!$C$5)^(ROUNDDOWN((AB4-$C$4-1)/12,0)+1)/12 -> 1961.90829 | AC30: =(AC5>='Rent Roll'!$J$7)*(AC5<='Rent Roll'!$K$7)*'Rent Roll'!$M$7*'Rent Roll'!$F$7*(1+Assumptions!$C$5)^(ROUNDDOWN((AC4-$C$4-1)/12,0)+1)/12+(AC5>'Rent Roll'!$AE$7)*(AC5<=EOMONTH('Rent Roll'!$AD$7,'Rent Roll'!$S$7))*'Rent Roll'!$T$7*'Rent Roll'!$F$7*(1+Assumptions!$C$5)^(ROUNDDOWN((AC4-$C$4-1)/12,0)+1)/12 -> 1961.90829 | AD30: =(AD5>='Rent Roll'!$J$7)*(AD5<='Rent Roll'!$K$7)*'Rent Roll'!$M$7*'Rent Roll'!$F$7*(1+Assumptions!$C$5)^(ROUNDDOWN((AD4-$C$4-1)/12,0)+1)/12+(AD5>'Rent Roll'!$AE$7)*(AD5<=EOMONTH('Rent Roll'!$AD$7,'Rent Roll'!$S$7))*'Rent Roll'!$T$7*'Rent Roll'!$F$7*(1+Assumptions!$C$5)^(ROUNDDOWN((AD4-$C$4-1)/12,0)+1)/12 -> 1961.90829 | AE30: =(AE5>='Rent Roll'!$J$7)*(AE5<='Rent Roll'!$K$7)*'Rent Roll'!$M$7*'Rent Roll'!$F$7*(1+Assumptions!$C$5)^(ROUNDDOWN((AE4-$C$4-1)/12,0)+1)/12+(AE5>'Rent Roll'!$AE$7)*(AE5<=EOMONTH('Rent Roll'!$AD$7,'Rent Roll'!$S$7))*'Rent Roll'!$T$7*'Rent Roll'!$F$7*(1+Assumptions!$C$5)^(ROUNDDOWN((AE4-$C$4-1)/12,0)+1)/12 -> 1961.90829 | AF30: =(AF5>='Rent Roll'!$J$7)*(AF5<='Rent Roll'!$K$7)*'Rent Roll'!$M$7*'Rent Roll'!$F$7*(1+Assumptions!$C$5)^(ROUNDDOWN((AF4-$C$4-1)/12,0)+1)/12+(AF5>'Rent Roll'!$AE$7)*(AF5<=EOMONTH('Rent Roll'!$AD$7,'Rent Roll'!$S$7))*'Rent Roll'!$T$7*'Rent Roll'!$F$7*(1+Assumptions!$C$5)^(ROUNDDOWN((AF4-$C$4-1)/12,0)+1)/12 -> 1961.90829 | AG30: =(AG5>='Rent Roll'!$J$7)*(AG5<='Rent Roll'!$K$7)*'Rent Roll'!$M$7*'Rent Roll'!$F$7*(1+Assumptions!$C$5)^(ROUNDDOWN((AG4-$C$4-1)/12,0)+1)/12+(AG5>'Rent Roll'!$AE$7)*(AG5<=EOMONTH('Rent Roll'!$AD$7,'Rent Roll'!$S$7))*'Rent Roll'!$T$7*'Rent Roll'!$F$7*(1+Assumptions!$C$5)^(ROUNDDOWN((AG4-$C$4-1)/12,0)+1)/12 -> 1961.90829 | AH30: =(AH5>='Rent Roll'!$J$7)*(AH5<='Rent Roll'!$K$7)*'Rent Roll'!$M$7*'Rent Roll'!$F$7*(1+Assumptions!$C$5)^(ROUNDDOWN((AH4-$C$4-1)/12,0)+1)/12+(AH5>'Rent Roll'!$AE$7)*(AH5<=EOMONTH('Rent Roll'!$AD$7,'Rent Roll'!$S$7))*'Rent Roll'!$T$7*'Rent Roll'!$F$7*(1+Assumptions!$C$5)^(ROUNDDOWN((AH4-$C$4-1)/12,0)+1)/12 -> 1961.90829 | AI30: =(AI5>='Rent Roll'!$J$7)*(AI5<='Rent Roll'!$K$7)*'Rent Roll'!$M$7*'Rent Roll'!$F$7*(1+Assumptions!$C$5)^(ROUNDDOWN((AI4-$C$4-1)/12,0)+1)/12+(AI5>'Rent Roll'!$AE$7)*(AI5<=EOMONTH('Rent Roll'!$AD$7,'Rent Roll'!$S$7))*'Rent Roll'!$T$7*'Rent Roll'!$F$7*(1+Assumptions!$C$5)^(ROUNDDOWN((AI4-$C$4-1)/12,0)+1)/12 -> 1961.90829 | AJ30: =(AJ5>='Rent Roll'!$J$7)*(AJ5<='Rent Roll'!$K$7)*'Rent Roll'!$M$7*'Rent Roll'!$F$7*(1+Assumptions!$C$5)^(ROUNDDOWN((AJ4-$C$4-1)/12,0)+1)/12+(AJ5>'Rent Roll'!$AE$7)*(AJ5<=EOMONTH('Rent Roll'!$AD$7,'Rent Roll'!$S$7))*'Rent Roll'!$T$7*'Rent Roll'!$F$7*(1+Assumptions!$C$5)^(ROUNDDOWN((AJ4-$C$4-1)/12,0)+1)/12 -> 1961.90829 | AK30: =(AK5>='Rent Roll'!$J$7)*(AK5<='Rent Roll'!$K$7)*'Rent Roll'!$M$7*'Rent Roll'!$F$7*(1+Assumptions!$C$5)^(ROUNDDOWN((AK4-$C$4-1)/12,0)+1)/12+(AK5>'Rent Roll'!$AE$7)*(AK5<=EOMONTH('Rent Roll'!$AD$7,'Rent Roll'!$S$7))*'Rent Roll'!$T$7*'Rent Roll'!$F$7*(1+Assumptions!$C$5)^(ROUNDDOWN((AK4-$C$4-1)/12,0)+1)/12 -> 1961.90829 | AL30: =(AL5>='Rent Roll'!$J$7)*(AL5<='Rent Roll'!$K$7)*'Rent Roll'!$M$7*'Rent Roll'!$F$7*(1+Assumptions!$C$5)^(ROUNDDOWN((AL4-$C$4-1)/12,0)+1)/12+(AL5>'Rent Roll'!$AE$7)*(AL5<=EOMONTH('Rent Roll'!$AD$7,'Rent Roll'!$S$7))*'Rent Roll'!$T$7*'Rent Roll'!$F$7*(1+Assumptions!$C$5)^(ROUNDDOWN((AL4-$C$4-1)/12,0)+1)/12 -> 1961.90829 | AM30: =(AM5>='Rent Roll'!$J$7)*(AM5<='Rent Roll'!$K$7)*'Rent Roll'!$M$7*'Rent Roll'!$F$7*(1+Assumptions!$C$5)^(ROUNDDOWN((AM4-$C$4-1)/12,0)+1)/12+(AM5>'Rent Roll'!$AE$7)*(AM5<=EOMONTH('Rent Roll'!$AD$7,'Rent Roll'!$S$7))*'Rent Roll'!$T$7*'Rent Roll'!$F$7*(1+Assumptions!$C$5)^(ROUNDDOWN((AM4-$C$4-1)/12,0)+1)/12 -> 1961.90829 | AN30: =(AN5>='Rent Roll'!$J$7)*(AN5<='Rent Roll'!$K$7)*'Rent Roll'!$M$7*'Rent Roll'!$F$7*(1+Assumptions!$C$5)^(ROUNDDOWN((AN4-$C$4-1)/12,0)+1)/12+(AN5>'Rent Roll'!$AE$7)*(AN5<=EOMONTH('Rent Roll'!$AD$7,'Rent Roll'!$S$7))*'Rent Roll'!$T$7*'Rent Roll'!$F$7*(1+Assumptions!$C$5)^(ROUNDDOWN((AN4-$C$4-1)/12,0)+1)/12 -> 2001.146456 | AO30: =(AO5>='Rent Roll'!$J$7)*(AO5<='Rent Roll'!$K$7)*'Rent Roll'!$M$7*'Rent Roll'!$F$7*(1+Assumptions!$C$5)^(ROUNDDOWN((AO4-$C$4-1)/12,0)+1)/12+(AO5>'Rent Roll'!$AE$7)*(AO5<=EOMONTH('Rent Roll'!$AD$7,'Rent Roll'!$S$7))*'Rent Roll'!$T$7*'Rent Roll'!$F$7*(1+Assumptions!$C$5)^(ROUNDDOWN((AO4-$C$4-1)/12,0)+1)/12 -> 2001.146456 | AP30: =(AP5>='Rent Roll'!$J$7)*(AP5<='Rent Roll'!$K$7)*'Rent Roll'!$M$7*'Rent Roll'!$F$7*(1+Assumptions!$C$5)^(ROUNDDOWN((AP4-$C$4-1)/12,0)+1)/12+(AP5>'Rent Roll'!$AE$7)*(AP5<=EOMONTH('Rent Roll'!$AD$7,'Rent Roll'!$S$7))*'Rent Roll'!$T$7*'Rent Roll'!$F$7*(1+Assumptions!$C$5)^(ROUNDDOWN((AP4-$C$4-1)/12,0)+1)/12 -> 2001.146456 | AQ30: =(AQ5>='Rent Roll'!$J$7)*(AQ5<='Rent Roll'!$K$7)*'Rent Roll'!$M$7*'Rent Roll'!$F$7*(1+Assumptions!$C$5)^(ROUNDDOWN((AQ4-$C$4-1)/12,0)+1)/12+(AQ5>'Rent Roll'!$AE$7)*(AQ5<=EOMONTH('Rent Roll'!$AD$7,'Rent Roll'!$S$7))*'Rent Roll'!$T$7*'Rent Roll'!$F$7*(1+Assumptions!$C$5)^(ROUNDDOWN((AQ4-$C$4-1)/12,0)+1)/12 -> 2001.146456 | AR30: =(AR5>='Rent Roll'!$J$7)*(AR5<='Rent Roll'!$K$7)*'Rent Roll'!$M$7*'Rent Roll'!$F$7*(1+Assumptions!$C$5)^(ROUNDDOWN((AR4-$C$4-1)/12,0)+1)/12+(AR5>'Rent Roll'!$AE$7)*(AR5<=EOMONTH('Rent Roll'!$AD$7,'Rent Roll'!$S$7))*'Rent Roll'!$T$7*'Rent Roll'!$F$7*(1+Assumptions!$C$5)^(ROUNDDOWN((AR4-$C$4-1)/12,0)+1)/12 -> 2001.146456 | AS30: =(AS5>='Rent Roll'!$J$7)*(AS5<='Rent Roll'!$K$7)*'Rent Roll'!$M$7*'Rent Roll'!$F$7*(1+Assumptions!$C$5)^(ROUNDDOWN((AS4-$C$4-1)/12,0)+1)/12+(AS5>'Rent Roll'!$AE$7)*(AS5<=EOMONTH('Rent Roll'!$AD$7,'Rent Roll'!$S$7))*'Rent Roll'!$T$7*'Rent Roll'!$F$7*(1+Assumptions!$C$5)^(ROUNDDOWN((AS4-$C$4-1)/12,0)+1)/12 -> 2001.146456 | AT30: =(AT5>='Rent Roll'!$J$7)*(AT5<='Rent Roll'!$K$7)*'Rent Roll'!$M$7*'Rent Roll'!$F$7*(1+Assumptions!$C$5)^(ROUNDDOWN((AT4-$C$4-1)/12,0)+1)/12+(AT5>'Rent Roll'!$AE$7)*(AT5<=EOMONTH('Rent Roll'!$AD$7,'Rent Roll'!$S$7))*'Rent Roll'!$T$7*'Rent Roll'!$F$7*(1+Assumptions!$C$5)^(ROUNDDOWN((AT4-$C$4-1)/12,0)+1)/12 -> 2001.146456 | AU30: =(AU5>='Rent Roll'!$J$7)*(AU5<='Rent Roll'!$K$7)*'Rent Roll'!$M$7*'Rent Roll'!$F$7*(1+Assumptions!$C$5)^(ROUNDDOWN((AU4-$C$4-1)/12,0)+1)/12+(AU5>'Rent Roll'!$AE$7)*(AU5<=EOMONTH('Rent Roll'!$AD$7,'Rent Roll'!$S$7))*'Rent Roll'!$T$7*'Rent Roll'!$F$7*(1+Assumptions!$C$5)^(ROUNDDOWN((AU4-$C$4-1)/12,0)+1)/12 -> 2001.146456 | AV30: =(AV5>='Rent Roll'!$J$7)*(AV5<='Rent Roll'!$K$7)*'Rent Roll'!$M$7*'Rent Roll'!$F$7*(1+Assumptions!$C$5)^(ROUNDDOWN((AV4-$C$4-1)/12,0)+1)/12+(AV5>'Rent Roll'!$AE$7)*(AV5<=EOMONTH('Rent Roll'!$AD$7,'Rent Roll'!$S$7))*'Rent Roll'!$T$7*'Rent Roll'!$F$7*(1+Assumptions!$C$5)^(ROUNDDOWN((AV4-$C$4-1)/12,0)+1)/12 -> 2001.146456 | AW30: =(AW5>='Rent Roll'!$J$7)*(AW5<='Rent Roll'!$K$7)*'Rent Roll'!$M$7*'Rent Roll'!$F$7*(1+Assumptions!$C$5)^(ROUNDDOWN((AW4-$C$4-1)/12,0)+1)/12+(AW5>'Rent Roll'!$AE$7)*(AW5<=EOMONTH('Rent Roll'!$AD$7,'Rent Roll'!$S$7))*'Rent Roll'!$T$7*'Rent Roll'!$F$7*(1+Assumptions!$C$5)^(ROUNDDOWN((AW4-$C$4-1)/12,0)+1)/12 -> 2001.146456 | AX30: =(AX5>='Rent Roll'!$J$7)*(AX5<='Rent Roll'!$K$7)*'Rent Roll'!$M$7*'Rent Roll'!$F$7*(1+Assumptions!$C$5)^(ROUNDDOWN((AX4-$C$4-1)/12,0)+1)/12+(AX5>'Rent Roll'!$AE$7)*(AX5<=EOMONTH('Rent Roll'!$AD$7,'Rent Roll'!$S$7))*'Rent Roll'!$T$7*'Rent Roll'!$F$7*(1+Assumptions!$C$5)^(ROUNDDOWN((AX4-$C$4-1)/12,0)+1)/12 -> 2001.146456 | AY30: =(AY5>='Rent Roll'!$J$7)*(AY5<='Rent Roll'!$K$7)*'Rent Roll'!$M$7*'Rent Roll'!$F$7*(1+Assumptions!$C$5)^(ROUNDDOWN((AY4-$C$4-1)/12,0)+1)/12+(AY5>'Rent Roll'!$AE$7)*(AY5<=EOMONTH('Rent Roll'!$AD$7,'Rent Roll'!$S$7))*'Rent Roll'!$T$7*'Rent Roll'!$F$7*(1+Assumptions!$C$5)^(ROUNDDOWN((AY4-$C$4-1)/12,0)+1)/12 -> 2001.146456 | AZ30: =(AZ5>='Rent Roll'!$J$7)*(AZ5<='Rent Roll'!$K$7)*'Rent Roll'!$M$7*'Rent Roll'!$F$7*(1+Assumptions!$C$5)^(ROUNDDOWN((AZ4-$C$4-1)/12,0)+1)/12+(AZ5>'Rent Roll'!$AE$7)*(AZ5<=EOMONTH('Rent Roll'!$AD$7,'Rent Roll'!$S$7))*'Rent Roll'!$T$7*'Rent Roll'!$F$7*(1+Assumptions!$C$5)^(ROUNDDOWN((AZ4-$C$4-1)/12,0)+1)/12 -> 2041.169385 | BA30: =(BA5>='Rent Roll'!$J$7)*(BA5<='Rent Roll'!$K$7)*'Rent Roll'!$M$7*'Rent Roll'!$F$7*(1+Assumptions!$C$5)^(ROUNDDOWN((BA4-$C$4-1)/12,0)+1)/12+(BA5>'Rent Roll'!$AE$7)*(BA5<=EOMONTH('Rent Roll'!$AD$7,'Rent Roll'!$S$7))*'Rent Roll'!$T$7*'Rent Roll'!$F$7*(1+Assumptions!$C$5)^(ROUNDDOWN((BA4-$C$4-1)/12,0)+1)/12 -> 2041.169385 | BB30: =(BB5>='Rent Roll'!$J$7)*(BB5<='Rent Roll'!$K$7)*'Rent Roll'!$M$7*'Rent Roll'!$F$7*(1+Assumptions!$C$5)^(ROUNDDOWN((BB4-$C$4-1)/12,0)+1)/12+(BB5>'Rent Roll'!$AE$7)*(BB5<=EOMONTH('Rent Roll'!$AD$7,'Rent Roll'!$S$7))*'Rent Roll'!$T$7*'Rent Roll'!$F$7*(1+Assumptions!$C$5)^(ROUNDDOWN((BB4-$C$4-1)/12,0)+1)/12 -> 2041.169385 | BC30: =(BC5>='Rent Roll'!$J$7)*(BC5<='Rent Roll'!$K$7)*'Rent Roll'!$M$7*'Rent Roll'!$F$7*(1+Assumptions!$C$5)^(ROUNDDOWN((BC4-$C$4-1)/12,0)+1)/12+(BC5>'Rent Roll'!$AE$7)*(BC5<=EOMONTH('Rent Roll'!$AD$7,'Rent Roll'!$S$7))*'Rent Roll'!$T$7*'Rent Roll'!$F$7*(1+Assumptions!$C$5)^(ROUNDDOWN((BC4-$C$4-1)/12,0)+1)/12 -> 2041.169385 | BD30: =(BD5>='Rent Roll'!$J$7)*(BD5<='Rent Roll'!$K$7)*'Rent Roll'!$M$7*'Rent Roll'!$F$7*(1+Assumptions!$C$5)^(ROUNDDOWN((BD4-$C$4-1)/12,0)+1)/12+(BD5>'Rent Roll'!$AE$7)*(BD5<=EOMONTH('Rent Roll'!$AD$7,'Rent Roll'!$S$7))*'Rent Roll'!$T$7*'Rent Roll'!$F$7*(1+Assumptions!$C$5)^(ROUNDDOWN((BD4-$C$4-1)/12,0)+1)/12 -> 2041.169385 | BE30: =(BE5>='Rent Roll'!$J$7)*(BE5<='Rent Roll'!$K$7)*'Rent Roll'!$M$7*'Rent Roll'!$F$7*(1+Assumptions!$C$5)^(ROUNDDOWN((BE4-$C$4-1)/12,0)+1)/12+(BE5>'Rent Roll'!$AE$7)*(BE5<=EOMONTH('Rent Roll'!$AD$7,'Rent Roll'!$S$7))*'Rent Roll'!$T$7*'Rent Roll'!$F$7*(1+Assumptions!$C$5)^(ROUNDDOWN((BE4-$C$4-1)/12,0)+1)/12 -> 2041.169385 | BF30: =(BF5>='Rent Roll'!$J$7)*(BF5<='Rent Roll'!$K$7)*'Rent Roll'!$M$7*'Rent Roll'!$F$7*(1+Assumptions!$C$5)^(ROUNDDOWN((BF4-$C$4-1)/12,0)+1)/12+(BF5>'Rent Roll'!$AE$7)*(BF5<=EOMONTH('Rent Roll'!$AD$7,'Rent Roll'!$S$7))*'Rent Roll'!$T$7*'Rent Roll'!$F$7*(1+Assumptions!$C$5)^(ROUNDDOWN((BF4-$C$4-1)/12,0)+1)/12 -> 2041.169385 | BG30: =(BG5>='Rent Roll'!$J$7)*(BG5<='Rent Roll'!$K$7)*'Rent Roll'!$M$7*'Rent Roll'!$F$7*(1+Assumptions!$C$5)^(ROUNDDOWN((BG4-$C$4-1)/12,0)+1)/12+(BG5>'Rent Roll'!$AE$7)*(BG5<=EOMONTH('Rent Roll'!$AD$7,'Rent Roll'!$S$7))*'Rent Roll'!$T$7*'Rent Roll'!$F$7*(1+Assumptions!$C$5)^(ROUNDDOWN((BG4-$C$4-1)/12,0)+1)/12 -> 2041.169385 | BH30: =(BH5>='Rent Roll'!$J$7)*(BH5<='Rent Roll'!$K$7)*'Rent Roll'!$M$7*'Rent Roll'!$F$7*(1+Assumptions!$C$5)^(ROUNDDOWN((BH4-$C$4-1)/12,0)+1)/12+(BH5>'Rent Roll'!$AE$7)*(BH5<=EOMONTH('Rent Roll'!$AD$7,'Rent Roll'!$S$7))*'Rent Roll'!$T$7*'Rent Roll'!$F$7*(1+Assumptions!$C$5)^(ROUNDDOWN((BH4-$C$4-1)/12,0)+1)/12 -> 2041.169385 | BI30: =(BI5>='Rent Roll'!$J$7)*(BI5<='Rent Roll'!$K$7)*'Rent Roll'!$M$7*'Rent Roll'!$F$7*(1+Assumptions!$C$5)^(ROUNDDOWN((BI4-$C$4-1)/12,0)+1)/12+(BI5>'Rent Roll'!$AE$7)*(BI5<=EOMONTH('Rent Roll'!$AD$7,'Rent Roll'!$S$7))*'Rent Roll'!$T$7*'Rent Roll'!$F$7*(1+Assumptions!$C$5)^(ROUNDDOWN((BI4-$C$4-1)/12,0)+1)/12 -> 2041.169385 | BJ30: =(BJ5>='Rent Roll'!$J$7)*(BJ5<='Rent Roll'!$K$7)*'Rent Roll'!$M$7*'Rent Roll'!$F$7*(1+Assumptions!$C$5)^(ROUNDDOWN((BJ4-$C$4-1)/12,0)+1)/12+(BJ5>'Rent Roll'!$AE$7)*(BJ5<=EOMONTH('Rent Roll'!$AD$7,'Rent Roll'!$S$7))*'Rent Roll'!$T$7*'Rent Roll'!$F$7*(1+Assumptions!$C$5)^(ROUNDDOWN((BJ4-$C$4-1)/12,0)+1)/12 -> 2041.169385 | BK30: =(BK5>='Rent Roll'!$J$7)*(BK5<='Rent Roll'!$K$7)*'Rent Roll'!$M$7*'Rent Roll'!$F$7*(1+Assumptions!$C$5)^(ROUNDDOWN((BK4-$C$4-1)/12,0)+1)/12+(BK5>'Rent Roll'!$AE$7)*(BK5<=EOMONTH('Rent Roll'!$AD$7,'Rent Roll'!$S$7))*'Rent Roll'!$T$7*'Rent Roll'!$F$7*(1+Assumptions!$C$5)^(ROUNDDOWN((BK4-$C$4-1)/12,0)+1)/12 -> 2041.169385 | BM30: STOP
B31: =+B19 -> Vacant | D31: =(D5>='Rent Roll'!$J$8)*(D5<='Rent Roll'!$K$8)*'Rent Roll'!$M$8*'Rent Roll'!$F$8*(1+Assumptions!$C$5)^(ROUNDDOWN((D4-$C$4-1)/12,0)+1)/12+(D5>'Rent Roll'!$AE$8)*(D5<=EOMONTH('Rent Roll'!$AD$8,'Rent Roll'!$S$8))*'Rent Roll'!$T$8*'Rent Roll'!$F$8*(1+Assumptions!$C$5)^(ROUNDDOWN((D4-$C$4-1)/12,0)+1)/12 -> 0 | E31: =(E5>='Rent Roll'!$J$8)*(E5<='Rent Roll'!$K$8)*'Rent Roll'!$M$8*'Rent Roll'!$F$8*(1+Assumptions!$C$5)^(ROUNDDOWN((E4-$C$4-1)/12,0)+1)/12+(E5>'Rent Roll'!$AE$8)*(E5<=EOMONTH('Rent Roll'!$AD$8,'Rent Roll'!$S$8))*'Rent Roll'!$T$8*'Rent Roll'!$F$8*(1+Assumptions!$C$5)^(ROUNDDOWN((E4-$C$4-1)/12,0)+1)/12 -> 0 | F31: =(F5>='Rent Roll'!$J$8)*(F5<='Rent Roll'!$K$8)*'Rent Roll'!$M$8*'Rent Roll'!$F$8*(1+Assumptions!$C$5)^(ROUNDDOWN((F4-$C$4-1)/12,0)+1)/12+(F5>'Rent Roll'!$AE$8)*(F5<=EOMONTH('Rent Roll'!$AD$8,'Rent Roll'!$S$8))*'Rent Roll'!$T$8*'Rent Roll'!$F$8*(1+Assumptions!$C$5)^(ROUNDDOWN((F4-$C$4-1)/12,0)+1)/12 -> 0 | G31: =(G5>='Rent Roll'!$J$8)*(G5<='Rent Roll'!$K$8)*'Rent Roll'!$M$8*'Rent Roll'!$F$8*(1+Assumptions!$C$5)^(ROUNDDOWN((G4-$C$4-1)/12,0)+1)/12+(G5>'Rent Roll'!$AE$8)*(G5<=EOMONTH('Rent Roll'!$AD$8,'Rent Roll'!$S$8))*'Rent Roll'!$T$8*'Rent Roll'!$F$8*(1+Assumptions!$C$5)^(ROUNDDOWN((G4-$C$4-1)/12,0)+1)/12 -> 0 | H31: =(H5>='Rent Roll'!$J$8)*(H5<='Rent Roll'!$K$8)*'Rent Roll'!$M$8*'Rent Roll'!$F$8*(1+Assumptions!$C$5)^(ROUNDDOWN((H4-$C$4-1)/12,0)+1)/12+(H5>'Rent Roll'!$AE$8)*(H5<=EOMONTH('Rent Roll'!$AD$8,'Rent Roll'!$S$8))*'Rent Roll'!$T$8*'Rent Roll'!$F$8*(1+Assumptions!$C$5)^(ROUNDDOWN((H4-$C$4-1)/12,0)+1)/12 -> 0 | I31: =(I5>='Rent Roll'!$J$8)*(I5<='Rent Roll'!$K$8)*'Rent Roll'!$M$8*'Rent Roll'!$F$8*(1+Assumptions!$C$5)^(ROUNDDOWN((I4-$C$4-1)/12,0)+1)/12+(I5>'Rent Roll'!$AE$8)*(I5<=EOMONTH('Rent Roll'!$AD$8,'Rent Roll'!$S$8))*'Rent Roll'!$T$8*'Rent Roll'!$F$8*(1+Assumptions!$C$5)^(ROUNDDOWN((I4-$C$4-1)/12,0)+1)/12 -> 0 | J31: =(J5>='Rent Roll'!$J$8)*(J5<='Rent Roll'!$K$8)*'Rent Roll'!$M$8*'Rent Roll'!$F$8*(1+Assumptions!$C$5)^(ROUNDDOWN((J4-$C$4-1)/12,0)+1)/12+(J5>'Rent Roll'!$AE$8)*(J5<=EOMONTH('Rent Roll'!$AD$8,'Rent Roll'!$S$8))*'Rent Roll'!$T$8*'Rent Roll'!$F$8*(1+Assumptions!$C$5)^(ROUNDDOWN((J4-$C$4-1)/12,0)+1)/12 -> 0 | K31: =(K5>='Rent Roll'!$J$8)*(K5<='Rent Roll'!$K$8)*'Rent Roll'!$M$8*'Rent Roll'!$F$8*(1+Assumptions!$C$5)^(ROUNDDOWN((K4-$C$4-1)/12,0)+1)/12+(K5>'Rent Roll'!$AE$8)*(K5<=EOMONTH('Rent Roll'!$AD$8,'Rent Roll'!$S$8))*'Rent Roll'!$T$8*'Rent Roll'!$F$8*(1+Assumptions!$C$5)^(ROUNDDOWN((K4-$C$4-1)/12,0)+1)/12 -> 0 | L31: =(L5>='Rent Roll'!$J$8)*(L5<='Rent Roll'!$K$8)*'Rent Roll'!$M$8*'Rent Roll'!$F$8*(1+Assumptions!$C$5)^(ROUNDDOWN((L4-$C$4-1)/12,0)+1)/12+(L5>'Rent Roll'!$AE$8)*(L5<=EOMONTH('Rent Roll'!$AD$8,'Rent Roll'!$S$8))*'Rent Roll'!$T$8*'Rent Roll'!$F$8*(1+Assumptions!$C$5)^(ROUNDDOWN((L4-$C$4-1)/12,0)+1)/12 -> 0 | M31: =(M5>='Rent Roll'!$J$8)*(M5<='Rent Roll'!$K$8)*'Rent Roll'!$M$8*'Rent Roll'!$F$8*(1+Assumptions!$C$5)^(ROUNDDOWN((M4-$C$4-1)/12,0)+1)/12+(M5>'Rent Roll'!$AE$8)*(M5<=EOMONTH('Rent Roll'!$AD$8,'Rent Roll'!$S$8))*'Rent Roll'!$T$8*'Rent Roll'!$F$8*(1+Assumptions!$C$5)^(ROUNDDOWN((M4-$C$4-1)/12,0)+1)/12 -> 0 | N31: =(N5>='Rent Roll'!$J$8)*(N5<='Rent Roll'!$K$8)*'Rent Roll'!$M$8*'Rent Roll'!$F$8*(1+Assumptions!$C$5)^(ROUNDDOWN((N4-$C$4-1)/12,0)+1)/12+(N5>'Rent Roll'!$AE$8)*(N5<=EOMONTH('Rent Roll'!$AD$8,'Rent Roll'!$S$8))*'Rent Roll'!$T$8*'Rent Roll'!$F$8*(1+Assumptions!$C$5)^(ROUNDDOWN((N4-$C$4-1)/12,0)+1)/12 -> 0 | O31: =(O5>='Rent Roll'!$J$8)*(O5<='Rent Roll'!$K$8)*'Rent Roll'!$M$8*'Rent Roll'!$F$8*(1+Assumptions!$C$5)^(ROUNDDOWN((O4-$C$4-1)/12,0)+1)/12+(O5>'Rent Roll'!$AE$8)*(O5<=EOMONTH('Rent Roll'!$AD$8,'Rent Roll'!$S$8))*'Rent Roll'!$T$8*'Rent Roll'!$F$8*(1+Assumptions!$C$5)^(ROUNDDOWN((O4-$C$4-1)/12,0)+1)/12 -> 0 | P31: =(P5>='Rent Roll'!$J$8)*(P5<='Rent Roll'!$K$8)*'Rent Roll'!$M$8*'Rent Roll'!$F$8*(1+Assumptions!$C$5)^(ROUNDDOWN((P4-$C$4-1)/12,0)+1)/12+(P5>'Rent Roll'!$AE$8)*(P5<=EOMONTH('Rent Roll'!$AD$8,'Rent Roll'!$S$8))*'Rent Roll'!$T$8*'Rent Roll'!$F$8*(1+Assumptions!$C$5)^(ROUNDDOWN((P4-$C$4-1)/12,0)+1)/12 -> 468.18 | Q31: =(Q5>='Rent Roll'!$J$8)*(Q5<='Rent Roll'!$K$8)*'Rent Roll'!$M$8*'Rent Roll'!$F$8*(1+Assumptions!$C$5)^(ROUNDDOWN((Q4-$C$4-1)/12,0)+1)/12+(Q5>'Rent Roll'!$AE$8)*(Q5<=EOMONTH('Rent Roll'!$AD$8,'Rent Roll'!$S$8))*'Rent Roll'!$T$8*'Rent Roll'!$F$8*(1+Assumptions!$C$5)^(ROUNDDOWN((Q4-$C$4-1)/12,0)+1)/12 -> 468.18 | R31: =(R5>='Rent Roll'!$J$8)*(R5<='Rent Roll'!$K$8)*'Rent Roll'!$M$8*'Rent Roll'!$F$8*(1+Assumptions!$C$5)^(ROUNDDOWN((R4-$C$4-1)/12,0)+1)/12+(R5>'Rent Roll'!$AE$8)*(R5<=EOMONTH('Rent Roll'!$AD$8,'Rent Roll'!$S$8))*'Rent Roll'!$T$8*'Rent Roll'!$F$8*(1+Assumptions!$C$5)^(ROUNDDOWN((R4-$C$4-1)/12,0)+1)/12 -> 468.18 | S31: =(S5>='Rent Roll'!$J$8)*(S5<='Rent Roll'!$K$8)*'Rent Roll'!$M$8*'Rent Roll'!$F$8*(1+Assumptions!$C$5)^(ROUNDDOWN((S4-$C$4-1)/12,0)+1)/12+(S5>'Rent Roll'!$AE$8)*(S5<=EOMONTH('Rent Roll'!$AD$8,'Rent Roll'!$S$8))*'Rent Roll'!$T$8*'Rent Roll'!$F$8*(1+Assumptions!$C$5)^(ROUNDDOWN((S4-$C$4-1)/12,0)+1)/12 -> 468.18 | T31: =(T5>='Rent Roll'!$J$8)*(T5<='Rent Roll'!$K$8)*'Rent Roll'!$M$8*'Rent Roll'!$F$8*(1+Assumptions!$C$5)^(ROUNDDOWN((T4-$C$4-1)/12,0)+1)/12+(T5>'Rent Roll'!$AE$8)*(T5<=EOMONTH('Rent Roll'!$AD$8,'Rent Roll'!$S$8))*'Rent Roll'!$T$8*'Rent Roll'!$F$8*(1+Assumptions!$C$5)^(ROUNDDOWN((T4-$C$4-1)/12,0)+1)/12 -> 468.18 | U31: =(U5>='Rent Roll'!$J$8)*(U5<='Rent Roll'!$K$8)*'Rent Roll'!$M$8*'Rent Roll'!$F$8*(1+Assumptions!$C$5)^(ROUNDDOWN((U4-$C$4-1)/12,0)+1)/12+(U5>'Rent Roll'!$AE$8)*(U5<=EOMONTH('Rent Roll'!$AD$8,'Rent Roll'!$S$8))*'Rent Roll'!$T$8*'Rent Roll'!$F$8*(1+Assumptions!$C$5)^(ROUNDDOWN((U4-$C$4-1)/12,0)+1)/12 -> 468.18 | V31: =(V5>='Rent Roll'!$J$8)*(V5<='Rent Roll'!$K$8)*'Rent Roll'!$M$8*'Rent Roll'!$F$8*(1+Assumptions!$C$5)^(ROUNDDOWN((V4-$C$4-1)/12,0)+1)/12+(V5>'Rent Roll'!$AE$8)*(V5<=EOMONTH('Rent Roll'!$AD$8,'Rent Roll'!$S$8))*'Rent Roll'!$T$8*'Rent Roll'!$F$8*(1+Assumptions!$C$5)^(ROUNDDOWN((V4-$C$4-1)/12,0)+1)/12 -> 468.18 | W31: =(W5>='Rent Roll'!$J$8)*(W5<='Rent Roll'!$K$8)*'Rent Roll'!$M$8*'Rent Roll'!$F$8*(1+Assumptions!$C$5)^(ROUNDDOWN((W4-$C$4-1)/12,0)+1)/12+(W5>'Rent Roll'!$AE$8)*(W5<=EOMONTH('Rent Roll'!$AD$8,'Rent Roll'!$S$8))*'Rent Roll'!$T$8*'Rent Roll'!$F$8*(1+Assumptions!$C$5)^(ROUNDDOWN((W4-$C$4-1)/12,0)+1)/12 -> 468.18 | X31: =(X5>='Rent Roll'!$J$8)*(X5<='Rent Roll'!$K$8)*'Rent Roll'!$M$8*'Rent Roll'!$F$8*(1+Assumptions!$C$5)^(ROUNDDOWN((X4-$C$4-1)/12,0)+1)/12+(X5>'Rent Roll'!$AE$8)*(X5<=EOMONTH('Rent Roll'!$AD$8,'Rent Roll'!$S$8))*'Rent Roll'!$T$8*'Rent Roll'!$F$8*(1+Assumptions!$C$5)^(ROUNDDOWN((X4-$C$4-1)/12,0)+1)/12 -> 468.18 | Y31: =(Y5>='Rent Roll'!$J$8)*(Y5<='Rent Roll'!$K$8)*'Rent Roll'!$M$8*'Rent Roll'!$F$8*(1+Assumptions!$C$5)^(ROUNDDOWN((Y4-$C$4-1)/12,0)+1)/12+(Y5>'Rent Roll'!$AE$8)*(Y5<=EOMONTH('Rent Roll'!$AD$8,'Rent Roll'!$S$8))*'Rent Roll'!$T$8*'Rent Roll'!$F$8*(1+Assumptions!$C$5)^(ROUNDDOWN((Y4-$C$4-1)/12,0)+1)/12 -> 468.18 | Z31: =(Z5>='Rent Roll'!$J$8)*(Z5<='Rent Roll'!$K$8)*'Rent Roll'!$M$8*'Rent Roll'!$F$8*(1+Assumptions!$C$5)^(ROUNDDOWN((Z4-$C$4-1)/12,0)+1)/12+(Z5>'Rent Roll'!$AE$8)*(Z5<=EOMONTH('Rent Roll'!$AD$8,'Rent Roll'!$S$8))*'Rent Roll'!$T$8*'Rent Roll'!$F$8*(1+Assumptions!$C$5)^(ROUNDDOWN((Z4-$C$4-1)/12,0)+1)/12 -> 468.18 | AA31: =(AA5>='Rent Roll'!$J$8)*(AA5<='Rent Roll'!$K$8)*'Rent Roll'!$M$8*'Rent Roll'!$F$8*(1+Assumptions!$C$5)^(ROUNDDOWN((AA4-$C$4-1)/12,0)+1)/12+(AA5>'Rent Roll'!$AE$8)*(AA5<=EOMONTH('Rent Roll'!$AD$8,'Rent Roll'!$S$8))*'Rent Roll'!$T$8*'Rent Roll'!$F$8*(1+Assumptions!$C$5)^(ROUNDDOWN((AA4-$C$4-1)/12,0)+1)/12 -> 468.18 | AB31: =(AB5>='Rent Roll'!$J$8)*(AB5<='Rent Roll'!$K$8)*'Rent Roll'!$M$8*'Rent Roll'!$F$8*(1+Assumptions!$C$5)^(ROUNDDOWN((AB4-$C$4-1)/12,0)+1)/12+(AB5>'Rent Roll'!$AE$8)*(AB5<=EOMONTH('Rent Roll'!$AD$8,'Rent Roll'!$S$8))*'Rent Roll'!$T$8*'Rent Roll'!$F$8*(1+Assumptions!$C$5)^(ROUNDDOWN((AB4-$C$4-1)/12,0)+1)/12 -> 477.5436 | AC31: =(AC5>='Rent Roll'!$J$8)*(AC5<='Rent Roll'!$K$8)*'Rent Roll'!$M$8*'Rent Roll'!$F$8*(1+Assumptions!$C$5)^(ROUNDDOWN((AC4-$C$4-1)/12,0)+1)/12+(AC5>'Rent Roll'!$AE$8)*(AC5<=EOMONTH('Rent Roll'!$AD$8,'Rent Roll'!$S$8))*'Rent Roll'!$T$8*'Rent Roll'!$F$8*(1+Assumptions!$C$5)^(ROUNDDOWN((AC4-$C$4-1)/12,0)+1)/12 -> 477.5436 | AD31: =(AD5>='Rent Roll'!$J$8)*(AD5<='Rent Roll'!$K$8)*'Rent Roll'!$M$8*'Rent Roll'!$F$8*(1+Assumptions!$C$5)^(ROUNDDOWN((AD4-$C$4-1)/12,0)+1)/12+(AD5>'Rent Roll'!$AE$8)*(AD5<=EOMONTH('Rent Roll'!$AD$8,'Rent Roll'!$S$8))*'Rent Roll'!$T$8*'Rent Roll'!$F$8*(1+Assumptions!$C$5)^(ROUNDDOWN((AD4-$C$4-1)/12,0)+1)/12 -> 477.5436 | AE31: =(AE5>='Rent Roll'!$J$8)*(AE5<='Rent Roll'!$K$8)*'Rent Roll'!$M$8*'Rent Roll'!$F$8*(1+Assumptions!$C$5)^(ROUNDDOWN((AE4-$C$4-1)/12,0)+1)/12+(AE5>'Rent Roll'!$AE$8)*(AE5<=EOMONTH('Rent Roll'!$AD$8,'Rent Roll'!$S$8))*'Rent Roll'!$T$8*'Rent Roll'!$F$8*(1+Assumptions!$C$5)^(ROUNDDOWN((AE4-$C$4-1)/12,0)+1)/12 -> 477.5436 | AF31: =(AF5>='Rent Roll'!$J$8)*(AF5<='Rent Roll'!$K$8)*'Rent Roll'!$M$8*'Rent Roll'!$F$8*(1+Assumptions!$C$5)^(ROUNDDOWN((AF4-$C$4-1)/12,0)+1)/12+(AF5>'Rent Roll'!$AE$8)*(AF5<=EOMONTH('Rent Roll'!$AD$8,'Rent Roll'!$S$8))*'Rent Roll'!$T$8*'Rent Roll'!$F$8*(1+Assumptions!$C$5)^(ROUNDDOWN((AF4-$C$4-1)/12,0)+1)/12 -> 477.5436 | AG31: =(AG5>='Rent Roll'!$J$8)*(AG5<='Rent Roll'!$K$8)*'Rent Roll'!$M$8*'Rent Roll'!$F$8*(1+Assumptions!$C$5)^(ROUNDDOWN((AG4-$C$4-1)/12,0)+1)/12+(AG5>'Rent Roll'!$AE$8)*(AG5<=EOMONTH('Rent Roll'!$AD$8,'Rent Roll'!$S$8))*'Rent Roll'!$T$8*'Rent Roll'!$F$8*(1+Assumptions!$C$5)^(ROUNDDOWN((AG4-$C$4-1)/12,0)+1)/12 -> 477.5436 | AH31: =(AH5>='Rent Roll'!$J$8)*(AH5<='Rent Roll'!$K$8)*'Rent Roll'!$M$8*'Rent Roll'!$F$8*(1+Assumptions!$C$5)^(ROUNDDOWN((AH4-$C$4-1)/12,0)+1)/12+(AH5>'Rent Roll'!$AE$8)*(AH5<=EOMONTH('Rent Roll'!$AD$8,'Rent Roll'!$S$8))*'Rent Roll'!$T$8*'Rent Roll'!$F$8*(1+Assumptions!$C$5)^(ROUNDDOWN((AH4-$C$4-1)/12,0)+1)/12 -> 477.5436 | AI31: =(AI5>='Rent Roll'!$J$8)*(AI5<='Rent Roll'!$K$8)*'Rent Roll'!$M$8*'Rent Roll'!$F$8*(1+Assumptions!$C$5)^(ROUNDDOWN((AI4-$C$4-1)/12,0)+1)/12+(AI5>'Rent Roll'!$AE$8)*(AI5<=EOMONTH('Rent Roll'!$AD$8,'Rent Roll'!$S$8))*'Rent Roll'!$T$8*'Rent Roll'!$F$8*(1+Assumptions!$C$5)^(ROUNDDOWN((AI4-$C$4-1)/12,0)+1)/12 -> 477.5436 | AJ31: =(AJ5>='Rent Roll'!$J$8)*(AJ5<='Rent Roll'!$K$8)*'Rent Roll'!$M$8*'Rent Roll'!$F$8*(1+Assumptions!$C$5)^(ROUNDDOWN((AJ4-$C$4-1)/12,0)+1)/12+(AJ5>'Rent Roll'!$AE$8)*(AJ5<=EOMONTH('Rent Roll'!$AD$8,'Rent Roll'!$S$8))*'Rent Roll'!$T$8*'Rent Roll'!$F$8*(1+Assumptions!$C$5)^(ROUNDDOWN((AJ4-$C$4-1)/12,0)+1)/12 -> 477.5436 | AK31: =(AK5>='Rent Roll'!$J$8)*(AK5<='Rent Roll'!$K$8)*'Rent Roll'!$M$8*'Rent Roll'!$F$8*(1+Assumptions!$C$5)^(ROUNDDOWN((AK4-$C$4-1)/12,0)+1)/12+(AK5>'Rent Roll'!$AE$8)*(AK5<=EOMONTH('Rent Roll'!$AD$8,'Rent Roll'!$S$8))*'Rent Roll'!$T$8*'Rent Roll'!$F$8*(1+Assumptions!$C$5)^(ROUNDDOWN((AK4-$C$4-1)/12,0)+1)/12 -> 477.5436 | AL31: =(AL5>='Rent Roll'!$J$8)*(AL5<='Rent Roll'!$K$8)*'Rent Roll'!$M$8*'Rent Roll'!$F$8*(1+Assumptions!$C$5)^(ROUNDDOWN((AL4-$C$4-1)/12,0)+1)/12+(AL5>'Rent Roll'!$AE$8)*(AL5<=EOMONTH('Rent Roll'!$AD$8,'Rent Roll'!$S$8))*'Rent Roll'!$T$8*'Rent Roll'!$F$8*(1+Assumptions!$C$5)^(ROUNDDOWN((AL4-$C$4-1)/12,0)+1)/12 -> 477.5436 | AM31: =(AM5>='Rent Roll'!$J$8)*(AM5<='Rent Roll'!$K$8)*'Rent Roll'!$M$8*'Rent Roll'!$F$8*(1+Assumptions!$C$5)^(ROUNDDOWN((AM4-$C$4-1)/12,0)+1)/12+(AM5>'Rent Roll'!$AE$8)*(AM5<=EOMONTH('Rent Roll'!$AD$8,'Rent Roll'!$S$8))*'Rent Roll'!$T$8*'Rent Roll'!$F$8*(1+Assumptions!$C$5)^(ROUNDDOWN((AM4-$C$4-1)/12,0)+1)/12 -> 477.5436 | AN31: =(AN5>='Rent Roll'!$J$8)*(AN5<='Rent Roll'!$K$8)*'Rent Roll'!$M$8*'Rent Roll'!$F$8*(1+Assumptions!$C$5)^(ROUNDDOWN((AN4-$C$4-1)/12,0)+1)/12+(AN5>'Rent Roll'!$AE$8)*(AN5<=EOMONTH('Rent Roll'!$AD$8,'Rent Roll'!$S$8))*'Rent Roll'!$T$8*'Rent Roll'!$F$8*(1+Assumptions!$C$5)^(ROUNDDOWN((AN4-$C$4-1)/12,0)+1)/12 -> 487.094472 | AO31: =(AO5>='Rent Roll'!$J$8)*(AO5<='Rent Roll'!$K$8)*'Rent Roll'!$M$8*'Rent Roll'!$F$8*(1+Assumptions!$C$5)^(ROUNDDOWN((AO4-$C$4-1)/12,0)+1)/12+(AO5>'Rent Roll'!$AE$8)*(AO5<=EOMONTH('Rent Roll'!$AD$8,'Rent Roll'!$S$8))*'Rent Roll'!$T$8*'Rent Roll'!$F$8*(1+Assumptions!$C$5)^(ROUNDDOWN((AO4-$C$4-1)/12,0)+1)/12 -> 487.094472 | AP31: =(AP5>='Rent Roll'!$J$8)*(AP5<='Rent Roll'!$K$8)*'Rent Roll'!$M$8*'Rent Roll'!$F$8*(1+Assumptions!$C$5)^(ROUNDDOWN((AP4-$C$4-1)/12,0)+1)/12+(AP5>'Rent Roll'!$AE$8)*(AP5<=EOMONTH('Rent Roll'!$AD$8,'Rent Roll'!$S$8))*'Rent Roll'!$T$8*'Rent Roll'!$F$8*(1+Assumptions!$C$5)^(ROUNDDOWN((AP4-$C$4-1)/12,0)+1)/12 -> 487.094472 | AQ31: =(AQ5>='Rent Roll'!$J$8)*(AQ5<='Rent Roll'!$K$8)*'Rent Roll'!$M$8*'Rent Roll'!$F$8*(1+Assumptions!$C$5)^(ROUNDDOWN((AQ4-$C$4-1)/12,0)+1)/12+(AQ5>'Rent Roll'!$AE$8)*(AQ5<=EOMONTH('Rent Roll'!$AD$8,'Rent Roll'!$S$8))*'Rent Roll'!$T$8*'Rent Roll'!$F$8*(1+Assumptions!$C$5)^(ROUNDDOWN((AQ4-$C$4-1)/12,0)+1)/12 -> 487.094472 | AR31: =(AR5>='Rent Roll'!$J$8)*(AR5<='Rent Roll'!$K$8)*'Rent Roll'!$M$8*'Rent Roll'!$F$8*(1+Assumptions!$C$5)^(ROUNDDOWN((AR4-$C$4-1)/12,0)+1)/12+(AR5>'Rent Roll'!$AE$8)*(AR5<=EOMONTH('Rent Roll'!$AD$8,'Rent Roll'!$S$8))*'Rent Roll'!$T$8*'Rent Roll'!$F$8*(1+Assumptions!$C$5)^(ROUNDDOWN((AR4-$C$4-1)/12,0)+1)/12 -> 487.094472 | AS31: =(AS5>='Rent Roll'!$J$8)*(AS5<='Rent Roll'!$K$8)*'Rent Roll'!$M$8*'Rent Roll'!$F$8*(1+Assumptions!$C$5)^(ROUNDDOWN((AS4-$C$4-1)/12,0)+1)/12+(AS5>'Rent Roll'!$AE$8)*(AS5<=EOMONTH('Rent Roll'!$AD$8,'Rent Roll'!$S$8))*'Rent Roll'!$T$8*'Rent Roll'!$F$8*(1+Assumptions!$C$5)^(ROUNDDOWN((AS4-$C$4-1)/12,0)+1)/12 -> 487.094472 | AT31: =(AT5>='Rent Roll'!$J$8)*(AT5<='Rent Roll'!$K$8)*'Rent Roll'!$M$8*'Rent Roll'!$F$8*(1+Assumptions!$C$5)^(ROUNDDOWN((AT4-$C$4-1)/12,0)+1)/12+(AT5>'Rent Roll'!$AE$8)*(AT5<=EOMONTH('Rent Roll'!$AD$8,'Rent Roll'!$S$8))*'Rent Roll'!$T$8*'Rent Roll'!$F$8*(1+Assumptions!$C$5)^(ROUNDDOWN((AT4-$C$4-1)/12,0)+1)/12 -> 487.094472 | AU31: =(AU5>='Rent Roll'!$J$8)*(AU5<='Rent Roll'!$K$8)*'Rent Roll'!$M$8*'Rent Roll'!$F$8*(1+Assumptions!$C$5)^(ROUNDDOWN((AU4-$C$4-1)/12,0)+1)/12+(AU5>'Rent Roll'!$AE$8)*(AU5<=EOMONTH('Rent Roll'!$AD$8,'Rent Roll'!$S$8))*'Rent Roll'!$T$8*'Rent Roll'!$F$8*(1+Assumptions!$C$5)^(ROUNDDOWN((AU4-$C$4-1)/12,0)+1)/12 -> 487.094472 | AV31: =(AV5>='Rent Roll'!$J$8)*(AV5<='Rent Roll'!$K$8)*'Rent Roll'!$M$8*'Rent Roll'!$F$8*(1+Assumptions!$C$5)^(ROUNDDOWN((AV4-$C$4-1)/12,0)+1)/12+(AV5>'Rent Roll'!$AE$8)*(AV5<=EOMONTH('Rent Roll'!$AD$8,'Rent Roll'!$S$8))*'Rent Roll'!$T$8*'Rent Roll'!$F$8*(1+Assumptions!$C$5)^(ROUNDDOWN((AV4-$C$4-1)/12,0)+1)/12 -> 487.094472 | AW31: =(AW5>='Rent Roll'!$J$8)*(AW5<='Rent Roll'!$K$8)*'Rent Roll'!$M$8*'Rent Roll'!$F$8*(1+Assumptions!$C$5)^(ROUNDDOWN((AW4-$C$4-1)/12,0)+1)/12+(AW5>'Rent Roll'!$AE$8)*(AW5<=EOMONTH('Rent Roll'!$AD$8,'Rent Roll'!$S$8))*'Rent Roll'!$T$8*'Rent Roll'!$F$8*(1+Assumptions!$C$5)^(ROUNDDOWN((AW4-$C$4-1)/12,0)+1)/12 -> 487.094472 | AX31: =(AX5>='Rent Roll'!$J$8)*(AX5<='Rent Roll'!$K$8)*'Rent Roll'!$M$8*'Rent Roll'!$F$8*(1+Assumptions!$C$5)^(ROUNDDOWN((AX4-$C$4-1)/12,0)+1)/12+(AX5>'Rent Roll'!$AE$8)*(AX5<=EOMONTH('Rent Roll'!$AD$8,'Rent Roll'!$S$8))*'Rent Roll'!$T$8*'Rent Roll'!$F$8*(1+Assumptions!$C$5)^(ROUNDDOWN((AX4-$C$4-1)/12,0)+1)/12 -> 487.094472 | AY31: =(AY5>='Rent Roll'!$J$8)*(AY5<='Rent Roll'!$K$8)*'Rent Roll'!$M$8*'Rent Roll'!$F$8*(1+Assumptions!$C$5)^(ROUNDDOWN((AY4-$C$4-1)/12,0)+1)/12+(AY5>'Rent Roll'!$AE$8)*(AY5<=EOMONTH('Rent Roll'!$AD$8,'Rent Roll'!$S$8))*'Rent Roll'!$T$8*'Rent Roll'!$F$8*(1+Assumptions!$C$5)^(ROUNDDOWN((AY4-$C$4-1)/12,0)+1)/12 -> 487.094472 | AZ31: =(AZ5>='Rent Roll'!$J$8)*(AZ5<='Rent Roll'!$K$8)*'Rent Roll'!$M$8*'Rent Roll'!$F$8*(1+Assumptions!$C$5)^(ROUNDDOWN((AZ4-$C$4-1)/12,0)+1)/12+(AZ5>'Rent Roll'!$AE$8)*(AZ5<=EOMONTH('Rent Roll'!$AD$8,'Rent Roll'!$S$8))*'Rent Roll'!$T$8*'Rent Roll'!$F$8*(1+Assumptions!$C$5)^(ROUNDDOWN((AZ4-$C$4-1)/12,0)+1)/12 -> 496.8363614 | BA31: =(BA5>='Rent Roll'!$J$8)*(BA5<='Rent Roll'!$K$8)*'Rent Roll'!$M$8*'Rent Roll'!$F$8*(1+Assumptions!$C$5)^(ROUNDDOWN((BA4-$C$4-1)/12,0)+1)/12+(BA5>'Rent Roll'!$AE$8)*(BA5<=EOMONTH('Rent Roll'!$AD$8,'Rent Roll'!$S$8))*'Rent Roll'!$T$8*'Rent Roll'!$F$8*(1+Assumptions!$C$5)^(ROUNDDOWN((BA4-$C$4-1)/12,0)+1)/12 -> 496.8363614 | BB31: =(BB5>='Rent Roll'!$J$8)*(BB5<='Rent Roll'!$K$8)*'Rent Roll'!$M$8*'Rent Roll'!$F$8*(1+Assumptions!$C$5)^(ROUNDDOWN((BB4-$C$4-1)/12,0)+1)/12+(BB5>'Rent Roll'!$AE$8)*(BB5<=EOMONTH('Rent Roll'!$AD$8,'Rent Roll'!$S$8))*'Rent Roll'!$T$8*'Rent Roll'!$F$8*(1+Assumptions!$C$5)^(ROUNDDOWN((BB4-$C$4-1)/12,0)+1)/12 -> 496.8363614 | BC31: =(BC5>='Rent Roll'!$J$8)*(BC5<='Rent Roll'!$K$8)*'Rent Roll'!$M$8*'Rent Roll'!$F$8*(1+Assumptions!$C$5)^(ROUNDDOWN((BC4-$C$4-1)/12,0)+1)/12+(BC5>'Rent Roll'!$AE$8)*(BC5<=EOMONTH('Rent Roll'!$AD$8,'Rent Roll'!$S$8))*'Rent Roll'!$T$8*'Rent Roll'!$F$8*(1+Assumptions!$C$5)^(ROUNDDOWN((BC4-$C$4-1)/12,0)+1)/12 -> 496.8363614 | BD31: =(BD5>='Rent Roll'!$J$8)*(BD5<='Rent Roll'!$K$8)*'Rent Roll'!$M$8*'Rent Roll'!$F$8*(1+Assumptions!$C$5)^(ROUNDDOWN((BD4-$C$4-1)/12,0)+1)/12+(BD5>'Rent Roll'!$AE$8)*(BD5<=EOMONTH('Rent Roll'!$AD$8,'Rent Roll'!$S$8))*'Rent Roll'!$T$8*'Rent Roll'!$F$8*(1+Assumptions!$C$5)^(ROUNDDOWN((BD4-$C$4-1)/12,0)+1)/12 -> 496.8363614 | BE31: =(BE5>='Rent Roll'!$J$8)*(BE5<='Rent Roll'!$K$8)*'Rent Roll'!$M$8*'Rent Roll'!$F$8*(1+Assumptions!$C$5)^(ROUNDDOWN((BE4-$C$4-1)/12,0)+1)/12+(BE5>'Rent Roll'!$AE$8)*(BE5<=EOMONTH('Rent Roll'!$AD$8,'Rent Roll'!$S$8))*'Rent Roll'!$T$8*'Rent Roll'!$F$8*(1+Assumptions!$C$5)^(ROUNDDOWN((BE4-$C$4-1)/12,0)+1)/12 -> 496.8363614 | BF31: =(BF5>='Rent Roll'!$J$8)*(BF5<='Rent Roll'!$K$8)*'Rent Roll'!$M$8*'Rent Roll'!$F$8*(1+Assumptions!$C$5)^(ROUNDDOWN((BF4-$C$4-1)/12,0)+1)/12+(BF5>'Rent Roll'!$AE$8)*(BF5<=EOMONTH('Rent Roll'!$AD$8,'Rent Roll'!$S$8))*'Rent Roll'!$T$8*'Rent Roll'!$F$8*(1+Assumptions!$C$5)^(ROUNDDOWN((BF4-$C$4-1)/12,0)+1)/12 -> 496.8363614 | BG31: =(BG5>='Rent Roll'!$J$8)*(BG5<='Rent Roll'!$K$8)*'Rent Roll'!$M$8*'Rent Roll'!$F$8*(1+Assumptions!$C$5)^(ROUNDDOWN((BG4-$C$4-1)/12,0)+1)/12+(BG5>'Rent Roll'!$AE$8)*(BG5<=EOMONTH('Rent Roll'!$AD$8,'Rent Roll'!$S$8))*'Rent Roll'!$T$8*'Rent Roll'!$F$8*(1+Assumptions!$C$5)^(ROUNDDOWN((BG4-$C$4-1)/12,0)+1)/12 -> 496.8363614 | BH31: =(BH5>='Rent Roll'!$J$8)*(BH5<='Rent Roll'!$K$8)*'Rent Roll'!$M$8*'Rent Roll'!$F$8*(1+Assumptions!$C$5)^(ROUNDDOWN((BH4-$C$4-1)/12,0)+1)/12+(BH5>'Rent Roll'!$AE$8)*(BH5<=EOMONTH('Rent Roll'!$AD$8,'Rent Roll'!$S$8))*'Rent Roll'!$T$8*'Rent Roll'!$F$8*(1+Assumptions!$C$5)^(ROUNDDOWN((BH4-$C$4-1)/12,0)+1)/12 -> 496.8363614 | BI31: =(BI5>='Rent Roll'!$J$8)*(BI5<='Rent Roll'!$K$8)*'Rent Roll'!$M$8*'Rent Roll'!$F$8*(1+Assumptions!$C$5)^(ROUNDDOWN((BI4-$C$4-1)/12,0)+1)/12+(BI5>'Rent Roll'!$AE$8)*(BI5<=EOMONTH('Rent Roll'!$AD$8,'Rent Roll'!$S$8))*'Rent Roll'!$T$8*'Rent Roll'!$F$8*(1+Assumptions!$C$5)^(ROUNDDOWN((BI4-$C$4-1)/12,0)+1)/12 -> 496.8363614 | BJ31: =(BJ5>='Rent Roll'!$J$8)*(BJ5<='Rent Roll'!$K$8)*'Rent Roll'!$M$8*'Rent Roll'!$F$8*(1+Assumptions!$C$5)^(ROUNDDOWN((BJ4-$C$4-1)/12,0)+1)/12+(BJ5>'Rent Roll'!$AE$8)*(BJ5<=EOMONTH('Rent Roll'!$AD$8,'Rent Roll'!$S$8))*'Rent Roll'!$T$8*'Rent Roll'!$F$8*(1+Assumptions!$C$5)^(ROUNDDOWN((BJ4-$C$4-1)/12,0)+1)/12 -> 496.8363614 | BK31: =(BK5>='Rent Roll'!$J$8)*(BK5<='Rent Roll'!$K$8)*'Rent Roll'!$M$8*'Rent Roll'!$F$8*(1+Assumptions!$C$5)^(ROUNDDOWN((BK4-$C$4-1)/12,0)+1)/12+(BK5>'Rent Roll'!$AE$8)*(BK5<=EOMONTH('Rent Roll'!$AD$8,'Rent Roll'!$S$8))*'Rent Roll'!$T$8*'Rent Roll'!$F$8*(1+Assumptions!$C$5)^(ROUNDDOWN((BK4-$C$4-1)/12,0)+1)/12 -> 496.8363614 | BM31: STOP
B32: Expense Reimbursement Revenue | D32: =SUM(D27:D31) -> 11150.36103 | E32: =SUM(E27:E31) -> 11150.36103 | F32: 11150.36103 | G32: 11150.36103 | H32: 11150.36103 | I32: 11150.36103 | J32: 11150.36103 | K32: 11150.36103 | L32: 11150.36103 | M32: 11150.36103 | N32: 11150.36103 | O32: 11150.36103 | P32: 13764.98775 | Q32: 13764.98775 | R32: 13764.98775 | S32: 13764.98775 | T32: 13764.98775 | U32: 13764.98775 | V32: 13764.98775 | W32: 13764.98775 | X32: 13764.98775 | Y32: 13764.98775 | Z32: 13764.98775 | AA32: 13764.98775 | AB32: 14040.28751 | AC32: 14040.28751 | AD32: 14040.28751 | AE32: 14040.28751 | AF32: 14040.28751 | AG32: 14040.28751 | AH32: 14040.28751 | AI32: 14040.28751 | AJ32: 14040.28751 | AK32: 14040.28751 | AL32: 14040.28751 | AM32: 14040.28751 | AN32: 14321.09326 | AO32: 14321.09326 | AP32: 14321.09326 | AQ32: 14321.09326 | AR32: 14321.09326 | AS32: 14321.09326 | AT32: 14321.09326 | AU32: 14321.09326 | AV32: 14321.09326 | AW32: 14321.09326 | AX32: 14321.09326 | AY32: 14321.09326 | AZ32: 14607.51512 | BA32: 14607.51512 | BB32: 2538.005746 | BC32: 2538.005746 | BD32: 2538.005746 | BE32: 2538.005746 | BF32: 2538.005746 | BG32: 2538.005746 | BH32: 2538.005746 | BI32: 15387.02211 | BJ32: 15387.02211 | BK32: 15387.02211 | BM32: STOP
BM33: STOP
B34: Total Potential Gross Revenue | D34: =D22+D24+D32 -> 24280.61023 | E34: =E22+E24+E32 -> 24280.61023 | F34: 24280.61023 | G34: 24280.61023 | H34: 24280.61023 | I34: 24280.61023 | J34: 24280.61023 | K34: 24280.61023 | L34: 24280.61023 | M34: 24280.61023 | N34: 24280.61023 | O34: 24280.61023 | P34: 27157.84193 | Q34: 30811.70506 | R34: 30811.70506 | S34: 30811.70506 | T34: 30811.70506 | U34: 30811.70506 | V34: 30811.70506 | W34: 30811.70506 | X34: 30811.70506 | Y34: 30811.70506 | Z34: 30811.70506 | AA34: 30811.70506 | AB34: 31427.93916 | AC34: 31427.93916 | AD34: 31427.93916 | AE34: 31427.93916 | AF34: 31427.93916 | AG34: 31427.93916 | AH34: 31427.93916 | AI34: 31427.93916 | AJ34: 31427.93916 | AK34: 31427.93916 | AL34: 31427.93916 | AM34: 31427.93916 | AN34: 32056.49794 | AO34: 32056.49794 | AP34: 32056.49794 | AQ34: 32056.49794 | AR34: 32056.49794 | AS34: 32056.49794 | AT34: 32056.49794 | AU34: 32056.49794 | AV34: 32056.49794 | AW34: 32056.49794 | AX34: 32056.49794 | AY34: 32056.49794 | AZ34: 32697.6279 | BA34: 32697.6279 | BB34: 6415.514526 | BC34: 6415.514526 | BD34: 6415.514526 | BE34: 6415.514526 | BF34: 6415.514526 | BG34: 6415.514526 | BH34: 6415.514526 | BI34: 19264.53089 | BJ34: 34664.32538 | BK34: 34664.32538 | BM34: STOP
BM35: STOP
A36: =+Assumptions!C6 -> 0.05 | B36: General Vacancy | D36: =MIN(-(D12+D32)*$A$36-D20,0) -> 0 | E36: =MIN(-(E12+E32)*$A$36-E20,0) -> 0 | F36: 0 | G36: 0 | H36: 0 | I36: 0 | J36: 0 | K36: 0 | L36: 0 | M36: 0 | N36: 0 | O36: 0 | P36: 0 | Q36: -1540.585253 | R36: -1540.585253 | S36: -1540.585253 | T36: -1540.585253 | U36: -1540.585253 | V36: -1540.585253 | W36: -1540.585253 | X36: -1540.585253 | Y36: -1540.585253 | Z36: -1540.585253 | AA36: -1540.585253 | AB36: -1571.396958 | AC36: -1571.396958 | AD36: -1571.396958 | AE36: -1571.396958 | AF36: -1571.396958 | AG36: -1571.396958 | AH36: -1571.396958 | AI36: -1571.396958 | AJ36: -1571.396958 | AK36: -1571.396958 | AL36: -1571.396958 | AM36: -1571.396958 | AN36: -1602.824897 | AO36: -1602.824897 | AP36: -1602.824897 | AQ36: -1602.824897 | AR36: -1602.824897 | AS36: -1602.824897 | AT36: -1602.824897 | AU36: -1602.824897 | AV36: -1602.824897 | AW36: -1602.824897 | AX36: -1602.824897 | AY36: -1602.824897 | AZ36: -1634.881395 | BA36: -1634.881395 | BB36: 0 | BC36: 0 | BD36: 0 | BE36: 0 | BF36: 0 | BG36: 0 | BH36: 0 | BI36: 0 | BJ36: -1733.216269 | BK36: -1733.216269 | BM36: STOP
BM37: STOP
B38: Effective Gross Revenue | D38: =+D34+D36 -> 24280.61023 | E38: =+E34+E36 -> 24280.61023 | F38: 24280.61023 | G38: 24280.61023 | H38: 24280.61023 | I38: 24280.61023 | J38: 24280.61023 | K38: 24280.61023 | L38: 24280.61023 | M38: 24280.61023 | N38: 24280.61023 | O38: 24280.61023 | P38: 27157.84193 | Q38: 29271.11981 | R38: 29271.11981 | S38: 29271.11981 | T38: 29271.11981 | U38: 29271.11981 | V38: 29271.11981 | W38: 29271.11981 | X38: 29271.11981 | Y38: 29271.11981 | Z38: 29271.11981 | AA38: 29271.11981 | AB38: 29856.5422 | AC38: 29856.5422 | AD38: 29856.5422 | AE38: 29856.5422 | AF38: 29856.5422 | AG38: 29856.5422 | AH38: 29856.5422 | AI38: 29856.5422 | AJ38: 29856.5422 | AK38: 29856.5422 | AL38: 29856.5422 | AM38: 29856.5422 | AN38: 30453.67305 | AO38: 30453.67305 | AP38: 30453.67305 | AQ38: 30453.67305 | AR38: 30453.67305 | AS38: 30453.67305 | AT38: 30453.67305 | AU38: 30453.67305 | AV38: 30453.67305 | AW38: 30453.67305 | AX38: 30453.67305 | AY38: 30453.67305 | AZ38: 31062.74651 | BA38: 31062.74651 | BB38: 6415.514526 | BC38: 6415.514526 | BD38: 6415.514526 | BE38: 6415.514526 | BF38: 6415.514526 | BG38: 6415.514526 | BH38: 6415.514526 | BI38: 19264.53089 | BJ38: 32931.10911 | BK38: 32931.10911 | BM38: STOP
BM39: STOP
B40: EXPENSES: | BM40: STOP
B41: =IF(Assumptions!E4="","",Assumptions!E4) -> Insurance | D41: =(-Assumptions!$F4*'Rent Roll'!$F$9*(1+Assumptions!$C$5)^ROUNDDOWN((D$4-$C$4-1)/12,0))/12 -> -774.25 | E41: =(-Assumptions!$F4*'Rent Roll'!$F$9*(1+Assumptions!$C$5)^ROUNDDOWN((E4-$C$4-1)/12,0))/12 -> -774.25 | F41: =(-Assumptions!$F4*'Rent Roll'!$F$9*(1+Assumptions!$C$5)^ROUNDDOWN((F4-$C$4-1)/12,0))/12 -> -774.25 | G41: =(-Assumptions!$F4*'Rent Roll'!$F$9*(1+Assumptions!$C$5)^ROUNDDOWN((G4-$C$4-1)/12,0))/12 -> -774.25 | H41: =(-Assumptions!$F4*'Rent Roll'!$F$9*(1+Assumptions!$C$5)^ROUNDDOWN((H4-$C$4-1)/12,0))/12 -> -774.25 | I41: =(-Assumptions!$F4*'Rent Roll'!$F$9*(1+Assumptions!$C$5)^ROUNDDOWN((I4-$C$4-1)/12,0))/12 -> -774.25 | J41: =(-Assumptions!$F4*'Rent Roll'!$F$9*(1+Assumptions!$C$5)^ROUNDDOWN((J4-$C$4-1)/12,0))/12 -> -774.25 | K41: =(-Assumptions!$F4*'Rent Roll'!$F$9*(1+Assumptions!$C$5)^ROUNDDOWN((K4-$C$4-1)/12,0))/12 -> -774.25 | L41: =(-Assumptions!$F4*'Rent Roll'!$F$9*(1+Assumptions!$C$5)^ROUNDDOWN((L4-$C$4-1)/12,0))/12 -> -774.25 | M41: =(-Assumptions!$F4*'Rent Roll'!$F$9*(1+Assumptions!$C$5)^ROUNDDOWN((M4-$C$4-1)/12,0))/12 -> -774.25 | N41: =(-Assumptions!$F4*'Rent Roll'!$F$9*(1+Assumptions!$C$5)^ROUNDDOWN((N4-$C$4-1)/12,0))/12 -> -774.25 | O41: =(-Assumptions!$F4*'Rent Roll'!$F$9*(1+Assumptions!$C$5)^ROUNDDOWN((O4-$C$4-1)/12,0))/12 -> -774.25 | P41: =(-Assumptions!$F4*'Rent Roll'!$F$9*(1+Assumptions!$C$5)^ROUNDDOWN((P4-$C$4-1)/12,0))/12 -> -789.735 | Q41: =(-Assumptions!$F4*'Rent Roll'!$F$9*(1+Assumptions!$C$5)^ROUNDDOWN((Q4-$C$4-1)/12,0))/12 -> -789.735 | R41: =(-Assumptions!$F4*'Rent Roll'!$F$9*(1+Assumptions!$C$5)^ROUNDDOWN((R4-$C$4-1)/12,0))/12 -> -789.735 | S41: =(-Assumptions!$F4*'Rent Roll'!$F$9*(1+Assumptions!$C$5)^ROUNDDOWN((S4-$C$4-1)/12,0))/12 -> -789.735 | T41: =(-Assumptions!$F4*'Rent Roll'!$F$9*(1+Assumptions!$C$5)^ROUNDDOWN((T4-$C$4-1)/12,0))/12 -> -789.735 | U41: =(-Assumptions!$F4*'Rent Roll'!$F$9*(1+Assumptions!$C$5)^ROUNDDOWN((U4-$C$4-1)/12,0))/12 -> -789.735 | V41: =(-Assumptions!$F4*'Rent Roll'!$F$9*(1+Assumptions!$C$5)^ROUNDDOWN((V4-$C$4-1)/12,0))/12 -> -789.735 | W41: =(-Assumptions!$F4*'Rent Roll'!$F$9*(1+Assumptions!$C$5)^ROUNDDOWN((W4-$C$4-1)/12,0))/12 -> -789.735 | X41: =(-Assumptions!$F4*'Rent Roll'!$F$9*(1+Assumptions!$C$5)^ROUNDDOWN((X4-$C$4-1)/12,0))/12 -> -789.735 | Y41: =(-Assumptions!$F4*'Rent Roll'!$F$9*(1+Assumptions!$C$5)^ROUNDDOWN((Y4-$C$4-1)/12,0))/12 -> -789.735 | Z41: =(-Assumptions!$F4*'Rent Roll'!$F$9*(1+Assumptions!$C$5)^ROUNDDOWN((Z4-$C$4-1)/12,0))/12 -> -789.735 | AA41: =(-Assumptions!$F4*'Rent Roll'!$F$9*(1+Assumptions!$C$5)^ROUNDDOWN((AA4-$C$4-1)/12,0))/12 -> -789.735 | AB41: =(-Assumptions!$F4*'Rent Roll'!$F$9*(1+Assumptions!$C$5)^ROUNDDOWN((AB4-$C$4-1)/12,0))/12 -> -805.5297 | AC41: =(-Assumptions!$F4*'Rent Roll'!$F$9*(1+Assumptions!$C$5)^ROUNDDOWN((AC4-$C$4-1)/12,0))/12 -> -805.5297 | AD41: =(-Assumptions!$F4*'Rent Roll'!$F$9*(1+Assumptions!$C$5)^ROUNDDOWN((AD4-$C$4-1)/12,0))/12 -> -805.5297 | AE41: =(-Assumptions!$F4*'Rent Roll'!$F$9*(1+Assumptions!$C$5)^ROUNDDOWN((AE4-$C$4-1)/12,0))/12 -> -805.5297 | AF41: =(-Assumptions!$F4*'Rent Roll'!$F$9*(1+Assumptions!$C$5)^ROUNDDOWN((AF4-$C$4-1)/12,0))/12 -> -805.5297 | AG41: =(-Assumptions!$F4*'Rent Roll'!$F$9*(1+Assumptions!$C$5)^ROUNDDOWN((AG4-$C$4-1)/12,0))/12 -> -805.5297 | AH41: =(-Assumptions!$F4*'Rent Roll'!$F$9*(1+Assumptions!$C$5)^ROUNDDOWN((AH4-$C$4-1)/12,0))/12 -> -805.5297 | AI41: =(-Assumptions!$F4*'Rent Roll'!$F$9*(1+Assumptions!$C$5)^ROUNDDOWN((AI4-$C$4-1)/12,0))/12 -> -805.5297 | AJ41: =(-Assumptions!$F4*'Rent Roll'!$F$9*(1+Assumptions!$C$5)^ROUNDDOWN((AJ4-$C$4-1)/12,0))/12 -> -805.5297 | AK41: =(-Assumptions!$F4*'Rent Roll'!$F$9*(1+Assumptions!$C$5)^ROUNDDOWN((AK4-$C$4-1)/12,0))/12 -> -805.5297 | AL41: =(-Assumptions!$F4*'Rent Roll'!$F$9*(1+Assumptions!$C$5)^ROUNDDOWN((AL4-$C$4-1)/12,0))/12 -> -805.5297 | AM41: =(-Assumptions!$F4*'Rent Roll'!$F$9*(1+Assumptions!$C$5)^ROUNDDOWN((AM4-$C$4-1)/12,0))/12 -> -805.5297 | AN41: =(-Assumptions!$F4*'Rent Roll'!$F$9*(1+Assumptions!$C$5)^ROUNDDOWN((AN4-$C$4-1)/12,0))/12 -> -821.640294 | AO41: =(-Assumptions!$F4*'Rent Roll'!$F$9*(1+Assumptions!$C$5)^ROUNDDOWN((AO4-$C$4-1)/12,0))/12 -> -821.640294 | AP41: =(-Assumptions!$F4*'Rent Roll'!$F$9*(1+Assumptions!$C$5)^ROUNDDOWN((AP4-$C$4-1)/12,0))/12 -> -821.640294 | AQ41: =(-Assumptions!$F4*'Rent Roll'!$F$9*(1+Assumptions!$C$5)^ROUNDDOWN((AQ4-$C$4-1)/12,0))/12 -> -821.640294 | AR41: =(-Assumptions!$F4*'Rent Roll'!$F$9*(1+Assumptions!$C$5)^ROUNDDOWN((AR4-$C$4-1)/12,0))/12 -> -821.640294 | AS41: =(-Assumptions!$F4*'Rent Roll'!$F$9*(1+Assumptions!$C$5)^ROUNDDOWN((AS4-$C$4-1)/12,0))/12 -> -821.640294 | AT41: =(-Assumptions!$F4*'Rent Roll'!$F$9*(1+Assumptions!$C$5)^ROUNDDOWN((AT4-$C$4-1)/12,0))/12 -> -821.640294 | AU41: =(-Assumptions!$F4*'Rent Roll'!$F$9*(1+Assumptions!$C$5)^ROUNDDOWN((AU4-$C$4-1)/12,0))/12 -> -821.640294 | AV41: =(-Assumptions!$F4*'Rent Roll'!$F$9*(1+Assumptions!$C$5)^ROUNDDOWN((AV4-$C$4-1)/12,0))/12 -> -821.640294 | AW41: =(-Assumptions!$F4*'Rent Roll'!$F$9*(1+Assumptions!$C$5)^ROUNDDOWN((AW4-$C$4-1)/12,0))/12 -> -821.640294 | AX41: =(-Assumptions!$F4*'Rent Roll'!$F$9*(1+Assumptions!$C$5)^ROUNDDOWN((AX4-$C$4-1)/12,0))/12 -> -821.640294 | AY41: =(-Assumptions!$F4*'Rent Roll'!$F$9*(1+Assumptions!$C$5)^ROUNDDOWN((AY4-$C$4-1)/12,0))/12 -> -821.640294 | AZ41: =(-Assumptions!$F4*'Rent Roll'!$F$9*(1+Assumptions!$C$5)^ROUNDDOWN((AZ4-$C$4-1)/12,0))/12 -> -838.0730999 | BA41: =(-Assumptions!$F4*'Rent Roll'!$F$9*(1+Assumptions!$C$5)^ROUNDDOWN((BA4-$C$4-1)/12,0))/12 -> -838.0730999 | BB41: =(-Assumptions!$F4*'Rent Roll'!$F$9*(1+Assumptions!$C$5)^ROUNDDOWN((BB4-$C$4-1)/12,0))/12 -> -838.0730999 | BC41: =(-Assumptions!$F4*'Rent Roll'!$F$9*(1+Assumptions!$C$5)^ROUNDDOWN((BC4-$C$4-1)/12,0))/12 -> -838.0730999 | BD41: =(-Assumptions!$F4*'Rent Roll'!$F$9*(1+Assumptions!$C$5)^ROUNDDOWN((BD4-$C$4-1)/12,0))/12 -> -838.0730999 | BE41: =(-Assumptions!$F4*'Rent Roll'!$F$9*(1+Assumptions!$C$5)^ROUNDDOWN((BE4-$C$4-1)/12,0))/12 -> -838.0730999 | BF41: =(-Assumptions!$F4*'Rent Roll'!$F$9*(1+Assumptions!$C$5)^ROUNDDOWN((BF4-$C$4-1)/12,0))/12 -> -838.0730999 | BG41: =(-Assumptions!$F4*'Rent Roll'!$F$9*(1+Assumptions!$C$5)^ROUNDDOWN((BG4-$C$4-1)/12,0))/12 -> -838.0730999 | BH41: =(-Assumptions!$F4*'Rent Roll'!$F$9*(1+Assumptions!$C$5)^ROUNDDOWN((BH4-$C$4-1)/12,0))/12 -> -838.0730999 | BI41: =(-Assumptions!$F4*'Rent Roll'!$F$9*(1+Assumptions!$C$5)^ROUNDDOWN((BI4-$C$4-1)/12,0))/12 -> -838.0730999 | BJ41: =(-Assumptions!$F4*'Rent Roll'!$F$9*(1+Assumptions!$C$5)^ROUNDDOWN((BJ4-$C$4-1)/12,0))/12 -> -838.0730999 | BK41: =(-Assumptions!$F4*'Rent Roll'!$F$9*(1+Assumptions!$C$5)^ROUNDDOWN((BK4-$C$4-1)/12,0))/12 -> -838.0730999 | BM41: STOP
B42: =IF(Assumptions!E5="","",Assumptions!E5) -> Snow Removal | D42: =(-Assumptions!$F5*'Rent Roll'!$F$9*(1+Assumptions!$C$5)^ROUNDDOWN((D$4-$C$4-1)/12,0))/12 -> -2322.75 | E42: =(-Assumptions!$F5*'Rent Roll'!$F$9*(1+Assumptions!$C$5)^ROUNDDOWN((E$4-$C$4-1)/12,0))/12 -> -2322.75 | F42: =(-Assumptions!$F5*'Rent Roll'!$F$9*(1+Assumptions!$C$5)^ROUNDDOWN((F$4-$C$4-1)/12,0))/12 -> -2322.75 | G42: =(-Assumptions!$F5*'Rent Roll'!$F$9*(1+Assumptions!$C$5)^ROUNDDOWN((G$4-$C$4-1)/12,0))/12 -> -2322.75 | H42: =(-Assumptions!$F5*'Rent Roll'!$F$9*(1+Assumptions!$C$5)^ROUNDDOWN((H$4-$C$4-1)/12,0))/12 -> -2322.75 | I42: =(-Assumptions!$F5*'Rent Roll'!$F$9*(1+Assumptions!$C$5)^ROUNDDOWN((I$4-$C$4-1)/12,0))/12 -> -2322.75 | J42: =(-Assumptions!$F5*'Rent Roll'!$F$9*(1+Assumptions!$C$5)^ROUNDDOWN((J$4-$C$4-1)/12,0))/12 -> -2322.75 | K42: =(-Assumptions!$F5*'Rent Roll'!$F$9*(1+Assumptions!$C$5)^ROUNDDOWN((K$4-$C$4-1)/12,0))/12 -> -2322.75 | L42: =(-Assumptions!$F5*'Rent Roll'!$F$9*(1+Assumptions!$C$5)^ROUNDDOWN((L$4-$C$4-1)/12,0))/12 -> -2322.75 | M42: =(-Assumptions!$F5*'Rent Roll'!$F$9*(1+Assumptions!$C$5)^ROUNDDOWN((M$4-$C$4-1)/12,0))/12 -> -2322.75 | N42: =(-Assumptions!$F5*'Rent Roll'!$F$9*(1+Assumptions!$C$5)^ROUNDDOWN((N$4-$C$4-1)/12,0))/12 -> -2322.75 | O42: =(-Assumptions!$F5*'Rent Roll'!$F$9*(1+Assumptions!$C$5)^ROUNDDOWN((O$4-$C$4-1)/12,0))/12 -> -2322.75 | P42: =(-Assumptions!$F5*'Rent Roll'!$F$9*(1+Assumptions!$C$5)^ROUNDDOWN((P$4-$C$4-1)/12,0))/12 -> -2369.205 | Q42: =(-Assumptions!$F5*'Rent Roll'!$F$9*(1+Assumptions!$C$5)^ROUNDDOWN((Q$4-$C$4-1)/12,0))/12 -> -2369.205 | R42: =(-Assumptions!$F5*'Rent Roll'!$F$9*(1+Assumptions!$C$5)^ROUNDDOWN((R$4-$C$4-1)/12,0))/12 -> -2369.205 | S42: =(-Assumptions!$F5*'Rent Roll'!$F$9*(1+Assumptions!$C$5)^ROUNDDOWN((S$4-$C$4-1)/12,0))/12 -> -2369.205 | T42: =(-Assumptions!$F5*'Rent Roll'!$F$9*(1+Assumptions!$C$5)^ROUNDDOWN((T$4-$C$4-1)/12,0))/12 -> -2369.205 | U42: =(-Assumptions!$F5*'Rent Roll'!$F$9*(1+Assumptions!$C$5)^ROUNDDOWN((U$4-$C$4-1)/12,0))/12 -> -2369.205 | V42: =(-Assumptions!$F5*'Rent Roll'!$F$9*(1+Assumptions!$C$5)^ROUNDDOWN((V$4-$C$4-1)/12,0))/12 -> -2369.205 | W42: =(-Assumptions!$F5*'Rent Roll'!$F$9*(1+Assumptions!$C$5)^ROUNDDOWN((W$4-$C$4-1)/12,0))/12 -> -2369.205 | X42: =(-Assumptions!$F5*'Rent Roll'!$F$9*(1+Assumptions!$C$5)^ROUNDDOWN((X$4-$C$4-1)/12,0))/12 -> -2369.205 | Y42: =(-Assumptions!$F5*'Rent Roll'!$F$9*(1+Assumptions!$C$5)^ROUNDDOWN((Y$4-$C$4-1)/12,0))/12 -> -2369.205 | Z42: =(-Assumptions!$F5*'Rent Roll'!$F$9*(1+Assumptions!$C$5)^ROUNDDOWN((Z$4-$C$4-1)/12,0))/12 -> -2369.205 | AA42: =(-Assumptions!$F5*'Rent Roll'!$F$9*(1+Assumptions!$C$5)^ROUNDDOWN((AA$4-$C$4-1)/12,0))/12 -> -2369.205 | AB42: =(-Assumptions!$F5*'Rent Roll'!$F$9*(1+Assumptions!$C$5)^ROUNDDOWN((AB$4-$C$4-1)/12,0))/12 -> -2416.5891 | AC42: =(-Assumptions!$F5*'Rent Roll'!$F$9*(1+Assumptions!$C$5)^ROUNDDOWN((AC$4-$C$4-1)/12,0))/12 -> -2416.5891 | AD42: =(-Assumptions!$F5*'Rent Roll'!$F$9*(1+Assumptions!$C$5)^ROUNDDOWN((AD$4-$C$4-1)/12,0))/12 -> -2416.5891 | AE42: =(-Assumptions!$F5*'Rent Roll'!$F$9*(1+Assumptions!$C$5)^ROUNDDOWN((AE$4-$C$4-1)/12,0))/12 -> -2416.5891 | AF42: =(-Assumptions!$F5*'Rent Roll'!$F$9*(1+Assumptions!$C$5)^ROUNDDOWN((AF$4-$C$4-1)/12,0))/12 -> -2416.5891 | AG42: =(-Assumptions!$F5*'Rent Roll'!$F$9*(1+Assumptions!$C$5)^ROUNDDOWN((AG$4-$C$4-1)/12,0))/12 -> -2416.5891 | AH42: =(-Assumptions!$F5*'Rent Roll'!$F$9*(1+Assumptions!$C$5)^ROUNDDOWN((AH$4-$C$4-1)/12,0))/12 -> -2416.5891 | AI42: =(-Assumptions!$F5*'Rent Roll'!$F$9*(1+Assumptions!$C$5)^ROUNDDOWN((AI$4-$C$4-1)/12,0))/12 -> -2416.5891 | AJ42: =(-Assumptions!$F5*'Rent Roll'!$F$9*(1+Assumptions!$C$5)^ROUNDDOWN((AJ$4-$C$4-1)/12,0))/12 -> -2416.5891 | AK42: =(-Assumptions!$F5*'Rent Roll'!$F$9*(1+Assumptions!$C$5)^ROUNDDOWN((AK$4-$C$4-1)/12,0))/12 -> -2416.5891 | AL42: =(-Assumptions!$F5*'Rent Roll'!$F$9*(1+Assumptions!$C$5)^ROUNDDOWN((AL$4-$C$4-1)/12,0))/12 -> -2416.5891 | AM42: =(-Assumptions!$F5*'Rent Roll'!$F$9*(1+Assumptions!$C$5)^ROUNDDOWN((AM$4-$C$4-1)/12,0))/12 -> -2416.5891 | AN42: =(-Assumptions!$F5*'Rent Roll'!$F$9*(1+Assumptions!$C$5)^ROUNDDOWN((AN$4-$C$4-1)/12,0))/12 -> -2464.920882 | AO42: =(-Assumptions!$F5*'Rent Roll'!$F$9*(1+Assumptions!$C$5)^ROUNDDOWN((AO$4-$C$4-1)/12,0))/12 -> -2464.920882 | AP42: =(-Assumptions!$F5*'Rent Roll'!$F$9*(1+Assumptions!$C$5)^ROUNDDOWN((AP$4-$C$4-1)/12,0))/12 -> -2464.920882 | AQ42: =(-Assumptions!$F5*'Rent Roll'!$F$9*(1+Assumptions!$C$5)^ROUNDDOWN((AQ$4-$C$4-1)/12,0))/12 -> -2464.920882 | AR42: =(-Assumptions!$F5*'Rent Roll'!$F$9*(1+Assumptions!$C$5)^ROUNDDOWN((AR$4-$C$4-1)/12,0))/12 -> -2464.920882 | AS42: =(-Assumptions!$F5*'Rent Roll'!$F$9*(1+Assumptions!$C$5)^ROUNDDOWN((AS$4-$C$4-1)/12,0))/12 -> -2464.920882 | AT42: =(-Assumptions!$F5*'Rent Roll'!$F$9*(1+Assumptions!$C$5)^ROUNDDOWN((AT$4-$C$4-1)/12,0))/12 -> -2464.920882 | AU42: =(-Assumptions!$F5*'Rent Roll'!$F$9*(1+Assumptions!$C$5)^ROUNDDOWN((AU$4-$C$4-1)/12,0))/12 -> -2464.920882 | AV42: =(-Assumptions!$F5*'Rent Roll'!$F$9*(1+Assumptions!$C$5)^ROUNDDOWN((AV$4-$C$4-1)/12,0))/12 -> -2464.920882 | AW42: =(-Assumptions!$F5*'Rent Roll'!$F$9*(1+Assumptions!$C$5)^ROUNDDOWN((AW$4-$C$4-1)/12,0))/12 -> -2464.920882 | AX42: =(-Assumptions!$F5*'Rent Roll'!$F$9*(1+Assumptions!$C$5)^ROUNDDOWN((AX$4-$C$4-1)/12,0))/12 -> -2464.920882 | AY42: =(-Assumptions!$F5*'Rent Roll'!$F$9*(1+Assumptions!$C$5)^ROUNDDOWN((AY$4-$C$4-1)/12,0))/12 -> -2464.920882 | AZ42: =(-Assumptions!$F5*'Rent Roll'!$F$9*(1+Assumptions!$C$5)^ROUNDDOWN((AZ$4-$C$4-1)/12,0))/12 -> -2514.2193 | BA42: =(-Assumptions!$F5*'Rent Roll'!$F$9*(1+Assumptions!$C$5)^ROUNDDOWN((BA$4-$C$4-1)/12,0))/12 -> -2514.2193 | BB42: =(-Assumptions!$F5*'Rent Roll'!$F$9*(1+Assumptions!$C$5)^ROUNDDOWN((BB$4-$C$4-1)/12,0))/12 -> -2514.2193 | BC42: =(-Assumptions!$F5*'Rent Roll'!$F$9*(1+Assumptions!$C$5)^ROUNDDOWN((BC$4-$C$4-1)/12,0))/12 -> -2514.2193 | BD42: =(-Assumptions!$F5*'Rent Roll'!$F$9*(1+Assumptions!$C$5)^ROUNDDOWN((BD$4-$C$4-1)/12,0))/12 -> -2514.2193 | BE42: =(-Assumptions!$F5*'Rent Roll'!$F$9*(1+Assumptions!$C$5)^ROUNDDOWN((BE$4-$C$4-1)/12,0))/12 -> -2514.2193 | BF42: =(-Assumptions!$F5*'Rent Roll'!$F$9*(1+Assumptions!$C$5)^ROUNDDOWN((BF$4-$C$4-1)/12,0))/12 -> -2514.2193 | BG42: =(-Assumptions!$F5*'Rent Roll'!$F$9*(1+Assumptions!$C$5)^ROUNDDOWN((BG$4-$C$4-1)/12,0))/12 -> -2514.2193 | BH42: =(-Assumptions!$F5*'Rent Roll'!$F$9*(1+Assumptions!$C$5)^ROUNDDOWN((BH$4-$C$4-1)/12,0))/12 -> -2514.2193 | BI42: =(-Assumptions!$F5*'Rent Roll'!$F$9*(1+Assumptions!$C$5)^ROUNDDOWN((BI$4-$C$4-1)/12,0))/12 -> -2514.2193 | BJ42: =(-Assumptions!$F5*'Rent Roll'!$F$9*(1+Assumptions!$C$5)^ROUNDDOWN((BJ$4-$C$4-1)/12,0))/12 -> -2514.2193 | BK42: =(-Assumptions!$F5*'Rent Roll'!$F$9*(1+Assumptions!$C$5)^ROUNDDOWN((BK$4-$C$4-1)/12,0))/12 -> -2514.2193 | BM42: STOP
B43: =IF(Assumptions!E6="","",Assumptions!E6) -> Summer Maintenance | D43: =(-Assumptions!$F6*'Rent Roll'!$F$9*(1+Assumptions!$C$5)^ROUNDDOWN((D$4-$C$4-1)/12,0))/12 -> -387.125 | E43: =(-Assumptions!$F6*'Rent Roll'!$F$9*(1+Assumptions!$C$5)^ROUNDDOWN((E$4-$C$4-1)/12,0))/12 -> -387.125 | F43: =(-Assumptions!$F6*'Rent Roll'!$F$9*(1+Assumptions!$C$5)^ROUNDDOWN((F$4-$C$4-1)/12,0))/12 -> -387.125 | G43: =(-Assumptions!$F6*'Rent Roll'!$F$9*(1+Assumptions!$C$5)^ROUNDDOWN((G$4-$C$4-1)/12,0))/12 -> -387.125 | H43: =(-Assumptions!$F6*'Rent Roll'!$F$9*(1+Assumptions!$C$5)^ROUNDDOWN((H$4-$C$4-1)/12,0))/12 -> -387.125 | I43: =(-Assumptions!$F6*'Rent Roll'!$F$9*(1+Assumptions!$C$5)^ROUNDDOWN((I$4-$C$4-1)/12,0))/12 -> -387.125 | J43: =(-Assumptions!$F6*'Rent Roll'!$F$9*(1+Assumptions!$C$5)^ROUNDDOWN((J$4-$C$4-1)/12,0))/12 -> -387.125 | K43: =(-Assumptions!$F6*'Rent Roll'!$F$9*(1+Assumptions!$C$5)^ROUNDDOWN((K$4-$C$4-1)/12,0))/12 -> -387.125 | L43: =(-Assumptions!$F6*'Rent Roll'!$F$9*(1+Assumptions!$C$5)^ROUNDDOWN((L$4-$C$4-1)/12,0))/12 -> -387.125 | M43: =(-Assumptions!$F6*'Rent Roll'!$F$9*(1+Assumptions!$C$5)^ROUNDDOWN((M$4-$C$4-1)/12,0))/12 -> -387.125 | N43: =(-Assumptions!$F6*'Rent Roll'!$F$9*(1+Assumptions!$C$5)^ROUNDDOWN((N$4-$C$4-1)/12,0))/12 -> -387.125 | O43: =(-Assumptions!$F6*'Rent Roll'!$F$9*(1+Assumptions!$C$5)^ROUNDDOWN((O$4-$C$4-1)/12,0))/12 -> -387.125 | P43: =(-Assumptions!$F6*'Rent Roll'!$F$9*(1+Assumptions!$C$5)^ROUNDDOWN((P$4-$C$4-1)/12,0))/12 -> -394.8675 | Q43: =(-Assumptions!$F6*'Rent Roll'!$F$9*(1+Assumptions!$C$5)^ROUNDDOWN((Q$4-$C$4-1)/12,0))/12 -> -394.8675 | R43: =(-Assumptions!$F6*'Rent Roll'!$F$9*(1+Assumptions!$C$5)^ROUNDDOWN((R$4-$C$4-1)/12,0))/12 -> -394.8675 | S43: =(-Assumptions!$F6*'Rent Roll'!$F$9*(1+Assumptions!$C$5)^ROUNDDOWN((S$4-$C$4-1)/12,0))/12 -> -394.8675 | T43: =(-Assumptions!$F6*'Rent Roll'!$F$9*(1+Assumptions!$C$5)^ROUNDDOWN((T$4-$C$4-1)/12,0))/12 -> -394.8675 | U43: =(-Assumptions!$F6*'Rent Roll'!$F$9*(1+Assumptions!$C$5)^ROUNDDOWN((U$4-$C$4-1)/12,0))/12 -> -394.8675 | V43: =(-Assumptions!$F6*'Rent Roll'!$F$9*(1+Assumptions!$C$5)^ROUNDDOWN((V$4-$C$4-1)/12,0))/12 -> -394.8675 | W43: =(-Assumptions!$F6*'Rent Roll'!$F$9*(1+Assumptions!$C$5)^ROUNDDOWN((W$4-$C$4-1)/12,0))/12 -> -394.8675 | X43: =(-Assumptions!$F6*'Rent Roll'!$F$9*(1+Assumptions!$C$5)^ROUNDDOWN((X$4-$C$4-1)/12,0))/12 -> -394.8675 | Y43: =(-Assumptions!$F6*'Rent Roll'!$F$9*(1+Assumptions!$C$5)^ROUNDDOWN((Y$4-$C$4-1)/12,0))/12 -> -394.8675 | Z43: =(-Assumptions!$F6*'Rent Roll'!$F$9*(1+Assumptions!$C$5)^ROUNDDOWN((Z$4-$C$4-1)/12,0))/12 -> -394.8675 | AA43: =(-Assumptions!$F6*'Rent Roll'!$F$9*(1+Assumptions!$C$5)^ROUNDDOWN((AA$4-$C$4-1)/12,0))/12 -> -394.8675 | AB43: =(-Assumptions!$F6*'Rent Roll'!$F$9*(1+Assumptions!$C$5)^ROUNDDOWN((AB$4-$C$4-1)/12,0))/12 -> -402.76485 | AC43: =(-Assumptions!$F6*'Rent Roll'!$F$9*(1+Assumptions!$C$5)^ROUNDDOWN((AC$4-$C$4-1)/12,0))/12 -> -402.76485 | AD43: =(-Assumptions!$F6*'Rent Roll'!$F$9*(1+Assumptions!$C$5)^ROUNDDOWN((AD$4-$C$4-1)/12,0))/12 -> -402.76485 | AE43: =(-Assumptions!$F6*'Rent Roll'!$F$9*(1+Assumptions!$C$5)^ROUNDDOWN((AE$4-$C$4-1)/12,0))/12 -> -402.76485 | AF43: =(-Assumptions!$F6*'Rent Roll'!$F$9*(1+Assumptions!$C$5)^ROUNDDOWN((AF$4-$C$4-1)/12,0))/12 -> -402.76485 | AG43: =(-Assumptions!$F6*'Rent Roll'!$F$9*(1+Assumptions!$C$5)^ROUNDDOWN((AG$4-$C$4-1)/12,0))/12 -> -402.76485 | AH43: =(-Assumptions!$F6*'Rent Roll'!$F$9*(1+Assumptions!$C$5)^ROUNDDOWN((AH$4-$C$4-1)/12,0))/12 -> -402.76485 | AI43: =(-Assumptions!$F6*'Rent Roll'!$F$9*(1+Assumptions!$C$5)^ROUNDDOWN((AI$4-$C$4-1)/12,0))/12 -> -402.76485 | AJ43: =(-Assumptions!$F6*'Rent Roll'!$F$9*(1+Assumptions!$C$5)^ROUNDDOWN((AJ$4-$C$4-1)/12,0))/12 -> -402.76485 | AK43: =(-Assumptions!$F6*'Rent Roll'!$F$9*(1+Assumptions!$C$5)^ROUNDDOWN((AK$4-$C$4-1)/12,0))/12 -> -402.76485 | AL43: =(-Assumptions!$F6*'Rent Roll'!$F$9*(1+Assumptions!$C$5)^ROUNDDOWN((AL$4-$C$4-1)/12,0))/12 -> -402.76485 | AM43: =(-Assumptions!$F6*'Rent Roll'!$F$9*(1+Assumptions!$C$5)^ROUNDDOWN((AM$4-$C$4-1)/12,0))/12 -> -402.76485 | AN43: =(-Assumptions!$F6*'Rent Roll'!$F$9*(1+Assumptions!$C$5)^ROUNDDOWN((AN$4-$C$4-1)/12,0))/12 -> -410.820147 | AO43: =(-Assumptions!$F6*'Rent Roll'!$F$9*(1+Assumptions!$C$5)^ROUNDDOWN((AO$4-$C$4-1)/12,0))/12 -> -410.820147 | AP43: =(-Assumptions!$F6*'Rent Roll'!$F$9*(1+Assumptions!$C$5)^ROUNDDOWN((AP$4-$C$4-1)/12,0))/12 -> -410.820147 | AQ43: =(-Assumptions!$F6*'Rent Roll'!$F$9*(1+Assumptions!$C$5)^ROUNDDOWN((AQ$4-$C$4-1)/12,0))/12 -> -410.820147 | AR43: =(-Assumptions!$F6*'Rent Roll'!$F$9*(1+Assumptions!$C$5)^ROUNDDOWN((AR$4-$C$4-1)/12,0))/12 -> -410.820147 | AS43: =(-Assumptions!$F6*'Rent Roll'!$F$9*(1+Assumptions!$C$5)^ROUNDDOWN((AS$4-$C$4-1)/12,0))/12 -> -410.820147 | AT43: =(-Assumptions!$F6*'Rent Roll'!$F$9*(1+Assumptions!$C$5)^ROUNDDOWN((AT$4-$C$4-1)/12,0))/12 -> -410.820147 | AU43: =(-Assumptions!$F6*'Rent Roll'!$F$9*(1+Assumptions!$C$5)^ROUNDDOWN((AU$4-$C$4-1)/12,0))/12 -> -410.820147 | AV43: =(-Assumptions!$F6*'Rent Roll'!$F$9*(1+Assumptions!$C$5)^ROUNDDOWN((AV$4-$C$4-1)/12,0))/12 -> -410.820147 | AW43: =(-Assumptions!$F6*'Rent Roll'!$F$9*(1+Assumptions!$C$5)^ROUNDDOWN((AW$4-$C$4-1)/12,0))/12 -> -410.820147 | AX43: =(-Assumptions!$F6*'Rent Roll'!$F$9*(1+Assumptions!$C$5)^ROUNDDOWN((AX$4-$C$4-1)/12,0))/12 -> -410.820147 | AY43: =(-Assumptions!$F6*'Rent Roll'!$F$9*(1+Assumptions!$C$5)^ROUNDDOWN((AY$4-$C$4-1)/12,0))/12 -> -410.820147 | AZ43: =(-Assumptions!$F6*'Rent Roll'!$F$9*(1+Assumptions!$C$5)^ROUNDDOWN((AZ$4-$C$4-1)/12,0))/12 -> -419.0365499 | BA43: =(-Assumptions!$F6*'Rent Roll'!$F$9*(1+Assumptions!$C$5)^ROUNDDOWN((BA$4-$C$4-1)/12,0))/12 -> -419.0365499 | BB43: =(-Assumptions!$F6*'Rent Roll'!$F$9*(1+Assumptions!$C$5)^ROUNDDOWN((BB$4-$C$4-1)/12,0))/12 -> -419.0365499 | BC43: =(-Assumptions!$F6*'Rent Roll'!$F$9*(1+Assumptions!$C$5)^ROUNDDOWN((BC$4-$C$4-1)/12,0))/12 -> -419.0365499 | BD43: =(-Assumptions!$F6*'Rent Roll'!$F$9*(1+Assumptions!$C$5)^ROUNDDOWN((BD$4-$C$4-1)/12,0))/12 -> -419.0365499 | BE43: =(-Assumptions!$F6*'Rent Roll'!$F$9*(1+Assumptions!$C$5)^ROUNDDOWN((BE$4-$C$4-1)/12,0))/12 -> -419.0365499 | BF43: =(-Assumptions!$F6*'Rent Roll'!$F$9*(1+Assumptions!$C$5)^ROUNDDOWN((BF$4-$C$4-1)/12,0))/12 -> -419.0365499 | BG43: =(-Assumptions!$F6*'Rent Roll'!$F$9*(1+Assumptions!$C$5)^ROUNDDOWN((BG$4-$C$4-1)/12,0))/12 -> -419.0365499 | BH43: =(-Assumptions!$F6*'Rent Roll'!$F$9*(1+Assumptions!$C$5)^ROUNDDOWN((BH$4-$C$4-1)/12,0))/12 -> -419.0365499 | BI43: =(-Assumptions!$F6*'Rent Roll'!$F$9*(1+Assumptions!$C$5)^ROUNDDOWN((BI$4-$C$4-1)/12,0))/12 -> -419.0365499 | BJ43: =(-Assumptions!$F6*'Rent Roll'!$F$9*(1+Assumptions!$C$5)^ROUNDDOWN((BJ$4-$C$4-1)/12,0))/12 -> -419.0365499 | BK43: =(-Assumptions!$F6*'Rent Roll'!$F$9*(1+Assumptions!$C$5)^ROUNDDOWN((BK$4-$C$4-1)/12,0))/12 -> -419.0365499 | BM43: STOP
B44: =IF(Assumptions!E7="","",Assumptions!E7) -> Property Taxes | D44: =(-Assumptions!$F7*'Rent Roll'!$F$9*(1+Assumptions!$C$5)^ROUNDDOWN((D$4-$C$4-1)/12,0))/12 -> -4645.5 | E44: =(-Assumptions!$F7*'Rent Roll'!$F$9*(1+Assumptions!$C$5)^ROUNDDOWN((E$4-$C$4-1)/12,0))/12 -> -4645.5 | F44: =(-Assumptions!$F7*'Rent Roll'!$F$9*(1+Assumptions!$C$5)^ROUNDDOWN((F$4-$C$4-1)/12,0))/12 -> -4645.5 | G44: =(-Assumptions!$F7*'Rent Roll'!$F$9*(1+Assumptions!$C$5)^ROUNDDOWN((G$4-$C$4-1)/12,0))/12 -> -4645.5 | H44: =(-Assumptions!$F7*'Rent Roll'!$F$9*(1+Assumptions!$C$5)^ROUNDDOWN((H$4-$C$4-1)/12,0))/12 -> -4645.5 | I44: =(-Assumptions!$F7*'Rent Roll'!$F$9*(1+Assumptions!$C$5)^ROUNDDOWN((I$4-$C$4-1)/12,0))/12 -> -4645.5 | J44: =(-Assumptions!$F7*'Rent Roll'!$F$9*(1+Assumptions!$C$5)^ROUNDDOWN((J$4-$C$4-1)/12,0))/12 -> -4645.5 | K44: =(-Assumptions!$F7*'Rent Roll'!$F$9*(1+Assumptions!$C$5)^ROUNDDOWN((K$4-$C$4-1)/12,0))/12 -> -4645.5 | L44: =(-Assumptions!$F7*'Rent Roll'!$F$9*(1+Assumptions!$C$5)^ROUNDDOWN((L$4-$C$4-1)/12,0))/12 -> -4645.5 | M44: =(-Assumptions!$F7*'Rent Roll'!$F$9*(1+Assumptions!$C$5)^ROUNDDOWN((M$4-$C$4-1)/12,0))/12 -> -4645.5 | N44: =(-Assumptions!$F7*'Rent Roll'!$F$9*(1+Assumptions!$C$5)^ROUNDDOWN((N$4-$C$4-1)/12,0))/12 -> -4645.5 | O44: =(-Assumptions!$F7*'Rent Roll'!$F$9*(1+Assumptions!$C$5)^ROUNDDOWN((O$4-$C$4-1)/12,0))/12 -> -4645.5 | P44: =(-Assumptions!$F7*'Rent Roll'!$F$9*(1+Assumptions!$C$5)^ROUNDDOWN((P$4-$C$4-1)/12,0))/12 -> -4738.41 | Q44: =(-Assumptions!$F7*'Rent Roll'!$F$9*(1+Assumptions!$C$5)^ROUNDDOWN((Q$4-$C$4-1)/12,0))/12 -> -4738.41 | R44: =(-Assumptions!$F7*'Rent Roll'!$F$9*(1+Assumptions!$C$5)^ROUNDDOWN((R$4-$C$4-1)/12,0))/12 -> -4738.41 | S44: =(-Assumptions!$F7*'Rent Roll'!$F$9*(1+Assumptions!$C$5)^ROUNDDOWN((S$4-$C$4-1)/12,0))/12 -> -4738.41 | T44: =(-Assumptions!$F7*'Rent Roll'!$F$9*(1+Assumptions!$C$5)^ROUNDDOWN((T$4-$C$4-1)/12,0))/12 -> -4738.41 | U44: =(-Assumptions!$F7*'Rent Roll'!$F$9*(1+Assumptions!$C$5)^ROUNDDOWN((U$4-$C$4-1)/12,0))/12 -> -4738.41 | V44: =(-Assumptions!$F7*'Rent Roll'!$F$9*(1+Assumptions!$C$5)^ROUNDDOWN((V$4-$C$4-1)/12,0))/12 -> -4738.41 | W44: =(-Assumptions!$F7*'Rent Roll'!$F$9*(1+Assumptions!$C$5)^ROUNDDOWN((W$4-$C$4-1)/12,0))/12 -> -4738.41 | X44: =(-Assumptions!$F7*'Rent Roll'!$F$9*(1+Assumptions!$C$5)^ROUNDDOWN((X$4-$C$4-1)/12,0))/12 -> -4738.41 | Y44: =(-Assumptions!$F7*'Rent Roll'!$F$9*(1+Assumptions!$C$5)^ROUNDDOWN((Y$4-$C$4-1)/12,0))/12 -> -4738.41 | Z44: =(-Assumptions!$F7*'Rent Roll'!$F$9*(1+Assumptions!$C$5)^ROUNDDOWN((Z$4-$C$4-1)/12,0))/12 -> -4738.41 | AA44: =(-Assumptions!$F7*'Rent Roll'!$F$9*(1+Assumptions!$C$5)^ROUNDDOWN((AA$4-$C$4-1)/12,0))/12 -> -4738.41 | AB44: =(-Assumptions!$F7*'Rent Roll'!$F$9*(1+Assumptions!$C$5)^ROUNDDOWN((AB$4-$C$4-1)/12,0))/12 -> -4833.1782 | AC44: =(-Assumptions!$F7*'Rent Roll'!$F$9*(1+Assumptions!$C$5)^ROUNDDOWN((AC$4-$C$4-1)/12,0))/12 -> -4833.1782 | AD44: =(-Assumptions!$F7*'Rent Roll'!$F$9*(1+Assumptions!$C$5)^ROUNDDOWN((AD$4-$C$4-1)/12,0))/12 -> -4833.1782 | AE44: =(-Assumptions!$F7*'Rent Roll'!$F$9*(1+Assumptions!$C$5)^ROUNDDOWN((AE$4-$C$4-1)/12,0))/12 -> -4833.1782 | AF44: =(-Assumptions!$F7*'Rent Roll'!$F$9*(1+Assumptions!$C$5)^ROUNDDOWN((AF$4-$C$4-1)/12,0))/12 -> -4833.1782 | AG44: =(-Assumptions!$F7*'Rent Roll'!$F$9*(1+Assumptions!$C$5)^ROUNDDOWN((AG$4-$C$4-1)/12,0))/12 -> -4833.1782 | AH44: =(-Assumptions!$F7*'Rent Roll'!$F$9*(1+Assumptions!$C$5)^ROUNDDOWN((AH$4-$C$4-1)/12,0))/12 -> -4833.1782 | AI44: =(-Assumptions!$F7*'Rent Roll'!$F$9*(1+Assumptions!$C$5)^ROUNDDOWN((AI$4-$C$4-1)/12,0))/12 -> -4833.1782 | AJ44: =(-Assumptions!$F7*'Rent Roll'!$F$9*(1+Assumptions!$C$5)^ROUNDDOWN((AJ$4-$C$4-1)/12,0))/12 -> -4833.1782 | AK44: =(-Assumptions!$F7*'Rent Roll'!$F$9*(1+Assumptions!$C$5)^ROUNDDOWN((AK$4-$C$4-1)/12,0))/12 -> -4833.1782 | AL44: =(-Assumptions!$F7*'Rent Roll'!$F$9*(1+Assumptions!$C$5)^ROUNDDOWN((AL$4-$C$4-1)/12,0))/12 -> -4833.1782 | AM44: =(-Assumptions!$F7*'Rent Roll'!$F$9*(1+Assumptions!$C$5)^ROUNDDOWN((AM$4-$C$4-1)/12,0))/12 -> -4833.1782 | AN44: =(-Assumptions!$F7*'Rent Roll'!$F$9*(1+Assumptions!$C$5)^ROUNDDOWN((AN$4-$C$4-1)/12,0))/12 -> -4929.841764 | AO44: =(-Assumptions!$F7*'Rent Roll'!$F$9*(1+Assumptions!$C$5)^ROUNDDOWN((AO$4-$C$4-1)/12,0))/12 -> -4929.841764 | AP44: =(-Assumptions!$F7*'Rent Roll'!$F$9*(1+Assumptions!$C$5)^ROUNDDOWN((AP$4-$C$4-1)/12,0))/12 -> -4929.841764 | AQ44: =(-Assumptions!$F7*'Rent Roll'!$F$9*(1+Assumptions!$C$5)^ROUNDDOWN((AQ$4-$C$4-1)/12,0))/12 -> -4929.841764 | AR44: =(-Assumptions!$F7*'Rent Roll'!$F$9*(1+Assumptions!$C$5)^ROUNDDOWN((AR$4-$C$4-1)/12,0))/12 -> -4929.841764 | AS44: =(-Assumptions!$F7*'Rent Roll'!$F$9*(1+Assumptions!$C$5)^ROUNDDOWN((AS$4-$C$4-1)/12,0))/12 -> -4929.841764 | AT44: =(-Assumptions!$F7*'Rent Roll'!$F$9*(1+Assumptions!$C$5)^ROUNDDOWN((AT$4-$C$4-1)/12,0))/12 -> -4929.841764 | AU44: =(-Assumptions!$F7*'Rent Roll'!$F$9*(1+Assumptions!$C$5)^ROUNDDOWN((AU$4-$C$4-1)/12,0))/12 -> -4929.841764 | AV44: =(-Assumptions!$F7*'Rent Roll'!$F$9*(1+Assumptions!$C$5)^ROUNDDOWN((AV$4-$C$4-1)/12,0))/12 -> -4929.841764 | AW44: =(-Assumptions!$F7*'Rent Roll'!$F$9*(1+Assumptions!$C$5)^ROUNDDOWN((AW$4-$C$4-1)/12,0))/12 -> -4929.841764 | AX44: =(-Assumptions!$F7*'Rent Roll'!$F$9*(1+Assumptions!$C$5)^ROUNDDOWN((AX$4-$C$4-1)/12,0))/12 -> -4929.841764 | AY44: =(-Assumptions!$F7*'Rent Roll'!$F$9*(1+Assumptions!$C$5)^ROUNDDOWN((AY$4-$C$4-1)/12,0))/12 -> -4929.841764 | AZ44: =(-Assumptions!$F7*'Rent Roll'!$F$9*(1+Assumptions!$C$5)^ROUNDDOWN((AZ$4-$C$4-1)/12,0))/12 -> -5028.438599 | BA44: =(-Assumptions!$F7*'Rent Roll'!$F$9*(1+Assumptions!$C$5)^ROUNDDOWN((BA$4-$C$4-1)/12,0))/12 -> -5028.438599 | BB44: =(-Assumptions!$F7*'Rent Roll'!$F$9*(1+Assumptions!$C$5)^ROUNDDOWN((BB$4-$C$4-1)/12,0))/12 -> -5028.438599 | BC44: =(-Assumptions!$F7*'Rent Roll'!$F$9*(1+Assumptions!$C$5)^ROUNDDOWN((BC$4-$C$4-1)/12,0))/12 -> -5028.438599 | BD44: =(-Assumptions!$F7*'Rent Roll'!$F$9*(1+Assumptions!$C$5)^ROUNDDOWN((BD$4-$C$4-1)/12,0))/12 -> -5028.438599 | BE44: =(-Assumptions!$F7*'Rent Roll'!$F$9*(1+Assumptions!$C$5)^ROUNDDOWN((BE$4-$C$4-1)/12,0))/12 -> -5028.438599 | BF44: =(-Assumptions!$F7*'Rent Roll'!$F$9*(1+Assumptions!$C$5)^ROUNDDOWN((BF$4-$C$4-1)/12,0))/12 -> -5028.438599 | BG44: =(-Assumptions!$F7*'Rent Roll'!$F$9*(1+Assumptions!$C$5)^ROUNDDOWN((BG$4-$C$4-1)/12,0))/12 -> -5028.438599 | BH44: =(-Assumptions!$F7*'Rent Roll'!$F$9*(1+Assumptions!$C$5)^ROUNDDOWN((BH$4-$C$4-1)/12,0))/12 -> -5028.438599 | BI44: =(-Assumptions!$F7*'Rent Roll'!$F$9*(1+Assumptions!$C$5)^ROUNDDOWN((BI$4-$C$4-1)/12,0))/12 -> -5028.438599 | BJ44: =(-Assumptions!$F7*'Rent Roll'!$F$9*(1+Assumptions!$C$5)^ROUNDDOWN((BJ$4-$C$4-1)/12,0))/12 -> -5028.438599 | BK44: =(-Assumptions!$F7*'Rent Roll'!$F$9*(1+Assumptions!$C$5)^ROUNDDOWN((BK$4-$C$4-1)/12,0))/12 -> -5028.438599 | BM44: STOP
B45: =IF(Assumptions!E8="","",Assumptions!E8) -> Hydro | D45: =(-Assumptions!$F8*'Rent Roll'!$F$9*(1+Assumptions!$C$5)^ROUNDDOWN((D$4-$C$4-1)/12,0))/12 -> -1548.5 | E45: =(-Assumptions!$F8*'Rent Roll'!$F$9*(1+Assumptions!$C$5)^ROUNDDOWN((E$4-$C$4-1)/12,0))/12 -> -1548.5 | F45: =(-Assumptions!$F8*'Rent Roll'!$F$9*(1+Assumptions!$C$5)^ROUNDDOWN((F$4-$C$4-1)/12,0))/12 -> -1548.5 | G45: =(-Assumptions!$F8*'Rent Roll'!$F$9*(1+Assumptions!$C$5)^ROUNDDOWN((G$4-$C$4-1)/12,0))/12 -> -1548.5 | H45: =(-Assumptions!$F8*'Rent Roll'!$F$9*(1+Assumptions!$C$5)^ROUNDDOWN((H$4-$C$4-1)/12,0))/12 -> -1548.5 | I45: =(-Assumptions!$F8*'Rent Roll'!$F$9*(1+Assumptions!$C$5)^ROUNDDOWN((I$4-$C$4-1)/12,0))/12 -> -1548.5 | J45: =(-Assumptions!$F8*'Rent Roll'!$F$9*(1+Assumptions!$C$5)^ROUNDDOWN((J$4-$C$4-1)/12,0))/12 -> -1548.5 | K45: =(-Assumptions!$F8*'Rent Roll'!$F$9*(1+Assumptions!$C$5)^ROUNDDOWN((K$4-$C$4-1)/12,0))/12 -> -1548.5 | L45: =(-Assumptions!$F8*'Rent Roll'!$F$9*(1+Assumptions!$C$5)^ROUNDDOWN((L$4-$C$4-1)/12,0))/12 -> -1548.5 | M45: =(-Assumptions!$F8*'Rent Roll'!$F$9*(1+Assumptions!$C$5)^ROUNDDOWN((M$4-$C$4-1)/12,0))/12 -> -1548.5 | N45: =(-Assumptions!$F8*'Rent Roll'!$F$9*(1+Assumptions!$C$5)^ROUNDDOWN((N$4-$C$4-1)/12,0))/12 -> -1548.5 | O45: =(-Assumptions!$F8*'Rent Roll'!$F$9*(1+Assumptions!$C$5)^ROUNDDOWN((O$4-$C$4-1)/12,0))/12 -> -1548.5 | P45: =(-Assumptions!$F8*'Rent Roll'!$F$9*(1+Assumptions!$C$5)^ROUNDDOWN((P$4-$C$4-1)/12,0))/12 -> -1579.47 | Q45: =(-Assumptions!$F8*'Rent Roll'!$F$9*(1+Assumptions!$C$5)^ROUNDDOWN((Q$4-$C$4-1)/12,0))/12 -> -1579.47 | R45: =(-Assumptions!$F8*'Rent Roll'!$F$9*(1+Assumptions!$C$5)^ROUNDDOWN((R$4-$C$4-1)/12,0))/12 -> -1579.47 | S45: =(-Assumptions!$F8*'Rent Roll'!$F$9*(1+Assumptions!$C$5)^ROUNDDOWN((S$4-$C$4-1)/12,0))/12 -> -1579.47 | T45: =(-Assumptions!$F8*'Rent Roll'!$F$9*(1+Assumptions!$C$5)^ROUNDDOWN((T$4-$C$4-1)/12,0))/12 -> -1579.47 | U45: =(-Assumptions!$F8*'Rent Roll'!$F$9*(1+Assumptions!$C$5)^ROUNDDOWN((U$4-$C$4-1)/12,0))/12 -> -1579.47 | V45: =(-Assumptions!$F8*'Rent Roll'!$F$9*(1+Assumptions!$C$5)^ROUNDDOWN((V$4-$C$4-1)/12,0))/12 -> -1579.47 | W45: =(-Assumptions!$F8*'Rent Roll'!$F$9*(1+Assumptions!$C$5)^ROUNDDOWN((W$4-$C$4-1)/12,0))/12 -> -1579.47 | X45: =(-Assumptions!$F8*'Rent Roll'!$F$9*(1+Assumptions!$C$5)^ROUNDDOWN((X$4-$C$4-1)/12,0))/12 -> -1579.47 | Y45: =(-Assumptions!$F8*'Rent Roll'!$F$9*(1+Assumptions!$C$5)^ROUNDDOWN((Y$4-$C$4-1)/12,0))/12 -> -1579.47 | Z45: =(-Assumptions!$F8*'Rent Roll'!$F$9*(1+Assumptions!$C$5)^ROUNDDOWN((Z$4-$C$4-1)/12,0))/12 -> -1579.47 | AA45: =(-Assumptions!$F8*'Rent Roll'!$F$9*(1+Assumptions!$C$5)^ROUNDDOWN((AA$4-$C$4-1)/12,0))/12 -> -1579.47 | AB45: =(-Assumptions!$F8*'Rent Roll'!$F$9*(1+Assumptions!$C$5)^ROUNDDOWN((AB$4-$C$4-1)/12,0))/12 -> -1611.0594 | AC45: =(-Assumptions!$F8*'Rent Roll'!$F$9*(1+Assumptions!$C$5)^ROUNDDOWN((AC$4-$C$4-1)/12,0))/12 -> -1611.0594 | AD45: =(-Assumptions!$F8*'Rent Roll'!$F$9*(1+Assumptions!$C$5)^ROUNDDOWN((AD$4-$C$4-1)/12,0))/12 -> -1611.0594 | AE45: =(-Assumptions!$F8*'Rent Roll'!$F$9*(1+Assumptions!$C$5)^ROUNDDOWN((AE$4-$C$4-1)/12,0))/12 -> -1611.0594 | AF45: =(-Assumptions!$F8*'Rent Roll'!$F$9*(1+Assumptions!$C$5)^ROUNDDOWN((AF$4-$C$4-1)/12,0))/12 -> -1611.0594 | AG45: =(-Assumptions!$F8*'Rent Roll'!$F$9*(1+Assumptions!$C$5)^ROUNDDOWN((AG$4-$C$4-1)/12,0))/12 -> -1611.0594 | AH45: =(-Assumptions!$F8*'Rent Roll'!$F$9*(1+Assumptions!$C$5)^ROUNDDOWN((AH$4-$C$4-1)/12,0))/12 -> -1611.0594 | AI45: =(-Assumptions!$F8*'Rent Roll'!$F$9*(1+Assumptions!$C$5)^ROUNDDOWN((AI$4-$C$4-1)/12,0))/12 -> -1611.0594 | AJ45: =(-Assumptions!$F8*'Rent Roll'!$F$9*(1+Assumptions!$C$5)^ROUNDDOWN((AJ$4-$C$4-1)/12,0))/12 -> -1611.0594 | AK45: =(-Assumptions!$F8*'Rent Roll'!$F$9*(1+Assumptions!$C$5)^ROUNDDOWN((AK$4-$C$4-1)/12,0))/12 -> -1611.0594 | AL45: =(-Assumptions!$F8*'Rent Roll'!$F$9*(1+Assumptions!$C$5)^ROUNDDOWN((AL$4-$C$4-1)/12,0))/12 -> -1611.0594 | AM45: =(-Assumptions!$F8*'Rent Roll'!$F$9*(1+Assumptions!$C$5)^ROUNDDOWN((AM$4-$C$4-1)/12,0))/12 -> -1611.0594 | AN45: =(-Assumptions!$F8*'Rent Roll'!$F$9*(1+Assumptions!$C$5)^ROUNDDOWN((AN$4-$C$4-1)/12,0))/12 -> -1643.280588 | AO45: =(-Assumptions!$F8*'Rent Roll'!$F$9*(1+Assumptions!$C$5)^ROUNDDOWN((AO$4-$C$4-1)/12,0))/12 -> -1643.280588 | AP45: =(-Assumptions!$F8*'Rent Roll'!$F$9*(1+Assumptions!$C$5)^ROUNDDOWN((AP$4-$C$4-1)/12,0))/12 -> -1643.280588 | AQ45: =(-Assumptions!$F8*'Rent Roll'!$F$9*(1+Assumptions!$C$5)^ROUNDDOWN((AQ$4-$C$4-1)/12,0))/12 -> -1643.280588 | AR45: =(-Assumptions!$F8*'Rent Roll'!$F$9*(1+Assumptions!$C$5)^ROUNDDOWN((AR$4-$C$4-1)/12,0))/12 -> -1643.280588 | AS45: =(-Assumptions!$F8*'Rent Roll'!$F$9*(1+Assumptions!$C$5)^ROUNDDOWN((AS$4-$C$4-1)/12,0))/12 -> -1643.280588 | AT45: =(-Assumptions!$F8*'Rent Roll'!$F$9*(1+Assumptions!$C$5)^ROUNDDOWN((AT$4-$C$4-1)/12,0))/12 -> -1643.280588 | AU45: =(-Assumptions!$F8*'Rent Roll'!$F$9*(1+Assumptions!$C$5)^ROUNDDOWN((AU$4-$C$4-1)/12,0))/12 -> -1643.280588 | AV45: =(-Assumptions!$F8*'Rent Roll'!$F$9*(1+Assumptions!$C$5)^ROUNDDOWN((AV$4-$C$4-1)/12,0))/12 -> -1643.280588 | AW45: =(-Assumptions!$F8*'Rent Roll'!$F$9*(1+Assumptions!$C$5)^ROUNDDOWN((AW$4-$C$4-1)/12,0))/12 -> -1643.280588 | AX45: =(-Assumptions!$F8*'Rent Roll'!$F$9*(1+Assumptions!$C$5)^ROUNDDOWN((AX$4-$C$4-1)/12,0))/12 -> -1643.280588 | AY45: =(-Assumptions!$F8*'Rent Roll'!$F$9*(1+Assumptions!$C$5)^ROUNDDOWN((AY$4-$C$4-1)/12,0))/12 -> -1643.280588 | AZ45: =(-Assumptions!$F8*'Rent Roll'!$F$9*(1+Assumptions!$C$5)^ROUNDDOWN((AZ$4-$C$4-1)/12,0))/12 -> -1676.1462 | BA45: =(-Assumptions!$F8*'Rent Roll'!$F$9*(1+Assumptions!$C$5)^ROUNDDOWN((BA$4-$C$4-1)/12,0))/12 -> -1676.1462 | BB45: =(-Assumptions!$F8*'Rent Roll'!$F$9*(1+Assumptions!$C$5)^ROUNDDOWN((BB$4-$C$4-1)/12,0))/12 -> -1676.1462 | BC45: =(-Assumptions!$F8*'Rent Roll'!$F$9*(1+Assumptions!$C$5)^ROUNDDOWN((BC$4-$C$4-1)/12,0))/12 -> -1676.1462 | BD45: =(-Assumptions!$F8*'Rent Roll'!$F$9*(1+Assumptions!$C$5)^ROUNDDOWN((BD$4-$C$4-1)/12,0))/12 -> -1676.1462 | BE45: =(-Assumptions!$F8*'Rent Roll'!$F$9*(1+Assumptions!$C$5)^ROUNDDOWN((BE$4-$C$4-1)/12,0))/12 -> -1676.1462 | BF45: =(-Assumptions!$F8*'Rent Roll'!$F$9*(1+Assumptions!$C$5)^ROUNDDOWN((BF$4-$C$4-1)/12,0))/12 -> -1676.1462 | BG45: =(-Assumptions!$F8*'Rent Roll'!$F$9*(1+Assumptions!$C$5)^ROUNDDOWN((BG$4-$C$4-1)/12,0))/12 -> -1676.1462 | BH45: =(-Assumptions!$F8*'Rent Roll'!$F$9*(1+Assumptions!$C$5)^ROUNDDOWN((BH$4-$C$4-1)/12,0))/12 -> -1676.1462 | BI45: =(-Assumptions!$F8*'Rent Roll'!$F$9*(1+Assumptions!$C$5)^ROUNDDOWN((BI$4-$C$4-1)/12,0))/12 -> -1676.1462 | BJ45: =(-Assumptions!$F8*'Rent Roll'!$F$9*(1+Assumptions!$C$5)^ROUNDDOWN((BJ$4-$C$4-1)/12,0))/12 -> -1676.1462 | BK45: =(-Assumptions!$F8*'Rent Roll'!$F$9*(1+Assumptions!$C$5)^ROUNDDOWN((BK$4-$C$4-1)/12,0))/12 -> -1676.1462 | BM45: STOP
B46: =IF(Assumptions!E9="","",Assumptions!E9) -> Operating Expense (Ground) | D46: =(-Assumptions!$F9*'Rent Roll'!$F$9*(1+Assumptions!$C$5)^ROUNDDOWN((D$4-$C$4-1)/12,0))/12 -> -6281.420427 | E46: =(-Assumptions!$F9*'Rent Roll'!$F$9*(1+Assumptions!$C$5)^ROUNDDOWN((E$4-$C$4-1)/12,0))/12 -> -6281.420427 | F46: =(-Assumptions!$F9*'Rent Roll'!$F$9*(1+Assumptions!$C$5)^ROUNDDOWN((F$4-$C$4-1)/12,0))/12 -> -6281.420427 | G46: =(-Assumptions!$F9*'Rent Roll'!$F$9*(1+Assumptions!$C$5)^ROUNDDOWN((G$4-$C$4-1)/12,0))/12 -> -6281.420427 | H46: =(-Assumptions!$F9*'Rent Roll'!$F$9*(1+Assumptions!$C$5)^ROUNDDOWN((H$4-$C$4-1)/12,0))/12 -> -6281.420427 | I46: =(-Assumptions!$F9*'Rent Roll'!$F$9*(1+Assumptions!$C$5)^ROUNDDOWN((I$4-$C$4-1)/12,0))/12 -> -6281.420427 | J46: =(-Assumptions!$F9*'Rent Roll'!$F$9*(1+Assumptions!$C$5)^ROUNDDOWN((J$4-$C$4-1)/12,0))/12 -> -6281.420427 | K46: =(-Assumptions!$F9*'Rent Roll'!$F$9*(1+Assumptions!$C$5)^ROUNDDOWN((K$4-$C$4-1)/12,0))/12 -> -6281.420427 | L46: =(-Assumptions!$F9*'Rent Roll'!$F$9*(1+Assumptions!$C$5)^ROUNDDOWN((L$4-$C$4-1)/12,0))/12 -> -6281.420427 | M46: =(-Assumptions!$F9*'Rent Roll'!$F$9*(1+Assumptions!$C$5)^ROUNDDOWN((M$4-$C$4-1)/12,0))/12 -> -6281.420427 | N46: =(-Assumptions!$F9*'Rent Roll'!$F$9*(1+Assumptions!$C$5)^ROUNDDOWN((N$4-$C$4-1)/12,0))/12 -> -6281.420427 | O46: =(-Assumptions!$F9*'Rent Roll'!$F$9*(1+Assumptions!$C$5)^ROUNDDOWN((O$4-$C$4-1)/12,0))/12 -> -6281.420427 | P46: =(-Assumptions!$F9*'Rent Roll'!$F$9*(1+Assumptions!$C$5)^ROUNDDOWN((P$4-$C$4-1)/12,0))/12 -> -6407.048836 | Q46: =(-Assumptions!$F9*'Rent Roll'!$F$9*(1+Assumptions!$C$5)^ROUNDDOWN((Q$4-$C$4-1)/12,0))/12 -> -6407.048836 | R46: =(-Assumptions!$F9*'Rent Roll'!$F$9*(1+Assumptions!$C$5)^ROUNDDOWN((R$4-$C$4-1)/12,0))/12 -> -6407.048836 | S46: =(-Assumptions!$F9*'Rent Roll'!$F$9*(1+Assumptions!$C$5)^ROUNDDOWN((S$4-$C$4-1)/12,0))/12 -> -6407.048836 | T46: =(-Assumptions!$F9*'Rent Roll'!$F$9*(1+Assumptions!$C$5)^ROUNDDOWN((T$4-$C$4-1)/12,0))/12 -> -6407.048836 | U46: =(-Assumptions!$F9*'Rent Roll'!$F$9*(1+Assumptions!$C$5)^ROUNDDOWN((U$4-$C$4-1)/12,0))/12 -> -6407.048836 | V46: =(-Assumptions!$F9*'Rent Roll'!$F$9*(1+Assumptions!$C$5)^ROUNDDOWN((V$4-$C$4-1)/12,0))/12 -> -6407.048836 | W46: =(-Assumptions!$F9*'Rent Roll'!$F$9*(1+Assumptions!$C$5)^ROUNDDOWN((W$4-$C$4-1)/12,0))/12 -> -6407.048836 | X46: =(-Assumptions!$F9*'Rent Roll'!$F$9*(1+Assumptions!$C$5)^ROUNDDOWN((X$4-$C$4-1)/12,0))/12 -> -6407.048836 | Y46: =(-Assumptions!$F9*'Rent Roll'!$F$9*(1+Assumptions!$C$5)^ROUNDDOWN((Y$4-$C$4-1)/12,0))/12 -> -6407.048836 | Z46: =(-Assumptions!$F9*'Rent Roll'!$F$9*(1+Assumptions!$C$5)^ROUNDDOWN((Z$4-$C$4-1)/12,0))/12 -> -6407.048836 | AA46: =(-Assumptions!$F9*'Rent Roll'!$F$9*(1+Assumptions!$C$5)^ROUNDDOWN((AA$4-$C$4-1)/12,0))/12 -> -6407.048836 | AB46: =(-Assumptions!$F9*'Rent Roll'!$F$9*(1+Assumptions!$C$5)^ROUNDDOWN((AB$4-$C$4-1)/12,0))/12 -> -6535.189813 | AC46: =(-Assumptions!$F9*'Rent Roll'!$F$9*(1+Assumptions!$C$5)^ROUNDDOWN((AC$4-$C$4-1)/12,0))/12 -> -6535.189813 | AD46: =(-Assumptions!$F9*'Rent Roll'!$F$9*(1+Assumptions!$C$5)^ROUNDDOWN((AD$4-$C$4-1)/12,0))/12 -> -6535.189813 | AE46: =(-Assumptions!$F9*'Rent Roll'!$F$9*(1+Assumptions!$C$5)^ROUNDDOWN((AE$4-$C$4-1)/12,0))/12 -> -6535.189813 | AF46: =(-Assumptions!$F9*'Rent Roll'!$F$9*(1+Assumptions!$C$5)^ROUNDDOWN((AF$4-$C$4-1)/12,0))/12 -> -6535.189813 | AG46: =(-Assumptions!$F9*'Rent Roll'!$F$9*(1+Assumptions!$C$5)^ROUNDDOWN((AG$4-$C$4-1)/12,0))/12 -> -6535.189813 | AH46: =(-Assumptions!$F9*'Rent Roll'!$F$9*(1+Assumptions!$C$5)^ROUNDDOWN((AH$4-$C$4-1)/12,0))/12 -> -6535.189813 | AI46: =(-Assumptions!$F9*'Rent Roll'!$F$9*(1+Assumptions!$C$5)^ROUNDDOWN((AI$4-$C$4-1)/12,0))/12 -> -6535.189813 | AJ46: =(-Assumptions!$F9*'Rent Roll'!$F$9*(1+Assumptions!$C$5)^ROUNDDOWN((AJ$4-$C$4-1)/12,0))/12 -> -6535.189813 | AK46: =(-Assumptions!$F9*'Rent Roll'!$F$9*(1+Assumptions!$C$5)^ROUNDDOWN((AK$4-$C$4-1)/12,0))/12 -> -6535.189813 | AL46: =(-Assumptions!$F9*'Rent Roll'!$F$9*(1+Assumptions!$C$5)^ROUNDDOWN((AL$4-$C$4-1)/12,0))/12 -> -6535.189813 | AM46: =(-Assumptions!$F9*'Rent Roll'!$F$9*(1+Assumptions!$C$5)^ROUNDDOWN((AM$4-$C$4-1)/12,0))/12 -> -6535.189813 | AN46: =(-Assumptions!$F9*'Rent Roll'!$F$9*(1+Assumptions!$C$5)^ROUNDDOWN((AN$4-$C$4-1)/12,0))/12 -> -6665.893609 | AO46: =(-Assumptions!$F9*'Rent Roll'!$F$9*(1+Assumptions!$C$5)^ROUNDDOWN((AO$4-$C$4-1)/12,0))/12 -> -6665.893609 | AP46: =(-Assumptions!$F9*'Rent Roll'!$F$9*(1+Assumptions!$C$5)^ROUNDDOWN((AP$4-$C$4-1)/12,0))/12 -> -6665.893609 | AQ46: =(-Assumptions!$F9*'Rent Roll'!$F$9*(1+Assumptions!$C$5)^ROUNDDOWN((AQ$4-$C$4-1)/12,0))/12 -> -6665.893609 | AR46: =(-Assumptions!$F9*'Rent Roll'!$F$9*(1+Assumptions!$C$5)^ROUNDDOWN((AR$4-$C$4-1)/12,0))/12 -> -6665.893609 | AS46: =(-Assumptions!$F9*'Rent Roll'!$F$9*(1+Assumptions!$C$5)^ROUNDDOWN((AS$4-$C$4-1)/12,0))/12 -> -6665.893609 | AT46: =(-Assumptions!$F9*'Rent Roll'!$F$9*(1+Assumptions!$C$5)^ROUNDDOWN((AT$4-$C$4-1)/12,0))/12 -> -6665.893609 | AU46: =(-Assumptions!$F9*'Rent Roll'!$F$9*(1+Assumptions!$C$5)^ROUNDDOWN((AU$4-$C$4-1)/12,0))/12 -> -6665.893609 | AV46: =(-Assumptions!$F9*'Rent Roll'!$F$9*(1+Assumptions!$C$5)^ROUNDDOWN((AV$4-$C$4-1)/12,0))/12 -> -6665.893609 | AW46: =(-Assumptions!$F9*'Rent Roll'!$F$9*(1+Assumptions!$C$5)^ROUNDDOWN((AW$4-$C$4-1)/12,0))/12 -> -6665.893609 | AX46: =(-Assumptions!$F9*'Rent Roll'!$F$9*(1+Assumptions!$C$5)^ROUNDDOWN((AX$4-$C$4-1)/12,0))/12 -> -6665.893609 | AY46: =(-Assumptions!$F9*'Rent Roll'!$F$9*(1+Assumptions!$C$5)^ROUNDDOWN((AY$4-$C$4-1)/12,0))/12 -> -6665.893609 | AZ46: =(-Assumptions!$F9*'Rent Roll'!$F$9*(1+Assumptions!$C$5)^ROUNDDOWN((AZ$4-$C$4-1)/12,0))/12 -> -6799.211481 | BA46: =(-Assumptions!$F9*'Rent Roll'!$F$9*(1+Assumptions!$C$5)^ROUNDDOWN((BA$4-$C$4-1)/12,0))/12 -> -6799.211481 | BB46: =(-Assumptions!$F9*'Rent Roll'!$F$9*(1+Assumptions!$C$5)^ROUNDDOWN((BB$4-$C$4-1)/12,0))/12 -> -6799.211481 | BC46: =(-Assumptions!$F9*'Rent Roll'!$F$9*(1+Assumptions!$C$5)^ROUNDDOWN((BC$4-$C$4-1)/12,0))/12 -> -6799.211481 | BD46: =(-Assumptions!$F9*'Rent Roll'!$F$9*(1+Assumptions!$C$5)^ROUNDDOWN((BD$4-$C$4-1)/12,0))/12 -> -6799.211481 | BE46: =(-Assumptions!$F9*'Rent Roll'!$F$9*(1+Assumptions!$C$5)^ROUNDDOWN((BE$4-$C$4-1)/12,0))/12 -> -6799.211481 | BF46: =(-Assumptions!$F9*'Rent Roll'!$F$9*(1+Assumptions!$C$5)^ROUNDDOWN((BF$4-$C$4-1)/12,0))/12 -> -6799.211481 | BG46: =(-Assumptions!$F9*'Rent Roll'!$F$9*(1+Assumptions!$C$5)^ROUNDDOWN((BG$4-$C$4-1)/12,0))/12 -> -6799.211481 | BH46: =(-Assumptions!$F9*'Rent Roll'!$F$9*(1+Assumptions!$C$5)^ROUNDDOWN((BH$4-$C$4-1)/12,0))/12 -> -6799.211481 | BI46: =(-Assumptions!$F9*'Rent Roll'!$F$9*(1+Assumptions!$C$5)^ROUNDDOWN((BI$4-$C$4-1)/12,0))/12 -> -6799.211481 | BJ46: =(-Assumptions!$F9*'Rent Roll'!$F$9*(1+Assumptions!$C$5)^ROUNDDOWN((BJ$4-$C$4-1)/12,0))/12 -> -6799.211481 | BK46: =(-Assumptions!$F9*'Rent Roll'!$F$9*(1+Assumptions!$C$5)^ROUNDDOWN((BK$4-$C$4-1)/12,0))/12 -> -6799.211481 | BM46: STOP
B47: =IF(Assumptions!E10="","",Assumptions!E10) ->  | D47: =(-Assumptions!$F10*'Rent Roll'!$F$9*(1+Assumptions!$C$5)^ROUNDDOWN((D$4-$C$4-1)/12,0))/12 -> 0 | E47: =(-Assumptions!$F10*'Rent Roll'!$F$9*(1+Assumptions!$C$5)^ROUNDDOWN((E$4-$C$4-1)/12,0))/12 -> 0 | F47: =(-Assumptions!$F10*'Rent Roll'!$F$9*(1+Assumptions!$C$5)^ROUNDDOWN((F$4-$C$4-1)/12,0))/12 -> 0 | G47: =(-Assumptions!$F10*'Rent Roll'!$F$9*(1+Assumptions!$C$5)^ROUNDDOWN((G$4-$C$4-1)/12,0))/12 -> 0 | H47: =(-Assumptions!$F10*'Rent Roll'!$F$9*(1+Assumptions!$C$5)^ROUNDDOWN((H$4-$C$4-1)/12,0))/12 -> 0 | I47: =(-Assumptions!$F10*'Rent Roll'!$F$9*(1+Assumptions!$C$5)^ROUNDDOWN((I$4-$C$4-1)/12,0))/12 -> 0 | J47: =(-Assumptions!$F10*'Rent Roll'!$F$9*(1+Assumptions!$C$5)^ROUNDDOWN((J$4-$C$4-1)/12,0))/12 -> 0 | K47: =(-Assumptions!$F10*'Rent Roll'!$F$9*(1+Assumptions!$C$5)^ROUNDDOWN((K$4-$C$4-1)/12,0))/12 -> 0 | L47: =(-Assumptions!$F10*'Rent Roll'!$F$9*(1+Assumptions!$C$5)^ROUNDDOWN((L$4-$C$4-1)/12,0))/12 -> 0 | M47: =(-Assumptions!$F10*'Rent Roll'!$F$9*(1+Assumptions!$C$5)^ROUNDDOWN((M$4-$C$4-1)/12,0))/12 -> 0 | N47: =(-Assumptions!$F10*'Rent Roll'!$F$9*(1+Assumptions!$C$5)^ROUNDDOWN((N$4-$C$4-1)/12,0))/12 -> 0 | O47: =(-Assumptions!$F10*'Rent Roll'!$F$9*(1+Assumptions!$C$5)^ROUNDDOWN((O$4-$C$4-1)/12,0))/12 -> 0 | P47: =(-Assumptions!$F10*'Rent Roll'!$F$9*(1+Assumptions!$C$5)^ROUNDDOWN((P$4-$C$4-1)/12,0))/12 -> 0 | Q47: =(-Assumptions!$F10*'Rent Roll'!$F$9*(1+Assumptions!$C$5)^ROUNDDOWN((Q$4-$C$4-1)/12,0))/12 -> 0 | R47: =(-Assumptions!$F10*'Rent Roll'!$F$9*(1+Assumptions!$C$5)^ROUNDDOWN((R$4-$C$4-1)/12,0))/12 -> 0 | S47: =(-Assumptions!$F10*'Rent Roll'!$F$9*(1+Assumptions!$C$5)^ROUNDDOWN((S$4-$C$4-1)/12,0))/12 -> 0 | T47: =(-Assumptions!$F10*'Rent Roll'!$F$9*(1+Assumptions!$C$5)^ROUNDDOWN((T$4-$C$4-1)/12,0))/12 -> 0 | U47: =(-Assumptions!$F10*'Rent Roll'!$F$9*(1+Assumptions!$C$5)^ROUNDDOWN((U$4-$C$4-1)/12,0))/12 -> 0 | V47: =(-Assumptions!$F10*'Rent Roll'!$F$9*(1+Assumptions!$C$5)^ROUNDDOWN((V$4-$C$4-1)/12,0))/12 -> 0 | W47: =(-Assumptions!$F10*'Rent Roll'!$F$9*(1+Assumptions!$C$5)^ROUNDDOWN((W$4-$C$4-1)/12,0))/12 -> 0 | X47: =(-Assumptions!$F10*'Rent Roll'!$F$9*(1+Assumptions!$C$5)^ROUNDDOWN((X$4-$C$4-1)/12,0))/12 -> 0 | Y47: =(-Assumptions!$F10*'Rent Roll'!$F$9*(1+Assumptions!$C$5)^ROUNDDOWN((Y$4-$C$4-1)/12,0))/12 -> 0 | Z47: =(-Assumptions!$F10*'Rent Roll'!$F$9*(1+Assumptions!$C$5)^ROUNDDOWN((Z$4-$C$4-1)/12,0))/12 -> 0 | AA47: =(-Assumptions!$F10*'Rent Roll'!$F$9*(1+Assumptions!$C$5)^ROUNDDOWN((AA$4-$C$4-1)/12,0))/12 -> 0 | AB47: =(-Assumptions!$F10*'Rent Roll'!$F$9*(1+Assumptions!$C$5)^ROUNDDOWN((AB$4-$C$4-1)/12,0))/12 -> 0 | AC47: =(-Assumptions!$F10*'Rent Roll'!$F$9*(1+Assumptions!$C$5)^ROUNDDOWN((AC$4-$C$4-1)/12,0))/12 -> 0 | AD47: =(-Assumptions!$F10*'Rent Roll'!$F$9*(1+Assumptions!$C$5)^ROUNDDOWN((AD$4-$C$4-1)/12,0))/12 -> 0 | AE47: =(-Assumptions!$F10*'Rent Roll'!$F$9*(1+Assumptions!$C$5)^ROUNDDOWN((AE$4-$C$4-1)/12,0))/12 -> 0 | AF47: =(-Assumptions!$F10*'Rent Roll'!$F$9*(1+Assumptions!$C$5)^ROUNDDOWN((AF$4-$C$4-1)/12,0))/12 -> 0 | AG47: =(-Assumptions!$F10*'Rent Roll'!$F$9*(1+Assumptions!$C$5)^ROUNDDOWN((AG$4-$C$4-1)/12,0))/12 -> 0 | AH47: =(-Assumptions!$F10*'Rent Roll'!$F$9*(1+Assumptions!$C$5)^ROUNDDOWN((AH$4-$C$4-1)/12,0))/12 -> 0 | AI47: =(-Assumptions!$F10*'Rent Roll'!$F$9*(1+Assumptions!$C$5)^ROUNDDOWN((AI$4-$C$4-1)/12,0))/12 -> 0 | AJ47: =(-Assumptions!$F10*'Rent Roll'!$F$9*(1+Assumptions!$C$5)^ROUNDDOWN((AJ$4-$C$4-1)/12,0))/12 -> 0 | AK47: =(-Assumptions!$F10*'Rent Roll'!$F$9*(1+Assumptions!$C$5)^ROUNDDOWN((AK$4-$C$4-1)/12,0))/12 -> 0 | AL47: =(-Assumptions!$F10*'Rent Roll'!$F$9*(1+Assumptions!$C$5)^ROUNDDOWN((AL$4-$C$4-1)/12,0))/12 -> 0 | AM47: =(-Assumptions!$F10*'Rent Roll'!$F$9*(1+Assumptions!$C$5)^ROUNDDOWN((AM$4-$C$4-1)/12,0))/12 -> 0 | AN47: =(-Assumptions!$F10*'Rent Roll'!$F$9*(1+Assumptions!$C$5)^ROUNDDOWN((AN$4-$C$4-1)/12,0))/12 -> 0 | AO47: =(-Assumptions!$F10*'Rent Roll'!$F$9*(1+Assumptions!$C$5)^ROUNDDOWN((AO$4-$C$4-1)/12,0))/12 -> 0 | AP47: =(-Assumptions!$F10*'Rent Roll'!$F$9*(1+Assumptions!$C$5)^ROUNDDOWN((AP$4-$C$4-1)/12,0))/12 -> 0 | AQ47: =(-Assumptions!$F10*'Rent Roll'!$F$9*(1+Assumptions!$C$5)^ROUNDDOWN((AQ$4-$C$4-1)/12,0))/12 -> 0 | AR47: =(-Assumptions!$F10*'Rent Roll'!$F$9*(1+Assumptions!$C$5)^ROUNDDOWN((AR$4-$C$4-1)/12,0))/12 -> 0 | AS47: =(-Assumptions!$F10*'Rent Roll'!$F$9*(1+Assumptions!$C$5)^ROUNDDOWN((AS$4-$C$4-1)/12,0))/12 -> 0 | AT47: =(-Assumptions!$F10*'Rent Roll'!$F$9*(1+Assumptions!$C$5)^ROUNDDOWN((AT$4-$C$4-1)/12,0))/12 -> 0 | AU47: =(-Assumptions!$F10*'Rent Roll'!$F$9*(1+Assumptions!$C$5)^ROUNDDOWN((AU$4-$C$4-1)/12,0))/12 -> 0 | AV47: =(-Assumptions!$F10*'Rent Roll'!$F$9*(1+Assumptions!$C$5)^ROUNDDOWN((AV$4-$C$4-1)/12,0))/12 -> 0 | AW47: =(-Assumptions!$F10*'Rent Roll'!$F$9*(1+Assumptions!$C$5)^ROUNDDOWN((AW$4-$C$4-1)/12,0))/12 -> 0 | AX47: =(-Assumptions!$F10*'Rent Roll'!$F$9*(1+Assumptions!$C$5)^ROUNDDOWN((AX$4-$C$4-1)/12,0))/12 -> 0 | AY47: =(-Assumptions!$F10*'Rent Roll'!$F$9*(1+Assumptions!$C$5)^ROUNDDOWN((AY$4-$C$4-1)/12,0))/12 -> 0 | AZ47: =(-Assumptions!$F10*'Rent Roll'!$F$9*(1+Assumptions!$C$5)^ROUNDDOWN((AZ$4-$C$4-1)/12,0))/12 -> 0 | BA47: =(-Assumptions!$F10*'Rent Roll'!$F$9*(1+Assumptions!$C$5)^ROUNDDOWN((BA$4-$C$4-1)/12,0))/12 -> 0 | BB47: =(-Assumptions!$F10*'Rent Roll'!$F$9*(1+Assumptions!$C$5)^ROUNDDOWN((BB$4-$C$4-1)/12,0))/12 -> 0 | BC47: =(-Assumptions!$F10*'Rent Roll'!$F$9*(1+Assumptions!$C$5)^ROUNDDOWN((BC$4-$C$4-1)/12,0))/12 -> 0 | BD47: =(-Assumptions!$F10*'Rent Roll'!$F$9*(1+Assumptions!$C$5)^ROUNDDOWN((BD$4-$C$4-1)/12,0))/12 -> 0 | BE47: =(-Assumptions!$F10*'Rent Roll'!$F$9*(1+Assumptions!$C$5)^ROUNDDOWN((BE$4-$C$4-1)/12,0))/12 -> 0 | BF47: =(-Assumptions!$F10*'Rent Roll'!$F$9*(1+Assumptions!$C$5)^ROUNDDOWN((BF$4-$C$4-1)/12,0))/12 -> 0 | BG47: =(-Assumptions!$F10*'Rent Roll'!$F$9*(1+Assumptions!$C$5)^ROUNDDOWN((BG$4-$C$4-1)/12,0))/12 -> 0 | BH47: =(-Assumptions!$F10*'Rent Roll'!$F$9*(1+Assumptions!$C$5)^ROUNDDOWN((BH$4-$C$4-1)/12,0))/12 -> 0 | BI47: =(-Assumptions!$F10*'Rent Roll'!$F$9*(1+Assumptions!$C$5)^ROUNDDOWN((BI$4-$C$4-1)/12,0))/12 -> 0 | BJ47: =(-Assumptions!$F10*'Rent Roll'!$F$9*(1+Assumptions!$C$5)^ROUNDDOWN((BJ$4-$C$4-1)/12,0))/12 -> 0 | BK47: =(-Assumptions!$F10*'Rent Roll'!$F$9*(1+Assumptions!$C$5)^ROUNDDOWN((BK$4-$C$4-1)/12,0))/12 -> 0 | BM47: STOP
